Workbook

Sheet SolCotizacion
B1: SOLICITUD DE COTIZACIÓN
B3: Acuerdo Marco Vehículos
B4: Versión:125 | C4: 2024-07-05
B5: Información de la Entidad Compradora
B7: Nombre de la Entidad: | K7: NIT:
B9: Dirección de la Entidad: | K9: Municipio:
B11: Nombre del Comprador: | K11: Teléfono:
B13: Correo del comprador:
B15: Fechas estimadas
E17: Fecha creación solicitud cotización:
B18: ¿La Entidad se encuentra al día por concepto de comparendos y/o trámites ante la autoridad de tránsito respectiva? | G18: En este espacio justifique las razones bajo las cuales escogió el intervalo de precios.
B19: Artículos Solicitud de Cotización
B24: Lote/Segmento | E24: División/Subdivisión | G24: Intervalo de precios | I24: Potencia | J24: Puertas | K24: Tracción | L24: Ejes | M24: Capacidad de carga | N24: Unidades
A25: =VLOOKUP(B25,Listas!A:E,4,0) -> 
B27: Adecuaciones y Accesorios
B28: Descripción | H28: Cantidad | J28: Sí / No | K28: Observaciones
B29: Ninguno | J29: NO
B31: Caracteristicas del Vehiculo y Tiempo de Entrega Requerido
B34: Mantenimiento Preventivo
B35: Descripción | N35: Sí / No
B36: 50 mil Km o 2 años | N36: SI
B41: Requerimientos de la Matricula
B44: Impuesto de Rodamiento
B45: Si la presente adquisición da lugar al pago del impuesto de rodamiento y la Entidad requiere que el Proveedor incluya el valor en su cotización, indicar el valor exacto.
B47: .Lugar de Entrega
B48: Ciudad de Entrega | L48: otra | N48: Unidades
B50: Si requiere agregue o elimine filas
B52: Incluye SOAT
B53: Sí / No | I53: Vigencia
B56: Gravámenes adicionales (estampillas)
B58: Indique los gravámenes adicionales (estampilllas) a los que está sujeta la Orden de Compra. Son gravámens adiconales por ejemplo; estampillas y demás impuestos territoriales. Los impuestos como ICA y retención en la fuente NO son gravámenes adicionales.
B59: ¿Como debe calcular el proveedor el valor de las estampillas? | F59: No aplica
B60: ¿La base para liquidar las estampillas debe ser antes de IVA?
B61: ¿La base para liquidar las estampillas debe ser antes de impoconsumo?
B63: No. | C63: Descripción | N63: % Gravamen
B64: 1
J66: Total Gravámenes adicionales | N66: =SUM(N64:N64) -> 0

Sheet ActFasecolda (hidden)
A1: Directorio | B1: C:\Users\michel.lopez\Downloads\Guia_Excel_278\Guia_Excel_278.xls
D2: 1

Sheet FormatosIndividuales (hidden)
B2: Valor de la Matricula | G2: Lugar de Entrega | L2: Cuadro Resumen
G3: Valor Ciudad de Entrega | L3: Descripción | M3: Valor
L4: Valor Total Vehículos: | M4: =ROUND($R$25,0) -> 0
B5: Impuesto de Rodamiento | L5: Valor Total Accesorios y Adecuaciones: | M5: =ROUND(SUM(M$31:M$46),0) -> 0
G6: SOAT | L6: Valor Total Mantenimiento Preventivo: | M6: =ROUND(SUM(M$50:M$53),0) -> 0
G7: Valor del SOAT | I7: $ Gravamen | L7: Valor Total Matricula: | M7: =ROUND($O$54,0) -> 0
B8: valor unidad (Precio en el Catálogo incluido el descuento por volumen ) | C8: valor total | D8: % descuento adicional | E8: Total con Descuento | L8: Valor Total Impuesto de Rodamiento:
E9: =C9*(1-D9) -> 0 | L9: Valor Total Lugar Entraga:
L10: Valor Total Soat: | M10: =ROUND($K$65,0) -> 0
L11: Valor Gravamenes Adicionales: | M11: =ROUND($K$65,0) -> 0
L13: Descripción del Vehículo
L16: Total | M16: =ROUND(SUM(M4:M10),0) -> 0

Sheet Listas (hidden)
A1: Lote/Segmento | B1: TipCaracteristica | C1: Tramsmisiontipouso | D1: carroceriaarea | E1: División/Subdivisión | F1: Potencia | G1: Puertas | H1: Vehiculos | I1: Proveedores | J1: Transmisión | K1: Carroceria | L1: Tipodeuso | M1: Area | N1: CiudadesEntrega | O1: otraCiudad | P1: Unidad | Q1: SISOAT | R1: Traccion | S1: Transmisión | T1: Combustible | U1: Ejes | V1: Capacidad de carga | W1: Intervalo de Precios
A2: Otros Tipos de Vehículos - Camión | B2: Peso bruto vehícular | C2: No Aplica | D2: Seg1 | E2: TAB - 4X2 | F2: N.A. | G2: N.A. | H2: CHEVROLET MINIBUSETA NPR REWARD EURO IV | I2: YOKOMOTOR S.A. | J2: Automático | K2: Sedan | L2: Carga | M2: Urbana | N2: Armenia | O2: Abejorral | P2: 1 | Q2: 12 meses | R2: N.A. | S2: Transmisión | T2: Gasolina | U2: N.A. | V2: N.A. | W2: Intervalo de precio 1
A3: Otros Tipos de Vehículos - Remolcadores | B3: Peso bruto vehícular | C3: No Aplica | D3: Seg2 | E3: TAB - 4X4 | H3: Chevrolet NPR [4] 700P [BUSETA] [172HP] EURO VI MT 3000CC TD 4X2 [INT] | J3: Mecánico | K3: Hatchback | L3: Pasajeros | M3: Municipal | N3: Barranquilla | O3: Ábrego | P3: 2 | W3: Intervalo de precio 2
A4: Otros Tipos de Vehículos - Volqueta | B4: Peso bruto vehícular | C4: No Aplica | D4: Seg3 | E4: TAM - 4X2 | H4: HINO MINIBUSETA | N4: Bogotá, D.C. | O4: Abriaquí | P4: 3 | W4: Intervalo de precio 3
A5: Vehículos Convencionales - Automóviles | B5: Cilindraje | C5: Transmisión | D5: Seg4 | E5: TAM - 4X4 | H5: HINO NUEVA BUSETA E V 5100 CC | N5: Bucaramanga | O5: Acacías | P5: 4
A6: Vehículos Convencionales - Camperos/Camionetas | B6: Cilindraje | C6: Transmisión | D6: Seg5 | H6: MERCEDES BENZ Buseta OF 917 de hasta 30 pasajeros intermunicipal | N6: Cali | O6: Acandí | P6: 5
A7: Vehículos Convencionales - Pick Up | B7: Cilindraje | C7: Transmisión | D7: Seg6 | H7: Ford FORD RANGER [5] LIMITED+ AT 3000CC 4X4 | N7: Cartagena De Indias | O7: Acevedo | P7: 6
A8: Vehículos Convencionales - Vehículos Destinados al Transporte de Carga Liviana | B8: Caracteristica | C8: No Aplica | D8: Seg7 | H8: Toyota HILUX 2,8 4X4 FULL | N8: Cúcuta | O8: Achí | P8: 7
A9: Vehículos Convencionales - Vehículos Destinados al Transporte de Pasajeros | B9: Caracteristica | C9: No Aplica | D9: Seg8 | H9: Toyota HILUX D,C 4X4 DIESEL 2,8 AT | N9: Ibagué | O9: Agrado | P9: 8
A10: Vehículos Eléctricos - Automóviles | B10: Cilindraje | C10: Transmisión | D10: Seg9 | H10: Toyota HILUX D.C. 4X4 DIESEL 2,8 AT - TN7 | N10: Manizales | O10: Agua De Dios | P10: 9
A11: Vehículos Eléctricos - Camperos/Camionetas | B11: No Aplica | C11: No Aplica | D11: Seg5 | H11: Toyota HILUX D.C.4X4 DIESEL 2.8 AT - TP 2800CC TD 7AB 4X4 EURO IV | N11: Medellín | O11: Aguachica | P11: 10
A12: Vehículos Eléctricos - Vehículos Destinados al Transporte de Carga Liviana | B12: Caracteristica | C12: No Aplica | D12: Seg11 | H12: HINO Chasis Cabinado Hino FC9J Light AA | N12: Montería | O12: Aguada | P12: 11
A13: Vehículos Especiales - Ambulancias | B13: Caracteristica | C13: No Aplica | D13: Seg13 | H13: JAC JRR NUEVO, Camión cabina sencilla, de 3 pasajeros | N13: Neiva | O13: Aguadas | P13: 12
A14: Vehículos Especiales - Carrotanques | B14: Caracteristica | C14: No Aplica | D14: Seg14 | H14: Toyota FJ CRUISER AT | N14: Pasto | O14: Aguazul | P14: 13
A15: Vehículos Híbridos - Automóviles | B15: Cilindraje | C15: Transmisión | D15: Seg15 | H15: Toyota FJ CRUISER AT-AT 4000CC 5P 4X4 | N15: Pereira | O15: Agustín Codazzi | P15: 14
A16: Vehículos Híbridos - Camperos/Camionetas | B16: Cilindraje | C16: Transmisión | D16: Seg16 | N16: Popayán | O16: Aipe | P16: 15
A17: Vehículos Híbridos - Vehículos Destinados al Transporte de Carga Liviana | B17: Caracteristica | C17: No Aplica | D17: Seg17 | N17: Riohacha | O17: Albán | P17: 16
N18: Santa Marta | O18: Albania | P18: 17
N19: Sincelejo | O19: Alcalá | P19: 18
N20: Tunja | O20: Aldana | P20: 19
N21: Valledupar | O21: Alejandría | P21: 20
N22: Villavicencio | O22: Algarrobo | P22: 21
N23: Yopal | O23: Algeciras | P23: 22
N24: Otra | O24: Almaguer | P24: 23
O25: Almeida | P25: 24
O26: Alpujarra | P26: 25
O27: Altamira | P27: 26
O28: Alto Baudó | P28: 27
O29: Altos Del Rosario | P29: 28
O30: Alvarado | P30: 29
O31: Amagá | P31: 30
O32: Amalfi | P32: 31
O33: Ambalema | P33: 32
O34: Anapoima | P34: 33
O35: Ancuyá | P35: 34
O36: Andalucía | P36: 35
O37: Andes | P37: 36
O38: Angelópolis | P38: 37
O39: Angostura | P39: 38
O40: Anolaima | P40: 39
O41: Anorí | P41: 40
O42: Anserma | P42: 41
O43: Ansermanuevo | P43: 42
O44: Anzá | P44: 43
O45: Anzoátegui | P45: 44
O46: Apartadó | P46: 45
O47: Apía | P47: 46
O48: Apulo | P48: 47
O49: Aquitania | P49: 48
O50: Aracataca | P50: 49
O51: Aranzazu | P51: 50
O52: Aratoca | P52: 51
O53: Arauca | P53: 52
O54: Arauquita | P54: 53
O55: Arbeláez | P55: 54
O56: Arboleda | P56: 55
O57: Arboledas | P57: 56
O58: Arboletes | P58: 57
O59: Arcabuco | P59: 58
O60: Arenal | P60: 59
O61: Argelia | P61: 60
O62: Ariguaní | P62: 61
O63: Arjona | P63: 62
O64: Armero Guayabal | P64: 63
O65: Arroyohondo | P65: 64
O66: Astrea | P66: 65
O67: Ataco | P67: 66
O68: Atrato | P68: 67
O69: Ayapel | P69: 68
O70: Bagadó | P70: 69
O71: Bahía Solano | P71: 70
O72: Bajo Baudó | P72: 71
O73: Balboa | P73: 72
O74: Baranoa | P74: 73
O75: Baraya | P75: 74
O76: Barbacoas | P76: 75
O77: Barbosa | P77: 76
O78: Barichara | P78: 77
O79: Barranca De Upía | P79: 78
O80: Barrancabermeja | P80: 79
O81: Barrancas | P81: 80
O82: Barranco De Loba | P82: 81
O83: Barranco Minas | P83: 82
O84: Becerril | P84: 83
O85: Belalcázar | P85: 84
O86: Belén | P86: 85
O87: Belén De Los Andaquíes | P87: 86
O88: Belén De Umbría | P88: 87
O89: Bello | P89: 88
O90: Belmira | P90: 89
O91: Beltrán | P91: 90
O92: Berbeo | P92: 91
O93: Betania | P93: 92
O94: Betéitiva | P94: 93
O95: Betulia | P95: 94
O96: Bituima | P96: 95
O97: Boavita | P97: 96
O98: Bochalema | P98: 97
O99: Bojacá | P99: 98
O100: Bojayá | P100: 99
O101: Bolívar | P101: 100
O102: Bosconia | P102: 101
O103: Boyacá | P103: 102
O104: Briceño | P104: 103
O105: Bucarasica | P105: 104
O106: Buenaventura | P106: 105
O107: Buenavista | P107: 106
O108: Buenos Aires | P108: 107
O109: Buesaco | P109: 108
O110: Bugalagrande | P110: 109
O111: Buriticá | P111: 110
O112: Busbanzá | P112: 111
O113: Cabrera | P113: 112
O114: Cabuyaro | P114: 113
O115: Cacahual | P115: 114
O116: Cáceres | P116: 115
O117: Cachipay | P117: 116
O118: Cáchira | P118: 117
O119: Cácota | P119: 118
O120: Caicedo | P120: 119
O121: Caicedonia | P121: 120
O122: Caimito | P122: 121
O123: Cajamarca | P123: 122
O124: Cajibío | P124: 123
O125: Cajicá | P125: 124
O126: Calamar | P126: 125
O127: Calarcá | P127: 126
O128: Caldas | P128: 127
O129: Caldono | P129: 128
O130: California | P130: 129
O131: Calima | P131: 130
O132: Caloto | P132: 131
O133: Campamento | P133: 132
O134: Campo De La Cruz | P134: 133
O135: Campoalegre | P135: 134
O136: Campohermoso | P136: 135
O137: Canalete | P137: 136
O138: Candelaria | P138: 137
O139: Cantagallo | P139: 138
O140: Cañasgordas | P140: 139
O141: Caparrapí | P141: 140
O142: Capitanejo | P142: 141
O143: Cáqueza | P143: 142
O144: Caracolí | P144: 143
O145: Caramanta | P145: 144
O146: Carcasí | P146: 145
O147: Carepa | P147: 146
O148: Carmen De Apicalá | P148: 147
O149: Carmen De Carupa | P149: 148
O150: Carmen Del Darién | P150: 149
O151: Carolina | P151: 150
O152: Cartagena Del Chairá | P152: 151
O153: Cartago | P153: 152
O154: Carurú | P154: 153
O155: Casabianca | P155: 154
O156: Castilla La Nueva | P156: 155
O157: Caucasia | P157: 156
O158: Cepitá | P158: 157
O159: Cereté | P159: 158
O160: Cerinza | P160: 159
O161: Cerrito | P161: 160
O162: Cerro De San Antonio | P162: 161
O163: Cértegui | P163: 162
O164: Chachagüí | P164: 163
O165: Chaguaní | P165: 164
O166: Chalán | P166: 165
O167: Chámeza | P167: 166
O168: Chaparral | P168: 167
O169: Charalá | P169: 168
O170: Charta | P170: 169
O171: Chía | P171: 170
O172: Chigorodó | P172: 171
O173: Chima | P173: 172
O174: Chimá | P174: 173
O175: Chimichagua | P175: 174
O176: Chinácota | P176: 175
O177: Chinavita | P177: 176
O178: Chinchiná | P178: 177
O179: Chinú | P179: 178
O180: Chipaque | P180: 179
O181: Chipatá | P181: 180
O182: Chiquinquirá | P182: 181
O183: Chíquiza | P183: 182
O184: Chiriguaná | P184: 183
O185: Chiscas | P185: 184
O186: Chita | P186: 185
O187: Chitagá | P187: 186
O188: Chitaraque | P188: 187
O189: Chivatá | P189: 188
O190: Chivolo | P190: 189
O191: Chivor | P191: 190
O192: Choachí | P192: 191
O193: Chocontá | P193: 192
O194: Cicuco | P194: 193
O195: Ciénaga | P195: 194
O196: Ciénaga De Oro | P196: 195
O197: Ciénega | P197: 196
O198: Cimitarra | P198: 197
O199: Circasia | P199: 198
O200: Cisneros | P200: 199
... 816 more rows

Sheet tempListas (hidden)
A1: Lote/Segmento | B1: TipCaracteristica | C1: Tramsmisiontipouso | D1: carroceriaarea
A2: Otros Tipos de Vehículos - Camión | B2: Peso bruto vehícular | C2: No Aplica | D2: Seg1
A3: Otros Tipos de Vehículos - Remolcadores | B3: Peso bruto vehícular | C3: No Aplica | D3: Seg2
A4: Otros Tipos de Vehículos - Volqueta | B4: Peso bruto vehícular | C4: No Aplica | D4: Seg3
A5: Vehículos Convencionales - Automóviles | B5: Cilindraje | C5: Transmisión | D5: Seg4
A6: Vehículos Convencionales - Camperos/Camionetas | B6: Cilindraje | C6: Transmisión | D6: Seg5
A7: Vehículos Convencionales - Pick Up | B7: Cilindraje | C7: Transmisión | D7: Seg6
A8: Vehículos Convencionales - Vehículos Destinados al Transporte de Carga Liviana | B8: Caracteristica | C8: No Aplica | D8: Seg7
A9: Vehículos Convencionales - Vehículos Destinados al Transporte de Pasajeros | B9: Caracteristica | C9: No Aplica | D9: Seg8
A10: Vehículos Eléctricos - Automóviles | B10: Cilindraje | C10: Transmisión | D10: Seg9
A11: Vehículos Eléctricos - Camperos/Camionetas | B11: No Aplica | C11: No Aplica | D11: Seg5
A12: Vehículos Eléctricos - Vehículos Destinados al Transporte de Carga Liviana | B12: Caracteristica | C12: No Aplica | D12: Seg11
A13: Vehículos Especiales - Ambulancias | B13: Caracteristica | C13: No Aplica | D13: Seg13
A14: Vehículos Especiales - Carrotanques | B14: Caracteristica | C14: No Aplica | D14: Seg14
A15: Vehículos Híbridos - Automóviles | B15: Cilindraje | C15: Transmisión | D15: Seg15
A16: Vehículos Híbridos - Camperos/Camionetas | B16: Cilindraje | C16: Transmisión | D16: Seg16
A17: Vehículos Híbridos - Vehículos Destinados al Transporte de Carga Liviana | B17: Caracteristica | C17: No Aplica | D17: Seg17

Sheet solCotizacionCSV (hidden)
A1: Tipo | B1: Cantidad | C1: CÃ³digo de unidad de medida* | D1: Precio base | E1: Divisa | F1: DescripciÃ³n | G1: MercancÃ­a
A2: item | B2: 1 | C2: Und | D2: 0 | E2: COP | F2: veh03--VehÃ­culo Seg8
A3: item | B3: 1 | C3: Und | D3: 0 | E3: COP | F3: veh03--Adecuaciones y Accesorios Adicionales
A4: item | B4: 1 | C4: Und | D4: 0 | E4: COP | F4: veh03--Mantenimiento Preventivo
A5: item | B5: 1 | C5: Und | D5: 0 | E5: COP | F5: veh03--Requerimientos de la Matricula
A6: item | B6: 1 | C6: Und | D6: 0 | E6: COP | F6: veh03--Impuesto de Rodamiento
A7: item | B7: 1 | C7: Und | D7: 0 | E7: COP | F7: veh03--GravÃ¡menes adicionales
A8: item | B8: 1 | C8: Und | D8: 0 | E8: COP | F8: veh03--SOAT
A9: item | B9: 1 | C9: Und | D9: 0 | E9: COP | F9: veh03--Lugar de Entrega

Sheet Accesorios (hidden)
A1: segmento | B1: Descripción | H1: Cantidad de Vehículos | J1: Sí / No | K1: Observaciones
A2: segmento | B2: Ninguno | J2: NO

Sheet TempAccesorios (hidden)
A1: Sensores de reversa en las referencias a costo del Proveedor | B1: =A1 -> Sensores de reversa en las referencias a costo del Proveedor | J1: NO
A2: Adaptación a gas natural | B2: =A2 -> Adaptación a gas natural | J2: NO
A3: Adhesivo de emblemas (por m2) | B3: Adhesivo de emblemas (por m2) | J3: NO
A4: Alarma (por unidad) | B4: Alarma (por unidad) | J4: NO
A5: Barras de luces, sistema de perifoneo y sirena (por unidad) | B5: Barras de luces, sistema de perifoneo y sirena (por unidad) | J5: NO
A6: Bloqueo Central (por unidad) | B6: Bloqueo Central (por unidad) | J6: NO
A7: Cámara de reversa (por unidad) | B7: Cámara de reversa (por unidad) | J7: NO
A8: Cintas Retrorreflectiva (por metro lineal) | B8: Cintas Retrorreflectiva (por metro lineal) | J8: NO
A9: Sensor de reversa (por unidad) | B9: Sensor de reversa (por unidad) | J9: NO
A10: Cojinería en cuero | B10: Cojinería en cuero | J10: NO
A11: Dispositivo de localización vehicular (AVL) | B11: Dispositivo de localización vehicular (AVL) | J11: NO
A12: Sistema de Rastreo Satelital con Monitoreo | B12: Sistema de Rastreo Satelital con Monitoreo | J12: NO
A13: Elevavidrios Eléctricos | B13: Elevavidrios Eléctricos | J13: NO
A14: Luces Exploradoras | B14: Luces Exploradoras | J14: NO
A15: Forros para los asientos (por silla) | B15: Forros para los asientos (por silla) | J15: NO
A16: Gancho trasero de fijación | B16: Gancho trasero de fijación | J16: NO
A17: Llantas doble propósito (por llanta) | B17: Llantas doble propósito (por llanta) | J17: NO
A18: Luces Perimetrales | B18: Luces Perimetrales | J18: NO
A19: Película de seguridad (por vidrio) | B19: Película de seguridad (por vidrio) | J19: NO
A20: Pintura (10% del exterior del Vehículo) | B20: Pintura (10% del exterior del Vehículo) | J20: NO
A21: Piso en poliuretano (por m2) | B21: Piso en poliuretano (por m2) | J21: NO
A22: Recubiriimento en Pintura Anticorrosiva o Antioxidante (Platón) | B22: Recubiriimento en Pintura Anticorrosiva o Antioxidante (Platón) | J22: NO
A23: Radio Móvil (por unidad) | B23: Radio Móvil (por unidad) | J23: NO
A24: Vidrio polarizado (por vidrio) | B24: Vidrio polarizado (por vidrio) | J24: NO
A25: Aire Acondicionado | B25: Aire Acondicionado | J25: NO
A26: Seguridad Antirrobo para espejos, pernos y repuesto | B26: Seguridad Antirrobo para espejos, pernos y repuesto | J26: NO
A27: Airbags Laterales | B27: Airbags Laterales | J27: NO
A28: Airbags de cortina | B28: Airbags de cortina | J28: NO
A29: Control de tracción | B29: Control de tracción | J29: NO
A30: Aire Acondicionado climatizado con manejo digital | B30: Aire Acondicionado climatizado con manejo digital | J30: NO
A31: Computador de abordo (consumos parciales de combustible) | B31: Computador de abordo (consumos parciales de combustible) | J31: NO

Sheet IniAccesorios (hidden)
A1: ultrallave | B1: VehiculosSeleccion | C1: Marca-Referencia 1 2 3 | D1: Proveedor | E1: Lote/Segmento | F1: Lote | G1: Segmento | H1: Division/Subdivision | I1: División | J1: Subdivisión | K1: Adecuación | L1: Intervalo de precio (en millones $) | M1: Combustible | N1: Referencia | O1: Marca | P1: Código Fasecolda | Q1: referencia 1 | R1: referencia 2 | S1: referencia 3 | T1: Rango de Potencia (HP/kW) | U1: Puertas | V1: Tracción | W1: Transmisión | X1: Tipo de Combustible | Y1: No. Ejes | Z1: Peso Bruto Vehícular Permitido (Kg) | AA1: Peso Vehicular (Kg) | AB1: Capacidad de Carga Kg (cuando aplique) | AC1: Rango de Capacidad de Carga | AD1: Precio referencia (2020) | AE1: 1 | AF1: Precio final de 1 und | AG1: 2 a 5 | AH1: Precio final de 2 a 5 und | AI1: 6 a 10 | AJ1: Precio final de 6 a 10 und | AK1: 11 a 15 | AL1: Precio final de 11 a 15 und | AM1: 16 a 20 | AN1: Precio final de 16 a 20 und | AO1: Mayor a 21 | AP1: Precio final de mayor a 21 und | AQ1: Precio del Mantenimiento Preventivo | AR1: Precio de la Adecuación | AS1: SOAT por un año a costo del Proveedor | AT1: Sensores de reversa en las referencias a costo del proveedor + SOAT por un año a costo del Proveedor | AU1: % de descuento ofrecido sobre el costo total de la matrícula a costa del proveedor | AV1: Sensores de reversa en las referencias a costo del Proveedor | AW1: Adaptación a gas natural | AX1: Adhesivo de emblemas (por m2) | AY1: Alarma (por unidad) | AZ1: Bancas centrales (por unidad) | BA1: Barra antivuelco (por unidad) | BB1: Barras de luces, sistema de perifoneo y sirena (por unidad) | BC1: Bloqueo Central (por unidad) | BD1: Cámara de reversa (por unidad) | BE1: Cintas Retrorreflectiva (por metro lineal) | BF1: Sensor de reversa (por unidad) | BG1: Carrocería adaptada para Plataforma de estacas | BH1: Carrocería Adaptada para Furgón | BI1: Carrocería Adaptada para pasajeros Municipal | BJ1: Carrocería Adaptada para pasajeros Urbano | BK1: Carpa de platón | BL1: Cojinería en cuero | BM1: Defensa | BN1: Dispositivo de localización vehicular (AVL) | BO1: Sistema de Rastreo Satelital con Monitoreo | BP1: Elevavidrios Eléctricos | BQ1: Luces Exploradoras | BR1: Forros para los asientos (por silla) | BS1: Gancho trasero de fijación | BT1: Llantas doble propósito (por llanta) | BU1: Luces Perimetrales | BV1: Película de seguridad (por vidrio) | BW1: Pintura (10% del exterior del Vehículo) | BX1: Piso en poliuretano (por m2) | BY1: Protector del platón | BZ1: Recubiriimento Polimérico (Platón) | CA1: Recubiriimento en Pintura Anticorrosiva o Antioxidante (Platón) | CB1: Radio Móvil (por unidad) | CC1: Vidrio polarizado (por vidrio) | CD1: Bomper | CE1: Winche | CF1: Aire Acondicionado | CG1: Seguridad Antirrobo para espejos, pernos y repuesto | CH1: Capacete | CI1: Rampa para personas en condición de Discapacidad o Movilidad Reducida - Manual | CJ1: Rampa para personas en condición de Discapacidad o Movilidad Reducida - Automática | CK1: Adecuación para Transporte de Pasajeros en Condición de Movilidad Recudica y/o Discapacidad | CL1: Airbags Laterales | CM1: Airbags de cortina | CN1: Control de tracción | CO1: Aire Acondicionado climatizado con manejo digital | CP1: Computador de abordo (consumos parciales de combustible) | CQ1: Discos ventilados en las cuatro ruedas | CR1: Discos de tambor en las cuatro ruedas | CS1: Precio del Cargador | CT1: Airbags Laterales2 | CU1: Airbags de cortina2 | CV1: Control de tracción2 | CW1: Aire Acondicionado climatizado con manejo digital2 | CX1: Computador de abordo (consumos parciales de combustible)2 | CY1: Discos ventilados en las cuatro ruedas2 | CZ1: Airbags Conductor | DA1: Airbags Pasajero | DB1: Control de tracción3 | DC1: Aire acondicionado climatizado con manejo digital3 | DD1: Computador de abordo (consumos parciales de combustible)3 | DE1: Discos ventilados en las cuatro ruedas3 | DF1: Luces perimetrales2 | DG1: Control de mando de luces traseras desde la cabina del conductor | DH1: Activo | DI1: VrActualizado | DJ1: TipCaracteristica | DK1: Tramsmisiontipouso | DL1: carroceriaarea | DM1: cod
A2: VehículosConvencionalesVehículosDestinadosalTransportedePasajerosBusetaEntre20a30pasajerossentadosIntervalodeprecio2NANANANANACHEVROLET MINIBUSETA NPR REWARD EURO IVMEGABUSES DE COLOMBIA S.A.S. | B2: VehículosConvencionalesVehículosDestinadosalTransportedePasajerosBusetaEntre20a30pasajerossentadosIntervalodeprecio2NANANANANA | C2: CHEVROLET MINIBUSETA NPR REWARD EURO IV | D2: MEGABUSES DE COLOMBIA S.A.S. | E2: Vehículos Convencionales - Vehículos Destinados al Transporte de Pasajeros | F2: Vehículos Convencionales | G2: Vehículos Destinados al Transporte de Pasajeros | H2: Buseta - Entre 20 a 30 pasajeros sentados | I2: Buseta | J2: Entre 20 a 30 pasajeros sentados | K2: N.A. | L2: Intervalo de precio 2 | M2: Diésel | N2: MINIBUSETA NPR REWARD EURO IV | O2: CHEVROLET | P2: 1611166 | T2: N.A. | U2: N.A. | V2: N.A. | W2: Mecánico | X2: Diésel | Y2: N.A. | Z2: N.A. | AA2: N.A. | AB2: N.A. | AC2: N.A. | AD2: 165800000 | AE2: 0.003 | AF2: 165302600 | AG2: 0.005 | AH2: 164971000 | AI2: 0.006 | AJ2: 164805200 | AK2: 0.007 | AL2: 164639400 | AM2: 0.008 | AN2: 164473600 | AO2: 0.01 | AP2: 164142000 | AQ2: 10312388.7 | AR2: 0 | AS2: 0 | AT2: 0 | AU2: 0.2 | AV2: 0 | AW2: 7326893.222 | AX2: 515619.435 | AY2: -1 | AZ2: -1 | BA2: -1 | BB2: -1 | BC2: -1 | BD2: 721867.209 | BE2: 72186.7209 | BF2: 464057.4915 | BG2: -1 | BH2: -1 | BI2: 146435919.5 | BJ2: 131998575.4 | BK2: -1 | BL2: -1 | BM2: -1 | BN2: 2268725.514 | BO2: 3403088.271 | BP2: -1 | BQ2: 0 | BR2: 0 | BS2: -1 | BT2: -1 | BU2: -1 | BV2: 154685.8305 | BW2: 2062477.74 | BX2: -1 | BY2: -1 | BZ2: -1 | CA2: -1 | CB2: 2062477.74 | CC2: 103123.887 | CD2: -1 | CE2: -1 | CF2: 25780971.75 | CG2: 1031238.87 | CH2: -1 | CI2: 18562299.66 | CJ2: 25780971.75 | CK2: 4124955.48 | CL2: -1 | CM2: -1 | CN2: -1 | CO2: -1 | CP2: -1 | CQ2: -1 | CR2: -1 | CS2: -1 | CT2: -1 | CU2: -1 | CV2: -1 | CW2: -1 | CX2: -1 | CY2: -1 | CZ2: -1 | DA2: -1 | DB2: -1 | DC2: -1 | DD2: -1 | DE2: -1 | DF2: -1 | DG2: -1 | DH2: 1 | DJ2: Caracteristica | DK2: No Aplica | DL2: Seg8 | DM2: CCEVeh513
A3: VehículosConvencionalesVehículosDestinadosalTransportedePasajerosBusetaEntre20a30pasajerossentadosIntervalodeprecio2NANANANANAHINO MINIBUSETAYOKOMOTOR S.A. | B3: VehículosConvencionalesVehículosDestinadosalTransportedePasajerosBusetaEntre20a30pasajerossentadosIntervalodeprecio2NANANANANA | C3: HINO MINIBUSETA | D3: YOKOMOTOR S.A. | E3: Vehículos Convencionales - Vehículos Destinados al Transporte de Pasajeros | F3: Vehículos Convencionales | G3: Vehículos Destinados al Transporte de Pasajeros | H3: Buseta - Entre 20 a 30 pasajeros sentados | I3: Buseta | J3: Entre 20 a 30 pasajeros sentados | K3: N.A. | L3: Intervalo de precio 2 | M3: Diésel | N3: MINIBUSETA | O3: HINO | P3: 3711055 | T3: N.A. | U3: N.A. | V3: N.A. | W3: Mecánico | X3: Diésel | Y3: N.A. | Z3: N.A. | AA3: N.A. | AB3: N.A. | AC3: N.A. | AD3: 170700000 | AE3: 0 | AF3: 170700000 | AG3: 0.005 | AH3: 169846500 | AI3: 0.01 | AJ3: 168993000 | AK3: 0.015 | AL3: 168139500 | AM3: 0.018 | AN3: 167627400 | AO3: 0.02 | AP3: 167286000 | AQ3: 10103088.46 | AR3: 0 | AS3: -1 | AT3: -1 | AU3: 0 | AV3: -1 | AW3: 7326893.222 | AX3: 269101.5015 | AY3: 206654.0821 | AZ3: -1 | BA3: -1 | BB3: 8880385.14 | BC3: 413308.1642 | BD3: 819727.8591 | BE3: 57403.9117 | BF3: 332942.6879 | BG3: -1 | BH3: -1 | BI3: 160730952.8 | BJ3: 109067432.2 | BK3: -1 | BL3: -1 | BM3: -1 | BN3: 0 | BO3: -1 | BP3: 0 | BQ3: 0 | BR3: 0 | BS3: -1 | BT3: -1 | BU3: 1241072.571 | BV3: 75773.16344 | BW3: 1148078.234 | BX3: -1 | BY3: -1 | BZ3: -1 | CA3: -1 | CB3: 5970006.817 | CC3: 75773.16344 | CD3: -1 | CE3: -1 | CF3: 17221173.51 | CG3: -1 | CH3: -1 | CI3: -1 | CJ3: -1 | CK3: -1 | CL3: -1 | CM3: -1 | CN3: -1 | CO3: -1 | CP3: -1 | CQ3: -1 | CR3: -1 | CS3: -1 | CT3: -1 | CU3: -1 | CV3: -1 | CW3: -1 | CX3: -1 | CY3: -1 | CZ3: -1 | DA3: -1 | DB3: -1 | DC3: -1 | DD3: -1 | DE3: -1 | DF3: -1 | DG3: -1 | DH3: 1 | DJ3: Caracteristica | DK3: No Aplica | DL3: Seg8 | DM3: CCEVeh523
A4: VehículosConvencionalesVehículosDestinadosalTransportedePasajerosBusetaEntre20a30pasajerossentadosIntervalodeprecio2NANANANANAHINO NUEVA BUSETA E V 5100 CCYOKOMOTOR S.A. | B4: VehículosConvencionalesVehículosDestinadosalTransportedePasajerosBusetaEntre20a30pasajerossentadosIntervalodeprecio2NANANANANA | C4: HINO NUEVA BUSETA E V 5100 CC | D4: YOKOMOTOR S.A. | E4: Vehículos Convencionales - Vehículos Destinados al Transporte de Pasajeros | F4: Vehículos Convencionales | G4: Vehículos Destinados al Transporte de Pasajeros | H4: Buseta - Entre 20 a 30 pasajeros sentados | I4: Buseta | J4: Entre 20 a 30 pasajeros sentados | K4: N.A. | L4: Intervalo de precio 2 | M4: Diésel | N4: NUEVA BUSETA E V 5100 CC | O4: HINO | P4: 3711076 | T4: N.A. | U4: N.A. | V4: N.A. | W4: Mecánico | X4: Diésel | Y4: N.A. | Z4: N.A. | AA4: N.A. | AB4: N.A. | AC4: N.A. | AD4: 207000000 | AE4: 0 | AF4: 207000000 | AG4: 0.005 | AH4: 205965000 | AI4: 0.01 | AJ4: 204930000 | AK4: 0.015 | AL4: 203895000 | AM4: 0.018 | AN4: 203274000 | AO4: 0.02 | AP4: 202860000 | AQ4: 11940013.63 | AR4: 0 | AS4: -1 | AT4: -1 | AU4: 0 | AV4: 0 | AW4: 7326893.222 | AX4: 269101.5015 | AY4: 206654.0821 | AZ4: -1 | BA4: -1 | BB4: 8880385.14 | BC4: 413308.1642 | BD4: 819727.8591 | BE4: 57403.9117 | BF4: 332942.6879 | BG4: -1 | BH4: -1 | BI4: 190580986.8 | BJ4: 126288605.7 | BK4: -1 | BL4: -1 | BM4: -1 | BN4: 0 | BO4: -1 | BP4: 0 | BQ4: 0 | BR4: 0 | BS4: -1 | BT4: -1 | BU4: 1241072.571 | BV4: 75773.16344 | BW4: 1377693.881 | BX4: -1 | BY4: -1 | BZ4: -1 | CA4: -1 | CB4: 5970006.817 | CC4: 75773.16344 | CD4: -1 | CE4: -1 | CF4: 20665408.21 | CG4: -1 | CH4: -1 | CI4: -1 | CJ4: -1 | CK4: -1 | CL4: -1 | CM4: -1 | CN4: -1 | CO4: -1 | CP4: -1 | CQ4: -1 | CR4: -1 | CS4: -1 | CT4: -1 | CU4: -1 | CV4: -1 | CW4: -1 | CX4: -1 | CY4: -1 | CZ4: -1 | DA4: -1 | DB4: -1 | DC4: -1 | DD4: -1 | DE4: -1 | DF4: -1 | DG4: -1 | DH4: 1 | DJ4: Caracteristica | DK4: No Aplica | DL4: Seg8 | DM4: CCEVeh524
A5: VehículosConvencionalesVehículosDestinadosalTransportedePasajerosBusetaEntre20a30pasajerossentadosIntervalodeprecio2NANANANANAMERCEDES BENZ Buseta OF 917 de hasta 30 pasajeros intermunicipalUT Motorysa-Casatoro2020 | B5: VehículosConvencionalesVehículosDestinadosalTransportedePasajerosBusetaEntre20a30pasajerossentadosIntervalodeprecio2NANANANANA | C5: MERCEDES BENZ Buseta OF 917 de hasta 30 pasajeros intermunicipal | D5: UT Motorysa-Casatoro2020 | E5: Vehículos Convencionales - Vehículos Destinados al Transporte de Pasajeros | F5: Vehículos Convencionales | G5: Vehículos Destinados al Transporte de Pasajeros | H5: Buseta - Entre 20 a 30 pasajeros sentados | I5: Buseta | J5: Entre 20 a 30 pasajeros sentados | K5: N.A. | L5: Intervalo de precio 2 | M5: Diésel | N5: Buseta OF 917 de hasta 30 pasajeros intermunicipal | O5: MERCEDES BENZ | P5: 5811034 | T5: N.A. | U5: N.A. | V5: N.A. | W5: Mecánico | X5: Diésel | Y5: N.A. | Z5: N.A. | AA5: N.A. | AB5: N.A. | AC5: N.A. | AD5: 200600000 | AE5: 0.00025 | AF5: 200549850 | AG5: 0.0005 | AH5: 200499700 | AI5: 0.00075 | AJ5: 200449550 | AK5: 0.001 | AL5: 200399400 | AM5: 0.00125 | AN5: 200349250 | AO5: 0.0015 | AP5: 200299100 | AQ5: 11010379.02 | AR5: 0 | AS5: 0 | AT5: 0 | AU5: 0.05 | AV5: 0 | AW5: 7326893.222 | AX5: -1 | AY5: -1 | AZ5: -1 | BA5: -1 | BB5: -1 | BC5: -1 | BD5: 619333.8197 | BE5: 426652.1869 | BF5: 619333.8197 | BG5: -1 | BH5: -1 | BI5: 185800145.9 | BJ5: 185690042.1 | BK5: -1 | BL5: 18580014.59 | BM5: -1 | BN5: -1 | BO5: -1 | BP5: -1 | BQ5: 0 | BR5: 0 | BS5: -1 | BT5: -1 | BU5: -1 | BV5: 137629.7377 | BW5: -1 | BX5: -1 | BY5: -1 | BZ5: -1 | CA5: -1 | CB5: 1307482.508 | CC5: -1 | CD5: -1 | CE5: -1 | CF5: 26149650.16 | CG5: 894593.2951 | CH5: -1 | CI5: -1 | CJ5: 24338681.07 | CK5: 17734214.85 | CL5: -1 | CM5: -1 | CN5: -1 | CO5: 0 | CP5: 0 | CQ5: -1 | CR5: 0 | CS5: -1 | CT5: -1 | CU5: -1 | CV5: -1 | CW5: -1 | CX5: -1 | CY5: -1 | CZ5: -1 | DA5: -1 | DB5: -1 | DC5: -1 | DD5: -1 | DE5: -1 | DF5: -1 | DG5: -1 | DH5: 1 | DJ5: Caracteristica | DK5: No Aplica | DL5: Seg8 | DM5: CCEVeh537
A6: VehículosConvencionalesVehículosDestinadosalTransportedePasajerosBusetaEntre20a30pasajerossentadosIntervalodeprecio2NANANANANAChevrolet NPR [4] 700P [BUSETA] [172HP] EURO VI MT 3000CC TD 4X2 [INT]AUTOMAYOR S.A. | B6: VehículosConvencionalesVehículosDestinadosalTransportedePasajerosBusetaEntre20a30pasajerossentadosIntervalodeprecio2NANANANANA | C6: Chevrolet NPR [4] 700P [BUSETA] [172HP] EURO VI MT 3000CC TD 4X2 [INT] | D6: AUTOMAYOR S.A. | E6: Vehículos Convencionales - Vehículos Destinados al Transporte de Pasajeros | F6: Vehículos Convencionales | G6: Vehículos Destinados al Transporte de Pasajeros | H6: Buseta - Entre 20 a 30 pasajeros sentados | I6: Buseta | J6: Entre 20 a 30 pasajeros sentados | K6: N.A. | L6: Intervalo de precio 2 | M6: Diésel | N6: NPR [4] 700P [BUSETA] [172HP] EURO VI MT 3000CC TD 4X2 [INT] | O6: Chevrolet | P6: N.A. | T6: N.A. | U6: N.A. | V6: N.A. | W6: Mecánico | X6: Diésel | Y6: N.A. | Z6: N.A. | AA6: N.A. | AB6: N.A. | AC6: N.A. | AD6: 206140000 | AE6: 0.1 | AF6: 185526000 | AG6: 0.1 | AH6: 185526000 | AI6: 0.1 | AJ6: 185526000 | AK6: 0.1 | AL6: 185526000 | AM6: 0.11 | AN6: 183464600 | AO6: 0.12 | AP6: 181403200 | AQ6: 17774894.84 | AR6: -1 | AS6: 0 | AT6: 0 | AU6: 1 | AV6: 0 | AW6: -1 | AX6: 501428.5418 | AY6: -1 | AZ6: -1 | BA6: -1 | BB6: 11357796.99 | BC6: -1 | BD6: 1709415.484 | BE6: 120352.0435 | BF6: 1413116.8 | BG6: -1 | BH6: -1 | BI6: 219368700 | BJ6: 194651100 | BK6: -1 | BL6: -1 | BM6: -1 | BN6: 2708798.192 | BO6: 3830622.932 | BP6: -1 | BQ6: 0.03230757495 | BR6: 162487.3635 | BS6: -1 | BT6: 339867 | BU6: 5292005.581 | BV6: 121865.5227 | BW6: 1.721736618 | BX6: -1 | BY6: -1 | BZ6: -1 | CA6: 2681436.053 | CB6: 7393102.259 | CC6: 121865.5227 | CD6: -1 | CE6: -1 | CF6: 35213958.96 | CG6: 1896158.352 | CH6: -1 | CI6: 25622054.87 | CJ6: 44625866.78 | CK6: 205354624.3 | CL6: -1 | CM6: -1 | CN6: -1 | CO6: -1 | CP6: -1 | CQ6: -1 | CR6: -1 | CS6: -1 | CT6: -1 | CU6: -1 | CV6: -1 | CW6: -1 | CX6: -1 | CY6: -1 | CZ6: -1 | DA6: -1 | DB6: -1 | DC6: -1 | DD6: -1 | DE6: -1 | DF6: -1 | DG6: -1 | DH6: 1 | DJ6: No Aplica | DK6: No Aplica | DL6: Seg8 | DM6: CCEVeh1232
AV7: =COUNTIF(AV$2:AV6,">-1") -> 4 | AW7: =COUNTIF(AW$2:AW6,">-1") -> 4 | AX7: =COUNTIF(AX$2:AX6,">-1") -> 4 | AY7: =COUNTIF(AY$2:AY6,">-1") -> 2 | AZ7: =COUNTIF(AZ$2:AZ6,">-1") -> 0 | BA7: =COUNTIF(BA$2:BA6,">-1") -> 0 | BB7: =COUNTIF(BB$2:BB6,">-1") -> 3 | BC7: =COUNTIF(BC$2:BC6,">-1") -> 2 | BD7: =COUNTIF(BD$2:BD6,">-1") -> 5 | BE7: =COUNTIF(BE$2:BE6,">-1") -> 5 | BF7: =COUNTIF(BF$2:BF6,">-1") -> 5 | BG7: =COUNTIF(BG$2:BG6,">-1") -> 0 | BH7: =COUNTIF(BH$2:BH6,">-1") -> 0 | BI7: =COUNTIF(BI$2:BI6,">-1") -> 5 | BJ7: =COUNTIF(BJ$2:BJ6,">-1") -> 5 | BK7: =COUNTIF(BK$2:BK6,">-1") -> 0 | BL7: =COUNTIF(BL$2:BL6,">-1") -> 1 | BM7: =COUNTIF(BM$2:BM6,">-1") -> 0 | BN7: =COUNTIF(BN$2:BN6,">-1") -> 4 | BO7: =COUNTIF(BO$2:BO6,">-1") -> 2 | BP7: =COUNTIF(BP$2:BP6,">-1") -> 2 | BQ7: =COUNTIF(BQ$2:BQ6,">-1") -> 5 | BR7: =COUNTIF(BR$2:BR6,">-1") -> 5 | BS7: =COUNTIF(BS$2:BS6,">-1") -> 0 | BT7: =COUNTIF(BT$2:BT6,">-1") -> 1 | BU7: =COUNTIF(BU$2:BU6,">-1") -> 3 | BV7: =COUNTIF(BV$2:BV6,">-1") -> 5 | BW7: =COUNTIF(BW$2:BW6,">-1") -> 4 | BX7: =COUNTIF(BX$2:BX6,">-1") -> 0 | BY7: =COUNTIF(BY$2:BY6,">-1") -> 0 | BZ7: =COUNTIF(BZ$2:BZ6,">-1") -> 0 | CA7: =COUNTIF(CA$2:CA6,">-1") -> 1 | CB7: =COUNTIF(CB$2:CB6,">-1") -> 5 | CC7: =COUNTIF(CC$2:CC6,">-1") -> 4 | CD7: =COUNTIF(CD$2:CD6,">-1") -> 0 | CE7: =COUNTIF(CE$2:CE6,">-1") -> 0 | CF7: =COUNTIF(CF$2:CF6,">-1") -> 5 | CG7: =COUNTIF(CG$2:CG6,">-1") -> 3 | CH7: =COUNTIF(CH$2:CH6,">-1") -> 0 | CI7: =COUNTIF(CI$2:CI6,">-1") -> 2 | CJ7: =COUNTIF(CJ$2:CJ6,">-1") -> 3 | CK7: =COUNTIF(CK$2:CK6,">-1") -> 3 | CL7: =COUNTIF(CL$2:CL6,">-1") -> 0 | CM7: =COUNTIF(CM$2:CM6,">-1") -> 0 | CN7: =COUNTIF(CN$2:CN6,">-1") -> 0 | CO7: =COUNTIF(CO$2:CO6,">-1") -> 1 | CP7: =COUNTIF(CP$2:CP6,">-1") -> 1 | CQ7: =COUNTIF(CQ$2:CQ6,">-1") -> 0 | CR7: =COUNTIF(CR$2:CR6,">-1") -> 1 | CS7: =COUNTIF(CS$2:CS6,">-1") -> 0 | CT7: =COUNTIF(CT$2:CT6,">-1") -> 0 | CU7: =COUNTIF(CU$2:CU6,">-1") -> 0 | CV7: =COUNTIF(CV$2:CV6,">-1") -> 0 | CW7: =COUNTIF(CW$2:CW6,">-1") -> 0 | CX7: =COUNTIF(CX$2:CX6,">-1") -> 0 | CY7: =COUNTIF(CY$2:CY6,">-1") -> 0 | CZ7: =COUNTIF(CZ$2:CZ6,">-1") -> 0 | DA7: =COUNTIF(DA$2:DA6,">-1") -> 0 | DB7: =COUNTIF(DB$2:DB6,">-1") -> 0 | DC7: =COUNTIF(DC$2:DC6,">-1") -> 0 | DD7: =COUNTIF(DD$2:DD6,">-1") -> 0 | DE7: =COUNTIF(DE$2:DE6,">-1") -> 0 | DF7: =COUNTIF(DF$2:DF6,">-1") -> 0 | DG7: =COUNTIF(DG$2:DG6,">-1") -> 0

Sheet ListaAccesorios (hidden)
A1: Sensores de reversa en las referencias a costo del Proveedor | B1: Sensores de reversa en las referencias a costo del Proveedor | J1: NO
A2: Adaptación a gas natural | B2: Adaptación a gas natural | J2: NO
A3: Adhesivo de emblemas (por m2) | B3: Adhesivo de emblemas (por m2) | J3: NO
A4: Alarma (por unidad) | B4: Alarma (por unidad) | J4: NO
A5: Barras de luces, sistema de perifoneo y sirena (por unidad) | B5: Barras de luces, sistema de perifoneo y sirena (por unidad) | J5: NO
A6: Bloqueo Central (por unidad) | B6: Bloqueo Central (por unidad) | J6: NO
A7: Cámara de reversa (por unidad) | B7: Cámara de reversa (por unidad) | J7: NO
A8: Cintas Retrorreflectiva (por metro lineal) | B8: Cintas Retrorreflectiva (por metro lineal) | J8: NO
A9: Sensor de reversa (por unidad) | B9: Sensor de reversa (por unidad) | J9: NO
A10: Carrocería Adaptada para pasajeros Municipal | B10: Carrocería Adaptada para pasajeros Municipal | J10: NO
A11: Carrocería Adaptada para pasajeros Urbano | B11: Carrocería Adaptada para pasajeros Urbano | J11: NO
A12: Cojinería en cuero | B12: Cojinería en cuero | J12: NO
A13: Dispositivo de localización vehicular (AVL) | B13: Dispositivo de localización vehicular (AVL) | J13: NO
A14: Sistema de Rastreo Satelital con Monitoreo | B14: Sistema de Rastreo Satelital con Monitoreo | J14: NO
A15: Elevavidrios Eléctricos | B15: Elevavidrios Eléctricos | J15: NO
A16: Luces Exploradoras | B16: Luces Exploradoras | J16: NO
A17: Forros para los asientos (por silla) | B17: Forros para los asientos (por silla) | J17: NO
A18: Llantas doble propósito (por llanta) | B18: Llantas doble propósito (por llanta) | J18: NO
A19: Luces Perimetrales | B19: Luces Perimetrales | J19: NO
A20: Película de seguridad (por vidrio) | B20: Película de seguridad (por vidrio) | J20: NO
A21: Pintura (10% del exterior del Vehículo) | B21: Pintura (10% del exterior del Vehículo) | J21: NO
A22: Recubiriimento en Pintura Anticorrosiva o Antioxidante (Platón) | B22: Recubiriimento en Pintura Anticorrosiva o Antioxidante (Platón) | J22: NO
A23: Radio Móvil (por unidad) | B23: Radio Móvil (por unidad) | J23: NO
A24: Vidrio polarizado (por vidrio) | B24: Vidrio polarizado (por vidrio) | J24: NO
A25: Aire Acondicionado | B25: Aire Acondicionado | J25: NO
A26: Seguridad Antirrobo para espejos, pernos y repuesto | B26: Seguridad Antirrobo para espejos, pernos y repuesto | J26: NO
A27: Rampa para personas en condición de Discapacidad o Movilidad Reducida - Manual | B27: Rampa para personas en condición de Discapacidad o Movilidad Reducida - Manual | J27: NO
A28: Rampa para personas en condición de Discapacidad o Movilidad Reducida - Automática | B28: Rampa para personas en condición de Discapacidad o Movilidad Reducida - Automática | J28: NO
A29: Adecuación para Transporte de Pasajeros en Condición de Movilidad Recudica y/o Discapacidad | B29: Adecuación para Transporte de Pasajeros en Condición de Movilidad Recudica y/o Discapacidad | J29: NO
A30: Aire Acondicionado climatizado con manejo digital | B30: Aire Acondicionado climatizado con manejo digital | J30: NO
A31: Computador de abordo (consumos parciales de combustible) | B31: Computador de abordo (consumos parciales de combustible) | J31: NO
A32: Discos de tambor en las cuatro ruedas | B32: Discos de tambor en las cuatro ruedas | J32: NO

Sheet Cotizacion
B1: COTIZACIÓN
B3: Acuerdo Marco Vehículos
B4: =+SolCotizacion!B4 -> Versión:125 | C4: =+SolCotizacion!C4 -> 2024-07-05
B5: Información de la Entidad Compradora | P5: Proveedor
B7: Nombre de la Entidad: | K7: NIT: | P7: Nombre Proveedor:
B9: Dirección de la Entidad: | K9: Municipio: | P9: Nit Proveedor:
B11: Nombre del Comprador: | K11: Teléfono:
B13: Correo del comprador:
B15: Fechas estimadas | P15: Cotización
P16: Cod Facecolda | Q16: Marca | R16: Referencia
E17: Fecha creación solicitud cotización: | I17: 2024-06-03 | P17: =VLOOKUP(SUBSTITUTE(SUBSTITUTE(SUBSTITUTE($B$25&$E$25&$G$25&$I$25&$J$25&$K$25&$L$25&$M$25,".",""),"-","")," ","")&$R$17&$Q$7,Consolidado!$A:$DM,16,0) ->  | Q17: =VLOOKUP($R$17,Consolidado!$C:$P,13,0) -> 
B19: Artículos de Cotización | P19: Cotización
B24: Lote/Segmento | E24: División/Subdivisión | G24: Intervalo de precios | I24: Potencia | J24: Puertas | K24: Tracción | L24: Ejes | M24: Capacidad de carga | N24: Unidades | P24: valor unidad (Precio en el Catálogo incluido el descuento por volumen ) | Q24: valor total | R24: % descuento adicional | S24: Total con Descuento
P25: =VLOOKUP(SUBSTITUTE(SUBSTITUTE(SUBSTITUTE($B$25&$E$25&$G$25&$I$25&$J$25&$K$25&$L$25&$M$25,".",""),"-","")," ","")&$R$17&$Q$7,Consolidado!$A:$DM,IF(N25=1,32,IF(AND(N25>=2,N25<=5),34,IF(AND(N25>=6,N25<=10),36,IF(AND(N25>=11,N25<=15),38,IF(AND(N25>=16,N25<=20),40,42))))),0)+VLOOKUP(SUBSTITUTE(SUBSTITUTE(SUBSTITUTE($B$25&$E$25&$G$25&$I$25&$J$25&$K$25&$L$25&$M$25,".",""),"-","")," ","")&$R$17&$Q$7,Consolidado!$A:$DM,44,0) ->  | Q25: =N25*P25 ->  | S25: =Q25*(1-R25) -> 

Sheet Consolidado (hidden)
A1: ultrallave | B1: VehiculosSeleccion | C1: Marca-Referencia 1 2 3 | D1: Proveedor | E1: Lote/Segmento | F1: Lote | G1: Segmento | H1: Division/Subdivision | I1: División | J1: Subdivisión | K1: Adecuación | L1: Intervalo de precio (en millones $) | M1: Combustible | N1: Referencia | O1: Marca | P1: Código Fasecolda | Q1: referencia 1 | R1: referencia 2 | S1: referencia 3 | T1: Rango de Potencia (HP/kW) | U1: Puertas | V1: Tracción | W1: Transmisión | X1: Tipo de Combustible | Y1: No. Ejes | Z1: Peso Bruto Vehícular Permitido (Kg) | AA1: Peso Vehicular (Kg) | AB1: Capacidad de Carga Kg (cuando aplique) | AC1: Rango de Capacidad de Carga | AD1: Precio referencia (2020) | AE1: 1 | AF1: Precio final de 1 und | AG1: 2 a 5 | AH1: Precio final de 2 a 5 und | AI1: 6 a 10 | AJ1: Precio final de 6 a 10 und | AK1: 11 a 15 | AL1: Precio final de 11 a 15 und | AM1: 16 a 20 | AN1: Precio final de 16 a 20 und | AO1: Mayor a 21 | AP1: Precio final de mayor a 21 und | AQ1: Precio del Mantenimiento Preventivo | AR1: Precio de la Adecuación | AS1: SOAT por un año a costo del Proveedor | AT1: Sensores de reversa en las referencias a costo del proveedor + SOAT por un año a costo del Proveedor | AU1: % de descuento ofrecido sobre el costo total de la matrícula a costa del proveedor | AV1: Sensores de reversa en las referencias a costo del Proveedor | AW1: Adaptación a gas natural | AX1: Adhesivo de emblemas (por m2) | AY1: Alarma (por unidad) | AZ1: Bancas centrales (por unidad) | BA1: Barra antivuelco (por unidad) | BB1: Barras de luces, sistema de perifoneo y sirena (por unidad) | BC1: Bloqueo Central (por unidad) | BD1: Cámara de reversa (por unidad) | BE1: Cintas Retrorreflectiva (por metro lineal) | BF1: Sensor de reversa (por unidad) | BG1: Carrocería adaptada para Plataforma de estacas | BH1: Carrocería Adaptada para Furgón | BI1: Carrocería Adaptada para pasajeros Municipal | BJ1: Carrocería Adaptada para pasajeros Urbano | BK1: Carpa de platón | BL1: Cojinería en cuero | BM1: Defensa | BN1: Dispositivo de localización vehicular (AVL) | BO1: Sistema de Rastreo Satelital con Monitoreo | BP1: Elevavidrios Eléctricos | BQ1: Luces Exploradoras | BR1: Forros para los asientos (por silla) | BS1: Gancho trasero de fijación | BT1: Llantas doble propósito (por llanta) | BU1: Luces Perimetrales | BV1: Película de seguridad (por vidrio) | BW1: Pintura (10% del exterior del Vehículo) | BX1: Piso en poliuretano (por m2) | BY1: Protector del platón | BZ1: Recubiriimento Polimérico (Platón) | CA1: Recubiriimento en Pintura Anticorrosiva o Antioxidante (Platón) | CB1: Radio Móvil (por unidad) | CC1: Vidrio polarizado (por vidrio) | CD1: Bomper | CE1: Winche | CF1: Aire Acondicionado | CG1: Seguridad Antirrobo para espejos, pernos y repuesto | CH1: Capacete | CI1: Rampa para personas en condición de Discapacidad o Movilidad Reducida - Manual | CJ1: Rampa para personas en condición de Discapacidad o Movilidad Reducida - Automática | CK1: Adecuación para Transporte de Pasajeros en Condición de Movilidad Recudica y/o Discapacidad | CL1: Airbags Laterales | CM1: Airbags de cortina | CN1: Control de tracción | CO1: Aire Acondicionado climatizado con manejo digital | CP1: Computador de abordo (consumos parciales de combustible) | CQ1: Discos ventilados en las cuatro ruedas | CR1: Discos de tambor en las cuatro ruedas | CS1: Precio del Cargador | CT1: Airbags Laterales2 | CU1: Airbags de cortina2 | CV1: Control de tracción2 | CW1: Aire Acondicionado climatizado con manejo digital2 | CX1: Computador de abordo (consumos parciales de combustible)2 | CY1: Discos ventilados en las cuatro ruedas2 | CZ1: Airbags Conductor | DA1: Airbags Pasajero | DB1: Control de tracción3 | DC1: Aire acondicionado climatizado con manejo digital3 | DD1: Computador de abordo (consumos parciales de combustible)3 | DE1: Discos ventilados en las cuatro ruedas3 | DF1: Luces perimetrales2 | DG1: Control de mando de luces traseras desde la cabina del conductor | DH1: Activo | DI1: VrActualizado | DJ1: TipCaracteristica | DK1: Tramsmisiontipouso | DL1: carroceriaarea | DM1: cod
A2: =B2&C2&D2 -> VehículosConvencionalesAutomóvilesHatchbackNAGasolinaIntervalodeprecio1Menora100NANANANAChevrolet SPARK [4] GT LS MT 1200CC 5P AA 2AB ABSAUTOMAYOR S.A. | B2: =SUBSTITUTE(SUBSTITUTE(SUBSTITUTE(E2&H2&L2&T2&U2&V2&Y2&AB2,".","")," ",""),"-","") -> VehículosConvencionalesAutomóvilesHatchbackNAGasolinaIntervalodeprecio1Menora100NANANANA | C2: =O2&" "&N2 -> Chevrolet SPARK [4] GT LS MT 1200CC 5P AA 2AB ABS | D2: AUTOMAYOR S.A. | E2: =F2&" - "&G2 -> Vehículos Convencionales - Automóviles | F2: Vehículos Convencionales | G2: Automóviles | H2: =I2&" - "&J2&" - "&M2 -> Hatchback - N.A. - Gasolina | I2: Hatchback | J2: N.A. | K2: N.A. | L2: Intervalo de precio 1 | M2: Gasolina | N2: SPARK [4] GT LS MT 1200CC 5P AA 2AB ABS | O2: Chevrolet | P2: 1601323 | T2: Menor a 100 | U2: N.A. | V2: N.A. | W2: Mecánico | X2: Gasolina | Y2: N.A. | Z2: N.A. | AA2: N.A. | AB2: N.A. | AC2: N.A. | AD2: 48600000 | AE2: 0.05 | AF2: =$AD2*(1-AE2) -> 46170000 | AG2: 0.05 | AH2: =$AD2*(1-AG2) -> 46170000 | AI2: 0.05 | AJ2: =$AD2*(1-AI2) -> 46170000 | AK2: 0.05 | AL2: =$AD2*(1-AK2) -> 46170000 | AM2: 0.05 | AN2: =$AD2*(1-AM2) -> 46170000 | AO2: 0.05 | AP2: =$AD2*(1-AO2) -> 46170000 | AQ2: 8374790.663 | AR2: 0 | AS2: 0 | AT2: 0 | AU2: 1 | AV2: 0 | AW2: 7326893.222 | AX2: 451336.6225 | AY2: 644766.6035 | AZ2: 0 | BA2: 0 | BB2: 9736880.8 | BC2: 444785.518 | BD2: 1128341.556 | BE2: 108329.0645 | BF2: 517192.4627 | BG2: 0 | BH2: 0 | BI2: 0 | BJ2: 0 | BK2: 0 | BL2: 3878943.471 | BM2: 0 | BN2: 2438193.531 | BO2: 3447949.752 | BP2: 1153985.682 | BQ2: 1292981.157 | BR2: 146255.1326 | BS2: 1661739.383 | BT2: 0 | BU2: 4128919.828 | BV2: 109691.3494 | BW2: 1810173.62 | BX2: 0 | BY2: 0 | BZ2: 0 | CA2: 1723974.876 | CB2: 6654543.021 | CC2: 109691.3494 | CD2: 0 | CE2: 0 | CF2: 1.723974876 | CG2: 853157.2386 | CH2: 0 | CI2: 0 | CJ2: 0 | CK2: 0 | CL2: -1 | CM2: -1 | CN2: -1 | CO2: -1 | CP2: -1 | CQ2: -1 | CR2: -1 | CS2: -1 | CT2: -1 | CU2: -1 | CV2: -1 | CW2: -1 | CX2: -1 | CY2: -1 | CZ2: -1 | DA2: -1 | DB2: -1 | DC2: -1 | DD2: -1 | DE2: -1 | DF2: -1 | DG2: -1 | DH2: 1 | DJ2: Cilindraje | DK2: Transmisión | DL2: Seg4 | DM2: CCEVeh1 | DN2: CCEVeh1 | DO2: =+DN2=DM2 -> TRUE
A3: VehículosConvencionalesAutomóvilesHatchbackNAGasolinaIntervalodeprecio1Menora100NANANANAChevrolet SPARK [4] GT LT MT 1200CC 5P AA 2AB ABSAUTOMAYOR S.A. | B3: VehículosConvencionalesAutomóvilesHatchbackNAGasolinaIntervalodeprecio1Menora100NANANANA | C3: Chevrolet SPARK [4] GT LT MT 1200CC 5P AA 2AB ABS | D3: AUTOMAYOR S.A. | E3: Vehículos Convencionales - Automóviles | F3: Vehículos Convencionales | G3: Automóviles | H3: Hatchback - N.A. - Gasolina | I3: Hatchback | J3: N.A. | K3: N.A. | L3: Intervalo de precio 1 | M3: Gasolina | N3: SPARK [4] GT LT MT 1200CC 5P AA 2AB ABS | O3: Chevrolet | P3: 1601324 | T3: Menor a 100 | U3: N.A. | V3: N.A. | W3: Mecánico | X3: Gasolina | Y3: N.A. | Z3: N.A. | AA3: N.A. | AB3: N.A. | AC3: N.A. | AD3: 49500000 | AE3: 0.05 | AF3: 47025000 | AG3: 0.05 | AH3: 47025000 | AI3: 0.05 | AJ3: 47025000 | AK3: 0.05 | AL3: 47025000 | AM3: 0.05 | AN3: 47025000 | AO3: 0.05 | AP3: 47025000 | AQ3: 7923454.04 | AR3: 0 | AS3: 0 | AT3: 0 | AU3: 1 | AV3: 0 | AW3: 7326893.222 | AX3: 451336.6225 | AY3: 1.453604448 | AZ3: 0 | BA3: 0 | BB3: 9736880.8 | BC3: 1.453604448 | BD3: 1128341.556 | BE3: 108329.0645 | BF3: 517192.4627 | BG3: 0 | BH3: 0 | BI3: 0 | BJ3: 0 | BK3: 0 | BL3: 3878943.471 | BM3: 0 | BN3: 2438193.531 | BO3: 3447949.752 | BP3: 1153985.682 | BQ3: 1292981.157 | BR3: 146255.1326 | BS3: 1661739.383 | BT3: 0 | BU3: 4128919.828 | BV3: 109691.3494 | BW3: 1810173.62 | BX3: 0 | BY3: 0 | BZ3: 0 | CA3: 1723974.876 | CB3: 6654543.021 | CC3: 109691.3494 | CD3: 0 | CE3: 0 | CF3: 1.723974876 | CG3: 853157.2386 | CH3: 0 | CI3: 0 | CJ3: 0 | CK3: 0 | CL3: -1 | CM3: -1 | CN3: -1 | CO3: -1 | CP3: 0 | CQ3: -1 | CR3: -1 | CS3: -1 | CT3: -1 | CU3: -1 | CV3: -1 | CW3: -1 | CX3: -1 | CY3: -1 | CZ3: -1 | DA3: -1 | DB3: -1 | DC3: -1 | DD3: -1 | DE3: -1 | DF3: -1 | DG3: -1 | DH3: 1 | DJ3: Cilindraje | DK3: Transmisión | DL3: Seg4 | DM3: CCEVeh2 | DN3: CCEVeh2 | DO3: =+DN3=DM3 -> TRUE
A4: VehículosConvencionalesAutomóvilesHatchbackNAGasolinaIntervalodeprecio1Menora100NANANANAChevrolet SPARK [4] GT LTZ/PREMIER MT 1200CC 5P AA 2AB ABSAUTOMAYOR S.A. | B4: VehículosConvencionalesAutomóvilesHatchbackNAGasolinaIntervalodeprecio1Menora100NANANANA | C4: Chevrolet SPARK [4] GT LTZ/PREMIER MT 1200CC 5P AA 2AB ABS | D4: AUTOMAYOR S.A. | E4: Vehículos Convencionales - Automóviles | F4: Vehículos Convencionales | G4: Automóviles | H4: Hatchback - N.A. - Gasolina | I4: Hatchback | J4: N.A. | K4: N.A. | L4: Intervalo de precio 1 | M4: Gasolina | N4: SPARK [4] GT LTZ/PREMIER MT 1200CC 5P AA 2AB ABS | O4: Chevrolet | P4: 1601325 | T4: Menor a 100 | U4: N.A. | V4: N.A. | W4: Mecánico | X4: Gasolina | Y4: N.A. | Z4: N.A. | AA4: N.A. | AB4: N.A. | AC4: N.A. | AD4: 43000000 | AE4: 0.07 | AF4: 39990000 | AG4: 0.07 | AH4: 39990000 | AI4: 0.07 | AJ4: 39990000 | AK4: 0.07 | AL4: 39990000 | AM4: 0.08 | AN4: 39560000 | AO4: 0.09 | AP4: 39130000 | AQ4: 7923454.04 | AR4: 0 | AS4: 0 | AT4: 0 | AU4: 1 | AV4: 0 | AW4: 7326893.222 | AX4: 451336.6225 | AY4: 1.453604448 | AZ4: 0 | BA4: 0 | BB4: 9736880.8 | BC4: 1.453604448 | BD4: 1128341.556 | BE4: 108329.0645 | BF4: 517192.4627 | BG4: 0 | BH4: 0 | BI4: 0 | BJ4: 0 | BK4: 0 | BL4: 3878943.471 | BM4: 0 | BN4: 2438193.531 | BO4: 3447949.752 | BP4: 1.453604448 | BQ4: 0.0323495748 | BR4: 146255.1326 | BS4: 1661739.383 | BT4: 0 | BU4: 4128919.828 | BV4: 109691.3494 | BW4: 1810173.62 | BX4: 0 | BY4: 0 | BZ4: 0 | CA4: 1723974.876 | CB4: 6654543.021 | CC4: 109691.3494 | CD4: 0 | CE4: 0 | CF4: 1.723974876 | CG4: 853157.2386 | CH4: 0 | CI4: 0 | CJ4: 0 | CK4: 0 | CL4: -1 | CM4: -1 | CN4: -1 | CO4: -1 | CP4: 0 | CQ4: -1 | CR4: -1 | CS4: -1 | CT4: -1 | CU4: -1 | CV4: -1 | CW4: -1 | CX4: -1 | CY4: -1 | CZ4: -1 | DA4: -1 | DB4: -1 | DC4: -1 | DD4: -1 | DE4: -1 | DF4: -1 | DG4: -1 | DH4: 1 | DJ4: Cilindraje | DK4: Transmisión | DL4: Seg4 | DM4: CCEVeh3 | DN4: CCEVeh3 | DO4: TRUE
A5: VehículosConvencionalesAutomóvilesSedánNAGasolinaIntervalodeprecio1Menora100NANANANAChevrolet BEAT LS MT 1200CC 4P AA 2AB ABSAUTOMAYOR S.A. | B5: VehículosConvencionalesAutomóvilesSedánNAGasolinaIntervalodeprecio1Menora100NANANANA | C5: Chevrolet BEAT LS MT 1200CC 4P AA 2AB ABS | D5: AUTOMAYOR S.A. | E5: Vehículos Convencionales - Automóviles | F5: Vehículos Convencionales | G5: Automóviles | H5: Sedán - N.A. - Gasolina | I5: Sedán | J5: N.A. | K5: N.A. | L5: Intervalo de precio 1 | M5: Gasolina | N5: BEAT LS MT 1200CC 4P AA 2AB ABS | O5: Chevrolet | P5: 1601320 | T5: Menor a 100 | U5: N.A. | V5: N.A. | W5: Mecánico | X5: Gasolina | Y5: N.A. | Z5: N.A. | AA5: N.A. | AB5: N.A. | AC5: N.A. | AD5: 43300000 | AE5: 0.05 | AF5: 41135000 | AG5: 0.05 | AH5: 41135000 | AI5: 0.05 | AJ5: 41135000 | AK5: 0.05 | AL5: 41135000 | AM5: 0.05 | AN5: 41135000 | AO5: 0.05 | AP5: 41135000 | AQ5: 7923454.04 | AR5: 0 | AS5: 0 | AT5: 0 | AU5: 1 | AV5: 0 | AW5: 7326893.222 | AX5: 451336.6225 | AY5: 644766.6035 | AZ5: 0 | BA5: 0 | BB5: 9736880.8 | BC5: 1.453604448 | BD5: 1128341.556 | BE5: 108329.0645 | BF5: 517192.4627 | BG5: 0 | BH5: 0 | BI5: 0 | BJ5: 0 | BK5: 0 | BL5: 3878943.471 | BM5: 0 | BN5: 2438193.531 | BO5: 3447949.752 | BP5: 1153985.682 | BQ5: 1292981.157 | BR5: 146255.1326 | BS5: 1661739.383 | BT5: 0 | BU5: 4128919.828 | BV5: 109691.3494 | BW5: 1810173.62 | BX5: 0 | BY5: 0 | BZ5: 0 | CA5: 1723974.876 | CB5: 6654543.021 | CC5: 109691.3494 | CD5: 0 | CE5: 0 | CF5: 1.723974876 | CG5: 853157.2386 | CH5: 0 | CI5: 0 | CJ5: 0 | CK5: 0 | CL5: -1 | CM5: -1 | CN5: -1 | CO5: -1 | CP5: -1 | CQ5: -1 | CR5: -1 | CS5: -1 | CT5: -1 | CU5: -1 | CV5: -1 | CW5: -1 | CX5: -1 | CY5: -1 | CZ5: -1 | DA5: -1 | DB5: -1 | DC5: -1 | DD5: -1 | DE5: -1 | DF5: -1 | DG5: -1 | DH5: 1 | DJ5: Cilindraje | DK5: Transmisión | DL5: Seg4 | DM5: CCEVeh4 | DN5: CCEVeh4 | DO5: TRUE
A6: VehículosConvencionalesAutomóvilesSedánNAGasolinaIntervalodeprecio1Menora100NANANANAChevrolet BEAT LT MT 1200CC 4P AA 2AB ABSAUTOMAYOR S.A. | B6: VehículosConvencionalesAutomóvilesSedánNAGasolinaIntervalodeprecio1Menora100NANANANA | C6: Chevrolet BEAT LT MT 1200CC 4P AA 2AB ABS | D6: AUTOMAYOR S.A. | E6: Vehículos Convencionales - Automóviles | F6: Vehículos Convencionales | G6: Automóviles | H6: Sedán - N.A. - Gasolina | I6: Sedán | J6: N.A. | K6: N.A. | L6: Intervalo de precio 1 | M6: Gasolina | N6: BEAT LT MT 1200CC 4P AA 2AB ABS | O6: Chevrolet | P6: 1601321 | T6: Menor a 100 | U6: N.A. | V6: N.A. | W6: Mecánico | X6: Gasolina | Y6: N.A. | Z6: N.A. | AA6: N.A. | AB6: N.A. | AC6: N.A. | AD6: 47300000 | AE6: 0.07 | AF6: 43989000 | AG6: 0.07 | AH6: 43989000 | AI6: 0.07 | AJ6: 43989000 | AK6: 0.07 | AL6: 43989000 | AM6: 0.08 | AN6: 43516000 | AO6: 0.09 | AP6: 43043000 | AQ6: 7923454.04 | AR6: 0 | AS6: 0 | AT6: 0 | AU6: 1 | AV6: 0 | AW6: 7326893.222 | AX6: 451336.6225 | AY6: 1.453604448 | AZ6: 0 | BA6: 0 | BB6: 9736880.8 | BC6: 1.453604448 | BD6: 1128341.556 | BE6: 108329.0645 | BF6: 517192.4627 | BG6: 0 | BH6: 0 | BI6: 0 | BJ6: 0 | BK6: 0 | BL6: 3878943.471 | BM6: 0 | BN6: 2438193.531 | BO6: 3447949.752 | BP6: 1153985.682 | BQ6: 1292981.157 | BR6: 146255.1326 | BS6: 1661739.383 | BT6: 0 | BU6: 4128919.828 | BV6: 109691.3494 | BW6: 1810173.62 | BX6: 0 | BY6: 0 | BZ6: 0 | CA6: 1723974.876 | CB6: 6654543.021 | CC6: 109691.3494 | CD6: 0 | CE6: 0 | CF6: 1.723974876 | CG6: 853157.2386 | CH6: 0 | CI6: 0 | CJ6: 0 | CK6: 0 | CL6: -1 | CM6: -1 | CN6: -1 | CO6: -1 | CP6: 0 | CQ6: -1 | CR6: -1 | CS6: -1 | CT6: -1 | CU6: -1 | CV6: -1 | CW6: -1 | CX6: -1 | CY6: -1 | CZ6: -1 | DA6: -1 | DB6: -1 | DC6: -1 | DD6: -1 | DE6: -1 | DF6: -1 | DG6: -1 | DH6: 1 | DJ6: Cilindraje | DK6: Transmisión | DL6: Seg4 | DM6: CCEVeh5 | DN6: CCEVeh5 | DO6: TRUE
A7: VehículosConvencionalesAutomóvilesSedánNAGasolinaIntervalodeprecio1Menora100NANANANAChevrolet BEAT LTZ MT 1200CC 4P AA 2AB ABSAUTOMAYOR S.A. | B7: VehículosConvencionalesAutomóvilesSedánNAGasolinaIntervalodeprecio1Menora100NANANANA | C7: Chevrolet BEAT LTZ MT 1200CC 4P AA 2AB ABS | D7: AUTOMAYOR S.A. | E7: Vehículos Convencionales - Automóviles | F7: Vehículos Convencionales | G7: Automóviles | H7: Sedán - N.A. - Gasolina | I7: Sedán | J7: N.A. | K7: N.A. | L7: Intervalo de precio 1 | M7: Gasolina | N7: BEAT LTZ MT 1200CC 4P AA 2AB ABS | O7: Chevrolet | P7: 1601322 | T7: Menor a 100 | U7: N.A. | V7: N.A. | W7: Mecánico | X7: Gasolina | Y7: N.A. | Z7: N.A. | AA7: N.A. | AB7: N.A. | AC7: N.A. | AD7: 47800000 | AE7: 0.07 | AF7: 44454000 | AG7: 0.07 | AH7: 44454000 | AI7: 0.07 | AJ7: 44454000 | AK7: 0.07 | AL7: 44454000 | AM7: 0.08 | AN7: 43976000 | AO7: 0.09 | AP7: 43498000 | AQ7: 7923454.04 | AR7: 0 | AS7: 0 | AT7: 0 | AU7: 1 | AV7: 0 | AW7: 7326893.222 | AX7: 451336.6225 | AY7: 1.453604448 | AZ7: 0 | BA7: 0 | BB7: 9736880.8 | BC7: 1.453604448 | BD7: 1128341.556 | BE7: 108329.0645 | BF7: 517192.4627 | BG7: 0 | BH7: 0 | BI7: 0 | BJ7: 0 | BK7: 0 | BL7: 3878943.471 | BM7: 0 | BN7: 2438193.531 | BO7: 3447949.752 | BP7: 1.453604448 | BQ7: 0.0323495748 | BR7: 146255.1326 | BS7: 1661739.383 | BT7: 0 | BU7: 4128919.828 | BV7: 109691.3494 | BW7: 1810173.62 | BX7: 0 | BY7: 0 | BZ7: 0 | CA7: 1723974.876 | CB7: 6654543.021 | CC7: 109691.3494 | CD7: 0 | CE7: 0 | CF7: 1.723974876 | CG7: 853157.2386 | CH7: 0 | CI7: 0 | CJ7: 0 | CK7: 0 | CL7: -1 | CM7: -1 | CN7: -1 | CO7: -1 | CP7: 0 | CQ7: -1 | CR7: -1 | CS7: -1 | CT7: -1 | CU7: -1 | CV7: -1 | CW7: -1 | CX7: -1 | CY7: -1 | CZ7: -1 | DA7: -1 | DB7: -1 | DC7: -1 | DD7: -1 | DE7: -1 | DF7: -1 | DG7: -1 | DH7: 1 | DJ7: Cilindraje | DK7: Transmisión | DL7: Seg4 | DM7: CCEVeh6 | DN7: CCEVeh6 | DO7: TRUE
A8: VehículosConvencionalesAutomóvilesSedánNAGasolinaIntervalodeprecio2Entre100y150NANANANAChevrolet ONIX [2] LT MT 1000CC T 4P 6AB ABSAUTOMAYOR S.A. | B8: VehículosConvencionalesAutomóvilesSedánNAGasolinaIntervalodeprecio2Entre100y150NANANANA | C8: Chevrolet ONIX [2] LT MT 1000CC T 4P 6AB ABS | D8: AUTOMAYOR S.A. | E8: Vehículos Convencionales - Automóviles | F8: Vehículos Convencionales | G8: Automóviles | H8: Sedán - N.A. - Gasolina | I8: Sedán | J8: N.A. | K8: N.A. | L8: Intervalo de precio 2 | M8: Gasolina | N8: ONIX [2] LT MT 1000CC T 4P 6AB ABS | O8: Chevrolet | P8: 1601341 | T8: Entre 100 y 150 | U8: N.A. | V8: N.A. | W8: Mecánico | X8: Gasolina | Y8: N.A. | Z8: N.A. | AA8: N.A. | AB8: N.A. | AC8: N.A. | AD8: 76300000 | AE8: 0.05 | AF8: 72485000 | AG8: 0.05 | AH8: 72485000 | AI8: 0.05 | AJ8: 72485000 | AK8: 0.05 | AL8: 72485000 | AM8: 0.05 | AN8: 72485000 | AO8: 0.05 | AP8: 72485000 | AQ8: 8433685.092 | AR8: 0 | AS8: 0 | AT8: 0 | AU8: 1 | AV8: 0 | AW8: 7326893.222 | AX8: 451336.6225 | AY8: 644766.6035 | AZ8: 0 | BA8: 0 | BB8: 9736880.8 | BC8: 1.453604448 | BD8: 1128341.556 | BE8: 108329.0645 | BF8: 517192.4627 | BG8: 0 | BH8: 0 | BI8: 0 | BJ8: 0 | BK8: 0 | BL8: 3878943.471 | BM8: 0 | BN8: 2438193.531 | BO8: 3447949.752 | BP8: 1.453604448 | BQ8: 1292981.157 | BR8: 146255.1326 | BS8: 1661739.383 | BT8: 0 | BU8: 4128919.828 | BV8: 109691.3494 | BW8: 1810173.62 | BX8: 0 | BY8: 0 | BZ8: 0 | CA8: 1723974.876 | CB8: 6654543.021 | CC8: 109691.3494 | CD8: 0 | CE8: 0 | CF8: 1.723974876 | CG8: 853157.2386 | CH8: 0 | CI8: 0 | CJ8: 0 | CK8: 0 | CL8: 0 | CM8: 0 | CN8: 0 | CO8: -1 | CP8: 0 | CQ8: -1 | CR8: -1 | CS8: -1 | CT8: -1 | CU8: -1 | CV8: -1 | CW8: -1 | CX8: -1 | CY8: -1 | CZ8: -1 | DA8: -1 | DB8: -1 | DC8: -1 | DD8: -1 | DE8: -1 | DF8: -1 | DG8: -1 | DH8: 1 | DJ8: Cilindraje | DK8: Transmisión | DL8: Seg4 | DM8: CCEVeh7 | DN8: CCEVeh7 | DO8: TRUE
A9: VehículosConvencionalesAutomóvilesSedánNAGasolinaIntervalodeprecio2Entre100y150NANANANAChevrolet ONIX [2] LT TP 1000CC T 4P 6AB ABSAUTOMAYOR S.A. | B9: VehículosConvencionalesAutomóvilesSedánNAGasolinaIntervalodeprecio2Entre100y150NANANANA | C9: Chevrolet ONIX [2] LT TP 1000CC T 4P 6AB ABS | D9: AUTOMAYOR S.A. | E9: Vehículos Convencionales - Automóviles | F9: Vehículos Convencionales | G9: Automóviles | H9: Sedán - N.A. - Gasolina | I9: Sedán | J9: N.A. | K9: N.A. | L9: Intervalo de precio 2 | M9: Gasolina | N9: ONIX [2] LT TP 1000CC T 4P 6AB ABS | O9: Chevrolet | P9: 1601342 | T9: Entre 100 y 150 | U9: N.A. | V9: N.A. | W9: Automático | X9: Gasolina | Y9: N.A. | Z9: N.A. | AA9: N.A. | AB9: N.A. | AC9: N.A. | AD9: 80300000 | AE9: 0.05 | AF9: 76285000 | AG9: 0.05 | AH9: 76285000 | AI9: 0.05 | AJ9: 76285000 | AK9: 0.05 | AL9: 76285000 | AM9: 0.05 | AN9: 76285000 | AO9: 0.05 | AP9: 76285000 | AQ9: 8433685.092 | AR9: 0 | AS9: 0 | AT9: 0 | AU9: 1 | AV9: 0 | AW9: 7326893.222 | AX9: 451336.6225 | AY9: 644766.6035 | AZ9: 0 | BA9: 0 | BB9: 9736880.8 | BC9: 1.453604448 | BD9: 1128341.556 | BE9: 108329.0645 | BF9: 517192.4627 | BG9: 0 | BH9: 0 | BI9: 0 | BJ9: 0 | BK9: 0 | BL9: 3878943.471 | BM9: 0 | BN9: 2438193.531 | BO9: 3447949.752 | BP9: 1.453604448 | BQ9: 1292981.157 | BR9: 146255.1326 | BS9: 1661739.383 | BT9: 0 | BU9: 4128919.828 | BV9: 109691.3494 | BW9: 1810173.62 | BX9: 0 | BY9: 0 | BZ9: 0 | CA9: 1723974.876 | CB9: 6654543.021 | CC9: 109691.3494 | CD9: 0 | CE9: 0 | CF9: 1.723974876 | CG9: 853157.2386 | CH9: 0 | CI9: 0 | CJ9: 0 | CK9: 0 | CL9: 0 | CM9: 0 | CN9: 0 | CO9: -1 | CP9: 0 | CQ9: -1 | CR9: -1 | CS9: -1 | CT9: -1 | CU9: -1 | CV9: -1 | CW9: -1 | CX9: -1 | CY9: -1 | CZ9: -1 | DA9: -1 | DB9: -1 | DC9: -1 | DD9: -1 | DE9: -1 | DF9: -1 | DG9: -1 | DH9: 1 | DJ9: Cilindraje | DK9: Transmisión | DL9: Seg4 | DM9: CCEVeh8 | DN9: CCEVeh8 | DO9: TRUE
A10: VehículosConvencionalesAutomóvilesSedánNAGasolinaIntervalodeprecio2Entre100y150NANANANAChevrolet ONIX [2] LTZ TP 1000CC T 4P 6AB ABSAUTOMAYOR S.A. | B10: VehículosConvencionalesAutomóvilesSedánNAGasolinaIntervalodeprecio2Entre100y150NANANANA | C10: Chevrolet ONIX [2] LTZ TP 1000CC T 4P 6AB ABS | D10: AUTOMAYOR S.A. | E10: Vehículos Convencionales - Automóviles | F10: Vehículos Convencionales | G10: Automóviles | H10: Sedán - N.A. - Gasolina | I10: Sedán | J10: N.A. | K10: N.A. | L10: Intervalo de precio 2 | M10: Gasolina | N10: ONIX [2] LTZ TP 1000CC T 4P 6AB ABS | O10: Chevrolet | P10: 1601343 | T10: Entre 100 y 150 | U10: N.A. | V10: N.A. | W10: Automático | X10: Gasolina | Y10: N.A. | Z10: N.A. | AA10: N.A. | AB10: N.A. | AC10: N.A. | AD10: 86900000 | AE10: 0.05 | AF10: 82555000 | AG10: 0.05 | AH10: 82555000 | AI10: 0.05 | AJ10: 82555000 | AK10: 0.05 | AL10: 82555000 | AM10: 0.05 | AN10: 82555000 | AO10: 0.05 | AP10: 82555000 | AQ10: 8433685.092 | AR10: 0 | AS10: 0 | AT10: 0 | AU10: 1 | AV10: 0 | AW10: 7326893.222 | AX10: 451336.6225 | AY10: 644766.6035 | AZ10: 0 | BA10: 0 | BB10: 9736880.8 | BC10: 1.453604448 | BD10: 1128341.556 | BE10: 108329.0645 | BF10: 1.453604448 | BG10: 0 | BH10: 0 | BI10: 0 | BJ10: 0 | BK10: 0 | BL10: 3878943.471 | BM10: 0 | BN10: 2438193.531 | BO10: 3447949.752 | BP10: 1.453604448 | BQ10: 0.0323495748 | BR10: 146255.1326 | BS10: 1661739.383 | BT10: 0 | BU10: 4128919.828 | BV10: 109691.3494 | BW10: 1810173.62 | BX10: 0 | BY10: 0 | BZ10: 0 | CA10: 1723974.876 | CB10: 6654543.021 | CC10: 109691.3494 | CD10: 0 | CE10: 0 | CF10: 1.723974876 | CG10: 853157.2386 | CH10: 0 | CI10: 0 | CJ10: 0 | CK10: 0 | CL10: 0 | CM10: 0 | CN10: 0 | CO10: 0 | CP10: 0 | CQ10: -1 | CR10: -1 | CS10: -1 | CT10: -1 | CU10: -1 | CV10: -1 | CW10: -1 | CX10: -1 | CY10: -1 | CZ10: -1 | DA10: -1 | DB10: -1 | DC10: -1 | DD10: -1 | DE10: -1 | DF10: -1 | DG10: -1 | DH10: 1 | DJ10: Cilindraje | DK10: Transmisión | DL10: Seg4 | DM10: CCEVeh9 | DN10: CCEVeh9 | DO10: TRUE
A11: VehículosConvencionalesAutomóvilesSedánNAGasolinaIntervalodeprecio3Entre100y150NANANANAChevrolet ONIX [2] PREMIER TP 1000CC T 4P 6AB ABSAUTOMAYOR S.A. | B11: VehículosConvencionalesAutomóvilesSedánNAGasolinaIntervalodeprecio3Entre100y150NANANANA | C11: Chevrolet ONIX [2] PREMIER TP 1000CC T 4P 6AB ABS | D11: AUTOMAYOR S.A. | E11: Vehículos Convencionales - Automóviles | F11: Vehículos Convencionales | G11: Automóviles | H11: Sedán - N.A. - Gasolina | I11: Sedán | J11: N.A. | K11: N.A. | L11: Intervalo de precio 3 | M11: Gasolina | N11: ONIX [2] PREMIER TP 1000CC T 4P 6AB ABS | O11: Chevrolet | P11: 1601344 | T11: Entre 100 y 150 | U11: N.A. | V11: N.A. | W11: Automático | X11: Gasolina | Y11: N.A. | Z11: N.A. | AA11: N.A. | AB11: N.A. | AC11: N.A. | AD11: 90400000 | AE11: 0.06 | AF11: 84976000 | AG11: 0.06 | AH11: 84976000 | AI11: 0.06 | AJ11: 84976000 | AK11: 0.06 | AL11: 84976000 | AM11: 0.06 | AN11: 84976000 | AO11: 0.06 | AP11: 84976000 | AQ11: 8433685.092 | AR11: 0 | AS11: 0 | AT11: 0 | AU11: 1 | AV11: 0 | AW11: 7326893.222 | AX11: 451336.6225 | AY11: 644766.6035 | AZ11: 0 | BA11: 0 | BB11: 9736880.8 | BC11: 1.453604448 | BD11: 1128341.556 | BE11: 108329.0645 | BF11: 1.453604448 | BG11: 0 | BH11: 0 | BI11: 0 | BJ11: 0 | BK11: 0 | BL11: 3878943.471 | BM11: 0 | BN11: 2438193.531 | BO11: 3447949.752 | BP11: 1.453604448 | BQ11: 0.0323495748 | BR11: 146255.1326 | BS11: 1661739.383 | BT11: 0 | BU11: 4128919.828 | BV11: 109691.3494 | BW11: 1810173.62 | BX11: 0 | BY11: 0 | BZ11: 0 | CA11: 1723974.876 | CB11: 6654543.021 | CC11: 109691.3494 | CD11: 0 | CE11: 0 | CF11: 1.723974876 | CG11: 853157.2386 | CH11: 0 | CI11: 0 | CJ11: 0 | CK11: 0 | CL11: 0 | CM11: 0 | CN11: 0 | CO11: 0 | CP11: 0 | CQ11: -1 | CR11: -1 | CS11: -1 | CT11: -1 | CU11: -1 | CV11: -1 | CW11: -1 | CX11: -1 | CY11: -1 | CZ11: -1 | DA11: -1 | DB11: -1 | DC11: -1 | DD11: -1 | DE11: -1 | DF11: -1 | DG11: -1 | DH11: 1 | DJ11: Cilindraje | DK11: Transmisión | DL11: Seg4 | DM11: CCEVeh10 | DN11: CCEVeh10 | DO11: TRUE
A12: VehículosConvencionalesAutomóvilesHatchbackNAGasolinaIntervalodeprecio2Entre100y150NANANANAChevrolet ONIX [2] RS MT 1000CC 5P T 6AB ABSAUTOMAYOR S.A. | B12: VehículosConvencionalesAutomóvilesHatchbackNAGasolinaIntervalodeprecio2Entre100y150NANANANA | C12: Chevrolet ONIX [2] RS MT 1000CC 5P T 6AB ABS | D12: AUTOMAYOR S.A. | E12: Vehículos Convencionales - Automóviles | F12: Vehículos Convencionales | G12: Automóviles | H12: Hatchback - N.A. - Gasolina | I12: Hatchback | J12: N.A. | K12: N.A. | L12: Intervalo de precio 2 | M12: Gasolina | N12: ONIX [2] RS MT 1000CC 5P T 6AB ABS | O12: Chevrolet | P12: 1601339 | T12: Entre 100 y 150 | U12: N.A. | V12: N.A. | W12: Mecánico | X12: Gasolina | Y12: N.A. | Z12: N.A. | AA12: N.A. | AB12: N.A. | AC12: N.A. | AD12: 81300000 | AE12: 0.06 | AF12: 76422000 | AG12: 0.06 | AH12: 76422000 | AI12: 0.06 | AJ12: 76422000 | AK12: 0.06 | AL12: 76422000 | AM12: 0.06 | AN12: 76422000 | AO12: 0.06 | AP12: 76422000 | AQ12: 8433685.092 | AR12: 0 | AS12: 0 | AT12: 0 | AU12: 1 | AV12: 0 | AW12: 7326893.222 | AX12: 451336.6225 | AY12: 644766.6035 | AZ12: 0 | BA12: 0 | BB12: 9736880.8 | BC12: 1.453604448 | BD12: 1128341.556 | BE12: 108329.0645 | BF12: 1.453604448 | BG12: 0 | BH12: 0 | BI12: 0 | BJ12: 0 | BK12: 0 | BL12: 3878943.471 | BM12: 0 | BN12: 2438193.531 | BO12: 3447949.752 | BP12: 1.453604448 | BQ12: 0.0323495748 | BR12: 146255.1326 | BS12: 1661739.383 | BT12: 0 | BU12: 4128919.828 | BV12: 109691.3494 | BW12: 1810173.62 | BX12: 0 | BY12: 0 | BZ12: 0 | CA12: 1723974.876 | CB12: 6654543.021 | CC12: 109691.3494 | CD12: 0 | CE12: 0 | CF12: 1.723974876 | CG12: 853157.2386 | CH12: 0 | CI12: 0 | CJ12: 0 | CK12: 0 | CL12: 0 | CM12: 0 | CN12: 0 | CO12: -1 | CP12: 0 | CQ12: -1 | CR12: -1 | CS12: -1 | CT12: -1 | CU12: -1 | CV12: -1 | CW12: -1 | CX12: -1 | CY12: -1 | CZ12: -1 | DA12: -1 | DB12: -1 | DC12: -1 | DD12: -1 | DE12: -1 | DF12: -1 | DG12: -1 | DH12: 1 | DJ12: Cilindraje | DK12: Transmisión | DL12: Seg4 | DM12: CCEVeh11 | DN12: CCEVeh11 | DO12: TRUE
A13: VehículosConvencionalesAutomóvilesHatchbackNAGasolinaIntervalodeprecio2Entre100y150NANANANAChevrolet ONIX [2] PREMIER TP 1000CC T 5P 6AB ABSAUTOMAYOR S.A. | B13: VehículosConvencionalesAutomóvilesHatchbackNAGasolinaIntervalodeprecio2Entre100y150NANANANA | C13: Chevrolet ONIX [2] PREMIER TP 1000CC T 5P 6AB ABS | D13: AUTOMAYOR S.A. | E13: Vehículos Convencionales - Automóviles | F13: Vehículos Convencionales | G13: Automóviles | H13: Hatchback - N.A. - Gasolina | I13: Hatchback | J13: N.A. | K13: N.A. | L13: Intervalo de precio 2 | M13: Gasolina | N13: ONIX [2] PREMIER TP 1000CC T 5P 6AB ABS | O13: Chevrolet | P13: 1601340 | T13: Entre 100 y 150 | U13: N.A. | V13: N.A. | W13: Automático | X13: Gasolina | Y13: N.A. | Z13: N.A. | AA13: N.A. | AB13: N.A. | AC13: N.A. | AD13: 89300000 | AE13: 0.06 | AF13: 83942000 | AG13: 0.06 | AH13: 83942000 | AI13: 0.06 | AJ13: 83942000 | AK13: 0.06 | AL13: 83942000 | AM13: 0.06 | AN13: 83942000 | AO13: 0.06 | AP13: 83942000 | AQ13: 8433685.092 | AR13: 0 | AS13: 0 | AT13: 0 | AU13: 1 | AV13: 0 | AW13: 7326893.222 | AX13: 451336.6225 | AY13: 644766.6035 | AZ13: 0 | BA13: 0 | BB13: 9736880.8 | BC13: 1.453604448 | BD13: 1128341.556 | BE13: 108329.0645 | BF13: 1.453604448 | BG13: 0 | BH13: 0 | BI13: 0 | BJ13: 0 | BK13: 0 | BL13: 3878943.471 | BM13: 0 | BN13: 2438193.531 | BO13: 3447949.752 | BP13: 1.453604448 | BQ13: 0.0323495748 | BR13: 146255.1326 | BS13: 1661739.383 | BT13: 0 | BU13: 4128919.828 | BV13: 109691.3494 | BW13: 1810173.62 | BX13: 0 | BY13: 0 | BZ13: 0 | CA13: 1723974.876 | CB13: 6654543.021 | CC13: 109691.3494 | CD13: 0 | CE13: 0 | CF13: 1.723974876 | CG13: 853157.2386 | CH13: 0 | CI13: 0 | CJ13: 0 | CK13: 0 | CL13: 0 | CM13: 0 | CN13: 0 | CO13: 0 | CP13: 0 | CQ13: -1 | CR13: -1 | CS13: -1 | CT13: -1 | CU13: -1 | CV13: -1 | CW13: -1 | CX13: -1 | CY13: -1 | CZ13: -1 | DA13: -1 | DB13: -1 | DC13: -1 | DD13: -1 | DE13: -1 | DF13: -1 | DG13: -1 | DH13: 1 | DJ13: Cilindraje | DK13: Transmisión | DL13: Seg4 | DM13: CCEVeh12 | DN13: CCEVeh12 | DO13: TRUE
A14: VehículosConvencionalesAutomóvilesSedánNAGasolinaIntervalodeprecio3Entre151y200NANANANAToyota COROLLA 2.0 CVT XEIALBORAUTOS S.A.S. | B14: VehículosConvencionalesAutomóvilesSedánNAGasolinaIntervalodeprecio3Entre151y200NANANANA | C14: Toyota COROLLA 2.0 CVT XEI | D14: ALBORAUTOS S.A.S. | E14: Vehículos Convencionales - Automóviles | F14: Vehículos Convencionales | G14: Automóviles | H14: Sedán - N.A. - Gasolina | I14: Sedán | J14: N.A. | K14: N.A. | L14: Intervalo de precio 3 | M14: Gasolina | N14: COROLLA 2.0 CVT XEI | O14: Toyota | P14: 9001143 | T14: Entre 151 y 200 | U14: N.A. | V14: N.A. | W14: Automático | X14: Gasolina | Y14: N.A. | Z14: N.A. | AA14: N.A. | AB14: N.A. | AC14: N.A. | AD14: 123300000 | AE14: 0 | AF14: 123300000 | AG14: 0 | AH14: 123300000 | AI14: 0 | AJ14: 123300000 | AK14: 0 | AL14: 123300000 | AM14: 0 | AN14: 123300000 | AO14: 0 | AP14: 123300000 | AQ14: 6115246.499 | AR14: 0 | AS14: -1 | AT14: -1 | AU14: 0 | AV14: 0 | AW14: 7326893.222 | AX14: 244609.86 | AY14: 0 | AZ14: 0 | BA14: 0 | BB14: -1 | BC14: -1 | BD14: 403606.2689 | BE14: 110074.437 | BF14: 330223.311 | BG14: 0 | BH14: 0 | BI14: 0 | BJ14: 0 | BK14: 0 | BL14: -1 | BM14: 0 | BN14: 1161896.835 | BO14: 85613.45099 | BP14: 0 | BQ14: 0 | BR14: 464758.7339 | BS14: -1 | BT14: 0 | BU14: -1 | BV14: 73382.95799 | BW14: -1 | BX14: 146765.916 | BY14: 0 | BZ14: 0 | CA14: -1 | CB14: -1 | CC14: 67267.71149 | CD14: 0 | CE14: 0 | CF14: -1 | CG14: 317992.818 | CH14: 0 | CI14: 0 | CJ14: 0 | CK14: 0 | CL14: 0 | CM14: 0 | CN14: 0 | CO14: 0 | CP14: -1 | CQ14: -1 | CR14: -1 | CS14: -1 | CT14: -1 | CU14: -1 | CV14: -1 | CW14: -1 | CX14: -1 | CY14: -1 | CZ14: -1 | DA14: -1 | DB14: -1 | DC14: -1 | DD14: -1 | DE14: -1 | DF14: -1 | DG14: -1 | DH14: 1 | DJ14: Cilindraje | DK14: Transmisión | DL14: Seg4 | DM14: CCEVeh13 | DN14: CCEVeh13 | DO14: TRUE
A15: VehículosConvencionalesAutomóvilesSedánNAGasolinaIntervalodeprecio3Entre151y200NANANANAToyota COROLLA 2.0 CVT SEGALBORAUTOS S.A.S. | B15: VehículosConvencionalesAutomóvilesSedánNAGasolinaIntervalodeprecio3Entre151y200NANANANA | C15: Toyota COROLLA 2.0 CVT SEG | D15: ALBORAUTOS S.A.S. | E15: Vehículos Convencionales - Automóviles | F15: Vehículos Convencionales | G15: Automóviles | H15: Sedán - N.A. - Gasolina | I15: Sedán | J15: N.A. | K15: N.A. | L15: Intervalo de precio 3 | M15: Gasolina | N15: COROLLA 2.0 CVT SEG | O15: Toyota | P15: 9001144 | T15: Entre 151 y 200 | U15: N.A. | V15: N.A. | W15: Automático | X15: Gasolina | Y15: N.A. | Z15: N.A. | AA15: N.A. | AB15: N.A. | AC15: N.A. | AD15: 121500000 | AE15: 0 | AF15: 121500000 | AG15: 0 | AH15: 121500000 | AI15: 0 | AJ15: 121500000 | AK15: 0 | AL15: 121500000 | AM15: 0 | AN15: 121500000 | AO15: 0 | AP15: 121500000 | AQ15: 6115246.499 | AR15: 0 | AS15: -1 | AT15: -1 | AU15: 0 | AV15: -1 | AW15: 7326893.222 | AX15: 244609.86 | AY15: 0 | AZ15: 0 | BA15: 0 | BB15: -1 | BC15: -1 | BD15: 0 | BE15: 110074.437 | BF15: 0 | BG15: 0 | BH15: 0 | BI15: 0 | BJ15: 0 | BK15: 0 | BL15: -1 | BM15: 0 | BN15: 1161896.835 | BO15: 85613.45099 | BP15: 0 | BQ15: 0 | BR15: -1 | BS15: -1 | BT15: 0 | BU15: -1 | BV15: 73382.95799 | BW15: -1 | BX15: 146765.916 | BY15: 0 | BZ15: 0 | CA15: -1 | CB15: -1 | CC15: 67267.71149 | CD15: 0 | CE15: 0 | CF15: -1 | CG15: 317992.818 | CH15: 0 | CI15: 0 | CJ15: 0 | CK15: 0 | CL15: 0 | CM15: 0 | CN15: 0 | CO15: 0 | CP15: -1 | CQ15: -1 | CR15: -1 | CS15: -1 | CT15: -1 | CU15: -1 | CV15: -1 | CW15: -1 | CX15: -1 | CY15: -1 | CZ15: -1 | DA15: -1 | DB15: -1 | DC15: -1 | DD15: -1 | DE15: -1 | DF15: -1 | DG15: -1 | DH15: 1 | DJ15: Cilindraje | DK15: Transmisión | DL15: Seg4 | DM15: CCEVeh14 | DN15: CCEVeh14 | DO15: TRUE
A16: VehículosConvencionalesAutomóvilesHatchbackNAGasolinaIntervalodeprecio1Entre100y150NANANANARenault STEPWAY [2] [FL] ZEN 1600CC Renault Sociedad de Fabricación de Automotores S.A.S. | B16: VehículosConvencionalesAutomóvilesHatchbackNAGasolinaIntervalodeprecio1Entre100y150NANANANA | C16: Renault STEPWAY [2] [FL] ZEN 1600CC | D16: Renault Sociedad de Fabricación de Automotores S.A.S. | E16: Vehículos Convencionales - Automóviles | F16: Vehículos Convencionales | G16: Automóviles | H16: Hatchback - N.A. - Gasolina | I16: Hatchback | J16: N.A. | K16: N.A. | L16: Intervalo de precio 1 | M16: Gasolina | N16: STEPWAY [2] [FL] ZEN 1600CC | O16: Renault | P16: 8001209 | T16: Entre 100 y 150 | U16: N.A. | V16: N.A. | W16: Automático | X16: Gasolina | Y16: N.A. | Z16: N.A. | AA16: N.A. | AB16: N.A. | AC16: N.A. | AE16: 0.05 | AF16: 0 | AG16: 0.06 | AH16: 0 | AI16: 0.07 | AJ16: 0 | AK16: 0.108 | AL16: 0 | AM16: 0.109 | AN16: 0 | AO16: 0.11 | AP16: 0 | AR16: 0 | AS16: -1 | AT16: -1 | AU16: 1 | AV16: -1 | AW16: 0 | AX16: 0 | AY16: 0 | AZ16: 0 | BA16: 0 | BB16: 0 | BC16: 0 | BD16: 0 | BE16: 0 | BF16: 0 | BG16: 0 | BH16: 0 | BI16: 0 | BJ16: 0 | BK16: 0 | BL16: 0 | BM16: 0 | BN16: 0 | BO16: 0 | BP16: 0 | BQ16: 0 | BR16: 0 | BS16: 0 | BT16: 0 | BU16: 0 | BV16: 0 | BW16: 0 | BX16: 0 | BY16: 0 | BZ16: 0 | CA16: 0 | CB16: 0 | CC16: 0 | CD16: 0 | CE16: 0 | CF16: 0 | CG16: 0 | CH16: 0 | CI16: 0 | CJ16: 0 | CK16: 0 | CL16: 0 | CM16: -1 | CN16: 0 | CO16: -1 | CP16: 0 | CQ16: -1 | CR16: -1 | CS16: -1 | CT16: -1 | CU16: -1 | CV16: -1 | CW16: -1 | CX16: -1 | CY16: -1 | CZ16: -1 | DA16: -1 | DB16: -1 | DC16: -1 | DD16: -1 | DE16: -1 | DF16: -1 | DG16: -1 | DH16: 0 | DJ16: Cilindraje | DK16: Transmisión | DL16: Seg4 | DM16: CCEVeh50 | DN16: CCEVeh50 | DO16: TRUE
A17: VehículosConvencionalesAutomóvilesHatchbackNAGasolinaIntervalodeprecio1Entre100y150NANANANANissan MARCH ACTIVE MECDistribuidora Nissan S.A. | B17: VehículosConvencionalesAutomóvilesHatchbackNAGasolinaIntervalodeprecio1Entre100y150NANANANA | C17: Nissan MARCH ACTIVE MEC | D17: Distribuidora Nissan S.A. | E17: Vehículos Convencionales - Automóviles | F17: Vehículos Convencionales | G17: Automóviles | H17: Hatchback - N.A. - Gasolina | I17: Hatchback | J17: N.A. | K17: N.A. | L17: Intervalo de precio 1 | M17: Gasolina | N17: MARCH ACTIVE MEC | O17: Nissan | P17: 6401233 | T17: Entre 100 y 150 | U17: N.A. | V17: N.A. | W17: Mecánico | X17: Gasolina | Y17: N.A. | Z17: N.A. | AA17: N.A. | AB17: N.A. | AC17: N.A. | AD17: 53000000 | AE17: 0.03 | AF17: 51410000 | AG17: 0.03 | AH17: 51410000 | AI17: 0.04 | AJ17: 50880000 | AK17: 0.05 | AL17: 50350000 | AM17: 0.06 | AN17: 49820000 | AO17: 0.07 | AP17: 49290000 | AQ17: 3912681.981 | AR17: 0 | AS17: 0 | AT17: 0 | AU17: 1 | AV17: 0 | AW17: 7326893.222 | AX17: 499727.7426 | AY17: 597857.8067 | AZ17: 0 | BA17: 0 | BB17: 6206296.158 | BC17: 1907021.47 | BD17: 1052149.776 | BE17: 759849.4167 | BF17: 460315.5272 | BG17: 0 | BH17: 0 | BI17: 0 | BJ17: 0 | BK17: 0 | BL17: 2563119.712 | BM17: 0 | BN17: 1626886.592 | BO17: 1663609.249 | BP17: 775960.4601 | BQ17: 1078453.521 | BR17: 144670.5943 | BS17: -1 | BT17: 0 | BU17: -1 | BV17: 59183.42492 | BW17: 1407250.326 | BX17: -1 | BY17: 0 | BZ17: 0 | CA17: -1 | CB17: 5918342.492 | CC17: 99165.11643 | CD17: 0 | CE17: 0 | CF17: 0 | CG17: 591834.2492 | CH17: 0 | CI17: 0 | CJ17: 0 | CK17: 0 | CL17: -1 | CM17: -1 | CN17: -1 | CO17: -1 | CP17: 0 | CQ17: -1 | CR17: -1 | CS17: -1 | CT17: -1 | CU17: -1 | CV17: -1 | CW17: -1 | CX17: -1 | CY17: -1 | CZ17: -1 | DA17: -1 | DB17: -1 | DC17: -1 | DD17: -1 | DE17: -1 | DF17: -1 | DG17: -1 | DH17: 1 | DJ17: Cilindraje | DK17: Transmisión | DL17: Seg4 | DM17: CCEVeh53 | DN17: CCEVeh53 | DO17: TRUE
A18: VehículosConvencionalesAutomóvilesHatchbackNAGasolinaIntervalodeprecio1Entre100y150NANANANANissan MARCH EMOTION MECDistribuidora Nissan S.A. | B18: VehículosConvencionalesAutomóvilesHatchbackNAGasolinaIntervalodeprecio1Entre100y150NANANANA | C18: Nissan MARCH EMOTION MEC | D18: Distribuidora Nissan S.A. | E18: Vehículos Convencionales - Automóviles | F18: Vehículos Convencionales | G18: Automóviles | H18: Hatchback - N.A. - Gasolina | I18: Hatchback | J18: N.A. | K18: N.A. | L18: Intervalo de precio 1 | M18: Gasolina | N18: MARCH EMOTION MEC | O18: Nissan | P18: 6401242 | T18: Entre 100 y 150 | U18: N.A. | V18: N.A. | W18: Mecánico | X18: Gasolina | Y18: N.A. | Z18: N.A. | AA18: N.A. | AB18: N.A. | AC18: N.A. | AD18: 56000000 | AE18: 0.03 | AF18: 54320000 | AG18: 0.03 | AH18: 54320000 | AI18: 0.04 | AJ18: 53760000 | AK18: 0.05 | AL18: 53200000 | AM18: 0.06 | AN18: 52640000 | AO18: 0.07 | AP18: 52080000 | AQ18: 3912681.981 | AR18: 0 | AS18: 0 | AT18: 0 | AU18: 1 | AV18: 0 | AW18: 7326893.222 | AX18: 499727.7426 | AY18: 597857.8067 | AZ18: 0 | BA18: 0 | BB18: 6206296.158 | BC18: 0 | BD18: 1052149.776 | BE18: 759849.4167 | BF18: 460315.5272 | BG18: 0 | BH18: 0 | BI18: 0 | BJ18: 0 | BK18: 0 | BL18: 2563119.712 | BM18: 0 | BN18: 1626886.592 | BO18: 1663609.249 | BP18: 775960.4601 | BQ18: 1078453.521 | BR18: 144670.5943 | BS18: -1 | BT18: 0 | BU18: -1 | BV18: 59183.42492 | BW18: 1407250.326 | BX18: -1 | BY18: 0 | BZ18: 0 | CA18: -1 | CB18: 5918342.492 | CC18: 99165.11643 | CD18: 0 | CE18: 0 | CF18: 0 | CG18: 591834.2492 | CH18: 0 | CI18: 0 | CJ18: 0 | CK18: 0 | CL18: -1 | CM18: -1 | CN18: -1 | CO18: -1 | CP18: 0 | CQ18: -1 | CR18: -1 | CS18: -1 | CT18: -1 | CU18: -1 | CV18: -1 | CW18: -1 | CX18: -1 | CY18: -1 | CZ18: -1 | DA18: -1 | DB18: -1 | DC18: -1 | DD18: -1 | DE18: -1 | DF18: -1 | DG18: -1 | DH18: 1 | DJ18: Cilindraje | DK18: Transmisión | DL18: Seg4 | DM18: CCEVeh54 | DN18: CCEVeh54 | DO18: TRUE
A19: VehículosConvencionalesAutomóvilesHatchbackNAGasolinaIntervalodeprecio1Entre100y150NANANANANissan MARCH SENSE MEC Distribuidora Nissan S.A. | B19: VehículosConvencionalesAutomóvilesHatchbackNAGasolinaIntervalodeprecio1Entre100y150NANANANA | C19: Nissan MARCH SENSE MEC | D19: Distribuidora Nissan S.A. | E19: Vehículos Convencionales - Automóviles | F19: Vehículos Convencionales | G19: Automóviles | H19: Hatchback - N.A. - Gasolina | I19: Hatchback | J19: N.A. | K19: N.A. | L19: Intervalo de precio 1 | M19: Gasolina | N19: MARCH SENSE MEC | O19: Nissan | P19: 6401236 | T19: Entre 100 y 150 | U19: N.A. | V19: N.A. | W19: Mecánico | X19: Gasolina | Y19: N.A. | Z19: N.A. | AA19: N.A. | AB19: N.A. | AC19: N.A. | AD19: 58100000 | AE19: 0.03 | AF19: 56357000 | AG19: 0.03 | AH19: 56357000 | AI19: 0.03 | AJ19: 56357000 | AK19: 0.035 | AL19: 56066500 | AM19: 0.035 | AN19: 56066500 | AO19: 0.04 | AP19: 55776000 | AQ19: 3912681.981 | AR19: 0 | AS19: 0 | AT19: 0 | AU19: 1 | AV19: 0 | AW19: 7326893.222 | AX19: 499727.7426 | AY19: 597857.8067 | AZ19: 0 | BA19: 0 | BB19: 6206296.158 | BC19: 0 | BD19: 1052149.776 | BE19: 759849.4167 | BF19: 460315.5272 | BG19: 0 | BH19: 0 | BI19: 0 | BJ19: 0 | BK19: 0 | BL19: 2563119.712 | BM19: 0 | BN19: 1626886.592 | BO19: 1663609.249 | BP19: 775960.4601 | BQ19: 1078453.521 | BR19: 144670.5943 | BS19: -1 | BT19: 0 | BU19: -1 | BV19: 59183.42492 | BW19: 1407250.326 | BX19: -1 | BY19: 0 | BZ19: 0 | CA19: -1 | CB19: 5918342.492 | CC19: 99165.11643 | CD19: 0 | CE19: 0 | CF19: 0 | CG19: 591834.2492 | CH19: 0 | CI19: 0 | CJ19: 0 | CK19: 0 | CL19: -1 | CM19: -1 | CN19: -1 | CO19: -1 | CP19: 0 | CQ19: -1 | CR19: -1 | CS19: -1 | CT19: -1 | CU19: -1 | CV19: -1 | CW19: -1 | CX19: -1 | CY19: -1 | CZ19: -1 | DA19: -1 | DB19: -1 | DC19: -1 | DD19: -1 | DE19: -1 | DF19: -1 | DG19: -1 | DH19: 1 | DJ19: Cilindraje | DK19: Transmisión | DL19: Seg4 | DM19: CCEVeh55 | DN19: CCEVeh55 | DO19: TRUE
A20: VehículosConvencionalesAutomóvilesHatchbackNAGasolinaIntervalodeprecio1Entre100y150NANANANANissan MARCH SENSE AUTDistribuidora Nissan S.A. | B20: VehículosConvencionalesAutomóvilesHatchbackNAGasolinaIntervalodeprecio1Entre100y150NANANANA | C20: Nissan MARCH SENSE AUT | D20: Distribuidora Nissan S.A. | E20: Vehículos Convencionales - Automóviles | F20: Vehículos Convencionales | G20: Automóviles | H20: Hatchback - N.A. - Gasolina | I20: Hatchback | J20: N.A. | K20: N.A. | L20: Intervalo de precio 1 | M20: Gasolina | N20: MARCH SENSE AUT | O20: Nissan | P20: 6401235 | T20: Entre 100 y 150 | U20: N.A. | V20: N.A. | W20: Automático | X20: Gasolina | Y20: N.A. | Z20: N.A. | AA20: N.A. | AB20: N.A. | AC20: N.A. | AD20: 59900000 | AE20: 0.04 | AF20: 57504000 | AG20: 0.04 | AH20: 57504000 | AI20: 0.04 | AJ20: 57504000 | AK20: 0.05 | AL20: 56905000 | AM20: 0.05 | AN20: 56905000 | AO20: 0.06 | AP20: 56306000 | AQ20: 4208599.106 | AR20: 0 | AS20: 0 | AT20: 0 | AU20: 1 | AV20: 0 | AW20: 7326893.222 | AX20: 499727.7426 | AY20: 597857.8067 | AZ20: 0 | BA20: 0 | BB20: 6206296.158 | BC20: 0 | BD20: 1052149.776 | BE20: 759849.4167 | BF20: 460315.5272 | BG20: 0 | BH20: 0 | BI20: 0 | BJ20: 0 | BK20: 0 | BL20: 2563119.712 | BM20: 0 | BN20: 1626886.592 | BO20: 1663609.249 | BP20: 775960.4601 | BQ20: 1078453.521 | BR20: 144670.5943 | BS20: -1 | BT20: 0 | BU20: -1 | BV20: 59183.42492 | BW20: 1407250.326 | BX20: -1 | BY20: 0 | BZ20: 0 | CA20: -1 | CB20: 5918342.492 | CC20: 99165.11643 | CD20: 0 | CE20: 0 | CF20: 0 | CG20: 591834.2492 | CH20: 0 | CI20: 0 | CJ20: 0 | CK20: 0 | CL20: -1 | CM20: -1 | CN20: -1 | CO20: -1 | CP20: 0 | CQ20: -1 | CR20: -1 | CS20: -1 | CT20: -1 | CU20: -1 | CV20: -1 | CW20: -1 | CX20: -1 | CY20: -1 | CZ20: -1 | DA20: -1 | DB20: -1 | DC20: -1 | DD20: -1 | DE20: -1 | DF20: -1 | DG20: -1 | DH20: 1 | DJ20: Cilindraje | DK20: Transmisión | DL20: Seg4 | DM20: CCEVeh56 | DN20: CCEVeh56 | DO20: TRUE
A21: VehículosConvencionalesAutomóvilesHatchbackNAGasolinaIntervalodeprecio1Entre100y150NANANANANissan MARCH SENSE CONNECT MEC Distribuidora Nissan S.A. | B21: VehículosConvencionalesAutomóvilesHatchbackNAGasolinaIntervalodeprecio1Entre100y150NANANANA | C21: Nissan MARCH SENSE CONNECT MEC | D21: Distribuidora Nissan S.A. | E21: Vehículos Convencionales - Automóviles | F21: Vehículos Convencionales | G21: Automóviles | H21: Hatchback - N.A. - Gasolina | I21: Hatchback | J21: N.A. | K21: N.A. | L21: Intervalo de precio 1 | M21: Gasolina | N21: MARCH SENSE CONNECT MEC | O21: Nissan | P21: 6401237 | T21: Entre 100 y 150 | U21: N.A. | V21: N.A. | W21: Mecánico | X21: Gasolina | Y21: N.A. | Z21: N.A. | AA21: N.A. | AB21: N.A. | AC21: N.A. | AD21: 61000000 | AE21: 0.03 | AF21: 59170000 | AG21: 0.03 | AH21: 59170000 | AI21: 0.03 | AJ21: 59170000 | AK21: 0.035 | AL21: 58865000 | AM21: 0.035 | AN21: 58865000 | AO21: 0.04 | AP21: 58560000 | AQ21: 3912681.981 | AR21: 0 | AS21: 0 | AT21: 0 | AU21: 1 | AV21: 0 | AW21: 7326893.222 | AX21: 499727.7426 | AY21: 597857.8067 | AZ21: 0 | BA21: 0 | BB21: 6206296.158 | BC21: 0 | BD21: 0 | BE21: 759849.4167 | BF21: 460315.5272 | BG21: 0 | BH21: 0 | BI21: 0 | BJ21: 0 | BK21: 0 | BL21: 2563119.712 | BM21: 0 | BN21: 1626886.592 | BO21: 1663609.249 | BP21: 775960.4601 | BQ21: 1078453.521 | BR21: 144670.5943 | BS21: -1 | BT21: 0 | BU21: -1 | BV21: 59183.42492 | BW21: 1407250.326 | BX21: -1 | BY21: 0 | BZ21: 0 | CA21: -1 | CB21: 5918342.492 | CC21: 99165.11643 | CD21: 0 | CE21: 0 | CF21: 0 | CG21: 591834.2492 | CH21: 0 | CI21: 0 | CJ21: 0 | CK21: 0 | CL21: -1 | CM21: -1 | CN21: -1 | CO21: -1 | CP21: 0 | CQ21: -1 | CR21: -1 | CS21: -1 | CT21: -1 | CU21: -1 | CV21: -1 | CW21: -1 | CX21: -1 | CY21: -1 | CZ21: -1 | DA21: -1 | DB21: -1 | DC21: -1 | DD21: -1 | DE21: -1 | DF21: -1 | DG21: -1 | DH21: 1 | DJ21: Cilindraje | DK21: Transmisión | DL21: Seg4 | DM21: CCEVeh57 | DN21: CCEVeh57 | DO21: TRUE
A22: VehículosConvencionalesAutomóvilesHatchbackNAGasolinaIntervalodeprecio1Entre100y150NANANANANissan MARCH SENSE CONNECT AUTDistribuidora Nissan S.A. | B22: VehículosConvencionalesAutomóvilesHatchbackNAGasolinaIntervalodeprecio1Entre100y150NANANANA | C22: Nissan MARCH SENSE CONNECT AUT | D22: Distribuidora Nissan S.A. | E22: Vehículos Convencionales - Automóviles | F22: Vehículos Convencionales | G22: Automóviles | H22: Hatchback - N.A. - Gasolina | I22: Hatchback | J22: N.A. | K22: N.A. | L22: Intervalo de precio 1 | M22: Gasolina | N22: MARCH SENSE CONNECT AUT | O22: Nissan | P22: 6401238 | T22: Entre 100 y 150 | U22: N.A. | V22: N.A. | W22: Automático | X22: Gasolina | Y22: N.A. | Z22: N.A. | AA22: N.A. | AB22: N.A. | AC22: N.A. | AD22: 62200000 | AE22: 0.04 | AF22: 59712000 | AG22: 0.04 | AH22: 59712000 | AI22: 0.04 | AJ22: 59712000 | AK22: 0.05 | AL22: 59090000 | AM22: 0.05 | AN22: 59090000 | AO22: 0.06 | AP22: 58468000 | AQ22: 4208599.106 | AR22: 0 | AS22: 0 | AT22: 0 | AU22: 1 | AV22: 0 | AW22: 7326893.222 | AX22: 499727.7426 | AY22: 597857.8067 | AZ22: 0 | BA22: 0 | BB22: 6206296.158 | BC22: 0 | BD22: 0 | BE22: 759849.4167 | BF22: 460315.5272 | BG22: 0 | BH22: 0 | BI22: 0 | BJ22: 0 | BK22: 0 | BL22: 2563119.712 | BM22: 0 | BN22: 1626886.592 | BO22: 1663609.249 | BP22: 775960.4601 | BQ22: 1078453.521 | BR22: 144670.5943 | BS22: -1 | BT22: 0 | BU22: -1 | BV22: 59183.42492 | BW22: 1407250.326 | BX22: -1 | BY22: 0 | BZ22: 0 | CA22: -1 | CB22: 5918342.492 | CC22: 99165.11643 | CD22: 0 | CE22: 0 | CF22: 0 | CG22: 591834.2492 | CH22: 0 | CI22: 0 | CJ22: 0 | CK22: 0 | CL22: -1 | CM22: -1 | CN22: -1 | CO22: -1 | CP22: 0 | CQ22: -1 | CR22: -1 | CS22: -1 | CT22: -1 | CU22: -1 | CV22: -1 | CW22: -1 | CX22: -1 | CY22: -1 | CZ22: -1 | DA22: -1 | DB22: -1 | DC22: -1 | DD22: -1 | DE22: -1 | DF22: -1 | DG22: -1 | DH22: 1 | DJ22: Cilindraje | DK22: Transmisión | DL22: Seg4 | DM22: CCEVeh58 | DN22: CCEVeh58 | DO22: TRUE
A23: VehículosConvencionalesAutomóvilesSedánNAGasolinaIntervalodeprecio1Entre100y150NANANANANissan VERSA DRIVE MEC Distribuidora Nissan S.A. | B23: VehículosConvencionalesAutomóvilesSedánNAGasolinaIntervalodeprecio1Entre100y150NANANANA | C23: Nissan VERSA DRIVE MEC | D23: Distribuidora Nissan S.A. | E23: Vehículos Convencionales - Automóviles | F23: Vehículos Convencionales | G23: Automóviles | H23: Sedán - N.A. - Gasolina | I23: Sedán | J23: N.A. | K23: N.A. | L23: Intervalo de precio 1 | M23: Gasolina | N23: VERSA DRIVE MEC | O23: Nissan | P23: 6401228 | T23: Entre 100 y 150 | U23: N.A. | V23: N.A. | W23: Mecánico | X23: Gasolina | Y23: N.A. | Z23: N.A. | AA23: N.A. | AB23: N.A. | AC23: N.A. | AD23: 69800000 | AE23: 0.05 | AF23: 66310000 | AG23: 0.06 | AH23: 65612000 | AI23: 0.06 | AJ23: 65612000 | AK23: 0.07 | AL23: 64914000 | AM23: 0.08 | AN23: 64216000 | AO23: 0.08 | AP23: 64216000 | AQ23: 4538711.098 | AR23: 0 | AS23: 0 | AT23: 0 | AU23: 1 | AV23: 0 | AW23: 7326893.222 | AX23: 499727.7426 | AY23: 597857.8067 | AZ23: 0 | BA23: 0 | BB23: 6206296.158 | BC23: 0 | BD23: 1052149.776 | BE23: 759849.4167 | BF23: 460315.5272 | BG23: 0 | BH23: 0 | BI23: 0 | BJ23: 0 | BK23: 0 | BL23: 2563119.712 | BM23: 0 | BN23: 1626886.592 | BO23: 1663609.249 | BP23: 0 | BQ23: 1078453.521 | BR23: 144670.5943 | BS23: -1 | BT23: 0 | BU23: -1 | BV23: 59183.42492 | BW23: 1407250.326 | BX23: -1 | BY23: 0 | BZ23: 0 | CA23: -1 | CB23: 5918342.492 | CC23: 99165.11643 | CD23: 0 | CE23: 0 | CF23: 0 | CG23: 591834.2492 | CH23: 0 | CI23: 0 | CJ23: 0 | CK23: 0 | CL23: -1 | CM23: -1 | CN23: -1 | CO23: -1 | CP23: 0 | CQ23: -1 | CR23: -1 | CS23: -1 | CT23: -1 | CU23: -1 | CV23: -1 | CW23: -1 | CX23: -1 | CY23: -1 | CZ23: -1 | DA23: -1 | DB23: -1 | DC23: -1 | DD23: -1 | DE23: -1 | DF23: -1 | DG23: -1 | DH23: 1 | DJ23: Cilindraje | DK23: Transmisión | DL23: Seg4 | DM23: CCEVeh59 | DN23: CCEVeh59 | DO23: TRUE
A24: VehículosConvencionalesAutomóvilesSedánNAGasolinaIntervalodeprecio1Entre100y150NANANANANissan VERSA DRIVE AUTDistribuidora Nissan S.A. | B24: VehículosConvencionalesAutomóvilesSedánNAGasolinaIntervalodeprecio1Entre100y150NANANANA | C24: Nissan VERSA DRIVE AUT | D24: Distribuidora Nissan S.A. | E24: Vehículos Convencionales - Automóviles | F24: Vehículos Convencionales | G24: Automóviles | H24: Sedán - N.A. - Gasolina | I24: Sedán | J24: N.A. | K24: N.A. | L24: Intervalo de precio 1 | M24: Gasolina | N24: VERSA DRIVE AUT | O24: Nissan | P24: 6401243 | T24: Entre 100 y 150 | U24: N.A. | V24: N.A. | W24: Automático | X24: Gasolina | Y24: N.A. | Z24: N.A. | AA24: N.A. | AB24: N.A. | AC24: N.A. | AD24: 66600000 | AE24: 0.06 | AF24: 62604000 | AG24: 0.07 | AH24: 61938000 | AI24: 0.07 | AJ24: 61938000 | AK24: 0.08 | AL24: 61272000 | AM24: 0.09 | AN24: 60606000 | AO24: 0.09 | AP24: 60606000 | AQ24: 4801748.542 | AR24: 0 | AS24: 0 | AT24: 0 | AU24: 1 | AV24: 0 | AW24: 7326893.222 | AX24: 499727.7426 | AY24: 597857.8067 | AZ24: 0 | BA24: 0 | BB24: 6206296.158 | BC24: 0 | BD24: 1052149.776 | BE24: 759849.4167 | BF24: 460315.5272 | BG24: 0 | BH24: 0 | BI24: 0 | BJ24: 0 | BK24: 0 | BL24: 2563119.712 | BM24: 0 | BN24: 1626886.592 | BO24: 1663609.249 | BP24: 0 | BQ24: 1078453.521 | BR24: 144670.5943 | BS24: -1 | BT24: 0 | BU24: -1 | BV24: 59183.42492 | BW24: 1407250.326 | BX24: -1 | BY24: 0 | BZ24: 0 | CA24: -1 | CB24: 5918342.492 | CC24: 99165.11643 | CD24: 0 | CE24: 0 | CF24: 0 | CG24: 591834.2492 | CH24: 0 | CI24: 0 | CJ24: 0 | CK24: 0 | CL24: -1 | CM24: -1 | CN24: -1 | CO24: -1 | CP24: 0 | CQ24: -1 | CR24: -1 | CS24: -1 | CT24: -1 | CU24: -1 | CV24: -1 | CW24: -1 | CX24: -1 | CY24: -1 | CZ24: -1 | DA24: -1 | DB24: -1 | DC24: -1 | DD24: -1 | DE24: -1 | DF24: -1 | DG24: -1 | DH24: 1 | DJ24: Cilindraje | DK24: Transmisión | DL24: Seg4 | DM24: CCEVeh60 | DN24: CCEVeh60 | DO24: TRUE
A25: VehículosConvencionalesAutomóvilesSedánNAGasolinaIntervalodeprecio1Entre100y150NANANANANissan VERSA DRIVE CONNECT MEC Distribuidora Nissan S.A. | B25: VehículosConvencionalesAutomóvilesSedánNAGasolinaIntervalodeprecio1Entre100y150NANANANA | C25: Nissan VERSA DRIVE CONNECT MEC | D25: Distribuidora Nissan S.A. | E25: Vehículos Convencionales - Automóviles | F25: Vehículos Convencionales | G25: Automóviles | H25: Sedán - N.A. - Gasolina | I25: Sedán | J25: N.A. | K25: N.A. | L25: Intervalo de precio 1 | M25: Gasolina | N25: VERSA DRIVE CONNECT MEC | O25: Nissan | P25: 6401249 | T25: Entre 100 y 150 | U25: N.A. | V25: N.A. | W25: Mecánico | X25: Gasolina | Y25: N.A. | Z25: N.A. | AA25: N.A. | AB25: N.A. | AC25: N.A. | AD25: 66600000 | AE25: 0.05 | AF25: 63270000 | AG25: 0.06 | AH25: 62604000 | AI25: 0.06 | AJ25: 62604000 | AK25: 0.07 | AL25: 61938000 | AM25: 0.08 | AN25: 61272000 | AO25: 0.08 | AP25: 61272000 | AQ25: 4538711.098 | AR25: 0 | AS25: 0 | AT25: 0 | AU25: 1 | AV25: 0 | AW25: 7326893.222 | AX25: 499727.7426 | AY25: 597857.8067 | AZ25: 0 | BA25: 0 | BB25: 6206296.158 | BC25: 0 | BD25: 1052149.776 | BE25: 759849.4167 | BF25: 460315.5272 | BG25: 0 | BH25: 0 | BI25: 0 | BJ25: 0 | BK25: 0 | BL25: 2563119.712 | BM25: 0 | BN25: 1626886.592 | BO25: 1663609.249 | BP25: 0 | BQ25: 1078453.521 | BR25: 144670.5943 | BS25: -1 | BT25: 0 | BU25: -1 | BV25: 59183.42492 | BW25: 1407250.326 | BX25: -1 | BY25: 0 | BZ25: 0 | CA25: -1 | CB25: 5918342.492 | CC25: 99165.11643 | CD25: 0 | CE25: 0 | CF25: 0 | CG25: 591834.2492 | CH25: 0 | CI25: 0 | CJ25: 0 | CK25: 0 | CL25: -1 | CM25: -1 | CN25: -1 | CO25: -1 | CP25: 0 | CQ25: -1 | CR25: -1 | CS25: -1 | CT25: -1 | CU25: -1 | CV25: -1 | CW25: -1 | CX25: -1 | CY25: -1 | CZ25: -1 | DA25: -1 | DB25: -1 | DC25: -1 | DD25: -1 | DE25: -1 | DF25: -1 | DG25: -1 | DH25: 1 | DJ25: Cilindraje | DK25: Transmisión | DL25: Seg4 | DM25: CCEVeh61 | DN25: CCEVeh61 | DO25: TRUE
A26: VehículosConvencionalesAutomóvilesSedánNAGasolinaIntervalodeprecio1Entre100y150NANANANANissan VERSA DRIVE CONNECT AUTDistribuidora Nissan S.A. | B26: VehículosConvencionalesAutomóvilesSedánNAGasolinaIntervalodeprecio1Entre100y150NANANANA | C26: Nissan VERSA DRIVE CONNECT AUT | D26: Distribuidora Nissan S.A. | E26: Vehículos Convencionales - Automóviles | F26: Vehículos Convencionales | G26: Automóviles | H26: Sedán - N.A. - Gasolina | I26: Sedán | J26: N.A. | K26: N.A. | L26: Intervalo de precio 1 | M26: Gasolina | N26: VERSA DRIVE CONNECT AUT | O26: Nissan | P26: 6401250 | T26: Entre 100 y 150 | U26: N.A. | V26: N.A. | W26: Automático | X26: Gasolina | Y26: N.A. | Z26: N.A. | AA26: N.A. | AB26: N.A. | AC26: N.A. | AD26: 69200000 | AE26: 0.06 | AF26: 65048000 | AG26: 0.07 | AH26: 64356000 | AI26: 0.07 | AJ26: 64356000 | AK26: 0.08 | AL26: 63664000 | AM26: 0.09 | AN26: 62972000 | AO26: 0.09 | AP26: 62972000 | AQ26: 4801748.542 | AR26: 0 | AS26: 0 | AT26: 0 | AU26: 1 | AV26: 0 | AW26: 7326893.222 | AX26: 499727.7426 | AY26: 597857.8067 | AZ26: 0 | BA26: 0 | BB26: 6206296.158 | BC26: 0 | BD26: 1052149.776 | BE26: 759849.4167 | BF26: 460315.5272 | BG26: 0 | BH26: 0 | BI26: 0 | BJ26: 0 | BK26: 0 | BL26: 2563119.712 | BM26: 0 | BN26: 1626886.592 | BO26: 1663609.249 | BP26: 0 | BQ26: 1078453.521 | BR26: 144670.5943 | BS26: -1 | BT26: 0 | BU26: -1 | BV26: 59183.42492 | BW26: 1407250.326 | BX26: -1 | BY26: 0 | BZ26: 0 | CA26: -1 | CB26: 5918342.492 | CC26: 99165.11643 | CD26: 0 | CE26: 0 | CF26: 0 | CG26: 591834.2492 | CH26: 0 | CI26: 0 | CJ26: 0 | CK26: 0 | CL26: -1 | CM26: -1 | CN26: -1 | CO26: -1 | CP26: 0 | CQ26: -1 | CR26: -1 | CS26: -1 | CT26: -1 | CU26: -1 | CV26: -1 | CW26: -1 | CX26: -1 | CY26: -1 | CZ26: -1 | DA26: -1 | DB26: -1 | DC26: -1 | DD26: -1 | DE26: -1 | DF26: -1 | DG26: -1 | DH26: 1 | DJ26: Cilindraje | DK26: Transmisión | DL26: Seg4 | DM26: CCEVeh62 | DN26: CCEVeh62 | DO26: TRUE
A27: VehículosConvencionalesAutomóvilesSedánNAGasolinaIntervalodeprecio2Entre100y150NANANANANissan NEW VERSA SENSE MEC Distribuidora Nissan S.A. | B27: VehículosConvencionalesAutomóvilesSedánNAGasolinaIntervalodeprecio2Entre100y150NANANANA | C27: Nissan NEW VERSA SENSE MEC | D27: Distribuidora Nissan S.A. | E27: Vehículos Convencionales - Automóviles | F27: Vehículos Convencionales | G27: Automóviles | H27: Sedán - N.A. - Gasolina | I27: Sedán | J27: N.A. | K27: N.A. | L27: Intervalo de precio 2 | M27: Gasolina | N27: NEW VERSA SENSE MEC | O27: Nissan | P27: 6401247 | T27: Entre 100 y 150 | U27: N.A. | V27: N.A. | W27: Mecánico | X27: Gasolina | Y27: N.A. | Z27: N.A. | AA27: N.A. | AB27: N.A. | AC27: N.A. | AD27: 80000000 | AE27: 0.07 | AF27: 74400000 | AG27: 0.08 | AH27: 73600000 | AI27: 0.08 | AJ27: 73600000 | AK27: 0.08 | AL27: 73600000 | AM27: 0.09 | AN27: 72800000 | AO27: 0.09 | AP27: 72800000 | AQ27: 4077080.384 | AR27: 0 | AS27: 0 | AT27: 0 | AU27: 1 | AV27: 0 | AW27: 7326893.222 | AX27: 499727.7426 | AY27: 597857.8067 | AZ27: 0 | BA27: 0 | BB27: 6206296.158 | BC27: 0 | BD27: 1052149.776 | BE27: 759849.4167 | BF27: 460315.5272 | BG27: 0 | BH27: 0 | BI27: 0 | BJ27: 0 | BK27: 0 | BL27: 2563119.712 | BM27: 0 | BN27: 1626886.592 | BO27: 1663609.249 | BP27: 0 | BQ27: 1078453.521 | BR27: 144670.5943 | BS27: -1 | BT27: 0 | BU27: -1 | BV27: 59183.42492 | BW27: 1407250.326 | BX27: -1 | BY27: 0 | BZ27: 0 | CA27: -1 | CB27: 5918342.492 | CC27: 99165.11643 | CD27: 0 | CE27: 0 | CF27: 0 | CG27: 591834.2492 | CH27: 0 | CI27: 0 | CJ27: 0 | CK27: 0 | CL27: 0 | CM27: 0 | CN27: 0 | CO27: -1 | CP27: 0 | CQ27: -1 | CR27: -1 | CS27: -1 | CT27: -1 | CU27: -1 | CV27: -1 | CW27: -1 | CX27: -1 | CY27: -1 | CZ27: -1 | DA27: -1 | DB27: -1 | DC27: -1 | DD27: -1 | DE27: -1 | DF27: -1 | DG27: -1 | DH27: 1 | DJ27: Cilindraje | DK27: Transmisión | DL27: Seg4 | DM27: CCEVeh63 | DN27: CCEVeh63 | DO27: TRUE
A28: VehículosConvencionalesAutomóvilesSedánNAGasolinaIntervalodeprecio2Entre100y150NANANANANissan NEW VERSA SENSE AUTDistribuidora Nissan S.A. | B28: VehículosConvencionalesAutomóvilesSedánNAGasolinaIntervalodeprecio2Entre100y150NANANANA | C28: Nissan NEW VERSA SENSE AUT | D28: Distribuidora Nissan S.A. | E28: Vehículos Convencionales - Automóviles | F28: Vehículos Convencionales | G28: Automóviles | H28: Sedán - N.A. - Gasolina | I28: Sedán | J28: N.A. | K28: N.A. | L28: Intervalo de precio 2 | M28: Gasolina | N28: NEW VERSA SENSE AUT | O28: Nissan | P28: 6401248 | T28: Entre 100 y 150 | U28: N.A. | V28: N.A. | W28: Automático | X28: Gasolina | Y28: N.A. | Z28: N.A. | AA28: N.A. | AB28: N.A. | AC28: N.A. | AD28: 86000000 | AE28: 0.07 | AF28: 79980000 | AG28: 0.08 | AH28: 79120000 | AI28: 0.08 | AJ28: 79120000 | AK28: 0.08 | AL28: 79120000 | AM28: 0.09 | AN28: 78260000 | AO28: 0.09 | AP28: 78260000 | AQ28: 4274358.467 | AR28: 0 | AS28: 0 | AT28: 0 | AU28: 1 | AV28: 0 | AW28: 7326893.222 | AX28: 499727.7426 | AY28: 597857.8067 | AZ28: 0 | BA28: 0 | BB28: 6206296.158 | BC28: 0 | BD28: 1052149.776 | BE28: 759849.4167 | BF28: 460315.5272 | BG28: 0 | BH28: 0 | BI28: 0 | BJ28: 0 | BK28: 0 | BL28: 2563119.712 | BM28: 0 | BN28: 1626886.592 | BO28: 1663609.249 | BP28: 0 | BQ28: 1078453.521 | BR28: 144670.5943 | BS28: -1 | BT28: 0 | BU28: -1 | BV28: 59183.42492 | BW28: 1407250.326 | BX28: -1 | BY28: 0 | BZ28: 0 | CA28: -1 | CB28: 5918342.492 | CC28: 99165.11643 | CD28: 0 | CE28: 0 | CF28: 0 | CG28: 591834.2492 | CH28: 0 | CI28: 0 | CJ28: 0 | CK28: 0 | CL28: 0 | CM28: 0 | CN28: 0 | CO28: -1 | CP28: 0 | CQ28: -1 | CR28: -1 | CS28: -1 | CT28: -1 | CU28: -1 | CV28: -1 | CW28: -1 | CX28: -1 | CY28: -1 | CZ28: -1 | DA28: -1 | DB28: -1 | DC28: -1 | DD28: -1 | DE28: -1 | DF28: -1 | DG28: -1 | DH28: 1 | DJ28: Cilindraje | DK28: Transmisión | DL28: Seg4 | DM28: CCEVeh64 | DN28: CCEVeh64 | DO28: TRUE
A29: VehículosConvencionalesAutomóvilesSedánNAGasolinaIntervalodeprecio2Entre100y150NANANANANissan NEW VERSA ADVANCE MEC Distribuidora Nissan S.A. | B29: VehículosConvencionalesAutomóvilesSedánNAGasolinaIntervalodeprecio2Entre100y150NANANANA | C29: Nissan NEW VERSA ADVANCE MEC | D29: Distribuidora Nissan S.A. | E29: Vehículos Convencionales - Automóviles | F29: Vehículos Convencionales | G29: Automóviles | H29: Sedán - N.A. - Gasolina | I29: Sedán | J29: N.A. | K29: N.A. | L29: Intervalo de precio 2 | M29: Gasolina | N29: NEW VERSA ADVANCE MEC | O29: Nissan | P29: 6401246 | T29: Entre 100 y 150 | U29: N.A. | V29: N.A. | W29: Mecánico | X29: Gasolina | Y29: N.A. | Z29: N.A. | AA29: N.A. | AB29: N.A. | AC29: N.A. | AD29: 86000000 | AE29: 0.07 | AF29: 79980000 | AG29: 0.08 | AH29: 79120000 | AI29: 0.08 | AJ29: 79120000 | AK29: 0.08 | AL29: 79120000 | AM29: 0.09 | AN29: 78260000 | AO29: 0.09 | AP29: 78260000 | AQ29: 4077080.384 | AR29: 0 | AS29: 0 | AT29: 0 | AU29: 1 | AV29: 0 | AW29: 7326893.222 | AX29: 499727.7426 | AY29: 597857.8067 | AZ29: 0 | BA29: 0 | BB29: 6206296.158 | BC29: 0 | BD29: 1052149.776 | BE29: 759849.4167 | BF29: 460315.5272 | BG29: 0 | BH29: 0 | BI29: 0 | BJ29: 0 | BK29: 0 | BL29: 2563119.712 | BM29: 0 | BN29: 1626886.592 | BO29: 1663609.249 | BP29: 0 | BQ29: 1078453.521 | BR29: 144670.5943 | BS29: -1 | BT29: 0 | BU29: -1 | BV29: 59183.42492 | BW29: 1407250.326 | BX29: -1 | BY29: 0 | BZ29: 0 | CA29: -1 | CB29: 5918342.492 | CC29: 99165.11643 | CD29: 0 | CE29: 0 | CF29: 0 | CG29: 591834.2492 | CH29: 0 | CI29: 0 | CJ29: 0 | CK29: 0 | CL29: 0 | CM29: 0 | CN29: 0 | CO29: -1 | CP29: 0 | CQ29: -1 | CR29: -1 | CS29: -1 | CT29: -1 | CU29: -1 | CV29: -1 | CW29: -1 | CX29: -1 | CY29: -1 | CZ29: -1 | DA29: -1 | DB29: -1 | DC29: -1 | DD29: -1 | DE29: -1 | DF29: -1 | DG29: -1 | DH29: 1 | DJ29: Cilindraje | DK29: Transmisión | DL29: Seg4 | DM29: CCEVeh65 | DN29: CCEVeh65 | DO29: TRUE
A30: VehículosConvencionalesAutomóvilesSedánNAGasolinaIntervalodeprecio3Entre100y150NANANANANissan NEW VERSA ADVANCE AUTDistribuidora Nissan S.A. | B30: VehículosConvencionalesAutomóvilesSedánNAGasolinaIntervalodeprecio3Entre100y150NANANANA | C30: Nissan NEW VERSA ADVANCE AUT | D30: Distribuidora Nissan S.A. | E30: Vehículos Convencionales - Automóviles | F30: Vehículos Convencionales | G30: Automóviles | H30: Sedán - N.A. - Gasolina | I30: Sedán | J30: N.A. | K30: N.A. | L30: Intervalo de precio 3 | M30: Gasolina | N30: NEW VERSA ADVANCE AUT | O30: Nissan | P30: 6401245 | T30: Entre 100 y 150 | U30: N.A. | V30: N.A. | W30: Automático | X30: Gasolina | Y30: N.A. | Z30: N.A. | AA30: N.A. | AB30: N.A. | AC30: N.A. | AD30: 92000000 | AE30: 0.07 | AF30: 85560000 | AG30: 0.08 | AH30: 84640000 | AI30: 0.08 | AJ30: 84640000 | AK30: 0.08 | AL30: 84640000 | AM30: 0.09 | AN30: 83720000 | AO30: 0.09 | AP30: 83720000 | AQ30: 4274358.467 | AR30: 0 | AS30: 0 | AT30: 0 | AU30: 1 | AV30: 0 | AW30: 7326893.222 | AX30: 499727.7426 | AY30: 597857.8067 | AZ30: 0 | BA30: 0 | BB30: 6206296.158 | BC30: 0 | BD30: 1052149.776 | BE30: 759849.4167 | BF30: 460315.5272 | BG30: 0 | BH30: 0 | BI30: 0 | BJ30: 0 | BK30: 0 | BL30: 2563119.712 | BM30: 0 | BN30: 1626886.592 | BO30: 1663609.249 | BP30: 0 | BQ30: 1078453.521 | BR30: 144670.5943 | BS30: -1 | BT30: 0 | BU30: -1 | BV30: 59183.42492 | BW30: 1407250.326 | BX30: -1 | BY30: 0 | BZ30: 0 | CA30: -1 | CB30: 5918342.492 | CC30: 99165.11643 | CD30: 0 | CE30: 0 | CF30: 0 | CG30: 591834.2492 | CH30: 0 | CI30: 0 | CJ30: 0 | CK30: 0 | CL30: 0 | CM30: 0 | CN30: 0 | CO30: -1 | CP30: 0 | CQ30: -1 | CR30: -1 | CS30: -1 | CT30: -1 | CU30: -1 | CV30: -1 | CW30: -1 | CX30: -1 | CY30: -1 | CZ30: -1 | DA30: -1 | DB30: -1 | DC30: -1 | DD30: -1 | DE30: -1 | DF30: -1 | DG30: -1 | DH30: 1 | DJ30: Cilindraje | DK30: Transmisión | DL30: Seg4 | DM30: CCEVeh66 | DN30: CCEVeh66 | DO30: TRUE
A31: VehículosConvencionalesAutomóvilesSedánNAGasolinaIntervalodeprecio3Entre100y150NANANANANissan NEW VERSA EXCLUSIVE AUT Distribuidora Nissan S.A. | B31: VehículosConvencionalesAutomóvilesSedánNAGasolinaIntervalodeprecio3Entre100y150NANANANA | C31: Nissan NEW VERSA EXCLUSIVE AUT | D31: Distribuidora Nissan S.A. | E31: Vehículos Convencionales - Automóviles | F31: Vehículos Convencionales | G31: Automóviles | H31: Sedán - N.A. - Gasolina | I31: Sedán | J31: N.A. | K31: N.A. | L31: Intervalo de precio 3 | M31: Gasolina | N31: NEW VERSA EXCLUSIVE AUT | O31: Nissan | P31: 6401244 | T31: Entre 100 y 150 | U31: N.A. | V31: N.A. | W31: Automático | X31: Gasolina | Y31: N.A. | Z31: N.A. | AA31: N.A. | AB31: N.A. | AC31: N.A. | AD31: 98000000 | AE31: 0.07 | AF31: 91140000 | AG31: 0.08 | AH31: 90160000 | AI31: 0.08 | AJ31: 90160000 | AK31: 0.08 | AL31: 90160000 | AM31: 0.09 | AN31: 89180000 | AO31: 0.09 | AP31: 89180000 | AQ31: 4274358.467 | AR31: 0 | AS31: 0 | AT31: 0 | AU31: 1 | AV31: 0 | AW31: 7326893.222 | AX31: 499727.7426 | AY31: 597857.8067 | AZ31: 0 | BA31: 0 | BB31: 6206296.158 | BC31: 0 | BD31: 0 | BE31: 759849.4167 | BF31: 460315.5272 | BG31: 0 | BH31: 0 | BI31: 0 | BJ31: 0 | BK31: 0 | BL31: 2563119.712 | BM31: 0 | BN31: 1626886.592 | BO31: 1663609.249 | BP31: 0 | BQ31: 1078453.521 | BR31: 144670.5943 | BS31: -1 | BT31: 0 | BU31: -1 | BV31: 59183.42492 | BW31: 1407250.326 | BX31: -1 | BY31: 0 | BZ31: 0 | CA31: -1 | CB31: 5918342.492 | CC31: 99165.11643 | CD31: 0 | CE31: 0 | CF31: 0 | CG31: 591834.2492 | CH31: 0 | CI31: 0 | CJ31: 0 | CK31: 0 | CL31: 0 | CM31: 0 | CN31: 0 | CO31: 0 | CP31: 0 | CQ31: -1 | CR31: -1 | CS31: -1 | CT31: -1 | CU31: -1 | CV31: -1 | CW31: -1 | CX31: -1 | CY31: -1 | CZ31: -1 | DA31: -1 | DB31: -1 | DC31: -1 | DD31: -1 | DE31: -1 | DF31: -1 | DG31: -1 | DH31: 1 | DJ31: Cilindraje | DK31: Transmisión | DL31: Seg4 | DM31: CCEVeh67 | DN31: CCEVeh67 | DO31: TRUE
A32: VehículosConvencionalesAutomóvilesHatchbackNAGasolinaIntervalodeprecio1Menora100NANANANAKia KIA PICANTO EJORGE CORTES MORA & CIA | B32: VehículosConvencionalesAutomóvilesHatchbackNAGasolinaIntervalodeprecio1Menora100NANANANA | C32: Kia KIA PICANTO E | D32: JORGE CORTES MORA & CIA | E32: Vehículos Convencionales - Automóviles | F32: Vehículos Convencionales | G32: Automóviles | H32: Hatchback - N.A. - Gasolina | I32: Hatchback | J32: N.A. | K32: N.A. | L32: Intervalo de precio 1 | M32: Gasolina | N32: KIA PICANTO E | O32: Kia | P32: 4601249 | T32: Menor a 100 | U32: N.A. | V32: N.A. | W32: Mecánico | X32: Gasolina | Y32: N.A. | Z32: N.A. | AA32: N.A. | AB32: N.A. | AC32: N.A. | AD32: 50000000 | AE32: 0.032 | AF32: 48400000 | AG32: 0.036 | AH32: 48200000 | AI32: 0.037 | AJ32: 48150000 | AK32: 0.039 | AL32: 48050000 | AM32: 0.041 | AN32: 47950000 | AO32: 0.042 | AP32: 47900000 | AQ32: 11270702.48 | AR32: 0 | AS32: 0 | AT32: 0 | AU32: 0.05 | AV32: 0 | AW32: 7326893.222 | AX32: 185622.9966 | AY32: 670305.2655 | AZ32: 0 | BA32: 0 | BB32: 7115548.203 | BC32: 0 | BD32: 670305.2655 | BE32: 41249.5548 | BF32: 309371.661 | BG32: 0 | BH32: 0 | BI32: 0 | BJ32: 0 | BK32: 0 | BL32: 1959353.853 | BM32: 0 | BN32: 2464660.899 | BO32: -1 | BP32: 0 | BQ32: 1392172.475 | BR32: 721867.209 | BS32: 1082800.813 | BT32: 0 | BU32: 2670908.673 | BV32: 60843.09333 | BW32: -1 | BX32: 505307.0463 | BY32: 0 | BZ32: 0 | CA32: -1 | CB32: -1 | CC32: 91780.25943 | CD32: 0 | CE32: 0 | CF32: -1 | CG32: 299059.2723 | CH32: 0 | CI32: 0 | CJ32: 0 | CK32: 0 | CL32: -1 | CM32: -1 | CN32: -1 | CO32: -1 | CP32: 0 | CQ32: -1 | CR32: -1 | CS32: -1 | CT32: -1 | CU32: -1 | CV32: -1 | CW32: -1 | CX32: -1 | CY32: -1 | CZ32: -1 | DA32: -1 | DB32: -1 | DC32: -1 | DD32: -1 | DE32: -1 | DF32: -1 | DG32: -1 | DH32: 1 | DJ32: Cilindraje | DK32: Transmisión | DL32: Seg4 | DM32: CCEVeh68 | DN32: CCEVeh68 | DO32: TRUE
A33: VehículosConvencionalesAutomóvilesHatchbackNAGasolinaIntervalodeprecio2Menora100NANANANAKia KIA PICANTO EJORGE CORTES MORA & CIA | B33: VehículosConvencionalesAutomóvilesHatchbackNAGasolinaIntervalodeprecio2Menora100NANANANA | C33: Kia KIA PICANTO E | D33: JORGE CORTES MORA & CIA | E33: Vehículos Convencionales - Automóviles | F33: Vehículos Convencionales | G33: Automóviles | H33: Hatchback - N.A. - Gasolina | I33: Hatchback | J33: N.A. | K33: N.A. | L33: Intervalo de precio 2 | M33: Gasolina | N33: KIA PICANTO E | O33: Kia | P33: 4601250 | T33: Menor a 100 | U33: N.A. | V33: N.A. | W33: Mecánico | X33: Gasolina | Y33: N.A. | Z33: N.A. | AA33: N.A. | AB33: N.A. | AC33: N.A. | AD33: 50000000 | AE33: 0.032 | AF33: 48400000 | AG33: 0.036 | AH33: 48200000 | AI33: 0.037 | AJ33: 48150000 | AK33: 0.039 | AL33: 48050000 | AM33: 0.041 | AN33: 47950000 | AO33: 0.042 | AP33: 47900000 | AQ33: 11270702.48 | AR33: 0 | AS33: 0 | AT33: 0 | AU33: 0.05 | AV33: 0 | AW33: 7326893.222 | AX33: 185622.9966 | AY33: 670305.2655 | AZ33: 0 | BA33: 0 | BB33: 7115548.203 | BC33: 0 | BD33: 670305.2655 | BE33: 41249.5548 | BF33: 309371.661 | BG33: 0 | BH33: 0 | BI33: 0 | BJ33: 0 | BK33: 0 | BL33: 1959353.853 | BM33: 0 | BN33: 2464660.899 | BO33: -1 | BP33: 0 | BQ33: 1392172.475 | BR33: 721867.209 | BS33: 1082800.813 | BT33: 0 | BU33: 2670908.673 | BV33: 60843.09333 | BW33: -1 | BX33: 505307.0463 | BY33: 0 | BZ33: 0 | CA33: -1 | CB33: -1 | CC33: 91780.25943 | CD33: 0 | CE33: 0 | CF33: -1 | CG33: 299059.2723 | CH33: 0 | CI33: 0 | CJ33: 0 | CK33: 0 | CL33: -1 | CM33: -1 | CN33: -1 | CO33: -1 | CP33: 0 | CQ33: -1 | CR33: -1 | CS33: -1 | CT33: -1 | CU33: -1 | CV33: -1 | CW33: -1 | CX33: -1 | CY33: -1 | CZ33: -1 | DA33: -1 | DB33: -1 | DC33: -1 | DD33: -1 | DE33: -1 | DF33: -1 | DG33: -1 | DH33: 1 | DJ33: Cilindraje | DK33: Transmisión | DL33: Seg4 | DM33: CCEVeh69 | DN33: CCEVeh69 | DO33: TRUE
A34: VehículosConvencionalesAutomóvilesHatchbackNAGasolinaIntervalodeprecio2Menora100NANANANAKia KIA PICANTO BJORGE CORTES MORA & CIA | B34: VehículosConvencionalesAutomóvilesHatchbackNAGasolinaIntervalodeprecio2Menora100NANANANA | C34: Kia KIA PICANTO B | D34: JORGE CORTES MORA & CIA | E34: Vehículos Convencionales - Automóviles | F34: Vehículos Convencionales | G34: Automóviles | H34: =I34&" - "&J34&" - "&M34 -> Hatchback - N.A. - Gasolina | I34: Hatchback | J34: N.A. | K34: N.A. | L34: Intervalo de precio 2 | M34: Gasolina | N34: KIA PICANTO B | O34: Kia | P34: 4601251 | T34: Menor a 100 | U34: N.A. | V34: N.A. | W34: Mecánico | X34: Gasolina | Y34: N.A. | Z34: N.A. | AA34: N.A. | AB34: N.A. | AC34: N.A. | AD34: 55000000 | AE34: 0.032 | AF34: 53240000 | AG34: 0.036 | AH34: 53020000 | AI34: 0.037 | AJ34: 52965000 | AK34: 0.039 | AL34: 52855000 | AM34: 0.041 | AN34: 52745000 | AO34: 0.042 | AP34: 52690000 | AQ34: 11270702.48 | AR34: 0 | AS34: 0 | AT34: 0 | AU34: 0.05 | AV34: 0 | AW34: 7326893.222 | AX34: 185622.9966 | AY34: 670305.2655 | AZ34: 0 | BA34: 0 | BB34: 7115548.203 | BC34: 0 | BD34: 670305.2655 | BE34: 41249.5548 | BF34: 309371.661 | BG34: 0 | BH34: 0 | BI34: 0 | BJ34: 0 | BK34: 0 | BL34: 1959353.853 | BM34: 0 | BN34: 2464660.899 | BO34: -1 | BP34: 0 | BQ34: 1392172.475 | BR34: 721867.209 | BS34: 1082800.813 | BT34: 0 | BU34: 2670908.673 | BV34: 60843.09333 | BW34: -1 | BX34: 505307.0463 | BY34: 0 | BZ34: 0 | CA34: -1 | CB34: -1 | CC34: 91780.25943 | CD34: 0 | CE34: 0 | CF34: -1 | CG34: 299059.2723 | CH34: 0 | CI34: 0 | CJ34: 0 | CK34: 0 | CL34: -1 | CM34: -1 | CN34: -1 | CO34: -1 | CP34: 0 | CQ34: -1 | CR34: -1 | CS34: -1 | CT34: -1 | CU34: -1 | CV34: -1 | CW34: -1 | CX34: -1 | CY34: -1 | CZ34: -1 | DA34: -1 | DB34: -1 | DC34: -1 | DD34: -1 | DE34: -1 | DF34: -1 | DG34: -1 | DH34: 1 | DJ34: Cilindraje | DK34: Transmisión | DL34: Seg4 | DM34: CCEVeh70 | DN34: CCEVeh70 | DO34: TRUE
A35: VehículosConvencionalesAutomóvilesHatchbackNAGasolinaIntervalodeprecio3Menora100NANANANAKia KIA PICANTO BJORGE CORTES MORA & CIA | B35: VehículosConvencionalesAutomóvilesHatchbackNAGasolinaIntervalodeprecio3Menora100NANANANA | C35: Kia KIA PICANTO B | D35: JORGE CORTES MORA & CIA | E35: Vehículos Convencionales - Automóviles | F35: Vehículos Convencionales | G35: Automóviles | H35: Hatchback - N.A. - Gasolina | I35: Hatchback | J35: N.A. | K35: N.A. | L35: Intervalo de precio 3 | M35: Gasolina | N35: KIA PICANTO B | O35: Kia | P35: 4601252 | T35: Menor a 100 | U35: N.A. | V35: N.A. | W35: Automático | X35: Gasolina | Y35: N.A. | Z35: N.A. | AA35: N.A. | AB35: N.A. | AC35: N.A. | AD35: 60000000 | AE35: 0.032 | AF35: 58080000 | AG35: 0.036 | AH35: 57840000 | AI35: 0.037 | AJ35: 57780000 | AK35: 0.039 | AL35: 57660000 | AM35: 0.041 | AN35: 57540000 | AO35: 0.042 | AP35: 57480000 | AQ35: 11270702.48 | AR35: 0 | AS35: 0 | AT35: 0 | AU35: 0.05 | AV35: 0 | AW35: 7326893.222 | AX35: 185622.9966 | AY35: 670305.2655 | AZ35: 0 | BA35: 0 | BB35: 7115548.203 | BC35: 0 | BD35: 670305.2655 | BE35: 41249.5548 | BF35: 309371.661 | BG35: 0 | BH35: 0 | BI35: 0 | BJ35: 0 | BK35: 0 | BL35: 1959353.853 | BM35: 0 | BN35: 2464660.899 | BO35: -1 | BP35: 0 | BQ35: 1392172.475 | BR35: 721867.209 | BS35: 1082800.813 | BT35: 0 | BU35: 2670908.673 | BV35: 60843.09333 | BW35: -1 | BX35: 505307.0463 | BY35: 0 | BZ35: 0 | CA35: -1 | CB35: -1 | CC35: 91780.25943 | CD35: 0 | CE35: 0 | CF35: -1 | CG35: 299059.2723 | CH35: 0 | CI35: 0 | CJ35: 0 | CK35: 0 | CL35: -1 | CM35: -1 | CN35: -1 | CO35: -1 | CP35: 0 | CQ35: -1 | CR35: -1 | CS35: -1 | CT35: -1 | CU35: -1 | CV35: -1 | CW35: -1 | CX35: -1 | CY35: -1 | CZ35: -1 | DA35: -1 | DB35: -1 | DC35: -1 | DD35: -1 | DE35: -1 | DF35: -1 | DG35: -1 | DH35: 1 | DJ35: Cilindraje | DK35: Transmisión | DL35: Seg4 | DM35: CCEVeh71 | DN35: CCEVeh71 | DO35: TRUE
A36: VehículosConvencionalesAutomóvilesHatchbackNAGasolinaIntervalodeprecio2Menora100NANANANAKia KIA PICANTO GTJORGE CORTES MORA & CIA | B36: VehículosConvencionalesAutomóvilesHatchbackNAGasolinaIntervalodeprecio2Menora100NANANANA | C36: Kia KIA PICANTO GT | D36: JORGE CORTES MORA & CIA | E36: Vehículos Convencionales - Automóviles | F36: Vehículos Convencionales | G36: Automóviles | H36: Hatchback - N.A. - Gasolina | I36: Hatchback | J36: N.A. | K36: N.A. | L36: Intervalo de precio 2 | M36: Gasolina | N36: KIA PICANTO GT | O36: Kia | P36: 4601275 | T36: Menor a 100 | U36: N.A. | V36: N.A. | W36: Mecánico | X36: Gasolina | Y36: N.A. | Z36: N.A. | AA36: N.A. | AB36: N.A. | AC36: N.A. | AD36: 58500000 | AE36: 0.032 | AF36: 56628000 | AG36: 0.036 | AH36: 56394000 | AI36: 0.037 | AJ36: 56335500 | AK36: 0.039 | AL36: 56218500 | AM36: 0.041 | AN36: 56101500 | AO36: 0.042 | AP36: 56043000 | AQ36: 11270702.48 | AR36: 0 | AS36: 0 | AT36: 0 | AU36: 0.05 | AV36: 0 | AW36: 7326893.222 | AX36: 185622.9966 | AY36: 670305.2655 | AZ36: 0 | BA36: 0 | BB36: 7115548.203 | BC36: 0 | BD36: 0 | BE36: 41249.5548 | BF36: 309371.661 | BG36: 0 | BH36: 0 | BI36: 0 | BJ36: 0 | BK36: 0 | BL36: 1959353.853 | BM36: 0 | BN36: 2464660.899 | BO36: -1 | BP36: 0 | BQ36: 1392172.475 | BR36: 721867.209 | BS36: 1082800.813 | BT36: 0 | BU36: 2670908.673 | BV36: 60843.09333 | BW36: -1 | BX36: 505307.0463 | BY36: 0 | BZ36: 0 | CA36: -1 | CB36: -1 | CC36: 91780.25943 | CD36: 0 | CE36: 0 | CF36: -1 | CG36: 299059.2723 | CH36: 0 | CI36: 0 | CJ36: 0 | CK36: 0 | CL36: -1 | CM36: -1 | CN36: -1 | CO36: -1 | CP36: 0 | CQ36: -1 | CR36: -1 | CS36: -1 | CT36: -1 | CU36: -1 | CV36: -1 | CW36: -1 | CX36: -1 | CY36: -1 | CZ36: -1 | DA36: -1 | DB36: -1 | DC36: -1 | DD36: -1 | DE36: -1 | DF36: -1 | DG36: -1 | DH36: 1 | DJ36: Cilindraje | DK36: Transmisión | DL36: Seg4 | DM36: CCEVeh72 | DN36: CCEVeh72 | DO36: TRUE
A37: VehículosConvencionalesAutomóvilesHatchbackNAGasolinaIntervalodeprecio2Menora100NANANANAKia KIA PICANTO GTJORGE CORTES MORA & CIA | B37: VehículosConvencionalesAutomóvilesHatchbackNAGasolinaIntervalodeprecio2Menora100NANANANA | C37: Kia KIA PICANTO GT | D37: JORGE CORTES MORA & CIA | E37: Vehículos Convencionales - Automóviles | F37: Vehículos Convencionales | G37: Automóviles | H37: Hatchback - N.A. - Gasolina | I37: Hatchback | J37: N.A. | K37: N.A. | L37: Intervalo de precio 2 | M37: Gasolina | N37: KIA PICANTO GT | O37: Kia | P37: 4601276 | T37: Menor a 100 | U37: N.A. | V37: N.A. | W37: Automático | X37: Gasolina | Y37: N.A. | Z37: N.A. | AA37: N.A. | AB37: N.A. | AC37: N.A. | AD37: 60300000 | AE37: 0.032 | AF37: 58370400 | AG37: 0.036 | AH37: 58129200 | AI37: 0.037 | AJ37: 58068900 | AK37: 0.039 | AL37: 57948300 | AM37: 0.041 | AN37: 57827700 | AO37: 0.042 | AP37: 57767400 | AQ37: 11270702.48 | AR37: 0 | AS37: 0 | AT37: 0 | AU37: 0.05 | AV37: 0 | AW37: 7326893.222 | AX37: 185622.9966 | AY37: 670305.2655 | AZ37: 0 | BA37: 0 | BB37: 7115548.203 | BC37: 0 | BD37: 0 | BE37: 41249.5548 | BF37: 309371.661 | BG37: 0 | BH37: 0 | BI37: 0 | BJ37: 0 | BK37: 0 | BL37: 1959353.853 | BM37: 0 | BN37: 2464660.899 | BO37: -1 | BP37: 0 | BQ37: 1392172.475 | BR37: 721867.209 | BS37: 1082800.813 | BT37: 0 | BU37: 2670908.673 | BV37: 60843.09333 | BW37: -1 | BX37: 505307.0463 | BY37: 0 | BZ37: 0 | CA37: -1 | CB37: -1 | CC37: 91780.25943 | CD37: 0 | CE37: 0 | CF37: -1 | CG37: 299059.2723 | CH37: 0 | CI37: 0 | CJ37: 0 | CK37: 0 | CL37: -1 | CM37: -1 | CN37: -1 | CO37: -1 | CP37: 0 | CQ37: -1 | CR37: -1 | CS37: -1 | CT37: -1 | CU37: -1 | CV37: -1 | CW37: -1 | CX37: -1 | CY37: -1 | CZ37: -1 | DA37: -1 | DB37: -1 | DC37: -1 | DD37: -1 | DE37: -1 | DF37: -1 | DG37: -1 | DH37: 1 | DJ37: Cilindraje | DK37: Transmisión | DL37: Seg4 | DM37: CCEVeh73 | DN37: CCEVeh73 | DO37: TRUE
A38: VehículosConvencionalesAutomóvilesHatchbackNAGasolinaIntervalodeprecio2Menora100NANANANAKia KIA X LINEJORGE CORTES MORA & CIA | B38: VehículosConvencionalesAutomóvilesHatchbackNAGasolinaIntervalodeprecio2Menora100NANANANA | C38: Kia KIA X LINE | D38: JORGE CORTES MORA & CIA | E38: Vehículos Convencionales - Automóviles | F38: Vehículos Convencionales | G38: Automóviles | H38: Hatchback - N.A. - Gasolina | I38: Hatchback | J38: N.A. | K38: N.A. | L38: Intervalo de precio 2 | M38: Gasolina | N38: KIA X LINE | O38: Kia | P38: 4601267 | T38: Menor a 100 | U38: N.A. | V38: N.A. | W38: Mecánico | X38: Gasolina | Y38: N.A. | Z38: N.A. | AA38: N.A. | AB38: N.A. | AC38: N.A. | AD38: 59400000 | AE38: 0.032 | AF38: 57499200 | AG38: 0.036 | AH38: 57261600 | AI38: 0.037 | AJ38: 57202200 | AK38: 0.039 | AL38: 57083400 | AM38: 0.041 | AN38: 56964600 | AO38: 0.042 | AP38: 56905200 | AQ38: 11270702.48 | AR38: 0 | AS38: 0 | AT38: 0 | AU38: 0.05 | AV38: 0 | AW38: 7326893.222 | AX38: 185622.9966 | AY38: 670305.2655 | AZ38: 0 | BA38: 0 | BB38: 7115548.203 | BC38: 0 | BD38: 0 | BE38: 41249.5548 | BF38: 0 | BG38: 0 | BH38: 0 | BI38: 0 | BJ38: 0 | BK38: 0 | BL38: 1959353.853 | BM38: 0 | BN38: 2464660.899 | BO38: -1 | BP38: 0 | BQ38: 1392172.475 | BR38: 721867.209 | BS38: 1082800.813 | BT38: 0 | BU38: 2670908.673 | BV38: 60843.09333 | BW38: -1 | BX38: 505307.0463 | BY38: 0 | BZ38: 0 | CA38: -1 | CB38: -1 | CC38: 91780.25943 | CD38: 0 | CE38: 0 | CF38: -1 | CG38: 299059.2723 | CH38: 0 | CI38: 0 | CJ38: 0 | CK38: 0 | CL38: -1 | CM38: -1 | CN38: -1 | CO38: -1 | CP38: 0 | CQ38: -1 | CR38: -1 | CS38: -1 | CT38: -1 | CU38: -1 | CV38: -1 | CW38: -1 | CX38: -1 | CY38: -1 | CZ38: -1 | DA38: -1 | DB38: -1 | DC38: -1 | DD38: -1 | DE38: -1 | DF38: -1 | DG38: -1 | DH38: 1 | DJ38: Cilindraje | DK38: Transmisión | DL38: Seg4 | DM38: CCEVeh74 | DN38: CCEVeh74 | DO38: TRUE
A39: VehículosConvencionalesAutomóvilesHatchbackNAGasolinaIntervalodeprecio2Menora100NANANANAKia KIA X LINEJORGE CORTES MORA & CIA | B39: VehículosConvencionalesAutomóvilesHatchbackNAGasolinaIntervalodeprecio2Menora100NANANANA | C39: Kia KIA X LINE | D39: JORGE CORTES MORA & CIA | E39: Vehículos Convencionales - Automóviles | F39: Vehículos Convencionales | G39: Automóviles | H39: Hatchback - N.A. - Gasolina | I39: Hatchback | J39: N.A. | K39: N.A. | L39: Intervalo de precio 2 | M39: Gasolina | N39: KIA X LINE | O39: Kia | P39: 4601268 | T39: Menor a 100 | U39: N.A. | V39: N.A. | W39: Automático | X39: Gasolina | Y39: N.A. | Z39: N.A. | AA39: N.A. | AB39: N.A. | AC39: N.A. | AD39: 61200000 | AE39: 0.032 | AF39: 59241600 | AG39: 0.036 | AH39: 58996800 | AI39: 0.037 | AJ39: 58935600 | AK39: 0.039 | AL39: 58813200 | AM39: 0.041 | AN39: 58690800 | AO39: 0.042 | AP39: 58629600 | AQ39: 11270702.48 | AR39: 0 | AS39: 0 | AT39: 0 | AU39: 0.05 | AV39: 0 | AW39: 7326893.222 | AX39: 185622.9966 | AY39: 670305.2655 | AZ39: 0 | BA39: 0 | BB39: 7115548.203 | BC39: 0 | BD39: 0 | BE39: 41249.5548 | BF39: 0 | BG39: 0 | BH39: 0 | BI39: 0 | BJ39: 0 | BK39: 0 | BL39: 1959353.853 | BM39: 0 | BN39: 2464660.899 | BO39: -1 | BP39: 0 | BQ39: 1392172.475 | BR39: 721867.209 | BS39: 1082800.813 | BT39: 0 | BU39: 2670908.673 | BV39: 60843.09333 | BW39: -1 | BX39: 505307.0463 | BY39: 0 | BZ39: 0 | CA39: -1 | CB39: -1 | CC39: 91780.25943 | CD39: 0 | CE39: 0 | CF39: -1 | CG39: 299059.2723 | CH39: 0 | CI39: 0 | CJ39: 0 | CK39: 0 | CL39: -1 | CM39: -1 | CN39: -1 | CO39: -1 | CP39: 0 | CQ39: -1 | CR39: -1 | CS39: -1 | CT39: -1 | CU39: -1 | CV39: -1 | CW39: -1 | CX39: -1 | CY39: -1 | CZ39: -1 | DA39: -1 | DB39: -1 | DC39: -1 | DD39: -1 | DE39: -1 | DF39: -1 | DG39: -1 | DH39: 1 | DJ39: Cilindraje | DK39: Transmisión | DL39: Seg4 | DM39: CCEVeh75 | DN39: CCEVeh75 | DO39: TRUE
A40: VehículosConvencionalesAutomóvilesSedánNAGasolinaIntervalodeprecio1Menora100NANANANAKia KIA SOLUTOJORGE CORTES MORA & CIA | B40: VehículosConvencionalesAutomóvilesSedánNAGasolinaIntervalodeprecio1Menora100NANANANA | C40: Kia KIA SOLUTO | D40: JORGE CORTES MORA & CIA | E40: Vehículos Convencionales - Automóviles | F40: Vehículos Convencionales | G40: Automóviles | H40: Sedán - N.A. - Gasolina | I40: Sedán | J40: N.A. | K40: N.A. | L40: Intervalo de precio 1 | M40: Gasolina | N40: KIA SOLUTO | O40: Kia | P40: 4601289 | T40: Menor a 100 | U40: N.A. | V40: N.A. | W40: Mecánico | X40: Gasolina | Y40: N.A. | Z40: N.A. | AA40: N.A. | AB40: N.A. | AC40: N.A. | AD40: 65900000 | AE40: 0.032 | AF40: 63791200 | AG40: 0.036 | AH40: 63527600 | AI40: 0.037 | AJ40: 63461700 | AK40: 0.039 | AL40: 63329900 | AM40: 0.041 | AN40: 63198100 | AO40: 0.042 | AP40: 63132200 | AQ40: 11270702.48 | AR40: 0 | AS40: 0 | AT40: 0 | AU40: 0.05 | AV40: 0 | AW40: 7326893.222 | AX40: 185622.9966 | AY40: 670305.2655 | AZ40: 0 | BA40: 0 | BB40: 7115548.203 | BC40: 0 | BD40: 0 | BE40: 41249.5548 | BF40: 309371.661 | BG40: 0 | BH40: 0 | BI40: 0 | BJ40: 0 | BK40: 0 | BL40: 1959353.853 | BM40: 0 | BN40: 2464660.899 | BO40: -1 | BP40: 0 | BQ40: 1392172.475 | BR40: 721867.209 | BS40: 1082800.813 | BT40: 0 | BU40: 2670908.673 | BV40: 60843.09333 | BW40: -1 | BX40: 505307.0463 | BY40: 0 | BZ40: 0 | CA40: -1 | CB40: -1 | CC40: 91780.25943 | CD40: 0 | CE40: 0 | CF40: -1 | CG40: 299059.2723 | CH40: 0 | CI40: 0 | CJ40: 0 | CK40: 0 | CL40: -1 | CM40: -1 | CN40: -1 | CO40: -1 | CP40: -1 | CQ40: -1 | CR40: -1 | CS40: -1 | CT40: -1 | CU40: -1 | CV40: -1 | CW40: -1 | CX40: -1 | CY40: -1 | CZ40: -1 | DA40: -1 | DB40: -1 | DC40: -1 | DD40: -1 | DE40: -1 | DF40: -1 | DG40: -1 | DH40: 1 | DJ40: Cilindraje | DK40: Transmisión | DL40: Seg4 | DM40: CCEVeh76 | DN40: CCEVeh76 | DO40: TRUE
A41: VehículosConvencionalesAutomóvilesSedánNAGasolinaIntervalodeprecio1Menora100NANANANAKia KIA SOLUTOJORGE CORTES MORA & CIA | B41: VehículosConvencionalesAutomóvilesSedánNAGasolinaIntervalodeprecio1Menora100NANANANA | C41: Kia KIA SOLUTO | D41: JORGE CORTES MORA & CIA | E41: Vehículos Convencionales - Automóviles | F41: Vehículos Convencionales | G41: Automóviles | H41: Sedán - N.A. - Gasolina | I41: Sedán | J41: N.A. | K41: N.A. | L41: Intervalo de precio 1 | M41: Gasolina | N41: KIA SOLUTO | O41: Kia | P41: 4601293 | T41: Menor a 100 | U41: N.A. | V41: N.A. | W41: Automático | X41: Gasolina | Y41: N.A. | Z41: N.A. | AA41: N.A. | AB41: N.A. | AC41: N.A. | AD41: 73000000 | AE41: 0.032 | AF41: 70664000 | AG41: 0.036 | AH41: 70372000 | AI41: 0.037 | AJ41: 70299000 | AK41: 0.039 | AL41: 70153000 | AM41: 0.041 | AN41: 70007000 | AO41: 0.042 | AP41: 69934000 | AQ41: 11270702.48 | AR41: 0 | AS41: 0 | AT41: 0 | AU41: 0.05 | AV41: 0 | AW41: 7326893.222 | AX41: 185622.9966 | AY41: 670305.2655 | AZ41: 0 | BA41: 0 | BB41: 7115548.203 | BC41: 0 | BD41: 0 | BE41: 41249.5548 | BF41: 309371.661 | BG41: 0 | BH41: 0 | BI41: 0 | BJ41: 0 | BK41: 0 | BL41: 1959353.853 | BM41: 0 | BN41: 2464660.899 | BO41: -1 | BP41: 0 | BQ41: 1392172.475 | BR41: 721867.209 | BS41: 1082800.813 | BT41: 0 | BU41: 2670908.673 | BV41: 60843.09333 | BW41: -1 | BX41: 505307.0463 | BY41: 0 | BZ41: 0 | CA41: -1 | CB41: -1 | CC41: 91780.25943 | CD41: 0 | CE41: 0 | CF41: -1 | CG41: 299059.2723 | CH41: 0 | CI41: 0 | CJ41: 0 | CK41: 0 | CL41: -1 | CM41: -1 | CN41: -1 | CO41: -1 | CP41: -1 | CQ41: -1 | CR41: -1 | CS41: -1 | CT41: -1 | CU41: -1 | CV41: -1 | CW41: -1 | CX41: -1 | CY41: -1 | CZ41: -1 | DA41: -1 | DB41: -1 | DC41: -1 | DD41: -1 | DE41: -1 | DF41: -1 | DG41: -1 | DH41: 1 | DJ41: Cilindraje | DK41: Transmisión | DL41: Seg4 | DM41: CCEVeh77 | DN41: CCEVeh77 | DO41: TRUE
A42: VehículosConvencionalesAutomóvilesSedánNAGasolinaIntervalodeprecio1Menora100NANANANAKia KIA RIO SD EJORGE CORTES MORA & CIA | B42: VehículosConvencionalesAutomóvilesSedánNAGasolinaIntervalodeprecio1Menora100NANANANA | C42: Kia KIA RIO SD E | D42: JORGE CORTES MORA & CIA | E42: Vehículos Convencionales - Automóviles | F42: Vehículos Convencionales | G42: Automóviles | H42: Sedán - N.A. - Gasolina | I42: Sedán | J42: N.A. | K42: N.A. | L42: Intervalo de precio 1 | M42: Gasolina | N42: KIA RIO SD E | O42: Kia | P42: 4601277 | T42: Menor a 100 | U42: N.A. | V42: N.A. | W42: Mecánico | X42: Gasolina | Y42: N.A. | Z42: N.A. | AA42: N.A. | AB42: N.A. | AC42: N.A. | AD42: 70400000 | AE42: 0.032 | AF42: 68147200 | AG42: 0.036 | AH42: 67865600 | AI42: 0.037 | AJ42: 67795200 | AK42: 0.039 | AL42: 67654400 | AM42: 0.041 | AN42: 67513600 | AO42: 0.042 | AP42: 67443200 | AQ42: 10898459.28 | AR42: 0 | AS42: 0 | AT42: 0 | AU42: 0.05 | AV42: 0 | AW42: 7326893.222 | AX42: 185622.9966 | AY42: 670305.2655 | AZ42: 0 | BA42: 0 | BB42: 7115548.203 | BC42: 0 | BD42: 0 | BE42: 41249.5548 | BF42: 309371.661 | BG42: 0 | BH42: 0 | BI42: 0 | BJ42: 0 | BK42: 0 | BL42: 1959353.853 | BM42: 0 | BN42: 2464660.899 | BO42: -1 | BP42: 0 | BQ42: 1392172.475 | BR42: 721867.209 | BS42: 1082800.813 | BT42: 0 | BU42: 2670908.673 | BV42: 60843.09333 | BW42: -1 | BX42: 505307.0463 | BY42: 0 | BZ42: 0 | CA42: -1 | CB42: -1 | CC42: 91780.25943 | CD42: 0 | CE42: 0 | CF42: -1 | CG42: 299059.2723 | CH42: 0 | CI42: 0 | CJ42: 0 | CK42: 0 | CL42: -1 | CM42: -1 | CN42: -1 | CO42: -1 | CP42: -1 | CQ42: -1 | CR42: -1 | CS42: -1 | CT42: -1 | CU42: -1 | CV42: -1 | CW42: -1 | CX42: -1 | CY42: -1 | CZ42: -1 | DA42: -1 | DB42: -1 | DC42: -1 | DD42: -1 | DE42: -1 | DF42: -1 | DG42: -1 | DH42: 1 | DJ42: Cilindraje | DK42: Transmisión | DL42: Seg4 | DM42: CCEVeh78 | DN42: CCEVeh78 | DO42: TRUE
A43: VehículosConvencionalesAutomóvilesSedánNAGasolinaIntervalodeprecio2Menora100NANANANAKia KIA RIO SD EJORGE CORTES MORA & CIA | B43: VehículosConvencionalesAutomóvilesSedánNAGasolinaIntervalodeprecio2Menora100NANANANA | C43: Kia KIA RIO SD E | D43: JORGE CORTES MORA & CIA | E43: Vehículos Convencionales - Automóviles | F43: Vehículos Convencionales | G43: Automóviles | H43: Sedán - N.A. - Gasolina | I43: Sedán | J43: N.A. | K43: N.A. | L43: Intervalo de precio 2 | M43: Gasolina | N43: KIA RIO SD E | O43: Kia | P43: 4601273 | T43: Menor a 100 | U43: N.A. | V43: N.A. | W43: Automático | X43: Gasolina | Y43: N.A. | Z43: N.A. | AA43: N.A. | AB43: N.A. | AC43: N.A. | AD43: 74400000 | AE43: 0.032 | AF43: 72019200 | AG43: 0.036 | AH43: 71721600 | AI43: 0.037 | AJ43: 71647200 | AK43: 0.039 | AL43: 71498400 | AM43: 0.041 | AN43: 71349600 | AO43: 0.042 | AP43: 71275200 | AQ43: 10898459.28 | AR43: 0 | AS43: 0 | AT43: 0 | AU43: 0.05 | AV43: 0 | AW43: 7326893.222 | AX43: 185622.9966 | AY43: 670305.2655 | AZ43: 0 | BA43: 0 | BB43: 7115548.203 | BC43: 0 | BD43: 0 | BE43: 41249.5548 | BF43: 309371.661 | BG43: 0 | BH43: 0 | BI43: 0 | BJ43: 0 | BK43: 0 | BL43: 1959353.853 | BM43: 0 | BN43: 2464660.899 | BO43: -1 | BP43: 0 | BQ43: 1392172.475 | BR43: 721867.209 | BS43: 1082800.813 | BT43: 0 | BU43: 2670908.673 | BV43: 60843.09333 | BW43: -1 | BX43: 505307.0463 | BY43: 0 | BZ43: 0 | CA43: -1 | CB43: -1 | CC43: 91780.25943 | CD43: 0 | CE43: 0 | CF43: -1 | CG43: 299059.2723 | CH43: 0 | CI43: 0 | CJ43: 0 | CK43: 0 | CL43: -1 | CM43: -1 | CN43: -1 | CO43: -1 | CP43: -1 | CQ43: -1 | CR43: -1 | CS43: -1 | CT43: -1 | CU43: -1 | CV43: -1 | CW43: -1 | CX43: -1 | CY43: -1 | CZ43: -1 | DA43: -1 | DB43: -1 | DC43: -1 | DD43: -1 | DE43: -1 | DF43: -1 | DG43: -1 | DH43: 1 | DJ43: Cilindraje | DK43: Transmisión | DL43: Seg4 | DM43: CCEVeh79 | DN43: CCEVeh79 | DO43: TRUE
A44: VehículosConvencionalesAutomóvilesSedánNAGasolinaIntervalodeprecio2Menora100NANANANAKia KIA RIO SD BJORGE CORTES MORA & CIA | B44: VehículosConvencionalesAutomóvilesSedánNAGasolinaIntervalodeprecio2Menora100NANANANA | C44: Kia KIA RIO SD B | D44: JORGE CORTES MORA & CIA | E44: Vehículos Convencionales - Automóviles | F44: Vehículos Convencionales | G44: Automóviles | H44: Sedán - N.A. - Gasolina | I44: Sedán | J44: N.A. | K44: N.A. | L44: Intervalo de precio 2 | M44: Gasolina | N44: KIA RIO SD B | O44: Kia | P44: 4601259 | T44: Menor a 100 | U44: N.A. | V44: N.A. | W44: Mecánico | X44: Gasolina | Y44: N.A. | Z44: N.A. | AA44: N.A. | AB44: N.A. | AC44: N.A. | AD44: 74300000 | AE44: 0.032 | AF44: 71922400 | AG44: 0.036 | AH44: 71625200 | AI44: 0.037 | AJ44: 71550900 | AK44: 0.039 | AL44: 71402300 | AM44: 0.041 | AN44: 71253700 | AO44: 0.042 | AP44: 71179400 | AQ44: 10898459.28 | AR44: 0 | AS44: 0 | AT44: 0 | AU44: 0.05 | AV44: 0 | AW44: 7326893.222 | AX44: 185622.9966 | AY44: 670305.2655 | AZ44: 0 | BA44: 0 | BB44: 7115548.203 | BC44: 0 | BD44: 0 | BE44: 41249.5548 | BF44: 309371.661 | BG44: 0 | BH44: 0 | BI44: 0 | BJ44: 0 | BK44: 0 | BL44: 1959353.853 | BM44: 0 | BN44: 2464660.899 | BO44: -1 | BP44: 0 | BQ44: 1392172.475 | BR44: 721867.209 | BS44: 1082800.813 | BT44: 0 | BU44: 2670908.673 | BV44: 60843.09333 | BW44: -1 | BX44: 505307.0463 | BY44: 0 | BZ44: 0 | CA44: -1 | CB44: -1 | CC44: 91780.25943 | CD44: 0 | CE44: 0 | CF44: -1 | CG44: 299059.2723 | CH44: 0 | CI44: 0 | CJ44: 0 | CK44: 0 | CL44: -1 | CM44: -1 | CN44: -1 | CO44: -1 | CP44: -1 | CQ44: -1 | CR44: -1 | CS44: -1 | CT44: -1 | CU44: -1 | CV44: -1 | CW44: -1 | CX44: -1 | CY44: -1 | CZ44: -1 | DA44: -1 | DB44: -1 | DC44: -1 | DD44: -1 | DE44: -1 | DF44: -1 | DG44: -1 | DH44: 1 | DJ44: Cilindraje | DK44: Transmisión | DL44: Seg4 | DM44: CCEVeh80 | DN44: CCEVeh80 | DO44: TRUE
A45: VehículosConvencionalesAutomóvilesSedánNAGasolinaIntervalodeprecio2Menora100NANANANAKia KIA RIO SD BJORGE CORTES MORA & CIA | B45: VehículosConvencionalesAutomóvilesSedánNAGasolinaIntervalodeprecio2Menora100NANANANA | C45: Kia KIA RIO SD B | D45: JORGE CORTES MORA & CIA | E45: Vehículos Convencionales - Automóviles | F45: Vehículos Convencionales | G45: Automóviles | H45: Sedán - N.A. - Gasolina | I45: Sedán | J45: N.A. | K45: N.A. | L45: Intervalo de precio 2 | M45: Gasolina | N45: KIA RIO SD B | O45: Kia | P45: 4601263 | T45: Menor a 100 | U45: N.A. | V45: N.A. | W45: Automático | X45: Gasolina | Y45: N.A. | Z45: N.A. | AA45: N.A. | AB45: N.A. | AC45: N.A. | AD45: 78200000 | AE45: 0.032 | AF45: 75697600 | AG45: 0.036 | AH45: 75384800 | AI45: 0.037 | AJ45: 75306600 | AK45: 0.039 | AL45: 75150200 | AM45: 0.041 | AN45: 74993800 | AO45: 0.042 | AP45: 74915600 | AQ45: 10898459.28 | AR45: 0 | AS45: 0 | AT45: 0 | AU45: 0.05 | AV45: 0 | AW45: 7326893.222 | AX45: 185622.9966 | AY45: 670305.2655 | AZ45: 0 | BA45: 0 | BB45: 7115548.203 | BC45: 0 | BD45: 0 | BE45: 41249.5548 | BF45: 309371.661 | BG45: 0 | BH45: 0 | BI45: 0 | BJ45: 0 | BK45: 0 | BL45: 1959353.853 | BM45: 0 | BN45: 2464660.899 | BO45: -1 | BP45: 0 | BQ45: 1392172.475 | BR45: 721867.209 | BS45: 1082800.813 | BT45: 0 | BU45: 2670908.673 | BV45: 60843.09333 | BW45: -1 | BX45: 505307.0463 | BY45: 0 | BZ45: 0 | CA45: -1 | CB45: -1 | CC45: 91780.25943 | CD45: 0 | CE45: 0 | CF45: -1 | CG45: 299059.2723 | CH45: 0 | CI45: 0 | CJ45: 0 | CK45: 0 | CL45: -1 | CM45: -1 | CN45: -1 | CO45: -1 | CP45: -1 | CQ45: -1 | CR45: -1 | CS45: -1 | CT45: -1 | CU45: -1 | CV45: -1 | CW45: -1 | CX45: -1 | CY45: -1 | CZ45: -1 | DA45: -1 | DB45: -1 | DC45: -1 | DD45: -1 | DE45: -1 | DF45: -1 | DG45: -1 | DH45: 1 | DJ45: Cilindraje | DK45: Transmisión | DL45: Seg4 | DM45: CCEVeh81 | DN45: CCEVeh81 | DO45: TRUE
A46: VehículosConvencionalesAutomóvilesHatchbackNAGasolinaIntervalodeprecio3Menora100NANANANAKia KIA RIO HB EJORGE CORTES MORA & CIA | B46: VehículosConvencionalesAutomóvilesHatchbackNAGasolinaIntervalodeprecio3Menora100NANANANA | C46: Kia KIA RIO HB E | D46: JORGE CORTES MORA & CIA | E46: Vehículos Convencionales - Automóviles | F46: Vehículos Convencionales | G46: Automóviles | H46: Hatchback - N.A. - Gasolina | I46: Hatchback | J46: N.A. | K46: N.A. | L46: Intervalo de precio 3 | M46: Gasolina | N46: KIA RIO HB E | O46: Kia | P46: 4601278 | T46: Menor a 100 | U46: N.A. | V46: N.A. | W46: Mecánico | X46: Gasolina | Y46: N.A. | Z46: N.A. | AA46: N.A. | AB46: N.A. | AC46: N.A. | AD46: 70400000 | AE46: 0.032 | AF46: 68147200 | AG46: 0.036 | AH46: 67865600 | AI46: 0.037 | AJ46: 67795200 | AK46: 0.039 | AL46: 67654400 | AM46: 0.041 | AN46: 67513600 | AO46: 0.042 | AP46: 67443200 | AQ46: 10898459.28 | AR46: 0 | AS46: 0 | AT46: 0 | AU46: 0.05 | AV46: 0 | AW46: 7326893.222 | AX46: 185622.9966 | AY46: 670305.2655 | AZ46: 0 | BA46: 0 | BB46: 7115548.203 | BC46: 0 | BD46: 0 | BE46: 41249.5548 | BF46: 309371.661 | BG46: 0 | BH46: 0 | BI46: 0 | BJ46: 0 | BK46: 0 | BL46: 1959353.853 | BM46: 0 | BN46: 2464660.899 | BO46: -1 | BP46: 0 | BQ46: 1392172.475 | BR46: 721867.209 | BS46: 1082800.813 | BT46: 0 | BU46: 2670908.673 | BV46: 60843.09333 | BW46: -1 | BX46: 505307.0463 | BY46: 0 | BZ46: 0 | CA46: -1 | CB46: -1 | CC46: 91780.25943 | CD46: 0 | CE46: 0 | CF46: -1 | CG46: 299059.2723 | CH46: 0 | CI46: 0 | CJ46: 0 | CK46: 0 | CL46: -1 | CM46: -1 | CN46: -1 | CO46: -1 | CP46: -1 | CQ46: -1 | CR46: -1 | CS46: -1 | CT46: -1 | CU46: -1 | CV46: -1 | CW46: -1 | CX46: -1 | CY46: -1 | CZ46: -1 | DA46: -1 | DB46: -1 | DC46: -1 | DD46: -1 | DE46: -1 | DF46: -1 | DG46: -1 | DH46: 1 | DJ46: Cilindraje | DK46: Transmisión | DL46: Seg4 | DM46: CCEVeh82 | DN46: CCEVeh82 | DO46: TRUE
A47: VehículosConvencionalesAutomóvilesHatchbackNAGasolinaIntervalodeprecio3Menora100NANANANAKia KIA RIO HB EJORGE CORTES MORA & CIA | B47: VehículosConvencionalesAutomóvilesHatchbackNAGasolinaIntervalodeprecio3Menora100NANANANA | C47: Kia KIA RIO HB E | D47: JORGE CORTES MORA & CIA | E47: Vehículos Convencionales - Automóviles | F47: Vehículos Convencionales | G47: Automóviles | H47: Hatchback - N.A. - Gasolina | I47: Hatchback | J47: N.A. | K47: N.A. | L47: Intervalo de precio 3 | M47: Gasolina | N47: KIA RIO HB E | O47: Kia | P47: 4601274 | T47: Menor a 100 | U47: N.A. | V47: N.A. | W47: Automático | X47: Gasolina | Y47: N.A. | Z47: N.A. | AA47: N.A. | AB47: N.A. | AC47: N.A. | AD47: 74400000 | AE47: 0.032 | AF47: 72019200 | AG47: 0.036 | AH47: 71721600 | AI47: 0.037 | AJ47: 71647200 | AK47: 0.039 | AL47: 71498400 | AM47: 0.041 | AN47: 71349600 | AO47: 0.042 | AP47: 71275200 | AQ47: 10898459.28 | AR47: 0 | AS47: 0 | AT47: 0 | AU47: 0.05 | AV47: 0 | AW47: 7326893.222 | AX47: 185622.9966 | AY47: 670305.2655 | AZ47: 0 | BA47: 0 | BB47: 7115548.203 | BC47: 0 | BD47: 0 | BE47: 41249.5548 | BF47: 309371.661 | BG47: 0 | BH47: 0 | BI47: 0 | BJ47: 0 | BK47: 0 | BL47: 1959353.853 | BM47: 0 | BN47: 2464660.899 | BO47: -1 | BP47: 0 | BQ47: 1392172.475 | BR47: 721867.209 | BS47: 1082800.813 | BT47: 0 | BU47: 2670908.673 | BV47: 60843.09333 | BW47: -1 | BX47: 505307.0463 | BY47: 0 | BZ47: 0 | CA47: -1 | CB47: -1 | CC47: 91780.25943 | CD47: 0 | CE47: 0 | CF47: -1 | CG47: 299059.2723 | CH47: 0 | CI47: 0 | CJ47: 0 | CK47: 0 | CL47: -1 | CM47: -1 | CN47: -1 | CO47: -1 | CP47: -1 | CQ47: -1 | CR47: -1 | CS47: -1 | CT47: -1 | CU47: -1 | CV47: -1 | CW47: -1 | CX47: -1 | CY47: -1 | CZ47: -1 | DA47: -1 | DB47: -1 | DC47: -1 | DD47: -1 | DE47: -1 | DF47: -1 | DG47: -1 | DH47: 1 | DJ47: Cilindraje | DK47: Transmisión | DL47: Seg4 | DM47: CCEVeh83 | DN47: CCEVeh83 | DO47: TRUE
A48: VehículosConvencionalesAutomóvilesHatchbackNAGasolinaIntervalodeprecio3Menora100NANANANAKia KIA RIO HB VJORGE CORTES MORA & CIA | B48: VehículosConvencionalesAutomóvilesHatchbackNAGasolinaIntervalodeprecio3Menora100NANANANA | C48: Kia KIA RIO HB V | D48: JORGE CORTES MORA & CIA | E48: Vehículos Convencionales - Automóviles | F48: Vehículos Convencionales | G48: Automóviles | H48: Hatchback - N.A. - Gasolina | I48: Hatchback | J48: N.A. | K48: N.A. | L48: Intervalo de precio 3 | M48: Gasolina | N48: KIA RIO HB V | O48: Kia | P48: 4601258 | T48: Menor a 100 | U48: N.A. | V48: N.A. | W48: Mecánico | X48: Gasolina | Y48: N.A. | Z48: N.A. | AA48: N.A. | AB48: N.A. | AC48: N.A. | AD48: 74300000 | AE48: 0.032 | AF48: 71922400 | AG48: 0.036 | AH48: 71625200 | AI48: 0.037 | AJ48: 71550900 | AK48: 0.039 | AL48: 71402300 | AM48: 0.041 | AN48: 71253700 | AO48: 0.042 | AP48: 71179400 | AQ48: 10898459.28 | AR48: 0 | AS48: 0 | AT48: 0 | AU48: 0.05 | AV48: 0 | AW48: 7326893.222 | AX48: 185622.9966 | AY48: 670305.2655 | AZ48: 0 | BA48: 0 | BB48: 7115548.203 | BC48: 0 | BD48: 0 | BE48: 41249.5548 | BF48: 309371.661 | BG48: 0 | BH48: 0 | BI48: 0 | BJ48: 0 | BK48: 0 | BL48: 1959353.853 | BM48: 0 | BN48: 2464660.899 | BO48: -1 | BP48: 0 | BQ48: 1392172.475 | BR48: 721867.209 | BS48: 1082800.813 | BT48: 0 | BU48: 2670908.673 | BV48: 60843.09333 | BW48: -1 | BX48: 505307.0463 | BY48: 0 | BZ48: 0 | CA48: -1 | CB48: -1 | CC48: 91780.25943 | CD48: 0 | CE48: 0 | CF48: -1 | CG48: 299059.2723 | CH48: 0 | CI48: 0 | CJ48: 0 | CK48: 0 | CL48: -1 | CM48: -1 | CN48: -1 | CO48: -1 | CP48: -1 | CQ48: -1 | CR48: -1 | CS48: -1 | CT48: -1 | CU48: -1 | CV48: -1 | CW48: -1 | CX48: -1 | CY48: -1 | CZ48: -1 | DA48: -1 | DB48: -1 | DC48: -1 | DD48: -1 | DE48: -1 | DF48: -1 | DG48: -1 | DH48: 1 | DJ48: Cilindraje | DK48: Transmisión | DL48: Seg4 | DM48: CCEVeh84 | DN48: CCEVeh84 | DO48: TRUE
A49: VehículosConvencionalesAutomóvilesHatchbackNAGasolinaIntervalodeprecio3Menora100NANANANAKia KIA RIO HB VJORGE CORTES MORA & CIA | B49: VehículosConvencionalesAutomóvilesHatchbackNAGasolinaIntervalodeprecio3Menora100NANANANA | C49: Kia KIA RIO HB V | D49: JORGE CORTES MORA & CIA | E49: Vehículos Convencionales - Automóviles | F49: Vehículos Convencionales | G49: Automóviles | H49: Hatchback - N.A. - Gasolina | I49: Hatchback | J49: N.A. | K49: N.A. | L49: Intervalo de precio 3 | M49: Gasolina | N49: KIA RIO HB V | O49: Kia | P49: 4601262 | T49: Menor a 100 | U49: N.A. | V49: N.A. | W49: Automático | X49: Gasolina | Y49: N.A. | Z49: N.A. | AA49: N.A. | AB49: N.A. | AC49: N.A. | AD49: 78200000 | AE49: 0.032 | AF49: 75697600 | AG49: 0.036 | AH49: 75384800 | AI49: 0.037 | AJ49: 75306600 | AK49: 0.039 | AL49: 75150200 | AM49: 0.041 | AN49: 74993800 | AO49: 0.042 | AP49: 74915600 | AQ49: 10898459.28 | AR49: 0 | AS49: 0 | AT49: 0 | AU49: 0.05 | AV49: 0 | AW49: 7326893.222 | AX49: 185622.9966 | AY49: 670305.2655 | AZ49: 0 | BA49: 0 | BB49: 7115548.203 | BC49: 0 | BD49: 0 | BE49: 41249.5548 | BF49: 309371.661 | BG49: 0 | BH49: 0 | BI49: 0 | BJ49: 0 | BK49: 0 | BL49: 1959353.853 | BM49: 0 | BN49: 2464660.899 | BO49: -1 | BP49: 0 | BQ49: 1392172.475 | BR49: 721867.209 | BS49: 1082800.813 | BT49: 0 | BU49: 2670908.673 | BV49: 60843.09333 | BW49: -1 | BX49: 505307.0463 | BY49: 0 | BZ49: 0 | CA49: -1 | CB49: -1 | CC49: 91780.25943 | CD49: 0 | CE49: 0 | CF49: -1 | CG49: 299059.2723 | CH49: 0 | CI49: 0 | CJ49: 0 | CK49: 0 | CL49: -1 | CM49: -1 | CN49: -1 | CO49: -1 | CP49: -1 | CQ49: -1 | CR49: -1 | CS49: -1 | CT49: -1 | CU49: -1 | CV49: -1 | CW49: -1 | CX49: -1 | CY49: -1 | CZ49: -1 | DA49: -1 | DB49: -1 | DC49: -1 | DD49: -1 | DE49: -1 | DF49: -1 | DG49: -1 | DH49: 1 | DJ49: Cilindraje | DK49: Transmisión | DL49: Seg4 | DM49: CCEVeh85 | DN49: CCEVeh85 | DO49: TRUE
A50: VehículosConvencionalesAutomóvilesSedánNAGasolinaIntervalodeprecio3Entre100y150NANANANAKia KIA CERATOJORGE CORTES MORA & CIA | B50: VehículosConvencionalesAutomóvilesSedánNAGasolinaIntervalodeprecio3Entre100y150NANANANA | C50: Kia KIA CERATO | D50: JORGE CORTES MORA & CIA | E50: Vehículos Convencionales - Automóviles | F50: Vehículos Convencionales | G50: Automóviles | H50: Sedán - N.A. - Gasolina | I50: Sedán | J50: N.A. | K50: N.A. | L50: Intervalo de precio 3 | M50: Gasolina | N50: KIA CERATO | O50: Kia | P50: 4601282 | T50: Entre 100 y 150 | U50: N.A. | V50: N.A. | W50: Mecánico | X50: Gasolina | Y50: N.A. | Z50: N.A. | AA50: N.A. | AB50: N.A. | AC50: N.A. | AD50: 90400000 | AE50: 0.032 | AF50: 87507200 | AG50: 0.036 | AH50: 87145600 | AI50: 0.037 | AJ50: 87055200 | AK50: 0.039 | AL50: 86874400 | AM50: 0.041 | AN50: 86693600 | AO50: 0.042 | AP50: 86603200 | AQ50: 13383744.96 | AR50: 0 | AS50: 0 | AT50: 0 | AU50: 0.05 | AV50: 0 | AW50: 7326893.222 | AX50: 185622.9966 | AY50: 670305.2655 | AZ50: 0 | BA50: 0 | BB50: 7115548.203 | BC50: 0 | BD50: 0 | BE50: 41249.5548 | BF50: 309371.661 | BG50: 0 | BH50: 0 | BI50: 0 | BJ50: 0 | BK50: 0 | BL50: 1959353.853 | BM50: 0 | BN50: 2464660.899 | BO50: -1 | BP50: 0 | BQ50: 1392172.475 | BR50: 721867.209 | BS50: 1082800.813 | BT50: 0 | BU50: 2670908.673 | BV50: 60843.09333 | BW50: -1 | BX50: 505307.0463 | BY50: 0 | BZ50: 0 | CA50: -1 | CB50: -1 | CC50: 91780.25943 | CD50: 0 | CE50: 0 | CF50: -1 | CG50: 299059.2723 | CH50: 0 | CI50: 0 | CJ50: 0 | CK50: 0 | CL50: 0 | CM50: 0 | CN50: -1 | CO50: -1 | CP50: 0 | CQ50: -1 | CR50: -1 | CS50: -1 | CT50: -1 | CU50: -1 | CV50: -1 | CW50: -1 | CX50: -1 | CY50: -1 | CZ50: -1 | DA50: -1 | DB50: -1 | DC50: -1 | DD50: -1 | DE50: -1 | DF50: -1 | DG50: -1 | DH50: 1 | DJ50: Cilindraje | DK50: Transmisión | DL50: Seg4 | DM50: CCEVeh86 | DN50: CCEVeh86 | DO50: TRUE
A51: VehículosConvencionalesAutomóvilesSedánNAGasolinaIntervalodeprecio3Entre100y150NANANANAKia KIA CERATOJORGE CORTES MORA & CIA | B51: VehículosConvencionalesAutomóvilesSedánNAGasolinaIntervalodeprecio3Entre100y150NANANANA | C51: Kia KIA CERATO | D51: JORGE CORTES MORA & CIA | E51: Vehículos Convencionales - Automóviles | F51: Vehículos Convencionales | G51: Automóviles | H51: Sedán - N.A. - Gasolina | I51: Sedán | J51: N.A. | K51: N.A. | L51: Intervalo de precio 3 | M51: Gasolina | N51: KIA CERATO | O51: Kia | P51: 4601283 | T51: Entre 100 y 150 | U51: N.A. | V51: N.A. | W51: Automático | X51: Gasolina | Y51: N.A. | Z51: N.A. | AA51: N.A. | AB51: N.A. | AC51: N.A. | AD51: 94100000 | AE51: 0.032 | AF51: 91088800 | AG51: 0.036 | AH51: 90712400 | AI51: 0.037 | AJ51: 90618300 | AK51: 0.039 | AL51: 90430100 | AM51: 0.041 | AN51: 90241900 | AO51: 0.042 | AP51: 90147800 | AQ51: 13383744.96 | AR51: 0 | AS51: 0 | AT51: 0 | AU51: 0.05 | AV51: 0 | AW51: 7326893.222 | AX51: 185622.9966 | AY51: 670305.2655 | AZ51: 0 | BA51: 0 | BB51: 7115548.203 | BC51: 0 | BD51: 0 | BE51: 41249.5548 | BF51: 309371.661 | BG51: 0 | BH51: 0 | BI51: 0 | BJ51: 0 | BK51: 0 | BL51: 1959353.853 | BM51: 0 | BN51: 2464660.899 | BO51: -1 | BP51: 0 | BQ51: 1392172.475 | BR51: 721867.209 | BS51: 1082800.813 | BT51: 0 | BU51: 2670908.673 | BV51: 60843.09333 | BW51: -1 | BX51: 505307.0463 | BY51: 0 | BZ51: 0 | CA51: -1 | CB51: -1 | CC51: 91780.25943 | CD51: 0 | CE51: 0 | CF51: -1 | CG51: 299059.2723 | CH51: 0 | CI51: 0 | CJ51: 0 | CK51: 0 | CL51: 0 | CM51: 0 | CN51: -1 | CO51: -1 | CP51: 0 | CQ51: -1 | CR51: -1 | CS51: -1 | CT51: -1 | CU51: -1 | CV51: -1 | CW51: -1 | CX51: -1 | CY51: -1 | CZ51: -1 | DA51: -1 | DB51: -1 | DC51: -1 | DD51: -1 | DE51: -1 | DF51: -1 | DG51: -1 | DH51: 1 | DJ51: Cilindraje | DK51: Transmisión | DL51: Seg4 | DM51: CCEVeh87 | DN51: CCEVeh87 | DO51: TRUE
A52: VehículosConvencionalesAutomóvilesHatchbackNAGasolinaIntervalodeprecio2Entre100y150NANANANAMazda MAZDA 2 HB PJORGE CORTES MORA & CIA | B52: VehículosConvencionalesAutomóvilesHatchbackNAGasolinaIntervalodeprecio2Entre100y150NANANANA | C52: Mazda MAZDA 2 HB P | D52: JORGE CORTES MORA & CIA | E52: Vehículos Convencionales - Automóviles | F52: Vehículos Convencionales | G52: Automóviles | H52: Hatchback - N.A. - Gasolina | I52: Hatchback | J52: N.A. | K52: N.A. | L52: Intervalo de precio 2 | M52: Gasolina | N52: MAZDA 2 HB P | O52: Mazda | P52: 5601187 | T52: Entre 100 y 150 | U52: N.A. | V52: N.A. | W52: Mecánico | X52: Gasolina | Y52: N.A. | Z52: N.A. | AA52: N.A. | AB52: N.A. | AC52: N.A. | AD52: 79200000 | AE52: 0.022 | AF52: 77457600 | AG52: 0.026 | AH52: 77140800 | AI52: 0.031 | AJ52: 76744800 | AK52: 0.032 | AL52: 76665600 | AM52: 0.033 | AN52: 76586400 | AO52: 0.034 | AP52: 76507200 | AQ52: 9944848.979 | AR52: 0 | AS52: 0 | AT52: 0 | AU52: 0.05 | AV52: 0 | AW52: 7326893.222 | AX52: 185622.9966 | AY52: 0 | AZ52: 0 | BA52: 0 | BB52: 7115548.203 | BC52: 0 | BD52: 711554.8203 | BE52: 41249.5548 | BF52: 0 | BG52: 0 | BH52: 0 | BI52: 0 | BJ52: 0 | BK52: 0 | BL52: 1959353.853 | BM52: 0 | BN52: 2464660.899 | BO52: -1 | BP52: 0 | BQ52: 1392172.475 | BR52: 721867.209 | BS52: 1082800.813 | BT52: 0 | BU52: 2670908.673 | BV52: 60843.09333 | BW52: -1 | BX52: 505307.0463 | BY52: 0 | BZ52: 0 | CA52: -1 | CB52: -1 | CC52: 91780.25943 | CD52: 0 | CE52: 0 | CF52: -1 | CG52: 299059.2723 | CH52: 0 | CI52: 0 | CJ52: 0 | CK52: 0 | CL52: 0 | CM52: 0 | CN52: 0 | CO52: -1 | CP52: 0 | CQ52: -1 | CR52: -1 | CS52: -1 | CT52: -1 | CU52: -1 | CV52: -1 | CW52: -1 | CX52: -1 | CY52: -1 | CZ52: -1 | DA52: -1 | DB52: -1 | DC52: -1 | DD52: -1 | DE52: -1 | DF52: -1 | DG52: -1 | DH52: 1 | DJ52: Cilindraje | DK52: Transmisión | DL52: Seg4 | DM52: CCEVeh88 | DN52: CCEVeh88 | DO52: TRUE
A53: VehículosConvencionalesAutomóvilesHatchbackNAGasolinaIntervalodeprecio2Entre100y150NANANANAMazda MAZDA 2 HB PJORGE CORTES MORA & CIA | B53: VehículosConvencionalesAutomóvilesHatchbackNAGasolinaIntervalodeprecio2Entre100y150NANANANA | C53: Mazda MAZDA 2 HB P | D53: JORGE CORTES MORA & CIA | E53: Vehículos Convencionales - Automóviles | F53: Vehículos Convencionales | G53: Automóviles | H53: Hatchback - N.A. - Gasolina | I53: Hatchback | J53: N.A. | K53: N.A. | L53: Intervalo de precio 2 | M53: Gasolina | N53: MAZDA 2 HB P | O53: Mazda | P53: 5601188 | T53: Entre 100 y 150 | U53: N.A. | V53: N.A. | W53: Automático | X53: Gasolina | Y53: N.A. | Z53: N.A. | AA53: N.A. | AB53: N.A. | AC53: N.A. | AD53: 83400000 | AE53: 0.022 | AF53: 81565200 | AG53: 0.026 | AH53: 81231600 | AI53: 0.031 | AJ53: 80814600 | AK53: 0.032 | AL53: 80731200 | AM53: 0.033 | AN53: 80647800 | AO53: 0.034 | AP53: 80564400 | AQ53: 9944848.979 | AR53: 0 | AS53: 0 | AT53: 0 | AU53: 0.05 | AV53: 0 | AW53: 7326893.222 | AX53: 185622.9966 | AY53: 0 | AZ53: 0 | BA53: 0 | BB53: 7115548.203 | BC53: 0 | BD53: 711554.8203 | BE53: 41249.5548 | BF53: 0 | BG53: 0 | BH53: 0 | BI53: 0 | BJ53: 0 | BK53: 0 | BL53: 1959353.853 | BM53: 0 | BN53: 2464660.899 | BO53: -1 | BP53: 0 | BQ53: 1392172.475 | BR53: 721867.209 | BS53: 1082800.813 | BT53: 0 | BU53: 2784344.949 | BV53: 60843.09333 | BW53: -1 | BX53: 505307.0463 | BY53: 0 | BZ53: 0 | CA53: -1 | CB53: -1 | CC53: 91780.25943 | CD53: 0 | CE53: 0 | CF53: -1 | CG53: 299059.2723 | CH53: 0 | CI53: 0 | CJ53: 0 | CK53: 0 | CL53: 0 | CM53: 0 | CN53: 0 | CO53: -1 | CP53: 0 | CQ53: -1 | CR53: -1 | CS53: -1 | CT53: -1 | CU53: -1 | CV53: -1 | CW53: -1 | CX53: -1 | CY53: -1 | CZ53: -1 | DA53: -1 | DB53: -1 | DC53: -1 | DD53: -1 | DE53: -1 | DF53: -1 | DG53: -1 | DH53: 1 | DJ53: Cilindraje | DK53: Transmisión | DL53: Seg4 | DM53: CCEVeh89 | DN53: CCEVeh89 | DO53: TRUE
A54: VehículosConvencionalesAutomóvilesHatchbackNAGasolinaIntervalodeprecio2Entre100y150NANANANAMazda MAZDA 2 HB TJORGE CORTES MORA & CIA | B54: VehículosConvencionalesAutomóvilesHatchbackNAGasolinaIntervalodeprecio2Entre100y150NANANANA | C54: Mazda MAZDA 2 HB T | D54: JORGE CORTES MORA & CIA | E54: Vehículos Convencionales - Automóviles | F54: Vehículos Convencionales | G54: Automóviles | H54: Hatchback - N.A. - Gasolina | I54: Hatchback | J54: N.A. | K54: N.A. | L54: Intervalo de precio 2 | M54: Gasolina | N54: MAZDA 2 HB T | O54: Mazda | P54: 5601189 | T54: Entre 100 y 150 | U54: N.A. | V54: N.A. | W54: Mecánico | X54: Gasolina | Y54: N.A. | Z54: N.A. | AA54: N.A. | AB54: N.A. | AC54: N.A. | AD54: 79100000 | AE54: 0.022 | AF54: 77359800 | AG54: 0.026 | AH54: 77043400 | AI54: 0.031 | AJ54: 76647900 | AK54: 0.032 | AL54: 76568800 | AM54: 0.033 | AN54: 76489700 | AO54: 0.034 | AP54: 76410600 | AQ54: 9944848.979 | AR54: 0 | AS54: 0 | AT54: 0 | AU54: 0.05 | AV54: 0 | AW54: 7326893.222 | AX54: 185622.9966 | AY54: 0 | AZ54: 0 | BA54: 0 | BB54: 7115548.203 | BC54: 0 | BD54: 711554.8203 | BE54: 41249.5548 | BF54: 0 | BG54: 0 | BH54: 0 | BI54: 0 | BJ54: 0 | BK54: 0 | BL54: 1959353.853 | BM54: 0 | BN54: 2464660.899 | BO54: -1 | BP54: 0 | BQ54: 1392172.475 | BR54: 721867.209 | BS54: 1082800.813 | BT54: 0 | BU54: 2784344.949 | BV54: 60843.09333 | BW54: -1 | BX54: 505307.0463 | BY54: 0 | BZ54: 0 | CA54: -1 | CB54: -1 | CC54: 91780.25943 | CD54: 0 | CE54: 0 | CF54: -1 | CG54: 299059.2723 | CH54: 0 | CI54: 0 | CJ54: 0 | CK54: 0 | CL54: 0 | CM54: 0 | CN54: 0 | CO54: -1 | CP54: 0 | CQ54: -1 | CR54: -1 | CS54: -1 | CT54: -1 | CU54: -1 | CV54: -1 | CW54: -1 | CX54: -1 | CY54: -1 | CZ54: -1 | DA54: -1 | DB54: -1 | DC54: -1 | DD54: -1 | DE54: -1 | DF54: -1 | DG54: -1 | DH54: 1 | DJ54: Cilindraje | DK54: Transmisión | DL54: Seg4 | DM54: CCEVeh90 | DN54: CCEVeh90 | DO54: TRUE
A55: VehículosConvencionalesAutomóvilesHatchbackNAGasolinaIntervalodeprecio2Entre100y150NANANANAMazda MAZDA 2 HB TJORGE CORTES MORA & CIA | B55: VehículosConvencionalesAutomóvilesHatchbackNAGasolinaIntervalodeprecio2Entre100y150NANANANA | C55: Mazda MAZDA 2 HB T | D55: JORGE CORTES MORA & CIA | E55: Vehículos Convencionales - Automóviles | F55: Vehículos Convencionales | G55: Automóviles | H55: Hatchback - N.A. - Gasolina | I55: Hatchback | J55: N.A. | K55: N.A. | L55: Intervalo de precio 2 | M55: Gasolina | N55: MAZDA 2 HB T | O55: Mazda | P55: 5601190 | T55: Entre 100 y 150 | U55: N.A. | V55: N.A. | W55: Automático | X55: Gasolina | Y55: N.A. | Z55: N.A. | AA55: N.A. | AB55: N.A. | AC55: N.A. | AD55: 82400000 | AE55: 0.022 | AF55: 80587200 | AG55: 0.026 | AH55: 80257600 | AI55: 0.031 | AJ55: 79845600 | AK55: 0.032 | AL55: 79763200 | AM55: 0.033 | AN55: 79680800 | AO55: 0.034 | AP55: 79598400 | AQ55: 9944848.979 | AR55: 0 | AS55: 0 | AT55: 0 | AU55: 0.05 | AV55: 0 | AW55: 7326893.222 | AX55: 185622.9966 | AY55: 0 | AZ55: 0 | BA55: 0 | BB55: 7115548.203 | BC55: 0 | BD55: 711554.8203 | BE55: 41249.5548 | BF55: 0 | BG55: 0 | BH55: 0 | BI55: 0 | BJ55: 0 | BK55: 0 | BL55: 1959353.853 | BM55: 0 | BN55: 2464660.899 | BO55: -1 | BP55: 0 | BQ55: 1392172.475 | BR55: 721867.209 | BS55: 1082800.813 | BT55: 0 | BU55: 2784344.949 | BV55: 60843.09333 | BW55: -1 | BX55: 505307.0463 | BY55: 0 | BZ55: 0 | CA55: -1 | CB55: -1 | CC55: 91780.25943 | CD55: 0 | CE55: 0 | CF55: -1 | CG55: 299059.2723 | CH55: 0 | CI55: 0 | CJ55: 0 | CK55: 0 | CL55: 0 | CM55: 0 | CN55: 0 | CO55: -1 | CP55: 0 | CQ55: -1 | CR55: -1 | CS55: -1 | CT55: -1 | CU55: -1 | CV55: -1 | CW55: -1 | CX55: -1 | CY55: -1 | CZ55: -1 | DA55: -1 | DB55: -1 | DC55: -1 | DD55: -1 | DE55: -1 | DF55: -1 | DG55: -1 | DH55: 1 | DJ55: Cilindraje | DK55: Transmisión | DL55: Seg4 | DM55: CCEVeh91 | DN55: CCEVeh91 | DO55: TRUE
A56: VehículosConvencionalesAutomóvilesHatchbackNAGasolinaIntervalodeprecio3Entre100y150NANANANAMazda MAZDA 2 HB GTJORGE CORTES MORA & CIA | B56: VehículosConvencionalesAutomóvilesHatchbackNAGasolinaIntervalodeprecio3Entre100y150NANANANA | C56: Mazda MAZDA 2 HB GT | D56: JORGE CORTES MORA & CIA | E56: Vehículos Convencionales - Automóviles | F56: Vehículos Convencionales | G56: Automóviles | H56: Hatchback - N.A. - Gasolina | I56: Hatchback | J56: N.A. | K56: N.A. | L56: Intervalo de precio 3 | M56: Gasolina | N56: MAZDA 2 HB GT | O56: Mazda | P56: 5601191 | T56: Entre 100 y 150 | U56: N.A. | V56: N.A. | W56: Mecánico | X56: Gasolina | Y56: N.A. | Z56: N.A. | AA56: N.A. | AB56: N.A. | AC56: N.A. | AD56: 87100000 | AE56: 0.022 | AF56: 85183800 | AG56: 0.026 | AH56: 84835400 | AI56: 0.031 | AJ56: 84399900 | AK56: 0.032 | AL56: 84312800 | AM56: 0.033 | AN56: 84225700 | AO56: 0.034 | AP56: 84138600 | AQ56: 9944848.979 | AR56: 0 | AS56: 0 | AT56: 0 | AU56: 0.05 | AV56: 0 | AW56: 7326893.222 | AX56: 185622.9966 | AY56: 0 | AZ56: 0 | BA56: 0 | BB56: 7115548.203 | BC56: 0 | BD56: 711554.8203 | BE56: 41249.5548 | BF56: 0 | BG56: 0 | BH56: 0 | BI56: 0 | BJ56: 0 | BK56: 0 | BL56: 1959353.853 | BM56: 0 | BN56: 2464660.899 | BO56: -1 | BP56: 0 | BQ56: 1392172.475 | BR56: 721867.209 | BS56: 1082800.813 | BT56: 0 | BU56: 2784344.949 | BV56: 60843.09333 | BW56: -1 | BX56: 505307.0463 | BY56: 0 | BZ56: 0 | CA56: -1 | CB56: -1 | CC56: 91780.25943 | CD56: 0 | CE56: 0 | CF56: -1 | CG56: 299059.2723 | CH56: 0 | CI56: 0 | CJ56: 0 | CK56: 0 | CL56: 0 | CM56: 0 | CN56: 0 | CO56: 0 | CP56: 0 | CQ56: -1 | CR56: -1 | CS56: -1 | CT56: -1 | CU56: -1 | CV56: -1 | CW56: -1 | CX56: -1 | CY56: -1 | CZ56: -1 | DA56: -1 | DB56: -1 | DC56: -1 | DD56: -1 | DE56: -1 | DF56: -1 | DG56: -1 | DH56: 1 | DJ56: Cilindraje | DK56: Transmisión | DL56: Seg4 | DM56: CCEVeh92 | DN56: CCEVeh92 | DO56: TRUE
A57: VehículosConvencionalesAutomóvilesHatchbackNAGasolinaIntervalodeprecio3Entre100y150NANANANAMazda MAZDA 2 HB GTJORGE CORTES MORA & CIA | B57: VehículosConvencionalesAutomóvilesHatchbackNAGasolinaIntervalodeprecio3Entre100y150NANANANA | C57: Mazda MAZDA 2 HB GT | D57: JORGE CORTES MORA & CIA | E57: Vehículos Convencionales - Automóviles | F57: Vehículos Convencionales | G57: Automóviles | H57: Hatchback - N.A. - Gasolina | I57: Hatchback | J57: N.A. | K57: N.A. | L57: Intervalo de precio 3 | M57: Gasolina | N57: MAZDA 2 HB GT | O57: Mazda | P57: 5601192 | T57: Entre 100 y 150 | U57: N.A. | V57: N.A. | W57: Automático | X57: Gasolina | Y57: N.A. | Z57: N.A. | AA57: N.A. | AB57: N.A. | AC57: N.A. | AD57: 86200000 | AE57: 0.022 | AF57: 84303600 | AG57: 0.026 | AH57: 83958800 | AI57: 0.031 | AJ57: 83527800 | AK57: 0.032 | AL57: 83441600 | AM57: 0.033 | AN57: 83355400 | AO57: 0.034 | AP57: 83269200 | AQ57: 9944848.979 | AR57: 0 | AS57: 0 | AT57: 0 | AU57: 0.05 | AV57: 0 | AW57: 7326893.222 | AX57: 185622.9966 | AY57: 0 | AZ57: 0 | BA57: 0 | BB57: 7115548.203 | BC57: 0 | BD57: 711554.8203 | BE57: 41249.5548 | BF57: 0 | BG57: 0 | BH57: 0 | BI57: 0 | BJ57: 0 | BK57: 0 | BL57: 1959353.853 | BM57: 0 | BN57: 2464660.899 | BO57: -1 | BP57: 0 | BQ57: 1392172.475 | BR57: 721867.209 | BS57: 1082800.813 | BT57: 0 | BU57: 2784344.949 | BV57: 60843.09333 | BW57: -1 | BX57: 505307.0463 | BY57: 0 | BZ57: 0 | CA57: -1 | CB57: -1 | CC57: 91780.25943 | CD57: 0 | CE57: 0 | CF57: -1 | CG57: 299059.2723 | CH57: 0 | CI57: 0 | CJ57: 0 | CK57: 0 | CL57: 0 | CM57: 0 | CN57: 0 | CO57: 0 | CP57: 0 | CQ57: -1 | CR57: -1 | CS57: -1 | CT57: -1 | CU57: -1 | CV57: -1 | CW57: -1 | CX57: -1 | CY57: -1 | CZ57: -1 | DA57: -1 | DB57: -1 | DC57: -1 | DD57: -1 | DE57: -1 | DF57: -1 | DG57: -1 | DH57: 1 | DJ57: Cilindraje | DK57: Transmisión | DL57: Seg4 | DM57: CCEVeh93 | DN57: CCEVeh93 | DO57: TRUE
A58: VehículosConvencionalesAutomóvilesHatchbackNAGasolinaIntervalodeprecio3Entre100y150NANANANAMazda MAZDA 2 HB LXJORGE CORTES MORA & CIA | B58: VehículosConvencionalesAutomóvilesHatchbackNAGasolinaIntervalodeprecio3Entre100y150NANANANA | C58: Mazda MAZDA 2 HB LX | D58: JORGE CORTES MORA & CIA | E58: Vehículos Convencionales - Automóviles | F58: Vehículos Convencionales | G58: Automóviles | H58: Hatchback - N.A. - Gasolina | I58: Hatchback | J58: N.A. | K58: N.A. | L58: Intervalo de precio 3 | M58: Gasolina | N58: MAZDA 2 HB LX | O58: Mazda | P58: 5601193 | T58: Entre 100 y 150 | U58: N.A. | V58: N.A. | W58: Automático | X58: Gasolina | Y58: N.A. | Z58: N.A. | AA58: N.A. | AB58: N.A. | AC58: N.A. | AD58: 90900000 | AE58: 0.022 | AF58: 88900200 | AG58: 0.026 | AH58: 88536600 | AI58: 0.031 | AJ58: 88082100 | AK58: 0.032 | AL58: 87991200 | AM58: 0.033 | AN58: 87900300 | AO58: 0.034 | AP58: 87809400 | AQ58: 9944848.979 | AR58: 0 | AS58: 0 | AT58: 0 | AU58: 0.05 | AV58: 0 | AW58: 7326893.222 | AX58: 185622.9966 | AY58: 0 | AZ58: 0 | BA58: 0 | BB58: 7115548.203 | BC58: 0 | BD58: 0 | BE58: 41249.5548 | BF58: 0 | BG58: 0 | BH58: 0 | BI58: 0 | BJ58: 0 | BK58: 0 | BL58: 0 | BM58: 0 | BN58: 2464660.899 | BO58: -1 | BP58: 0 | BQ58: 1392172.475 | BR58: 721867.209 | BS58: 1082800.813 | BT58: 0 | BU58: 2784344.949 | BV58: 60843.09333 | BW58: -1 | BX58: 505307.0463 | BY58: 0 | BZ58: 0 | CA58: -1 | CB58: -1 | CC58: 91780.25943 | CD58: 0 | CE58: 0 | CF58: -1 | CG58: 299059.2723 | CH58: 0 | CI58: 0 | CJ58: 0 | CK58: 0 | CL58: 0 | CM58: 0 | CN58: 0 | CO58: 0 | CP58: 0 | CQ58: -1 | CR58: -1 | CS58: -1 | CT58: -1 | CU58: -1 | CV58: -1 | CW58: -1 | CX58: -1 | CY58: -1 | CZ58: -1 | DA58: -1 | DB58: -1 | DC58: -1 | DD58: -1 | DE58: -1 | DF58: -1 | DG58: -1 | DH58: 1 | DJ58: Cilindraje | DK58: Transmisión | DL58: Seg4 | DM58: CCEVeh94 | DN58: CCEVeh94 | DO58: TRUE
A59: VehículosConvencionalesAutomóvilesSedánNAGasolinaIntervalodeprecio2Entre100y150NANANANAMazda MAZDA 2 SD PJORGE CORTES MORA & CIA | B59: VehículosConvencionalesAutomóvilesSedánNAGasolinaIntervalodeprecio2Entre100y150NANANANA | C59: Mazda MAZDA 2 SD P | D59: JORGE CORTES MORA & CIA | E59: Vehículos Convencionales - Automóviles | F59: Vehículos Convencionales | G59: Automóviles | H59: Sedán - N.A. - Gasolina | I59: Sedán | J59: N.A. | K59: N.A. | L59: Intervalo de precio 2 | M59: Gasolina | N59: MAZDA 2 SD P | O59: Mazda | P59: 5601194 | T59: Entre 100 y 150 | U59: N.A. | V59: N.A. | W59: Mecánico | X59: Gasolina | Y59: N.A. | Z59: N.A. | AA59: N.A. | AB59: N.A. | AC59: N.A. | AD59: 63800000 | AE59: 0.022 | AF59: 62396400 | AG59: 0.026 | AH59: 62141200 | AI59: 0.031 | AJ59: 61822200 | AK59: 0.032 | AL59: 61758400 | AM59: 0.033 | AN59: 61694600 | AO59: 0.034 | AP59: 61630800 | AQ59: 9944848.979 | AR59: 0 | AS59: 0 | AT59: 0 | AU59: 0.05 | AV59: 0 | AW59: 7326893.222 | AX59: 185622.9966 | AY59: 0 | AZ59: 0 | BA59: 0 | BB59: 7115548.203 | BC59: 0 | BD59: 360933.6045 | BE59: 41249.5548 | BF59: 0 | BG59: 0 | BH59: 0 | BI59: 0 | BJ59: 0 | BK59: 0 | BL59: 1959353.853 | BM59: 0 | BN59: 2464660.899 | BO59: -1 | BP59: 0 | BQ59: 1392172.475 | BR59: 721867.209 | BS59: 1082800.813 | BT59: 0 | BU59: 2670908.673 | BV59: 60843.09333 | BW59: -1 | BX59: 505307.0463 | BY59: 0 | BZ59: 0 | CA59: -1 | CB59: -1 | CC59: 91780.25943 | CD59: 0 | CE59: 0 | CF59: -1 | CG59: 299059.2723 | CH59: 0 | CI59: 0 | CJ59: 0 | CK59: 0 | CL59: 0 | CM59: 0 | CN59: 0 | CO59: -1 | CP59: 0 | CQ59: -1 | CR59: -1 | CS59: -1 | CT59: -1 | CU59: -1 | CV59: -1 | CW59: -1 | CX59: -1 | CY59: -1 | CZ59: -1 | DA59: -1 | DB59: -1 | DC59: -1 | DD59: -1 | DE59: -1 | DF59: -1 | DG59: -1 | DH59: 1 | DJ59: Cilindraje | DK59: Transmisión | DL59: Seg4 | DM59: CCEVeh95 | DN59: CCEVeh95 | DO59: TRUE
A60: VehículosConvencionalesAutomóvilesSedánNAGasolinaIntervalodeprecio3Entre100y150NANANANAMazda MAZDA 2 SD PJORGE CORTES MORA & CIA | B60: VehículosConvencionalesAutomóvilesSedánNAGasolinaIntervalodeprecio3Entre100y150NANANANA | C60: Mazda MAZDA 2 SD P | D60: JORGE CORTES MORA & CIA | E60: Vehículos Convencionales - Automóviles | F60: Vehículos Convencionales | G60: Automóviles | H60: Sedán - N.A. - Gasolina | I60: Sedán | J60: N.A. | K60: N.A. | L60: Intervalo de precio 3 | M60: Gasolina | N60: MAZDA 2 SD P | O60: Mazda | P60: 5601195 | T60: Entre 100 y 150 | U60: N.A. | V60: N.A. | W60: Automático | X60: Gasolina | Y60: N.A. | Z60: N.A. | AA60: N.A. | AB60: N.A. | AC60: N.A. | AD60: 71700000 | AE60: 0.022 | AF60: 70122600 | AG60: 0.026 | AH60: 69835800 | AI60: 0.031 | AJ60: 69477300 | AK60: 0.032 | AL60: 69405600 | AM60: 0.033 | AN60: 69333900 | AO60: 0.034 | AP60: 69262200 | AQ60: 9944848.979 | AR60: 0 | AS60: 0 | AT60: 0 | AU60: 0.05 | AV60: 0 | AW60: 7326893.222 | AX60: 185622.9966 | AY60: 0 | AZ60: 0 | BA60: 0 | BB60: 7115548.203 | BC60: 0 | BD60: 360933.6045 | BE60: 41249.5548 | BF60: 0 | BG60: 0 | BH60: 0 | BI60: 0 | BJ60: 0 | BK60: 0 | BL60: 1959353.853 | BM60: 0 | BN60: 2464660.899 | BO60: -1 | BP60: 0 | BQ60: 1392172.475 | BR60: 721867.209 | BS60: 1082800.813 | BT60: 0 | BU60: 2670908.673 | BV60: 60843.09333 | BW60: -1 | BX60: 505307.0463 | BY60: 0 | BZ60: 0 | CA60: -1 | CB60: -1 | CC60: 91780.25943 | CD60: 0 | CE60: 0 | CF60: -1 | CG60: 299059.2723 | CH60: 0 | CI60: 0 | CJ60: 0 | CK60: 0 | CL60: 0 | CM60: 0 | CN60: 0 | CO60: -1 | CP60: 0 | CQ60: -1 | CR60: -1 | CS60: -1 | CT60: -1 | CU60: -1 | CV60: -1 | CW60: -1 | CX60: -1 | CY60: -1 | CZ60: -1 | DA60: -1 | DB60: -1 | DC60: -1 | DD60: -1 | DE60: -1 | DF60: -1 | DG60: -1 | DH60: 1 | DJ60: Cilindraje | DK60: Transmisión | DL60: Seg4 | DM60: CCEVeh96 | DN60: CCEVeh96 | DO60: TRUE
A61: VehículosConvencionalesAutomóvilesSedánNAGasolinaIntervalodeprecio2Entre100y150NANANANAMazda MAZDA 2 SD TJORGE CORTES MORA & CIA | B61: VehículosConvencionalesAutomóvilesSedánNAGasolinaIntervalodeprecio2Entre100y150NANANANA | C61: Mazda MAZDA 2 SD T | D61: JORGE CORTES MORA & CIA | E61: Vehículos Convencionales - Automóviles | F61: Vehículos Convencionales | G61: Automóviles | H61: Sedán - N.A. - Gasolina | I61: Sedán | J61: N.A. | K61: N.A. | L61: Intervalo de precio 2 | M61: Gasolina | N61: MAZDA 2 SD T | O61: Mazda | P61: 5601196 | T61: Entre 100 y 150 | U61: N.A. | V61: N.A. | W61: Mecánico | X61: Gasolina | Y61: N.A. | Z61: N.A. | AA61: N.A. | AB61: N.A. | AC61: N.A. | AD61: 80300000 | AE61: 0.022 | AF61: 78533400 | AG61: 0.026 | AH61: 78212200 | AI61: 0.031 | AJ61: 77810700 | AK61: 0.032 | AL61: 77730400 | AM61: 0.033 | AN61: 77650100 | AO61: 0.034 | AP61: 77569800 | AQ61: 9944848.979 | AR61: 0 | AS61: 0 | AT61: 0 | AU61: 0.05 | AV61: 0 | AW61: 7326893.222 | AX61: 185622.9966 | AY61: 0 | AZ61: 0 | BA61: 0 | BB61: 7115548.203 | BC61: 0 | BD61: 360933.6045 | BE61: 41249.5548 | BF61: 0 | BG61: 0 | BH61: 0 | BI61: 0 | BJ61: 0 | BK61: 0 | BL61: 1959353.853 | BM61: 0 | BN61: 2464660.899 | BO61: -1 | BP61: 0 | BQ61: 1392172.475 | BR61: 721867.209 | BS61: 1082800.813 | BT61: 0 | BU61: 2670908.673 | BV61: 60843.09333 | BW61: -1 | BX61: 505307.0463 | BY61: 0 | BZ61: 0 | CA61: -1 | CB61: -1 | CC61: 91780.25943 | CD61: 0 | CE61: 0 | CF61: -1 | CG61: 299059.2723 | CH61: 0 | CI61: 0 | CJ61: 0 | CK61: 0 | CL61: 0 | CM61: 0 | CN61: 0 | CO61: -1 | CP61: 0 | CQ61: -1 | CR61: -1 | CS61: -1 | CT61: -1 | CU61: -1 | CV61: -1 | CW61: -1 | CX61: -1 | CY61: -1 | CZ61: -1 | DA61: -1 | DB61: -1 | DC61: -1 | DD61: -1 | DE61: -1 | DF61: -1 | DG61: -1 | DH61: 1 | DJ61: Cilindraje | DK61: Transmisión | DL61: Seg4 | DM61: CCEVeh97 | DN61: CCEVeh97 | DO61: TRUE
A62: VehículosConvencionalesAutomóvilesSedánNAGasolinaIntervalodeprecio2Entre100y150NANANANAMazda MAZDA 2 SD TJORGE CORTES MORA & CIA | B62: VehículosConvencionalesAutomóvilesSedánNAGasolinaIntervalodeprecio2Entre100y150NANANANA | C62: Mazda MAZDA 2 SD T | D62: JORGE CORTES MORA & CIA | E62: Vehículos Convencionales - Automóviles | F62: Vehículos Convencionales | G62: Automóviles | H62: Sedán - N.A. - Gasolina | I62: Sedán | J62: N.A. | K62: N.A. | L62: Intervalo de precio 2 | M62: Gasolina | N62: MAZDA 2 SD T | O62: Mazda | P62: 5601197 | T62: Entre 100 y 150 | U62: N.A. | V62: N.A. | W62: Automático | X62: Gasolina | Y62: N.A. | Z62: N.A. | AA62: N.A. | AB62: N.A. | AC62: N.A. | AD62: 83600000 | AE62: 0.022 | AF62: 81760800 | AG62: 0.026 | AH62: 81426400 | AI62: 0.031 | AJ62: 81008400 | AK62: 0.032 | AL62: 80924800 | AM62: 0.033 | AN62: 80841200 | AO62: 0.034 | AP62: 80757600 | AQ62: 9944848.979 | AR62: 0 | AS62: 0 | AT62: 0 | AU62: 0.05 | AV62: 0 | AW62: 7326893.222 | AX62: 185622.9966 | AY62: 0 | AZ62: 0 | BA62: 0 | BB62: 7115548.203 | BC62: 0 | BD62: 360933.6045 | BE62: 41249.5548 | BF62: 0 | BG62: 0 | BH62: 0 | BI62: 0 | BJ62: 0 | BK62: 0 | BL62: 1959353.853 | BM62: 0 | BN62: 2464660.899 | BO62: -1 | BP62: 0 | BQ62: 1392172.475 | BR62: 721867.209 | BS62: 1082800.813 | BT62: 0 | BU62: 2670908.673 | BV62: 60843.09333 | BW62: -1 | BX62: 505307.0463 | BY62: 0 | BZ62: 0 | CA62: -1 | CB62: -1 | CC62: 91780.25943 | CD62: 0 | CE62: 0 | CF62: -1 | CG62: 299059.2723 | CH62: 0 | CI62: 0 | CJ62: 0 | CK62: 0 | CL62: 0 | CM62: 0 | CN62: 0 | CO62: -1 | CP62: 0 | CQ62: -1 | CR62: -1 | CS62: -1 | CT62: -1 | CU62: -1 | CV62: -1 | CW62: -1 | CX62: -1 | CY62: -1 | CZ62: -1 | DA62: -1 | DB62: -1 | DC62: -1 | DD62: -1 | DE62: -1 | DF62: -1 | DG62: -1 | DH62: 1 | DJ62: Cilindraje | DK62: Transmisión | DL62: Seg4 | DM62: CCEVeh98 | DN62: CCEVeh98 | DO62: TRUE
A63: VehículosConvencionalesAutomóvilesSedánNAGasolinaIntervalodeprecio2Entre100y150NANANANAMazda MAZDA 2 SD GTJORGE CORTES MORA & CIA | B63: VehículosConvencionalesAutomóvilesSedánNAGasolinaIntervalodeprecio2Entre100y150NANANANA | C63: Mazda MAZDA 2 SD GT | D63: JORGE CORTES MORA & CIA | E63: Vehículos Convencionales - Automóviles | F63: Vehículos Convencionales | G63: Automóviles | H63: Sedán - N.A. - Gasolina | I63: Sedán | J63: N.A. | K63: N.A. | L63: Intervalo de precio 2 | M63: Gasolina | N63: MAZDA 2 SD GT | O63: Mazda | P63: 5601198 | T63: Entre 100 y 150 | U63: N.A. | V63: N.A. | W63: Mecánico | X63: Gasolina | Y63: N.A. | Z63: N.A. | AA63: N.A. | AB63: N.A. | AC63: N.A. | AD63: 78000000 | AE63: 0.022 | AF63: 76284000 | AG63: 0.026 | AH63: 75972000 | AI63: 0.031 | AJ63: 75582000 | AK63: 0.032 | AL63: 75504000 | AM63: 0.033 | AN63: 75426000 | AO63: 0.034 | AP63: 75348000 | AQ63: 9944848.979 | AR63: 0 | AS63: 0 | AT63: 0 | AU63: 0.05 | AV63: 0 | AW63: 7326893.222 | AX63: 185622.9966 | AY63: 0 | AZ63: 0 | BA63: 0 | BB63: 7115548.203 | BC63: 0 | BD63: 360933.6045 | BE63: 41249.5548 | BF63: 0 | BG63: 0 | BH63: 0 | BI63: 0 | BJ63: 0 | BK63: 0 | BL63: 1959353.853 | BM63: 0 | BN63: 2464660.899 | BO63: -1 | BP63: 0 | BQ63: 1392172.475 | BR63: 721867.209 | BS63: 1082800.813 | BT63: 0 | BU63: 2670908.673 | BV63: 60843.09333 | BW63: -1 | BX63: 505307.0463 | BY63: 0 | BZ63: 0 | CA63: -1 | CB63: -1 | CC63: 91780.25943 | CD63: 0 | CE63: 0 | CF63: -1 | CG63: 299059.2723 | CH63: 0 | CI63: 0 | CJ63: 0 | CK63: 0 | CL63: 0 | CM63: 0 | CN63: 0 | CO63: 0 | CP63: 0 | CQ63: -1 | CR63: -1 | CS63: -1 | CT63: -1 | CU63: -1 | CV63: -1 | CW63: -1 | CX63: -1 | CY63: -1 | CZ63: -1 | DA63: -1 | DB63: -1 | DC63: -1 | DD63: -1 | DE63: -1 | DF63: -1 | DG63: -1 | DH63: 1 | DJ63: Cilindraje | DK63: Transmisión | DL63: Seg4 | DM63: CCEVeh99 | DN63: CCEVeh99 | DO63: TRUE
A64: VehículosConvencionalesAutomóvilesSedánNAGasolinaIntervalodeprecio3Entre100y150NANANANAMazda MAZDA 2 SD GTJORGE CORTES MORA & CIA | B64: VehículosConvencionalesAutomóvilesSedánNAGasolinaIntervalodeprecio3Entre100y150NANANANA | C64: Mazda MAZDA 2 SD GT | D64: JORGE CORTES MORA & CIA | E64: Vehículos Convencionales - Automóviles | F64: Vehículos Convencionales | G64: Automóviles | H64: Sedán - N.A. - Gasolina | I64: Sedán | J64: N.A. | K64: N.A. | L64: Intervalo de precio 3 | M64: Gasolina | N64: MAZDA 2 SD GT | O64: Mazda | P64: 5601199 | T64: Entre 100 y 150 | U64: N.A. | V64: N.A. | W64: Automático | X64: Gasolina | Y64: N.A. | Z64: N.A. | AA64: N.A. | AB64: N.A. | AC64: N.A. | AD64: 87400000 | AE64: 0.022 | AF64: 85477200 | AG64: 0.026 | AH64: 85127600 | AI64: 0.031 | AJ64: 84690600 | AK64: 0.032 | AL64: 84603200 | AM64: 0.033 | AN64: 84515800 | AO64: 0.034 | AP64: 84428400 | AQ64: 9944848.979 | AR64: 0 | AS64: 0 | AT64: 0 | AU64: 0.05 | AV64: 0 | AW64: 7326893.222 | AX64: 185622.9966 | AY64: 0 | AZ64: 0 | BA64: 0 | BB64: 7115548.203 | BC64: 0 | BD64: 360933.6045 | BE64: 41249.5548 | BF64: 0 | BG64: 0 | BH64: 0 | BI64: 0 | BJ64: 0 | BK64: 0 | BL64: 1959353.853 | BM64: 0 | BN64: 2464660.899 | BO64: -1 | BP64: 0 | BQ64: 1392172.475 | BR64: 721867.209 | BS64: 1082800.813 | BT64: 0 | BU64: 2670908.673 | BV64: 60843.09333 | BW64: -1 | BX64: 505307.0463 | BY64: 0 | BZ64: 0 | CA64: -1 | CB64: -1 | CC64: 91780.25943 | CD64: 0 | CE64: 0 | CF64: -1 | CG64: 299059.2723 | CH64: 0 | CI64: 0 | CJ64: 0 | CK64: 0 | CL64: 0 | CM64: 0 | CN64: 0 | CO64: 0 | CP64: 0 | CQ64: -1 | CR64: -1 | CS64: -1 | CT64: -1 | CU64: -1 | CV64: -1 | CW64: -1 | CX64: -1 | CY64: -1 | CZ64: -1 | DA64: -1 | DB64: -1 | DC64: -1 | DD64: -1 | DE64: -1 | DF64: -1 | DG64: -1 | DH64: 1 | DJ64: Cilindraje | DK64: Transmisión | DL64: Seg4 | DM64: CCEVeh100 | DN64: CCEVeh100 | DO64: TRUE
A65: VehículosConvencionalesAutomóvilesSedánNAGasolinaIntervalodeprecio3Entre100y150NANANANAMazda MAZDA 2 SD LXJORGE CORTES MORA & CIA | B65: VehículosConvencionalesAutomóvilesSedánNAGasolinaIntervalodeprecio3Entre100y150NANANANA | C65: Mazda MAZDA 2 SD LX | D65: JORGE CORTES MORA & CIA | E65: Vehículos Convencionales - Automóviles | F65: Vehículos Convencionales | G65: Automóviles | H65: Sedán - N.A. - Gasolina | I65: Sedán | J65: N.A. | K65: N.A. | L65: Intervalo de precio 3 | M65: Gasolina | N65: MAZDA 2 SD LX | O65: Mazda | P65: 5601200 | T65: Entre 100 y 150 | U65: N.A. | V65: N.A. | W65: Automático | X65: Gasolina | Y65: N.A. | Z65: N.A. | AA65: N.A. | AB65: N.A. | AC65: N.A. | AD65: 92100000 | AE65: 0.022 | AF65: 90073800 | AG65: 0.026 | AH65: 89705400 | AI65: 0.031 | AJ65: 89244900 | AK65: 0.032 | AL65: 89152800 | AM65: 0.033 | AN65: 89060700 | AO65: 0.034 | AP65: 88968600 | AQ65: 9944848.979 | AR65: 0 | AS65: 0 | AT65: 0 | AU65: 0.05 | AV65: 0 | AW65: 7326893.222 | AX65: 185622.9966 | AY65: 0 | AZ65: 0 | BA65: 0 | BB65: 7115548.203 | BC65: 0 | BD65: 0 | BE65: 41249.5548 | BF65: 0 | BG65: 0 | BH65: 0 | BI65: 0 | BJ65: 0 | BK65: 0 | BL65: 0 | BM65: 0 | BN65: 2464660.899 | BO65: -1 | BP65: 0 | BQ65: 1392172.475 | BR65: 721867.209 | BS65: 1082800.813 | BT65: 0 | BU65: 2670908.673 | BV65: 60843.09333 | BW65: -1 | BX65: 505307.0463 | BY65: 0 | BZ65: 0 | CA65: -1 | CB65: -1 | CC65: 91780.25943 | CD65: 0 | CE65: 0 | CF65: -1 | CG65: 299059.2723 | CH65: 0 | CI65: 0 | CJ65: 0 | CK65: 0 | CL65: 0 | CM65: 0 | CN65: 0 | CO65: 0 | CP65: 0 | CQ65: -1 | CR65: -1 | CS65: -1 | CT65: -1 | CU65: -1 | CV65: -1 | CW65: -1 | CX65: -1 | CY65: -1 | CZ65: -1 | DA65: -1 | DB65: -1 | DC65: -1 | DD65: -1 | DE65: -1 | DF65: -1 | DG65: -1 | DH65: 1 | DJ65: Cilindraje | DK65: Transmisión | DL65: Seg4 | DM65: CCEVeh101 | DN65: CCEVeh101 | DO65: TRUE
A66: =B66&C66&D66 -> VehículosConvencionalesAutomóvilesSedánNAGasolinaIntervalodeprecio3Entre151y200NANANANAMazda MAZDA 3 SD PJORGE CORTES MORA & CIA | B66: =SUBSTITUTE(SUBSTITUTE(SUBSTITUTE(E66&H66&L66&T66&U66&V66&Y66&AB66,".","")," ",""),"-","") -> VehículosConvencionalesAutomóvilesSedánNAGasolinaIntervalodeprecio3Entre151y200NANANANA | C66: =O66&" "&N66 -> Mazda MAZDA 3 SD P | D66: JORGE CORTES MORA & CIA | E66: =F66&" - "&G66 -> Vehículos Convencionales - Automóviles | F66: Vehículos Convencionales | G66: Automóviles | H66: =I66&" - "&J66&" - "&M66 -> Sedán - N.A. - Gasolina | I66: Sedán | J66: N.A. | K66: N.A. | L66: Intervalo de precio 3 | M66: Gasolina | N66: MAZDA 3 SD P | O66: Mazda | P66: 5601180 | T66: Entre 151 y 200 | U66: N.A. | V66: N.A. | W66: Mecánico | X66: Gasolina | Y66: N.A. | Z66: N.A. | AA66: N.A. | AB66: N.A. | AC66: N.A. | AD66: 98300000 | AE66: 0.022 | AF66: =$AD66*(1-AE66) -> 96137400 | AG66: 0.026 | AH66: =$AD66*(1-AG66) -> 95744200 | AI66: 0.031 | AJ66: =$AD66*(1-AI66) -> 95252700 | AK66: 0.032 | AL66: =$AD66*(1-AK66) -> 95154400 | AM66: 0.033 | AN66: =$AD66*(1-AM66) -> 95056100 | AO66: 0.034 | AP66: =$AD66*(1-AO66) -> 94957800 | AQ66: 9828033.334 | AR66: 0 | AS66: 0 | AT66: 0 | AU66: 0.05 | AV66: 0 | AW66: 7326893.222 | AX66: 185622.9966 | AY66: 0 | AZ66: 0 | BA66: 0 | BB66: 7115548.203 | BC66: 0 | BD66: 360933.6045 | BE66: 41249.5548 | BF66: 309371.661 | BG66: 0 | BH66: 0 | BI66: 0 | BJ66: 0 | BK66: 0 | BL66: 1959353.853 | BM66: 0 | BN66: 2464660.899 | BO66: -1 | BP66: 0 | BQ66: 1392172.475 | BR66: 721867.209 | BS66: 1082800.813 | BT66: 0 | BU66: 2670908.673 | BV66: 60843.09333 | BW66: -1 | BX66: 505307.0463 | BY66: 0 | BZ66: 0 | CA66: -1 | CB66: -1 | CC66: 91780.25943 | CD66: 0 | CE66: 0 | CF66: -1 | CG66: 299059.2723 | CH66: 0 | CI66: 0 | CJ66: 0 | CK66: 0 | CL66: 0 | CM66: 0 | CN66: 0 | CO66: -1 | CP66: 0 | CQ66: -1 | CR66: -1 | CS66: -1 | CT66: -1 | CU66: -1 | CV66: -1 | CW66: -1 | CX66: -1 | CY66: -1 | CZ66: -1 | DA66: -1 | DB66: -1 | DC66: -1 | DD66: -1 | DE66: -1 | DF66: -1 | DG66: -1 | DH66: 1 | DJ66: Cilindraje | DK66: Transmisión | DL66: Seg4 | DM66: CCEVeh102 | DN66: CCEVeh102 | DO66: TRUE
A67: VehículosConvencionalesAutomóvilesSedánNAGasolinaIntervalodeprecio3Entre151y200NANANANAMazda MAZDA 3 SD PJORGE CORTES MORA & CIA | B67: VehículosConvencionalesAutomóvilesSedánNAGasolinaIntervalodeprecio3Entre151y200NANANANA | C67: Mazda MAZDA 3 SD P | D67: JORGE CORTES MORA & CIA | E67: Vehículos Convencionales - Automóviles | F67: Vehículos Convencionales | G67: Automóviles | H67: Sedán - N.A. - Gasolina | I67: Sedán | J67: N.A. | K67: N.A. | L67: Intervalo de precio 3 | M67: Gasolina | N67: MAZDA 3 SD P | O67: Mazda | P67: 5601181 | T67: Entre 151 y 200 | U67: N.A. | V67: N.A. | W67: Automático | X67: Gasolina | Y67: N.A. | Z67: N.A. | AA67: N.A. | AB67: N.A. | AC67: N.A. | AD67: 102000000 | AE67: 0.022 | AF67: 99756000 | AG67: 0.026 | AH67: 99348000 | AI67: 0.031 | AJ67: 98838000 | AK67: 0.032 | AL67: 98736000 | AM67: 0.033 | AN67: 98634000 | AO67: 0.034 | AP67: 98532000 | AQ67: 9828033.334 | AR67: 0 | AS67: 0 | AT67: 0 | AU67: 0.05 | AV67: 0 | AW67: 7326893.222 | AX67: 185622.9966 | AY67: 0 | AZ67: 0 | BA67: 0 | BB67: 7115548.203 | BC67: 0 | BD67: 0 | BE67: 41249.5548 | BF67: 0 | BG67: 0 | BH67: 0 | BI67: 0 | BJ67: 0 | BK67: 0 | BL67: 1959353.853 | BM67: 0 | BN67: 2464660.899 | BO67: -1 | BP67: 0 | BQ67: 1392172.475 | BR67: 721867.209 | BS67: 1082800.813 | BT67: 0 | BU67: 2670908.673 | BV67: 60843.09333 | BW67: -1 | BX67: 505307.0463 | BY67: 0 | BZ67: 0 | CA67: -1 | CB67: -1 | CC67: 91780.25943 | CD67: 0 | CE67: 0 | CF67: -1 | CG67: 299059.2723 | CH67: 0 | CI67: 0 | CJ67: 0 | CK67: 0 | CL67: 0 | CM67: 0 | CN67: 0 | CO67: -1 | CP67: 0 | CQ67: -1 | CR67: -1 | CS67: -1 | CT67: -1 | CU67: -1 | CV67: -1 | CW67: -1 | CX67: -1 | CY67: -1 | CZ67: -1 | DA67: -1 | DB67: -1 | DC67: -1 | DD67: -1 | DE67: -1 | DF67: -1 | DG67: -1 | DH67: 1 | DJ67: Cilindraje | DK67: Transmisión | DL67: Seg4 | DM67: CCEVeh103 | DN67: CCEVeh103 | DO67: =+DN67=DM67 -> TRUE
A68: VehículosConvencionalesAutomóvilesSedánNAGasolinaIntervalodeprecio3Entre151y200NANANANAMazda MAZDA 3 SD TJORGE CORTES MORA & CIA | B68: VehículosConvencionalesAutomóvilesSedánNAGasolinaIntervalodeprecio3Entre151y200NANANANA | C68: Mazda MAZDA 3 SD T | D68: JORGE CORTES MORA & CIA | E68: Vehículos Convencionales - Automóviles | F68: Vehículos Convencionales | G68: Automóviles | H68: Sedán - N.A. - Gasolina | I68: Sedán | J68: N.A. | K68: N.A. | L68: Intervalo de precio 3 | M68: Gasolina | N68: MAZDA 3 SD T | O68: Mazda | P68: 5601182 | T68: Entre 151 y 200 | U68: N.A. | V68: N.A. | W68: Mecánico | X68: Gasolina | Y68: N.A. | Z68: N.A. | AA68: N.A. | AB68: N.A. | AC68: N.A. | AD68: 106300000 | AE68: 0.022 | AF68: 103961400 | AG68: 0.026 | AH68: 103536200 | AI68: 0.031 | AJ68: 103004700 | AK68: 0.032 | AL68: 102898400 | AM68: 0.033 | AN68: 102792100 | AO68: 0.034 | AP68: 102685800 | AQ68: 9828033.334 | AR68: 0 | AS68: 0 | AT68: 0 | AU68: 0.05 | AV68: 0 | AW68: 7326893.222 | AX68: 185622.9966 | AY68: 0 | AZ68: 0 | BA68: 0 | BB68: 7115548.203 | BC68: 0 | BD68: 0 | BE68: 41249.5548 | BF68: 0 | BG68: 0 | BH68: 0 | BI68: 0 | BJ68: 0 | BK68: 0 | BL68: 1959353.853 | BM68: 0 | BN68: 2464660.899 | BO68: -1 | BP68: 0 | BQ68: 1392172.475 | BR68: 721867.209 | BS68: 1082800.813 | BT68: 0 | BU68: 2670908.673 | BV68: 60843.09333 | BW68: -1 | BX68: 505307.0463 | BY68: 0 | BZ68: 0 | CA68: -1 | CB68: -1 | CC68: 91780.25943 | CD68: 0 | CE68: 0 | CF68: -1 | CG68: 299059.2723 | CH68: 0 | CI68: 0 | CJ68: 0 | CK68: 0 | CL68: 0 | CM68: 0 | CN68: 0 | CO68: 0 | CP68: 0 | CQ68: -1 | CR68: -1 | CS68: -1 | CT68: -1 | CU68: -1 | CV68: -1 | CW68: -1 | CX68: -1 | CY68: -1 | CZ68: -1 | DA68: -1 | DB68: -1 | DC68: -1 | DD68: -1 | DE68: -1 | DF68: -1 | DG68: -1 | DH68: 1 | DJ68: Cilindraje | DK68: Transmisión | DL68: Seg4 | DM68: CCEVeh104 | DN68: CCEVeh104 | DO68: TRUE
A69: VehículosConvencionalesAutomóvilesSedánNAGasolinaIntervalodeprecio3Entre151y200NANANANAMazda MAZDA 3 SD TJORGE CORTES MORA & CIA | B69: VehículosConvencionalesAutomóvilesSedánNAGasolinaIntervalodeprecio3Entre151y200NANANANA | C69: Mazda MAZDA 3 SD T | D69: JORGE CORTES MORA & CIA | E69: Vehículos Convencionales - Automóviles | F69: Vehículos Convencionales | G69: Automóviles | H69: Sedán - N.A. - Gasolina | I69: Sedán | J69: N.A. | K69: N.A. | L69: Intervalo de precio 3 | M69: Gasolina | N69: MAZDA 3 SD T | O69: Mazda | P69: 5601183 | T69: Entre 151 y 200 | U69: N.A. | V69: N.A. | W69: Automático | X69: Gasolina | Y69: N.A. | Z69: N.A. | AA69: N.A. | AB69: N.A. | AC69: N.A. | AD69: 104300000 | AE69: 0.022 | AF69: 102005400 | AG69: 0.026 | AH69: 101588200 | AI69: 0.031 | AJ69: 101066700 | AK69: 0.032 | AL69: 100962400 | AM69: 0.033 | AN69: 100858100 | AO69: 0.034 | AP69: 100753800 | AQ69: 9828033.334 | AR69: 0 | AS69: 0 | AT69: 0 | AU69: 0.05 | AV69: 0 | AW69: 7326893.222 | AX69: 185622.9966 | AY69: 0 | AZ69: 0 | BA69: 0 | BB69: 7115548.203 | BC69: 0 | BD69: 0 | BE69: 41249.5548 | BF69: 0 | BG69: 0 | BH69: 0 | BI69: 0 | BJ69: 0 | BK69: 0 | BL69: 1959353.853 | BM69: 0 | BN69: 2464660.899 | BO69: -1 | BP69: 0 | BQ69: 1392172.475 | BR69: 721867.209 | BS69: 1082800.813 | BT69: 0 | BU69: 2670908.673 | BV69: 60843.09333 | BW69: -1 | BX69: 505307.0463 | BY69: 0 | BZ69: 0 | CA69: -1 | CB69: -1 | CC69: 91780.25943 | CD69: 0 | CE69: 0 | CF69: -1 | CG69: 299059.2723 | CH69: 0 | CI69: 0 | CJ69: 0 | CK69: 0 | CL69: 0 | CM69: 0 | CN69: 0 | CO69: 0 | CP69: 0 | CQ69: -1 | CR69: -1 | CS69: -1 | CT69: -1 | CU69: -1 | CV69: -1 | CW69: -1 | CX69: -1 | CY69: -1 | CZ69: -1 | DA69: -1 | DB69: -1 | DC69: -1 | DD69: -1 | DE69: -1 | DF69: -1 | DG69: -1 | DH69: 1 | DJ69: Cilindraje | DK69: Transmisión | DL69: Seg4 | DM69: CCEVeh105 | DN69: CCEVeh105 | DO69: TRUE
A70: VehículosConvencionalesAutomóvilesSedánNAGasolinaIntervalodeprecio3Entre151y200NANANANAMazda MAZDA 3 SD GTJORGE CORTES MORA & CIA | B70: VehículosConvencionalesAutomóvilesSedánNAGasolinaIntervalodeprecio3Entre151y200NANANANA | C70: Mazda MAZDA 3 SD GT | D70: JORGE CORTES MORA & CIA | E70: Vehículos Convencionales - Automóviles | F70: Vehículos Convencionales | G70: Automóviles | H70: Sedán - N.A. - Gasolina | I70: Sedán | J70: N.A. | K70: N.A. | L70: Intervalo de precio 3 | M70: Gasolina | N70: MAZDA 3 SD GT | O70: Mazda | P70: 5601184 | T70: Entre 151 y 200 | U70: N.A. | V70: N.A. | W70: Automático | X70: Gasolina | Y70: N.A. | Z70: N.A. | AA70: N.A. | AB70: N.A. | AC70: N.A. | AD70: 121900000 | AE70: 0.022 | AF70: 119218200 | AG70: 0.026 | AH70: 118730600 | AI70: 0.031 | AJ70: 118121100 | AK70: 0.032 | AL70: 117999200 | AM70: 0.033 | AN70: 117877300 | AO70: 0.034 | AP70: 117755400 | AQ70: 9828033.334 | AR70: 0 | AS70: 0 | AT70: 0 | AU70: 0.05 | AV70: 0 | AW70: 7326893.222 | AX70: 185622.9966 | AY70: 0 | AZ70: 0 | BA70: 0 | BB70: 7115548.203 | BC70: 0 | BD70: 0 | BE70: 41249.5548 | BF70: 0 | BG70: 0 | BH70: 0 | BI70: 0 | BJ70: 0 | BK70: 0 | BL70: 0 | BM70: 0 | BN70: 2464660.899 | BO70: -1 | BP70: 0 | BQ70: 1392172.475 | BR70: 721867.209 | BS70: 1082800.813 | BT70: 0 | BU70: 2670908.673 | BV70: 60843.09333 | BW70: -1 | BX70: 505307.0463 | BY70: 0 | BZ70: 0 | CA70: -1 | CB70: -1 | CC70: 91780.25943 | CD70: 0 | CE70: 0 | CF70: -1 | CG70: 299059.2723 | CH70: 0 | CI70: 0 | CJ70: 0 | CK70: 0 | CL70: 0 | CM70: 0 | CN70: 0 | CO70: 0 | CP70: 0 | CQ70: -1 | CR70: -1 | CS70: -1 | CT70: -1 | CU70: -1 | CV70: -1 | CW70: -1 | CX70: -1 | CY70: -1 | CZ70: -1 | DA70: -1 | DB70: -1 | DC70: -1 | DD70: -1 | DE70: -1 | DF70: -1 | DG70: -1 | DH70: 1 | DJ70: Cilindraje | DK70: Transmisión | DL70: Seg4 | DM70: CCEVeh106 | DN70: CCEVeh106 | DO70: TRUE
A71: VehículosConvencionalesAutomóvilesSedánNAGasolinaIntervalodeprecio3Entre151y200NANANANAMazda MAZDA 3 SD GTJORGE CORTES MORA & CIA | B71: VehículosConvencionalesAutomóvilesSedánNAGasolinaIntervalodeprecio3Entre151y200NANANANA | C71: Mazda MAZDA 3 SD GT | D71: JORGE CORTES MORA & CIA | E71: Vehículos Convencionales - Automóviles | F71: Vehículos Convencionales | G71: Automóviles | H71: Sedán - N.A. - Gasolina | I71: Sedán | J71: N.A. | K71: N.A. | L71: Intervalo de precio 3 | M71: Gasolina | N71: MAZDA 3 SD GT | O71: Mazda | P71: 5601185 | T71: Entre 151 y 200 | U71: N.A. | V71: N.A. | W71: Automático | X71: Gasolina | Y71: N.A. | Z71: N.A. | AA71: N.A. | AB71: N.A. | AC71: N.A. | AD71: 116400000 | AE71: 0.022 | AF71: 113839200 | AG71: 0.026 | AH71: 113373600 | AI71: 0.031 | AJ71: 112791600 | AK71: 0.032 | AL71: 112675200 | AM71: 0.033 | AN71: 112558800 | AO71: 0.034 | AP71: 112442400 | AQ71: 9828033.334 | AR71: 0 | AS71: 0 | AT71: 0 | AU71: 0.05 | AV71: 0 | AW71: 7326893.222 | AX71: 185622.9966 | AY71: 0 | AZ71: 0 | BA71: 0 | BB71: 7115548.203 | BC71: 0 | BD71: 0 | BE71: 41249.5548 | BF71: 0 | BG71: 0 | BH71: 0 | BI71: 0 | BJ71: 0 | BK71: 0 | BL71: 0 | BM71: 0 | BN71: 2464660.899 | BO71: -1 | BP71: 0 | BQ71: 1392172.475 | BR71: 721867.209 | BS71: 1082800.813 | BT71: 0 | BU71: 2670908.673 | BV71: 60843.09333 | BW71: -1 | BX71: 505307.0463 | BY71: 0 | BZ71: 0 | CA71: -1 | CB71: -1 | CC71: 91780.25943 | CD71: 0 | CE71: 0 | CF71: -1 | CG71: 299059.2723 | CH71: 0 | CI71: 0 | CJ71: 0 | CK71: 0 | CL71: 0 | CM71: 0 | CN71: 0 | CO71: 0 | CP71: 0 | CQ71: -1 | CR71: -1 | CS71: -1 | CT71: -1 | CU71: -1 | CV71: -1 | CW71: -1 | CX71: -1 | CY71: -1 | CZ71: -1 | DA71: -1 | DB71: -1 | DC71: -1 | DD71: -1 | DE71: -1 | DF71: -1 | DG71: -1 | DH71: 1 | DJ71: Cilindraje | DK71: Transmisión | DL71: Seg4 | DM71: CCEVeh107 | DN71: CCEVeh107 | DO71: TRUE
A72: VehículosConvencionalesAutomóvilesSedánNAGasolinaIntervalodeprecio3Entre151y200NANANANAMazda MAZDA 3 SD LXJORGE CORTES MORA & CIA | B72: VehículosConvencionalesAutomóvilesSedánNAGasolinaIntervalodeprecio3Entre151y200NANANANA | C72: Mazda MAZDA 3 SD LX | D72: JORGE CORTES MORA & CIA | E72: Vehículos Convencionales - Automóviles | F72: Vehículos Convencionales | G72: Automóviles | H72: Sedán - N.A. - Gasolina | I72: Sedán | J72: N.A. | K72: N.A. | L72: Intervalo de precio 3 | M72: Gasolina | N72: MAZDA 3 SD LX | O72: Mazda | P72: 5601186 | T72: Entre 151 y 200 | U72: N.A. | V72: N.A. | W72: Automático | X72: Gasolina | Y72: N.A. | Z72: N.A. | AA72: N.A. | AB72: N.A. | AC72: N.A. | AD72: 128600000 | AE72: 0.022 | AF72: 125770800 | AG72: 0.026 | AH72: 125256400 | AI72: 0.031 | AJ72: 124613400 | AK72: 0.032 | AL72: 124484800 | AM72: 0.033 | AN72: 124356200 | AO72: 0.034 | AP72: 124227600 | AQ72: 9828033.334 | AR72: 0 | AS72: 0 | AT72: 0 | AU72: 0.05 | AV72: 0 | AW72: 7326893.222 | AX72: 185622.9966 | AY72: 0 | AZ72: 0 | BA72: 0 | BB72: 7115548.203 | BC72: 0 | BD72: 0 | BE72: 41249.5548 | BF72: 0 | BG72: 0 | BH72: 0 | BI72: 0 | BJ72: 0 | BK72: 0 | BL72: 0 | BM72: 0 | BN72: 2464660.899 | BO72: -1 | BP72: 0 | BQ72: 1392172.475 | BR72: 721867.209 | BS72: 1082800.813 | BT72: 0 | BU72: 2670908.673 | BV72: 60843.09333 | BW72: -1 | BX72: 505307.0463 | BY72: 0 | BZ72: 0 | CA72: -1 | CB72: -1 | CC72: 91780.25943 | CD72: 0 | CE72: 0 | CF72: -1 | CG72: 299059.2723 | CH72: 0 | CI72: 0 | CJ72: 0 | CK72: 0 | CL72: 0 | CM72: 0 | CN72: 0 | CO72: 0 | CP72: 0 | CQ72: -1 | CR72: -1 | CS72: -1 | CT72: -1 | CU72: -1 | CV72: -1 | CW72: -1 | CX72: -1 | CY72: -1 | CZ72: -1 | DA72: -1 | DB72: -1 | DC72: -1 | DD72: -1 | DE72: -1 | DF72: -1 | DG72: -1 | DH72: 1 | DJ72: Cilindraje | DK72: Transmisión | DL72: Seg4 | DM72: CCEVeh108 | DN72: CCEVeh108 | DO72: TRUE
A73: VehículosConvencionalesAutomóvilesSedánNAGasolinaIntervalodeprecio3Entre151y200NANANANAToyota COROLLA 2,0 CVT XE-IYOKOMOTOR S.A. | B73: VehículosConvencionalesAutomóvilesSedánNAGasolinaIntervalodeprecio3Entre151y200NANANANA | C73: Toyota COROLLA 2,0 CVT XE-I | D73: YOKOMOTOR S.A. | E73: Vehículos Convencionales - Automóviles | F73: Vehículos Convencionales | G73: Automóviles | H73: Sedán - N.A. - Gasolina | I73: Sedán | J73: N.A. | K73: N.A. | L73: Intervalo de precio 3 | M73: Gasolina | N73: COROLLA 2,0 CVT XE-I | O73: Toyota | P73: 9001143 | T73: Entre 151 y 200 | U73: N.A. | V73: N.A. | W73: Automático | X73: Gasolina | Y73: N.A. | Z73: N.A. | AA73: N.A. | AB73: N.A. | AC73: N.A. | AE73: 0 | AF73: 0 | AG73: 0 | AH73: 0 | AI73: 0 | AJ73: 0 | AK73: 0.005 | AL73: 0 | AM73: 0.01 | AN73: 0 | AO73: 0.013 | AP73: 0 | AQ73: 15154632.69 | AR73: 0 | AS73: 0 | AT73: 0 | AU73: 1 | AV73: 0 | AW73: 7326893.222 | AX73: 269101.5015 | AY73: 305069.6445 | AZ73: 0 | BA73: 0 | BB73: 8880385.14 | BC73: 0 | BD73: 0 | BE73: -1 | BF73: 770494.8201 | BG73: 0 | BH73: 0 | BI73: 0 | BJ73: 0 | BK73: 0 | BL73: -1 | BM73: 0 | BN73: 2794525.749 | BO73: 2898027.297 | BP73: 0 | BQ73: 0 | BR73: -1 | BS73: -1 | BT73: 566863.628 | BU73: 1241072.571 | BV73: 115676.9186 | BW73: 918462.5872 | BX73: 1076409.45 | BY73: 0 | BZ73: 0 | CA73: -1 | CB73: 5970006.817 | CC73: 59665.62582 | CD73: 0 | CE73: 0 | CF73: 0 | CG73: 395252.3378 | CH73: 0 | CI73: 0 | CJ73: 0 | CK73: 0 | CL73: 0 | CM73: 0 | CN73: -1 | CO73: 0 | CP73: -1 | CQ73: -1 | CR73: -1 | CS73: -1 | CT73: -1 | CU73: -1 | CV73: -1 | CW73: -1 | CX73: -1 | CY73: -1 | CZ73: -1 | DA73: -1 | DB73: -1 | DC73: -1 | DD73: -1 | DE73: -1 | DF73: -1 | DG73: -1 | DH73: 0 | DJ73: Cilindraje | DK73: Transmisión | DL73: Seg4 | DM73: CCEVeh109 | DN73: CCEVeh109 | DO73: TRUE
A74: VehículosConvencionalesAutomóvilesSedánNAGasolinaIntervalodeprecio3Entre151y200NANANANAToyota COROLLA 2,0 CVT SE-GYOKOMOTOR S.A. | B74: VehículosConvencionalesAutomóvilesSedánNAGasolinaIntervalodeprecio3Entre151y200NANANANA | C74: Toyota COROLLA 2,0 CVT SE-G | D74: YOKOMOTOR S.A. | E74: Vehículos Convencionales - Automóviles | F74: Vehículos Convencionales | G74: Automóviles | H74: Sedán - N.A. - Gasolina | I74: Sedán | J74: N.A. | K74: N.A. | L74: Intervalo de precio 3 | M74: Gasolina | N74: COROLLA 2,0 CVT SE-G | O74: Toyota | P74: 9001144 | T74: Entre 151 y 200 | U74: N.A. | V74: N.A. | W74: Automático | X74: Gasolina | Y74: N.A. | Z74: N.A. | AA74: N.A. | AB74: N.A. | AC74: N.A. | AE74: 0 | AF74: 0 | AG74: 0 | AH74: 0 | AI74: 0 | AJ74: 0 | AK74: 0.005 | AL74: 0 | AM74: 0.01 | AN74: 0 | AO74: 0.013 | AP74: 0 | AQ74: 15154632.69 | AR74: 0 | AS74: 0 | AT74: 0 | AU74: 1 | AV74: 0 | AW74: 7326893.222 | AX74: 269101.5015 | AY74: 305069.6445 | AZ74: 0 | BA74: 0 | BB74: 8880385.14 | BC74: 0 | BD74: 0 | BE74: -1 | BF74: 0 | BG74: 0 | BH74: 0 | BI74: 0 | BJ74: 0 | BK74: 0 | BL74: -1 | BM74: 0 | BN74: 2794525.749 | BO74: 2898027.297 | BP74: 0 | BQ74: 0 | BR74: -1 | BS74: -1 | BT74: -1 | BU74: 1241072.571 | BV74: 115676.9186 | BW74: 918462.5872 | BX74: 1076409.45 | BY74: 0 | BZ74: 0 | CA74: -1 | CB74: 5970006.817 | CC74: 59665.62582 | CD74: 0 | CE74: 0 | CF74: 0 | CG74: 395252.3378 | CH74: 0 | CI74: 0 | CJ74: 0 | CK74: 0 | CL74: 0 | CM74: 0 | CN74: -1 | CO74: 0 | CP74: -1 | CQ74: -1 | CR74: -1 | CS74: -1 | CT74: -1 | CU74: -1 | CV74: -1 | CW74: -1 | CX74: -1 | CY74: -1 | CZ74: -1 | DA74: -1 | DB74: -1 | DC74: -1 | DD74: -1 | DE74: -1 | DF74: -1 | DG74: -1 | DH74: 0 | DJ74: Cilindraje | DK74: Transmisión | DL74: Seg4 | DM74: CCEVeh110 | DN74: CCEVeh110 | DO74: TRUE
A75: VehículosConvencionalesAutomóvilesHatchbackNAGasolinaIntervalodeprecio1Menora100NANANANAFiat FIAT UNO WAYAUTOMOTORES COMAGRO S.A.S. | B75: VehículosConvencionalesAutomóvilesHatchbackNAGasolinaIntervalodeprecio1Menora100NANANANA | C75: Fiat FIAT UNO WAY | D75: AUTOMOTORES COMAGRO S.A.S. | E75: Vehículos Convencionales - Automóviles | F75: Vehículos Convencionales | G75: Automóviles | H75: Hatchback - N.A. - Gasolina | I75: Hatchback | J75: N.A. | K75: N.A. | L75: Intervalo de precio 1 | M75: Gasolina | N75: FIAT UNO WAY | O75: Fiat | P75: 2801135 | T75: Menor a 100 | U75: N.A. | V75: N.A. | W75: Mecánico | X75: Gasolina | Y75: N.A. | Z75: N.A. | AA75: N.A. | AB75: N.A. | AC75: N.A. | AD75: 53400000 | AE75: 0.03 | AF75: 51798000 | AG75: 0.03 | AH75: 51798000 | AI75: 0.04 | AJ75: 51264000 | AK75: 0.045 | AL75: 50997000 | AM75: 0.05 | AN75: 50730000 | AO75: 0.055 | AP75: 50463000 | AQ75: 3683173.892 | AR75: 0 | AS75: 0 | AT75: 0 | AU75: 1 | AV75: 0 | AW75: 7326893.222 | AX75: 287019.5585 | AY75: 975866.4989 | AZ75: 0 | BA75: 0 | BB75: 8036547.638 | BC75: -1 | BD75: 574039.117 | BE75: 287019.5585 | BF75: -1 | BG75: 0 | BH75: 0 | BI75: 0 | BJ75: 0 | BK75: 0 | BL75: 2181348.645 | BM75: 2181348.645 | BN75: 1836925.174 | BO75: 1836925.174 | BP75: -1 | BQ75: 1492501.704 | BR75: 344423.4702 | BS75: 1377693.881 | BT75: 918462.5872 | BU75: 3214619.055 | BV75: 114807.8234 | BW75: 2985003.408 | BX75: 688846.9404 | BY75: 0 | BZ75: 0 | CA75: -1 | CB75: 2525772.115 | CC75: 229615.6468 | CD75: 2296156.468 | CE75: 7462508.521 | CF75: -1 | CG75: 918462.5872 | CH75: 0 | CI75: 5740391.17 | CJ75: 8036547.638 | CK75: 11480782.34 | CL75: -1 | CM75: -1 | CN75: -1 | CO75: 0 | CP75: 0 | CQ75: 0 | CR75: -1 | CS75: -1 | CT75: -1 | CU75: -1 | CV75: -1 | CW75: -1 | CX75: -1 | CY75: -1 | CZ75: -1 | DA75: -1 | DB75: -1 | DC75: -1 | DD75: -1 | DE75: -1 | DF75: -1 | DG75: -1 | DH75: 1 | DJ75: Cilindraje | DK75: Transmisión | DL75: Seg4 | DM75: CCEVeh111 | DN75: CCEVeh111 | DO75: TRUE
A76: VehículosConvencionalesAutomóvilesHatchbackNAGasolinaIntervalodeprecio1Menora100NANANANAFiat FIAT UNO WAY POPAUTOMOTORES COMAGRO S.A.S. | B76: VehículosConvencionalesAutomóvilesHatchbackNAGasolinaIntervalodeprecio1Menora100NANANANA | C76: Fiat FIAT UNO WAY POP | D76: AUTOMOTORES COMAGRO S.A.S. | E76: Vehículos Convencionales - Automóviles | F76: Vehículos Convencionales | G76: Automóviles | H76: Hatchback - N.A. - Gasolina | I76: Hatchback | J76: N.A. | K76: N.A. | L76: Intervalo de precio 1 | M76: Gasolina | N76: FIAT UNO WAY POP | O76: Fiat | P76: 2801141 | T76: Menor a 100 | U76: N.A. | V76: N.A. | W76: Mecánico | X76: Gasolina | Y76: N.A. | Z76: N.A. | AA76: N.A. | AB76: N.A. | AC76: N.A. | AD76: 54400000 | AE76: 0.03 | AF76: 52768000 | AG76: 0.03 | AH76: 52768000 | AI76: 0.04 | AJ76: 52224000 | AK76: 0.045 | AL76: 51952000 | AM76: 0.05 | AN76: 51680000 | AO76: 0.055 | AP76: 51408000 | AQ76: 3683173.892 | AR76: 0 | AS76: 0 | AT76: 0 | AU76: 1 | AV76: 0 | AW76: 7326893.222 | AX76: 287019.5585 | AY76: 975866.4989 | AZ76: 0 | BA76: 0 | BB76: 8036547.638 | BC76: -1 | BD76: 574039.117 | BE76: 287019.5585 | BF76: -1 | BG76: 0 | BH76: 0 | BI76: 0 | BJ76: 0 | BK76: 0 | BL76: 2181348.645 | BM76: 2181348.645 | BN76: 1836925.174 | BO76: 1836925.174 | BP76: -1 | BQ76: 1492501.704 | BR76: 344423.4702 | BS76: 1377693.881 | BT76: 918462.5872 | BU76: 3214619.055 | BV76: 114807.8234 | BW76: 2985003.408 | BX76: 688846.9404 | BY76: 0 | BZ76: 0 | CA76: -1 | CB76: 2525772.115 | CC76: 229615.6468 | CD76: 2296156.468 | CE76: 7462508.521 | CF76: -1 | CG76: 918462.5872 | CH76: 0 | CI76: 5740391.17 | CJ76: 8036547.638 | CK76: 11480782.34 | CL76: -1 | CM76: -1 | CN76: -1 | CO76: 0 | CP76: 0 | CQ76: 0 | CR76: -1 | CS76: -1 | CT76: -1 | CU76: -1 | CV76: -1 | CW76: -1 | CX76: -1 | CY76: -1 | CZ76: -1 | DA76: -1 | DB76: -1 | DC76: -1 | DD76: -1 | DE76: -1 | DF76: -1 | DG76: -1 | DH76: 1 | DJ76: Cilindraje | DK76: Transmisión | DL76: Seg4 | DM76: CCEVeh112 | DN76: CCEVeh112 | DO76: TRUE
A77: VehículosConvencionalesAutomóvilesHatchbackNAGasolinaIntervalodeprecio1Menora100NANANANAFiat FIAT MOBI EASY POPAUTOMOTORES COMAGRO S.A.S. | B77: VehículosConvencionalesAutomóvilesHatchbackNAGasolinaIntervalodeprecio1Menora100NANANANA | C77: Fiat FIAT MOBI EASY POP | D77: AUTOMOTORES COMAGRO S.A.S. | E77: Vehículos Convencionales - Automóviles | F77: Vehículos Convencionales | G77: Automóviles | H77: Hatchback - N.A. - Gasolina | I77: Hatchback | J77: N.A. | K77: N.A. | L77: Intervalo de precio 1 | M77: Gasolina | N77: FIAT MOBI EASY POP | O77: Fiat | P77: 2801143 | T77: Menor a 100 | U77: N.A. | V77: N.A. | W77: Mecánico | X77: Gasolina | Y77: N.A. | Z77: N.A. | AA77: N.A. | AB77: N.A. | AC77: N.A. | AD77: 48400000 | AE77: 0.02 | AF77: 47432000 | AG77: 0.025 | AH77: 47190000 | AI77: 0.025 | AJ77: 47190000 | AK77: 0.03 | AL77: 46948000 | AM77: 0.04 | AN77: 46464000 | AO77: 0.045 | AP77: 46222000 | AQ77: 3729625.137 | AR77: 0 | AS77: 0 | AT77: 0 | AU77: 1 | AV77: 0 | AW77: 7326893.222 | AX77: 287019.5585 | AY77: 975866.4989 | AZ77: 0 | BA77: 0 | BB77: 8036547.638 | BC77: -1 | BD77: 574039.117 | BE77: 287019.5585 | BF77: -1 | BG77: 0 | BH77: 0 | BI77: 0 | BJ77: 0 | BK77: 0 | BL77: 2181348.645 | BM77: 2181348.645 | BN77: 1836925.174 | BO77: 1836925.174 | BP77: -1 | BQ77: 1492501.704 | BR77: 344423.4702 | BS77: 1377693.881 | BT77: 918462.5872 | BU77: 3214619.055 | BV77: 114807.8234 | BW77: 2985003.408 | BX77: 688846.9404 | BY77: 0 | BZ77: 0 | CA77: -1 | CB77: 2525772.115 | CC77: 229615.6468 | CD77: 2296156.468 | CE77: 7462508.521 | CF77: -1 | CG77: 918462.5872 | CH77: 0 | CI77: 5740391.17 | CJ77: 8036547.638 | CK77: 11480782.34 | CL77: -1 | CM77: -1 | CN77: -1 | CO77: 0 | CP77: 0 | CQ77: 0 | CR77: -1 | CS77: -1 | CT77: -1 | CU77: -1 | CV77: -1 | CW77: -1 | CX77: -1 | CY77: -1 | CZ77: -1 | DA77: -1 | DB77: -1 | DC77: -1 | DD77: -1 | DE77: -1 | DF77: -1 | DG77: -1 | DH77: 1 | DJ77: Cilindraje | DK77: Transmisión | DL77: Seg4 | DM77: CCEVeh113 | DN77: CCEVeh113 | DO77: TRUE
A78: VehículosConvencionalesAutomóvilesHatchbackNAGasolinaIntervalodeprecio1Menora100NANANANAFiat FIAT MOBI WAYAUTOMOTORES COMAGRO S.A.S. | B78: VehículosConvencionalesAutomóvilesHatchbackNAGasolinaIntervalodeprecio1Menora100NANANANA | C78: Fiat FIAT MOBI WAY | D78: AUTOMOTORES COMAGRO S.A.S. | E78: Vehículos Convencionales - Automóviles | F78: Vehículos Convencionales | G78: Automóviles | H78: Hatchback - N.A. - Gasolina | I78: Hatchback | J78: N.A. | K78: N.A. | L78: Intervalo de precio 1 | M78: Gasolina | N78: FIAT MOBI WAY | O78: Fiat | P78: 2801145 | T78: Menor a 100 | U78: N.A. | V78: N.A. | W78: Mecánico | X78: Gasolina | Y78: N.A. | Z78: N.A. | AA78: N.A. | AB78: N.A. | AC78: N.A. | AD78: 48400000 | AE78: 0.02 | AF78: 47432000 | AG78: 0.025 | AH78: 47190000 | AI78: 0.025 | AJ78: 47190000 | AK78: 0.03 | AL78: 46948000 | AM78: 0.04 | AN78: 46464000 | AO78: 0.045 | AP78: 46222000 | AQ78: 3729625.137 | AR78: 0 | AS78: 0 | AT78: 0 | AU78: 1 | AV78: 0 | AW78: 7326893.222 | AX78: 287019.5585 | AY78: 975866.4989 | AZ78: 0 | BA78: 0 | BB78: 8036547.638 | BC78: -1 | BD78: 574039.117 | BE78: 287019.5585 | BF78: -1 | BG78: 0 | BH78: 0 | BI78: 0 | BJ78: 0 | BK78: 0 | BL78: 2181348.645 | BM78: 2181348.645 | BN78: 1836925.174 | BO78: 1836925.174 | BP78: -1 | BQ78: 1492501.704 | BR78: 344423.4702 | BS78: 1377693.881 | BT78: 918462.5872 | BU78: 3214619.055 | BV78: 114807.8234 | BW78: 2985003.408 | BX78: 688846.9404 | BY78: 0 | BZ78: 0 | CA78: -1 | CB78: 2525772.115 | CC78: 229615.6468 | CD78: 2296156.468 | CE78: 7462508.521 | CF78: -1 | CG78: 918462.5872 | CH78: 0 | CI78: 5740391.17 | CJ78: 8036547.638 | CK78: 11480782.34 | CL78: -1 | CM78: -1 | CN78: -1 | CO78: 0 | CP78: 0 | CQ78: 0 | CR78: -1 | CS78: -1 | CT78: -1 | CU78: -1 | CV78: -1 | CW78: -1 | CX78: -1 | CY78: -1 | CZ78: -1 | DA78: -1 | DB78: -1 | DC78: -1 | DD78: -1 | DE78: -1 | DF78: -1 | DG78: -1 | DH78: 1 | DJ78: Cilindraje | DK78: Transmisión | DL78: Seg4 | DM78: CCEVeh114 | DN78: CCEVeh114 | DO78: TRUE
A79: VehículosConvencionalesAutomóvilesHatchbackNAGasolinaIntervalodeprecio1Menora100NANANANAFiat FIAT MOBI PROAUTOMOTORES COMAGRO S.A.S. | B79: VehículosConvencionalesAutomóvilesHatchbackNAGasolinaIntervalodeprecio1Menora100NANANANA | C79: Fiat FIAT MOBI PRO | D79: AUTOMOTORES COMAGRO S.A.S. | E79: Vehículos Convencionales - Automóviles | F79: Vehículos Convencionales | G79: Automóviles | H79: Hatchback - N.A. - Gasolina | I79: Hatchback | J79: N.A. | K79: N.A. | L79: Intervalo de precio 1 | M79: Gasolina | N79: FIAT MOBI PRO | O79: Fiat | P79: 2801151 | T79: Menor a 100 | U79: N.A. | V79: N.A. | W79: Mecánico | X79: Gasolina | Y79: N.A. | Z79: N.A. | AA79: N.A. | AB79: N.A. | AC79: N.A. | AD79: 55000000 | AE79: 0.04 | AF79: 52800000 | AG79: 0.04 | AH79: 52800000 | AI79: 0.04 | AJ79: 52800000 | AK79: 0.05 | AL79: 52250000 | AM79: 0.06 | AN79: 51700000 | AO79: 0.07 | AP79: 51150000 | AQ79: 3729625.137 | AR79: 0 | AS79: 0 | AT79: 0 | AU79: 1 | AV79: 0 | AW79: 7326893.222 | AX79: 287019.5585 | AY79: 975866.4989 | AZ79: 0 | BA79: 0 | BB79: 8036547.638 | BC79: -1 | BD79: 574039.117 | BE79: 287019.5585 | BF79: -1 | BG79: 0 | BH79: 0 | BI79: 0 | BJ79: 0 | BK79: 0 | BL79: 2181348.645 | BM79: 2181348.645 | BN79: 1836925.174 | BO79: 1836925.174 | BP79: -1 | BQ79: 1492501.704 | BR79: 344423.4702 | BS79: 1377693.881 | BT79: 918462.5872 | BU79: 3214619.055 | BV79: 114807.8234 | BW79: 2985003.408 | BX79: 688846.9404 | BY79: 0 | BZ79: 0 | CA79: -1 | CB79: 2525772.115 | CC79: 229615.6468 | CD79: 2296156.468 | CE79: 7462508.521 | CF79: -1 | CG79: 918462.5872 | CH79: 0 | CI79: 5740391.17 | CJ79: 8036547.638 | CK79: 11480782.34 | CL79: -1 | CM79: -1 | CN79: -1 | CO79: 0 | CP79: 0 | CQ79: 0 | CR79: -1 | CS79: -1 | CT79: -1 | CU79: -1 | CV79: -1 | CW79: -1 | CX79: -1 | CY79: -1 | CZ79: -1 | DA79: -1 | DB79: -1 | DC79: -1 | DD79: -1 | DE79: -1 | DF79: -1 | DG79: -1 | DH79: 1 | DJ79: Cilindraje | DK79: Transmisión | DL79: Seg4 | DM79: CCEVeh115 | DN79: CCEVeh115 | DO79: TRUE
A80: VehículosConvencionalesAutomóvilesHatchbackNAGasolinaIntervalodeprecio1Menora100NANANANARenault Renault Kwid Zen UT Motorysa-Casatoro2020 | B80: VehículosConvencionalesAutomóvilesHatchbackNAGasolinaIntervalodeprecio1Menora100NANANANA | C80: Renault Renault Kwid Zen | D80: UT Motorysa-Casatoro2020 | E80: Vehículos Convencionales - Automóviles | F80: Vehículos Convencionales | G80: Automóviles | H80: Hatchback - N.A. - Gasolina | I80: Hatchback | J80: N.A. | K80: N.A. | L80: Intervalo de precio 1 | M80: Gasolina | N80: Renault Kwid Zen | O80: Renault | P80: 8001196 | T80: Menor a 100 | U80: N.A. | V80: N.A. | W80: Mecánico | X80: Gasolina | Y80: N.A. | Z80: N.A. | AA80: N.A. | AB80: N.A. | AC80: N.A. | AE80: 0 | AF80: 0 | AG80: 0 | AH80: 0 | AI80: 0 | AJ80: 0 | AK80: 0 | AL80: 0 | AM80: 0 | AN80: 0 | AO80: 0 | AP80: 0 | AR80: 0 | AS80: -1 | AT80: -1 | AU80: 1 | AV80: -1 | AW80: 0 | AX80: 0 | AY80: 0 | AZ80: 0 | BA80: 0 | BB80: 0 | BC80: 0 | BD80: 0 | BE80: 0 | BF80: 0 | BG80: 0 | BH80: 0 | BI80: 0 | BJ80: 0 | BK80: 0 | BL80: 0 | BM80: 0 | BN80: 0 | BO80: 0 | BP80: 0 | BQ80: 0 | BR80: 0 | BS80: 0 | BT80: 0 | BU80: 0 | BV80: 0 | BW80: 0 | BX80: 0 | BY80: 0 | BZ80: 0 | CA80: 0 | CB80: 0 | CC80: 0 | CD80: 0 | CE80: 0 | CF80: 0 | CG80: 0 | CH80: 0 | CI80: 0 | CJ80: 0 | CK80: 0 | CL80: 0 | CM80: -1 | CN80: -1 | CO80: -1 | CP80: -1 | CQ80: -1 | CR80: -1 | CS80: -1 | CT80: -1 | CU80: -1 | CV80: -1 | CW80: -1 | CX80: -1 | CY80: -1 | CZ80: -1 | DA80: -1 | DB80: -1 | DC80: -1 | DD80: -1 | DE80: -1 | DF80: -1 | DG80: -1 | DH80: 0 | DJ80: Cilindraje | DK80: Transmisión | DL80: Seg4 | DM80: CCEVeh116 | DN80: CCEVeh116 | DO80: TRUE
A81: VehículosConvencionalesAutomóvilesHatchbackNAGasolinaIntervalodeprecio1Menora100NANANANARenault Renault Kwid Life UT Motorysa-Casatoro2020 | B81: VehículosConvencionalesAutomóvilesHatchbackNAGasolinaIntervalodeprecio1Menora100NANANANA | C81: Renault Renault Kwid Life | D81: UT Motorysa-Casatoro2020 | E81: Vehículos Convencionales - Automóviles | F81: Vehículos Convencionales | G81: Automóviles | H81: Hatchback - N.A. - Gasolina | I81: Hatchback | J81: N.A. | K81: N.A. | L81: Intervalo de precio 1 | M81: Gasolina | N81: Renault Kwid Life | O81: Renault | P81: 8001197 | T81: Menor a 100 | U81: N.A. | V81: N.A. | W81: Mecánico | X81: Gasolina | Y81: N.A. | Z81: N.A. | AA81: N.A. | AB81: N.A. | AC81: N.A. | AE81: 0 | AF81: 0 | AG81: 0 | AH81: 0 | AI81: 0 | AJ81: 0 | AK81: 0 | AL81: 0 | AM81: 0 | AN81: 0 | AO81: 0 | AP81: 0 | AR81: 0 | AS81: -1 | AT81: -1 | AU81: 1 | AV81: -1 | AW81: 0 | AX81: 0 | AY81: 0 | AZ81: 0 | BA81: 0 | BB81: 0 | BC81: 0 | BD81: 0 | BE81: 0 | BF81: 0 | BG81: 0 | BH81: 0 | BI81: 0 | BJ81: 0 | BK81: 0 | BL81: 0 | BM81: 0 | BN81: 0 | BO81: 0 | BP81: 0 | BQ81: 0 | BR81: 0 | BS81: 0 | BT81: 0 | BU81: 0 | BV81: 0 | BW81: 0 | BX81: 0 | BY81: 0 | BZ81: 0 | CA81: 0 | CB81: 0 | CC81: 0 | CD81: 0 | CE81: 0 | CF81: 0 | CG81: 0 | CH81: 0 | CI81: 0 | CJ81: 0 | CK81: 0 | CL81: 0 | CM81: -1 | CN81: -1 | CO81: -1 | CP81: -1 | CQ81: -1 | CR81: -1 | CS81: -1 | CT81: -1 | CU81: -1 | CV81: -1 | CW81: -1 | CX81: -1 | CY81: -1 | CZ81: -1 | DA81: -1 | DB81: -1 | DC81: -1 | DD81: -1 | DE81: -1 | DF81: -1 | DG81: -1 | DH81: 0 | DJ81: Cilindraje | DK81: Transmisión | DL81: Seg4 | DM81: CCEVeh117 | DN81: CCEVeh117 | DO81: TRUE
A82: VehículosConvencionalesAutomóvilesHatchbackNAGasolinaIntervalodeprecio2Menora100NANANANARenault Renault Stepway INTENS MTUT Motorysa-Casatoro2020 | B82: VehículosConvencionalesAutomóvilesHatchbackNAGasolinaIntervalodeprecio2Menora100NANANANA | C82: Renault Renault Stepway INTENS MT | D82: UT Motorysa-Casatoro2020 | E82: Vehículos Convencionales - Automóviles | F82: Vehículos Convencionales | G82: Automóviles | H82: Hatchback - N.A. - Gasolina | I82: Hatchback | J82: N.A. | K82: N.A. | L82: Intervalo de precio 2 | M82: Gasolina | N82: Renault Stepway INTENS MT | O82: Renault | P82: 8001210 | T82: Menor a 100 | U82: N.A. | V82: N.A. | W82: Mecánico | X82: Gasolina | Y82: N.A. | Z82: N.A. | AA82: N.A. | AB82: N.A. | AC82: N.A. | AD82: 81100000 | AE82: 0 | AF82: 81100000 | AG82: 0.01 | AH82: 80289000 | AI82: 0.015 | AJ82: 79883500 | AK82: 0.02 | AL82: 79478000 | AM82: 0.025 | AN82: 79072500 | AO82: 0.03 | AP82: 78667000 | AQ82: 3027854.23 | AR82: 0 | AS82: 0 | AT82: 0 | AU82: 1 | AV82: 0 | AW82: 7326893.222 | AX82: 497187.4275 | AY82: 385363.2656 | AZ82: 0 | BA82: 0 | BB82: 7982524.787 | BC82: -1 | BD82: 522993.0033 | BE82: 261496.5016 | BF82: 0 | BG82: 0 | BH82: 0 | BI82: 0 | BJ82: 0 | BK82: 0 | BL82: 1820841.43 | BM82: -1 | BN82: 536755.9771 | BO82: 715674.6361 | BP82: -1 | BQ82: 846422.8869 | BR82: 151392.7115 | BS82: -1 | BT82: -1 | BU82: 2924356.25 | BV82: 81231.71703 | BW82: 1988749.71 | BX82: 1307482.508 | BY82: 0 | BZ82: 0 | CA82: -1 | CB82: 8085747.09 | CC82: 178918.659 | CD82: -1 | CE82: -1 | CF82: -1 | CG82: 660622.741 | CH82: 0 | CI82: -1 | CJ82: -1 | CK82: -1 | CL82: 0 | CM82: 0 | CN82: -1 | CO82: -1 | CP82: 0 | CQ82: -1 | CR82: -1 | CS82: -1 | CT82: -1 | CU82: -1 | CV82: -1 | CW82: -1 | CX82: -1 | CY82: -1 | CZ82: -1 | DA82: -1 | DB82: -1 | DC82: -1 | DD82: -1 | DE82: -1 | DF82: -1 | DG82: -1 | DH82: 1 | DJ82: Cilindraje | DK82: Transmisión | DL82: Seg4 | DM82: CCEVeh118 | DN82: CCEVeh118 | DO82: TRUE
A83: VehículosConvencionalesAutomóvilesHatchbackNAGasolinaIntervalodeprecio1Entre100y150NANANANARenault Renault Sandero Life +UT Motorysa-Casatoro2020 | B83: VehículosConvencionalesAutomóvilesHatchbackNAGasolinaIntervalodeprecio1Entre100y150NANANANA | C83: Renault Renault Sandero Life + | D83: UT Motorysa-Casatoro2020 | E83: Vehículos Convencionales - Automóviles | F83: Vehículos Convencionales | G83: Automóviles | H83: Hatchback - N.A. - Gasolina | I83: Hatchback | J83: N.A. | K83: N.A. | L83: Intervalo de precio 1 | M83: Gasolina | N83: Renault Sandero Life + | O83: Renault | P83: 8001206 | T83: Entre 100 y 150 | U83: N.A. | V83: N.A. | W83: Mecánico | X83: Gasolina | Y83: N.A. | Z83: N.A. | AA83: N.A. | AB83: N.A. | AC83: N.A. | AD83: 64000000 | AE83: 0 | AF83: 64000000 | AG83: 0.01 | AH83: 63360000 | AI83: 0.015 | AJ83: 63040000 | AK83: 0.02 | AL83: 62720000 | AM83: 0.025 | AN83: 62400000 | AO83: 0.03 | AP83: 62080000 | AQ83: 3027854.23 | AR83: 0 | AS83: 0 | AT83: 0 | AU83: 1 | AV83: 0 | AW83: 7326893.222 | AX83: 497187.4275 | AY83: 385363.2656 | AZ83: 0 | BA83: 0 | BB83: 7982524.787 | BC83: -1 | BD83: 522993.0033 | BE83: 261496.5016 | BF83: 0 | BG83: 0 | BH83: 0 | BI83: 0 | BJ83: 0 | BK83: 0 | BL83: 1820841.43 | BM83: -1 | BN83: 536755.9771 | BO83: 715674.6361 | BP83: -1 | BQ83: 846422.8869 | BR83: 151392.7115 | BS83: -1 | BT83: -1 | BU83: 2924356.25 | BV83: 96340.8164 | BW83: 1988749.71 | BX83: 1307482.508 | BY83: 0 | BZ83: 0 | CA83: -1 | CB83: 8085747.09 | CC83: 178918.659 | CD83: -1 | CE83: -1 | CF83: -1 | CG83: 660622.741 | CH83: 0 | CI83: -1 | CJ83: -1 | CK83: -1 | CL83: 0 | CM83: 0 | CN83: 0 | CO83: -1 | CP83: 0 | CQ83: -1 | CR83: -1 | CS83: -1 | CT83: -1 | CU83: -1 | CV83: -1 | CW83: -1 | CX83: -1 | CY83: -1 | CZ83: -1 | DA83: -1 | DB83: -1 | DC83: -1 | DD83: -1 | DE83: -1 | DF83: -1 | DG83: -1 | DH83: 1 | DJ83: Cilindraje | DK83: Transmisión | DL83: Seg4 | DM83: CCEVeh119 | DN83: CCEVeh119 | DO83: TRUE
A84: VehículosConvencionalesAutomóvilesHatchbackNAGasolinaIntervalodeprecio2Entre100y150NANANANARenault Renault Sandero Zen UT Motorysa-Casatoro2020 | B84: VehículosConvencionalesAutomóvilesHatchbackNAGasolinaIntervalodeprecio2Entre100y150NANANANA | C84: Renault Renault Sandero Zen | D84: UT Motorysa-Casatoro2020 | E84: Vehículos Convencionales - Automóviles | F84: Vehículos Convencionales | G84: Automóviles | H84: Hatchback - N.A. - Gasolina | I84: Hatchback | J84: N.A. | K84: N.A. | L84: Intervalo de precio 2 | M84: Gasolina | N84: Renault Sandero Zen | O84: Renault | P84: 8001207 | T84: Entre 100 y 150 | U84: N.A. | V84: N.A. | W84: Mecánico | X84: Gasolina | Y84: N.A. | Z84: N.A. | AA84: N.A. | AB84: N.A. | AC84: N.A. | AD84: 68000000 | AE84: 0 | AF84: 68000000 | AG84: 0.01 | AH84: 67320000 | AI84: 0.015 | AJ84: 66980000 | AK84: 0.02 | AL84: 66640000 | AM84: 0.025 | AN84: 66300000 | AO84: 0.03 | AP84: 65960000 | AQ84: 3027854.23 | AR84: 0 | AS84: 0 | AT84: 0 | AU84: 1 | AV84: 0 | AW84: 7326893.222 | AX84: 497187.4275 | AY84: 385363.2656 | AZ84: 0 | BA84: 0 | BB84: 7982524.787 | BC84: -1 | BD84: 522993.0033 | BE84: 261496.5016 | BF84: 0 | BG84: 0 | BH84: 0 | BI84: 0 | BJ84: 0 | BK84: 0 | BL84: 1820841.43 | BM84: -1 | BN84: 536755.9771 | BO84: 715674.6361 | BP84: -1 | BQ84: 846422.8869 | BR84: 151392.7115 | BS84: -1 | BT84: -1 | BU84: 2924356.25 | BV84: 96340.8164 | BW84: 1988749.71 | BX84: 1307482.508 | BY84: 0 | BZ84: 0 | CA84: -1 | CB84: 8085747.09 | CC84: 178918.659 | CD84: -1 | CE84: -1 | CF84: -1 | CG84: 660622.741 | CH84: 0 | CI84: -1 | CJ84: -1 | CK84: -1 | CL84: 0 | CM84: 0 | CN84: 0 | CO84: -1 | CP84: 0 | CQ84: -1 | CR84: -1 | CS84: -1 | CT84: -1 | CU84: -1 | CV84: -1 | CW84: -1 | CX84: -1 | CY84: -1 | CZ84: -1 | DA84: -1 | DB84: -1 | DC84: -1 | DD84: -1 | DE84: -1 | DF84: -1 | DG84: -1 | DH84: 1 | DJ84: Cilindraje | DK84: Transmisión | DL84: Seg4 | DM84: CCEVeh120 | DN84: CCEVeh120 | DO84: TRUE
A85: VehículosConvencionalesAutomóvilesSedánNAGasolinaIntervalodeprecio1Menora100NANANANARenault Renault Logan Life UT Motorysa-Casatoro2020 | B85: VehículosConvencionalesAutomóvilesSedánNAGasolinaIntervalodeprecio1Menora100NANANANA | C85: Renault Renault Logan Life | D85: UT Motorysa-Casatoro2020 | E85: Vehículos Convencionales - Automóviles | F85: Vehículos Convencionales | G85: Automóviles | H85: Sedán - N.A. - Gasolina | I85: Sedán | J85: N.A. | K85: N.A. | L85: Intervalo de precio 1 | M85: Gasolina | N85: Renault Logan Life | O85: Renault | P85: 8001200 | T85: Menor a 100 | U85: N.A. | V85: N.A. | W85: Mecánico | X85: Gasolina | Y85: N.A. | Z85: N.A. | AA85: N.A. | AB85: N.A. | AC85: N.A. | AD85: 67700000 | AE85: 0 | AF85: 67700000 | AG85: 0.01 | AH85: 67023000 | AI85: 0.015 | AJ85: 66684500 | AK85: 0.02 | AL85: 66346000 | AM85: 0.025 | AN85: 66007500 | AO85: 0.03 | AP85: 65669000 | AQ85: 3058132.772 | AR85: 0 | AS85: 0 | AT85: 0 | AU85: 1 | AV85: 0 | AW85: 7326893.222 | AX85: 497187.4275 | AY85: 385363.2656 | AZ85: 0 | BA85: 0 | BB85: 7982524.787 | BC85: -1 | BD85: 522993.0033 | BE85: 261496.5016 | BF85: 0 | BG85: 0 | BH85: 0 | BI85: 0 | BJ85: 0 | BK85: 0 | BL85: 1820841.43 | BM85: -1 | BN85: 536755.9771 | BO85: 715674.6361 | BP85: -1 | BQ85: 846422.8869 | BR85: 151392.7115 | BS85: -1 | BT85: -1 | BU85: 2924356.25 | BV85: 96340.8164 | BW85: 1988749.71 | BX85: 1307482.508 | BY85: 0 | BZ85: 0 | CA85: -1 | CB85: 8085747.09 | CC85: 178918.659 | CD85: -1 | CE85: -1 | CF85: -1 | CG85: 660622.741 | CH85: 0 | CI85: -1 | CJ85: -1 | CK85: -1 | CL85: 0 | CM85: -1 | CN85: -1 | CO85: -1 | CP85: -1 | CQ85: -1 | CR85: -1 | CS85: -1 | CT85: -1 | CU85: -1 | CV85: -1 | CW85: -1 | CX85: -1 | CY85: -1 | CZ85: -1 | DA85: -1 | DB85: -1 | DC85: -1 | DD85: -1 | DE85: -1 | DF85: -1 | DG85: -1 | DH85: 1 | DJ85: Cilindraje | DK85: Transmisión | DL85: Seg4 | DM85: CCEVeh121 | DN85: CCEVeh121 | DO85: TRUE
A86: VehículosConvencionalesAutomóvilesSedánNAGasolinaIntervalodeprecio1Entre100y150NANANANARenault Renault Logan Life +UT Motorysa-Casatoro2020 | B86: VehículosConvencionalesAutomóvilesSedánNAGasolinaIntervalodeprecio1Entre100y150NANANANA | C86: Renault Renault Logan Life + | D86: UT Motorysa-Casatoro2020 | E86: Vehículos Convencionales - Automóviles | F86: Vehículos Convencionales | G86: Automóviles | H86: Sedán - N.A. - Gasolina | I86: Sedán | J86: N.A. | K86: N.A. | L86: Intervalo de precio 1 | M86: Gasolina | N86: Renault Logan Life + | O86: Renault | P86: 8001201 | T86: Entre 100 y 150 | U86: N.A. | V86: N.A. | W86: Mecánico | X86: Gasolina | Y86: N.A. | Z86: N.A. | AA86: N.A. | AB86: N.A. | AC86: N.A. | AD86: 65000000 | AE86: 0 | AF86: 65000000 | AG86: 0.01 | AH86: 64350000 | AI86: 0.015 | AJ86: 64025000 | AK86: 0.02 | AL86: 63700000 | AM86: 0.025 | AN86: 63375000 | AO86: 0.03 | AP86: 63050000 | AQ86: 3058132.772 | AR86: 0 | AS86: 0 | AT86: 0 | AU86: 1 | AV86: 0 | AW86: 7326893.222 | AX86: 497187.4275 | AY86: 385363.2656 | AZ86: 0 | BA86: 0 | BB86: 7982524.787 | BC86: -1 | BD86: 522993.0033 | BE86: 261496.5016 | BF86: 0 | BG86: 0 | BH86: 0 | BI86: 0 | BJ86: 0 | BK86: 0 | BL86: 1820841.43 | BM86: -1 | BN86: 536755.9771 | BO86: 715674.6361 | BP86: -1 | BQ86: 846422.8869 | BR86: 151392.7115 | BS86: -1 | BT86: -1 | BU86: 2924356.25 | BV86: 96340.8164 | BW86: 1988749.71 | BX86: 1307482.508 | BY86: 0 | BZ86: 0 | CA86: -1 | CB86: 8085747.09 | CC86: 178918.659 | CD86: -1 | CE86: -1 | CF86: -1 | CG86: 660622.741 | CH86: 0 | CI86: -1 | CJ86: -1 | CK86: -1 | CL86: 0 | CM86: -1 | CN86: 0 | CO86: -1 | CP86: -1 | CQ86: -1 | CR86: -1 | CS86: -1 | CT86: -1 | CU86: -1 | CV86: -1 | CW86: -1 | CX86: -1 | CY86: -1 | CZ86: -1 | DA86: -1 | DB86: -1 | DC86: -1 | DD86: -1 | DE86: -1 | DF86: -1 | DG86: -1 | DH86: 1 | DJ86: Cilindraje | DK86: Transmisión | DL86: Seg4 | DM86: CCEVeh122 | DN86: CCEVeh122 | DO86: TRUE
A87: VehículosConvencionalesAutomóvilesSedánNAGasolinaIntervalodeprecio2Entre100y150NANANANARenault Renault Logan Zen UT Motorysa-Casatoro2020 | B87: VehículosConvencionalesAutomóvilesSedánNAGasolinaIntervalodeprecio2Entre100y150NANANANA | C87: Renault Renault Logan Zen | D87: UT Motorysa-Casatoro2020 | E87: Vehículos Convencionales - Automóviles | F87: Vehículos Convencionales | G87: Automóviles | H87: Sedán - N.A. - Gasolina | I87: Sedán | J87: N.A. | K87: N.A. | L87: Intervalo de precio 2 | M87: Gasolina | N87: Renault Logan Zen | O87: Renault | P87: 8001202 | T87: Entre 100 y 150 | U87: N.A. | V87: N.A. | W87: Mecánico | X87: Gasolina | Y87: N.A. | Z87: N.A. | AA87: N.A. | AB87: N.A. | AC87: N.A. | AD87: 69000000 | AE87: 0 | AF87: 69000000 | AG87: 0.01 | AH87: 68310000 | AI87: 0.015 | AJ87: 67965000 | AK87: 0.02 | AL87: 67620000 | AM87: 0.025 | AN87: 67275000 | AO87: 0.03 | AP87: 66930000 | AQ87: 3058132.772 | AR87: 0 | AS87: 0 | AT87: 0 | AU87: 1 | AV87: 0 | AW87: 7326893.222 | AX87: 497187.4275 | AY87: 385363.2656 | AZ87: 0 | BA87: 0 | BB87: 7982524.787 | BC87: -1 | BD87: 522993.0033 | BE87: 261496.5016 | BF87: 0 | BG87: 0 | BH87: 0 | BI87: 0 | BJ87: 0 | BK87: 0 | BL87: 1820841.43 | BM87: -1 | BN87: 536755.9771 | BO87: 715674.6361 | BP87: -1 | BQ87: 846422.8869 | BR87: 151392.7115 | BS87: -1 | BT87: -1 | BU87: 3275587.757 | BV87: 96340.8164 | BW87: 1988749.71 | BX87: 1307482.508 | BY87: 0 | BZ87: 0 | CA87: -1 | CB87: 8085747.09 | CC87: 178918.659 | CD87: -1 | CE87: -1 | CF87: -1 | CG87: 660622.741 | CH87: 0 | CI87: -1 | CJ87: -1 | CK87: -1 | CL87: 0 | CM87: -1 | CN87: 0 | CO87: -1 | CP87: -1 | CQ87: -1 | CR87: -1 | CS87: -1 | CT87: -1 | CU87: -1 | CV87: -1 | CW87: -1 | CX87: -1 | CY87: -1 | CZ87: -1 | DA87: -1 | DB87: -1 | DC87: -1 | DD87: -1 | DE87: -1 | DF87: -1 | DG87: -1 | DH87: 1 | DJ87: Cilindraje | DK87: Transmisión | DL87: Seg4 | DM87: CCEVeh123 | DN87: CCEVeh123 | DO87: TRUE
A88: VehículosConvencionalesAutomóvilesSedánNAGasolinaIntervalodeprecio2Entre100y150NANANANARenault Renault Logan IntensUT Motorysa-Casatoro2020 | B88: VehículosConvencionalesAutomóvilesSedánNAGasolinaIntervalodeprecio2Entre100y150NANANANA | C88: Renault Renault Logan Intens | D88: UT Motorysa-Casatoro2020 | E88: Vehículos Convencionales - Automóviles | F88: Vehículos Convencionales | G88: Automóviles | H88: Sedán - N.A. - Gasolina | I88: Sedán | J88: N.A. | K88: N.A. | L88: Intervalo de precio 2 | M88: Gasolina | N88: Renault Logan Intens | O88: Renault | P88: 8001204 | T88: Entre 100 y 150 | U88: N.A. | V88: N.A. | W88: Automático | X88: Gasolina | Y88: N.A. | Z88: N.A. | AA88: N.A. | AB88: N.A. | AC88: N.A. | AD88: 76400000 | AE88: 0 | AF88: 76400000 | AG88: 0.01 | AH88: 75636000 | AI88: 0.015 | AJ88: 75254000 | AK88: 0.02 | AL88: 74872000 | AM88: 0.025 | AN88: 74490000 | AO88: 0.03 | AP88: 74108000 | AQ88: 3058132.772 | AR88: 0 | AS88: 0 | AT88: 0 | AU88: 1 | AV88: 0 | AW88: 7326893.222 | AX88: 497187.4275 | AY88: 385363.2656 | AZ88: 0 | BA88: 0 | BB88: 7982524.787 | BC88: -1 | BD88: 522993.0033 | BE88: 261496.5016 | BF88: 0 | BG88: 0 | BH88: 0 | BI88: 0 | BJ88: 0 | BK88: 0 | BL88: 1820841.43 | BM88: -1 | BN88: 536755.9771 | BO88: 715674.6361 | BP88: -1 | BQ88: 846422.8869 | BR88: 151392.7115 | BS88: -1 | BT88: -1 | BU88: 3275587.757 | BV88: 96340.8164 | BW88: 1988749.71 | BX88: 1307482.508 | BY88: 0 | BZ88: 0 | CA88: -1 | CB88: 8085747.09 | CC88: 178918.659 | CD88: -1 | CE88: -1 | CF88: -1 | CG88: 660622.741 | CH88: 0 | CI88: -1 | CJ88: -1 | CK88: -1 | CL88: 0 | CM88: -1 | CN88: 0 | CO88: -1 | CP88: -1 | CQ88: -1 | CR88: -1 | CS88: -1 | CT88: -1 | CU88: -1 | CV88: -1 | CW88: -1 | CX88: -1 | CY88: -1 | CZ88: -1 | DA88: -1 | DB88: -1 | DC88: -1 | DD88: -1 | DE88: -1 | DF88: -1 | DG88: -1 | DH88: 1 | DJ88: Cilindraje | DK88: Transmisión | DL88: Seg4 | DM88: CCEVeh124 | DN88: CCEVeh124 | DO88: TRUE
A89: VehículosConvencionalesAutomóvilesSedánNAGasolinaIntervalodeprecio2Entre100y150NANANANARenault Renault Logan IntensUT Motorysa-Casatoro2020 | B89: VehículosConvencionalesAutomóvilesSedánNAGasolinaIntervalodeprecio2Entre100y150NANANANA | C89: Renault Renault Logan Intens | D89: UT Motorysa-Casatoro2020 | E89: Vehículos Convencionales - Automóviles | F89: Vehículos Convencionales | G89: Automóviles | H89: Sedán - N.A. - Gasolina | I89: Sedán | J89: N.A. | K89: N.A. | L89: Intervalo de precio 2 | M89: Gasolina | N89: Renault Logan Intens | O89: Renault | P89: 8001203 | T89: Entre 100 y 150 | U89: N.A. | V89: N.A. | W89: Mecánico | X89: Gasolina | Y89: N.A. | Z89: N.A. | AA89: N.A. | AB89: N.A. | AC89: N.A. | AD89: 72400000 | AE89: 0 | AF89: 72400000 | AG89: 0.01 | AH89: 71676000 | AI89: 0.015 | AJ89: 71314000 | AK89: 0.02 | AL89: 70952000 | AM89: 0.025 | AN89: 70590000 | AO89: 0.03 | AP89: 70228000 | AQ89: 3058132.772 | AR89: 0 | AS89: 0 | AT89: 0 | AU89: 1 | AV89: 0 | AW89: 7326893.222 | AX89: 497187.4275 | AY89: 385363.2656 | AZ89: 0 | BA89: 0 | BB89: 7982524.787 | BC89: -1 | BD89: 522993.0033 | BE89: 261496.5016 | BF89: 0 | BG89: 0 | BH89: 0 | BI89: 0 | BJ89: 0 | BK89: 0 | BL89: 1820841.43 | BM89: -1 | BN89: 536755.9771 | BO89: 715674.6361 | BP89: -1 | BQ89: 846422.8869 | BR89: 151392.7115 | BS89: -1 | BT89: -1 | BU89: 3275587.757 | BV89: 96340.8164 | BW89: 1988749.71 | BX89: 1307482.508 | BY89: 0 | BZ89: 0 | CA89: -1 | CB89: 8085747.09 | CC89: 178918.659 | CD89: -1 | CE89: -1 | CF89: -1 | CG89: 660622.741 | CH89: 0 | CI89: -1 | CJ89: -1 | CK89: -1 | CL89: 0 | CM89: -1 | CN89: 0 | CO89: -1 | CP89: -1 | CQ89: -1 | CR89: -1 | CS89: -1 | CT89: -1 | CU89: -1 | CV89: -1 | CW89: -1 | CX89: -1 | CY89: -1 | CZ89: -1 | DA89: -1 | DB89: -1 | DC89: -1 | DD89: -1 | DE89: -1 | DF89: -1 | DG89: -1 | DH89: 1 | DJ89: Cilindraje | DK89: Transmisión | DL89: Seg4 | DM89: CCEVeh125 | DN89: CCEVeh125 | DO89: TRUE
A90: VehículosConvencionalesAutomóvilesHatchbackNAGasolinaIntervalodeprecio2Entre100y150NANANANARenault Renault Sandero Stepway Zen UT Motorysa-Casatoro2020 | B90: VehículosConvencionalesAutomóvilesHatchbackNAGasolinaIntervalodeprecio2Entre100y150NANANANA | C90: Renault Renault Sandero Stepway Zen | D90: UT Motorysa-Casatoro2020 | E90: Vehículos Convencionales - Automóviles | F90: Vehículos Convencionales | G90: Automóviles | H90: Hatchback - N.A. - Gasolina | I90: Hatchback | J90: N.A. | K90: N.A. | L90: Intervalo de precio 2 | M90: Gasolina | N90: Renault Sandero Stepway Zen | O90: Renault | P90: 8001208 | T90: Entre 100 y 150 | U90: N.A. | V90: N.A. | W90: Mecánico | X90: Gasolina | Y90: N.A. | Z90: N.A. | AA90: N.A. | AB90: N.A. | AC90: N.A. | AD90: 76700000 | AE90: 0 | AF90: 76700000 | AG90: 0.01 | AH90: 75933000 | AI90: 0.015 | AJ90: 75549500 | AK90: 0.02 | AL90: 75166000 | AM90: 0.025 | AN90: 74782500 | AO90: 0.03 | AP90: 74399000 | AQ90: 3058132.772 | AR90: 0 | AS90: 0 | AT90: 0 | AU90: 1 | AV90: 0 | AW90: 7326893.222 | AX90: 497187.4275 | AY90: 385363.2656 | AZ90: 0 | BA90: 0 | BB90: 7982524.787 | BC90: -1 | BD90: 522993.0033 | BE90: 261496.5016 | BF90: 0 | BG90: 0 | BH90: 0 | BI90: 0 | BJ90: 0 | BK90: 0 | BL90: 1820841.43 | BM90: -1 | BN90: 536755.9771 | BO90: 715674.6361 | BP90: -1 | BQ90: 846422.8869 | BR90: 151392.7115 | BS90: -1 | BT90: -1 | BU90: 3275587.757 | BV90: 96340.8164 | BW90: 1988749.71 | BX90: 1307482.508 | BY90: 0 | BZ90: 0 | CA90: -1 | CB90: 8085747.09 | CC90: 178918.659 | CD90: -1 | CE90: -1 | CF90: -1 | CG90: 660622.741 | CH90: 0 | CI90: -1 | CJ90: -1 | CK90: -1 | CL90: 0 | CM90: 0 | CN90: 0 | CO90: -1 | CP90: 0 | CQ90: -1 | CR90: -1 | CS90: -1 | CT90: -1 | CU90: -1 | CV90: -1 | CW90: -1 | CX90: -1 | CY90: -1 | CZ90: -1 | DA90: -1 | DB90: -1 | DC90: -1 | DD90: -1 | DE90: -1 | DF90: -1 | DG90: -1 | DH90: 1 | DJ90: Cilindraje | DK90: Transmisión | DL90: Seg4 | DM90: CCEVeh126 | DN90: CCEVeh126 | DO90: TRUE
A91: VehículosConvencionalesAutomóvilesHatchbackNAGasolinaIntervalodeprecio3Entre100y150NANANANARenault Renault Sandero Stepway Intens UT Motorysa-Casatoro2020 | B91: VehículosConvencionalesAutomóvilesHatchbackNAGasolinaIntervalodeprecio3Entre100y150NANANANA | C91: Renault Renault Sandero Stepway Intens | D91: UT Motorysa-Casatoro2020 | E91: Vehículos Convencionales - Automóviles | F91: Vehículos Convencionales | G91: Automóviles | H91: Hatchback - N.A. - Gasolina | I91: Hatchback | J91: N.A. | K91: N.A. | L91: Intervalo de precio 3 | M91: Gasolina | N91: Renault Sandero Stepway Intens | O91: Renault | P91: 8001211 | T91: Entre 100 y 150 | U91: N.A. | V91: N.A. | W91: Automático | X91: Gasolina | Y91: N.A. | Z91: N.A. | AA91: N.A. | AB91: N.A. | AC91: N.A. | AD91: 85300000 | AE91: 0 | AF91: 85300000 | AG91: 0.01 | AH91: 84447000 | AI91: 0.015 | AJ91: 84020500 | AK91: 0.02 | AL91: 83594000 | AM91: 0.025 | AN91: 83167500 | AO91: 0.03 | AP91: 82741000 | AQ91: 3058132.772 | AR91: 0 | AS91: 0 | AT91: 0 | AU91: 1 | AV91: 0 | AW91: 7326893.222 | AX91: 497187.4275 | AY91: 385363.2656 | AZ91: 0 | BA91: 0 | BB91: 7982524.787 | BC91: -1 | BD91: 522993.0033 | BE91: 261496.5016 | BF91: 0 | BG91: 0 | BH91: 0 | BI91: 0 | BJ91: 0 | BK91: 0 | BL91: 1820841.43 | BM91: -1 | BN91: 536755.9771 | BO91: 715674.6361 | BP91: -1 | BQ91: 846422.8869 | BR91: 151392.7115 | BS91: -1 | BT91: -1 | BU91: 3275587.757 | BV91: 96340.8164 | BW91: 1988749.71 | BX91: 1307482.508 | BY91: 0 | BZ91: 0 | CA91: -1 | CB91: 8085747.09 | CC91: 178918.659 | CD91: -1 | CE91: -1 | CF91: -1 | CG91: 660622.741 | CH91: 0 | CI91: -1 | CJ91: -1 | CK91: -1 | CL91: 0 | CM91: 0 | CN91: 0 | CO91: -1 | CP91: 0 | CQ91: -1 | CR91: -1 | CS91: -1 | CT91: -1 | CU91: -1 | CV91: -1 | CW91: -1 | CX91: -1 | CY91: -1 | CZ91: -1 | DA91: -1 | DB91: -1 | DC91: -1 | DD91: -1 | DE91: -1 | DF91: -1 | DG91: -1 | DH91: 1 | DJ91: Cilindraje | DK91: Transmisión | DL91: Seg4 | DM91: CCEVeh127 | DN91: CCEVeh127 | DO91: TRUE
A92: VehículosConvencionalesAutomóvilesHatchbackNAGasolinaIntervalodeprecio2Menora100NANANANAVolkswagen Volkswagen Fox Xtreme UT Motorysa-Casatoro2020 | B92: VehículosConvencionalesAutomóvilesHatchbackNAGasolinaIntervalodeprecio2Menora100NANANANA | C92: Volkswagen Volkswagen Fox Xtreme | D92: UT Motorysa-Casatoro2020 | E92: Vehículos Convencionales - Automóviles | F92: Vehículos Convencionales | G92: Automóviles | H92: Hatchback - N.A. - Gasolina | I92: Hatchback | J92: N.A. | K92: N.A. | L92: Intervalo de precio 2 | M92: Gasolina | N92: Volkswagen Fox Xtreme | O92: Volkswagen | P92: 9201252 | T92: Menor a 100 | U92: N.A. | V92: N.A. | W92: Mecánico | X92: Gasolina | Y92: N.A. | Z92: N.A. | AA92: N.A. | AB92: N.A. | AC92: N.A. | AD92: 68700000 | AE92: 0.08 | AF92: 63204000 | AG92: 0.08 | AH92: 63204000 | AI92: 0.08 | AJ92: 63204000 | AK92: 0.08 | AL92: 63204000 | AM92: 0.08 | AN92: 63204000 | AO92: 0.08 | AP92: 63204000 | AQ92: 8161443.446 | AR92: 0 | AS92: 0 | AT92: 0 | AU92: 1 | AV92: 0 | AW92: 7326893.222 | AX92: 497187.4275 | AY92: -1 | AZ92: 0 | BA92: 0 | BB92: 7982524.787 | BC92: -1 | BD92: -1 | BE92: 261496.5016 | BF92: 0 | BG92: 0 | BH92: 0 | BI92: 0 | BJ92: 0 | BK92: 0 | BL92: -1 | BM92: -1 | BN92: 536755.9771 | BO92: 715674.6361 | BP92: -1 | BQ92: -1 | BR92: 151392.7115 | BS92: -1 | BT92: 1169852.771 | BU92: 3275587.757 | BV92: 96340.8164 | BW92: 1988749.71 | BX92: 3307291.336 | BY92: 0 | BZ92: 0 | CA92: -1 | CB92: 8085747.09 | CC92: 178918.659 | CD92: -1 | CE92: -1 | CF92: -1 | CG92: 660622.741 | CH92: 0 | CI92: -1 | CJ92: -1 | CK92: -1 | CL92: -1 | CM92: -1 | CN92: -1 | CO92: -1 | CP92: -1 | CQ92: -1 | CR92: -1 | CS92: -1 | CT92: -1 | CU92: -1 | CV92: -1 | CW92: -1 | CX92: -1 | CY92: -1 | CZ92: -1 | DA92: -1 | DB92: -1 | DC92: -1 | DD92: -1 | DE92: -1 | DF92: -1 | DG92: -1 | DH92: 1 | DJ92: Cilindraje | DK92: Transmisión | DL92: Seg4 | DM92: CCEVeh128 | DN92: CCEVeh128 | DO92: TRUE
A93: VehículosConvencionalesAutomóvilesHatchbackNAGasolinaIntervalodeprecio2Menora100NANANANAVolkswagen Volkswagen Golf TrendlineUT Motorysa-Casatoro2020 | B93: VehículosConvencionalesAutomóvilesHatchbackNAGasolinaIntervalodeprecio2Menora100NANANANA | C93: Volkswagen Volkswagen Golf Trendline | D93: UT Motorysa-Casatoro2020 | E93: Vehículos Convencionales - Automóviles | F93: Vehículos Convencionales | G93: Automóviles | H93: Hatchback - N.A. - Gasolina | I93: Hatchback | J93: N.A. | K93: N.A. | L93: Intervalo de precio 2 | M93: Gasolina | N93: Volkswagen Golf Trendline | O93: Volkswagen | P93: 9201263 | T93: Menor a 100 | U93: N.A. | V93: N.A. | W93: Mecánico | X93: Gasolina | Y93: N.A. | Z93: N.A. | AA93: N.A. | AB93: N.A. | AC93: N.A. | AD93: 58500000 | AE93: 0.08 | AF93: 53820000 | AG93: 0.08 | AH93: 53820000 | AI93: 0.08 | AJ93: 53820000 | AK93: 0.08 | AL93: 53820000 | AM93: 0.08 | AN93: 53820000 | AO93: 0.08 | AP93: 53820000 | AQ93: 9290007.295 | AR93: 0 | AS93: 0 | AT93: 0 | AU93: 1 | AV93: 0 | AW93: 7326893.222 | AX93: 497187.4275 | AY93: -1 | AZ93: 0 | BA93: 0 | BB93: 7982524.787 | BC93: -1 | BD93: -1 | BE93: 261496.5016 | BF93: 0 | BG93: 0 | BH93: 0 | BI93: 0 | BJ93: 0 | BK93: 0 | BL93: -1 | BM93: -1 | BN93: 536755.9771 | BO93: 715674.6361 | BP93: -1 | BQ93: -1 | BR93: 151392.7115 | BS93: -1 | BT93: 1169852.771 | BU93: 3275587.757 | BV93: 96340.8164 | BW93: 1988749.71 | BX93: 3307291.336 | BY93: 0 | BZ93: 0 | CA93: -1 | CB93: 8085747.09 | CC93: 178918.659 | CD93: -1 | CE93: -1 | CF93: -1 | CG93: 660622.741 | CH93: 0 | CI93: -1 | CJ93: -1 | CK93: -1 | CL93: -1 | CM93: -1 | CN93: -1 | CO93: -1 | CP93: -1 | CQ93: -1 | CR93: -1 | CS93: -1 | CT93: -1 | CU93: -1 | CV93: -1 | CW93: -1 | CX93: -1 | CY93: -1 | CZ93: -1 | DA93: -1 | DB93: -1 | DC93: -1 | DD93: -1 | DE93: -1 | DF93: -1 | DG93: -1 | DH93: 1 | DJ93: Cilindraje | DK93: Transmisión | DL93: Seg4 | DM93: CCEVeh129 | DN93: CCEVeh129 | DO93: TRUE
A94: VehículosConvencionalesAutomóvilesHatchbackNAGasolinaIntervalodeprecio1Entre100y150NANANANAVolkswagen Volkswagen Golf TrendlineUT Motorysa-Casatoro2020 | B94: VehículosConvencionalesAutomóvilesHatchbackNAGasolinaIntervalodeprecio1Entre100y150NANANANA | C94: Volkswagen Volkswagen Golf Trendline | D94: UT Motorysa-Casatoro2020 | E94: Vehículos Convencionales - Automóviles | F94: Vehículos Convencionales | G94: Automóviles | H94: Hatchback - N.A. - Gasolina | I94: Hatchback | J94: N.A. | K94: N.A. | L94: Intervalo de precio 1 | M94: Gasolina | N94: Volkswagen Golf Trendline | O94: Volkswagen | P94: 9201273 | T94: Entre 100 y 150 | U94: N.A. | V94: N.A. | W94: Automático | X94: Gasolina | Y94: N.A. | Z94: N.A. | AA94: N.A. | AB94: N.A. | AC94: N.A. | AD94: 65500000 | AE94: 0.08 | AF94: 60260000 | AG94: 0.08 | AH94: 60260000 | AI94: 0.08 | AJ94: 60260000 | AK94: 0.08 | AL94: 60260000 | AM94: 0.08 | AN94: 60260000 | AO94: 0.08 | AP94: 60260000 | AQ94: 9290007.295 | AR94: 0 | AS94: 0 | AT94: 0 | AU94: 1 | AV94: 0 | AW94: 7326893.222 | AX94: 497187.4275 | AY94: -1 | AZ94: 0 | BA94: 0 | BB94: 7982524.787 | BC94: -1 | BD94: -1 | BE94: 261496.5016 | BF94: 0 | BG94: 0 | BH94: 0 | BI94: 0 | BJ94: 0 | BK94: 0 | BL94: -1 | BM94: -1 | BN94: 536755.9771 | BO94: 715674.6361 | BP94: -1 | BQ94: -1 | BR94: 151392.7115 | BS94: -1 | BT94: 1169852.771 | BU94: 3275587.757 | BV94: 96340.8164 | BW94: 1988749.71 | BX94: 3307291.336 | BY94: 0 | BZ94: 0 | CA94: -1 | CB94: 8085747.09 | CC94: 178918.659 | CD94: -1 | CE94: -1 | CF94: -1 | CG94: 660622.741 | CH94: 0 | CI94: -1 | CJ94: -1 | CK94: -1 | CL94: -1 | CM94: -1 | CN94: -1 | CO94: -1 | CP94: -1 | CQ94: -1 | CR94: -1 | CS94: -1 | CT94: -1 | CU94: -1 | CV94: -1 | CW94: -1 | CX94: -1 | CY94: -1 | CZ94: -1 | DA94: -1 | DB94: -1 | DC94: -1 | DD94: -1 | DE94: -1 | DF94: -1 | DG94: -1 | DH94: 1 | DJ94: Cilindraje | DK94: Transmisión | DL94: Seg4 | DM94: CCEVeh130 | DN94: CCEVeh130 | DO94: TRUE
A95: VehículosConvencionalesAutomóvilesHatchbackNAGasolinaIntervalodeprecio3Menora100NANANANAVolkswagen Volkswagen Golf ConfortlineUT Motorysa-Casatoro2020 | B95: VehículosConvencionalesAutomóvilesHatchbackNAGasolinaIntervalodeprecio3Menora100NANANANA | C95: Volkswagen Volkswagen Golf Confortline | D95: UT Motorysa-Casatoro2020 | E95: Vehículos Convencionales - Automóviles | F95: Vehículos Convencionales | G95: Automóviles | H95: Hatchback - N.A. - Gasolina | I95: Hatchback | J95: N.A. | K95: N.A. | L95: Intervalo de precio 3 | M95: Gasolina | N95: Volkswagen Golf Confortline | O95: Volkswagen | P95: 9201264 | T95: Menor a 100 | U95: N.A. | V95: N.A. | W95: Mecánico | X95: Gasolina | Y95: N.A. | Z95: N.A. | AA95: N.A. | AB95: N.A. | AC95: N.A. | AD95: 59700000 | AE95: 0.08 | AF95: 54924000 | AG95: 0.08 | AH95: 54924000 | AI95: 0.08 | AJ95: 54924000 | AK95: 0.08 | AL95: 54924000 | AM95: 0.08 | AN95: 54924000 | AO95: 0.08 | AP95: 54924000 | AQ95: 9290007.295 | AR95: 0 | AS95: 0 | AT95: 0 | AU95: 1 | AV95: 0 | AW95: 7326893.222 | AX95: 497187.4275 | AY95: -1 | AZ95: 0 | BA95: 0 | BB95: 7982524.787 | BC95: -1 | BD95: -1 | BE95: 261496.5016 | BF95: 0 | BG95: 0 | BH95: 0 | BI95: 0 | BJ95: 0 | BK95: 0 | BL95: -1 | BM95: -1 | BN95: 536755.9771 | BO95: 715674.6361 | BP95: -1 | BQ95: -1 | BR95: 151392.7115 | BS95: -1 | BT95: 1169852.771 | BU95: 3275587.757 | BV95: 96340.8164 | BW95: 1988749.71 | BX95: 3307291.336 | BY95: 0 | BZ95: 0 | CA95: -1 | CB95: 8085747.09 | CC95: 178918.659 | CD95: -1 | CE95: -1 | CF95: -1 | CG95: 660622.741 | CH95: 0 | CI95: -1 | CJ95: -1 | CK95: -1 | CL95: -1 | CM95: -1 | CN95: -1 | CO95: -1 | CP95: -1 | CQ95: -1 | CR95: -1 | CS95: -1 | CT95: -1 | CU95: -1 | CV95: -1 | CW95: -1 | CX95: -1 | CY95: -1 | CZ95: -1 | DA95: -1 | DB95: -1 | DC95: -1 | DD95: -1 | DE95: -1 | DF95: -1 | DG95: -1 | DH95: 1 | DJ95: Cilindraje | DK95: Transmisión | DL95: Seg4 | DM95: CCEVeh131 | DN95: CCEVeh131 | DO95: TRUE
A96: VehículosConvencionalesAutomóvilesHatchbackNAGasolinaIntervalodeprecio1Entre100y150NANANANAVolkswagen Volkswagen Golf ConfortlineUT Motorysa-Casatoro2020 | B96: VehículosConvencionalesAutomóvilesHatchbackNAGasolinaIntervalodeprecio1Entre100y150NANANANA | C96: Volkswagen Volkswagen Golf Confortline | D96: UT Motorysa-Casatoro2020 | E96: Vehículos Convencionales - Automóviles | F96: Vehículos Convencionales | G96: Automóviles | H96: Hatchback - N.A. - Gasolina | I96: Hatchback | J96: N.A. | K96: N.A. | L96: Intervalo de precio 1 | M96: Gasolina | N96: Volkswagen Golf Confortline | O96: Volkswagen | P96: 9201274 | T96: Entre 100 y 150 | U96: N.A. | V96: N.A. | W96: Automático | X96: Gasolina | Y96: N.A. | Z96: N.A. | AA96: N.A. | AB96: N.A. | AC96: N.A. | AD96: 71500000 | AE96: 0.08 | AF96: 65780000 | AG96: 0.08 | AH96: 65780000 | AI96: 0.08 | AJ96: 65780000 | AK96: 0.08 | AL96: 65780000 | AM96: 0.08 | AN96: 65780000 | AO96: 0.08 | AP96: 65780000 | AQ96: 9290007.295 | AR96: 0 | AS96: 0 | AT96: 0 | AU96: 1 | AV96: 0 | AW96: 7326893.222 | AX96: 497187.4275 | AY96: -1 | AZ96: 0 | BA96: 0 | BB96: 7982524.787 | BC96: -1 | BD96: -1 | BE96: 261496.5016 | BF96: 0 | BG96: 0 | BH96: 0 | BI96: 0 | BJ96: 0 | BK96: 0 | BL96: -1 | BM96: -1 | BN96: 536755.9771 | BO96: 715674.6361 | BP96: -1 | BQ96: -1 | BR96: 151392.7115 | BS96: -1 | BT96: 1169852.771 | BU96: 3275587.757 | BV96: 96340.8164 | BW96: 1988749.71 | BX96: 3307291.336 | BY96: 0 | BZ96: 0 | CA96: -1 | CB96: 8085747.09 | CC96: 178918.659 | CD96: -1 | CE96: -1 | CF96: -1 | CG96: 660622.741 | CH96: 0 | CI96: -1 | CJ96: -1 | CK96: -1 | CL96: -1 | CM96: -1 | CN96: -1 | CO96: -1 | CP96: -1 | CQ96: -1 | CR96: -1 | CS96: -1 | CT96: -1 | CU96: -1 | CV96: -1 | CW96: -1 | CX96: -1 | CY96: -1 | CZ96: -1 | DA96: -1 | DB96: -1 | DC96: -1 | DD96: -1 | DE96: -1 | DF96: -1 | DG96: -1 | DH96: 1 | DJ96: Cilindraje | DK96: Transmisión | DL96: Seg4 | DM96: CCEVeh132 | DN96: CCEVeh132 | DO96: TRUE
A97: VehículosConvencionalesAutomóvilesHatchbackNAGasolinaIntervalodeprecio2Menora100NANANANAVolkswagen Volkswagen Golf TrendlineUT Motorysa-Casatoro2020 | B97: VehículosConvencionalesAutomóvilesHatchbackNAGasolinaIntervalodeprecio2Menora100NANANANA | C97: Volkswagen Volkswagen Golf Trendline | D97: UT Motorysa-Casatoro2020 | E97: Vehículos Convencionales - Automóviles | F97: Vehículos Convencionales | G97: Automóviles | H97: Hatchback - N.A. - Gasolina | I97: Hatchback | J97: N.A. | K97: N.A. | L97: Intervalo de precio 2 | M97: Gasolina | N97: Volkswagen Golf Trendline | O97: Volkswagen | P97: 9201265 | T97: Menor a 100 | U97: N.A. | V97: N.A. | W97: Mecánico | X97: Gasolina | Y97: N.A. | Z97: N.A. | AA97: N.A. | AB97: N.A. | AC97: N.A. | AD97: 64500000 | AE97: 0.08 | AF97: 59340000 | AG97: 0.08 | AH97: 59340000 | AI97: 0.08 | AJ97: 59340000 | AK97: 0.08 | AL97: 59340000 | AM97: 0.08 | AN97: 59340000 | AO97: 0.08 | AP97: 59340000 | AQ97: 9290007.295 | AR97: 0 | AS97: 0 | AT97: 0 | AU97: 1 | AV97: 0 | AW97: 7326893.222 | AX97: 497187.4275 | AY97: 385363.2656 | AZ97: 0 | BA97: 0 | BB97: 7982524.787 | BC97: -1 | BD97: 522993.0033 | BE97: 261496.5016 | BF97: 0 | BG97: 0 | BH97: 0 | BI97: 0 | BJ97: 0 | BK97: 0 | BL97: 1820841.43 | BM97: -1 | BN97: 536755.9771 | BO97: 715674.6361 | BP97: 344074.3443 | BQ97: 1169852.771 | BR97: 151392.7115 | BS97: -1 | BT97: 1169852.771 | BU97: 3275587.757 | BV97: 96340.8164 | BW97: 1988749.71 | BX97: 3307291.336 | BY97: 0 | BZ97: 0 | CA97: -1 | CB97: 8085747.09 | CC97: 178918.659 | CD97: -1 | CE97: -1 | CF97: -1 | CG97: 660622.741 | CH97: 0 | CI97: -1 | CJ97: -1 | CK97: -1 | CL97: -1 | CM97: -1 | CN97: -1 | CO97: -1 | CP97: -1 | CQ97: -1 | CR97: -1 | CS97: -1 | CT97: -1 | CU97: -1 | CV97: -1 | CW97: -1 | CX97: -1 | CY97: -1 | CZ97: -1 | DA97: -1 | DB97: -1 | DC97: -1 | DD97: -1 | DE97: -1 | DF97: -1 | DG97: -1 | DH97: 1 | DJ97: Cilindraje | DK97: Transmisión | DL97: Seg4 | DM97: CCEVeh133 | DN97: CCEVeh133 | DO97: TRUE
A98: VehículosConvencionalesAutomóvilesHatchbackNAGasolinaIntervalodeprecio1Entre100y150NANANANAVolkswagen Volkswagen Golf TrendlineUT Motorysa-Casatoro2020 | B98: VehículosConvencionalesAutomóvilesHatchbackNAGasolinaIntervalodeprecio1Entre100y150NANANANA | C98: Volkswagen Volkswagen Golf Trendline | D98: UT Motorysa-Casatoro2020 | E98: Vehículos Convencionales - Automóviles | F98: Vehículos Convencionales | G98: Automóviles | H98: =I98&" - "&J98&" - "&M98 -> Hatchback - N.A. - Gasolina | I98: Hatchback | J98: N.A. | K98: N.A. | L98: Intervalo de precio 1 | M98: Gasolina | N98: Volkswagen Golf Trendline | O98: Volkswagen | P98: 9201275 | T98: Entre 100 y 150 | U98: N.A. | V98: N.A. | W98: Automático | X98: Gasolina | Y98: N.A. | Z98: N.A. | AA98: N.A. | AB98: N.A. | AC98: N.A. | AD98: 72500000 | AE98: 0.08 | AF98: 66700000 | AG98: 0.08 | AH98: 66700000 | AI98: 0.08 | AJ98: 66700000 | AK98: 0.08 | AL98: 66700000 | AM98: 0.08 | AN98: 66700000 | AO98: 0.08 | AP98: 66700000 | AQ98: 9290007.295 | AR98: 0 | AS98: 0 | AT98: 0 | AU98: 1 | AV98: 0 | AW98: 7326893.222 | AX98: 497187.4275 | AY98: 385363.2656 | AZ98: 0 | BA98: 0 | BB98: 7982524.787 | BC98: -1 | BD98: 522993.0033 | BE98: 261496.5016 | BF98: 0 | BG98: 0 | BH98: 0 | BI98: 0 | BJ98: 0 | BK98: 0 | BL98: 1820841.43 | BM98: -1 | BN98: 536755.9771 | BO98: 715674.6361 | BP98: 344074.3443 | BQ98: 1169852.771 | BR98: 151392.7115 | BS98: -1 | BT98: 1169852.771 | BU98: 3275587.757 | BV98: 96340.8164 | BW98: 1988749.71 | BX98: 3307291.336 | BY98: 0 | BZ98: 0 | CA98: -1 | CB98: 8085747.09 | CC98: 178918.659 | CD98: -1 | CE98: -1 | CF98: -1 | CG98: 660622.741 | CH98: 0 | CI98: -1 | CJ98: -1 | CK98: -1 | CL98: -1 | CM98: -1 | CN98: -1 | CO98: -1 | CP98: -1 | CQ98: -1 | CR98: -1 | CS98: -1 | CT98: -1 | CU98: -1 | CV98: -1 | CW98: -1 | CX98: -1 | CY98: -1 | CZ98: -1 | DA98: -1 | DB98: -1 | DC98: -1 | DD98: -1 | DE98: -1 | DF98: -1 | DG98: -1 | DH98: 1 | DJ98: Cilindraje | DK98: Transmisión | DL98: Seg4 | DM98: CCEVeh134 | DN98: CCEVeh134 | DO98: TRUE
A99: VehículosConvencionalesAutomóvilesHatchbackNAGasolinaIntervalodeprecio3Menora100NANANANAVolkswagen Volkswagen Golf ConfortlineUT Motorysa-Casatoro2020 | B99: VehículosConvencionalesAutomóvilesHatchbackNAGasolinaIntervalodeprecio3Menora100NANANANA | C99: Volkswagen Volkswagen Golf Confortline | D99: UT Motorysa-Casatoro2020 | E99: Vehículos Convencionales - Automóviles | F99: Vehículos Convencionales | G99: Automóviles | H99: Hatchback - N.A. - Gasolina | I99: Hatchback | J99: N.A. | K99: N.A. | L99: Intervalo de precio 3 | M99: Gasolina | N99: Volkswagen Golf Confortline | O99: Volkswagen | P99: 9201266 | T99: Menor a 100 | U99: N.A. | V99: N.A. | W99: Mecánico | X99: Gasolina | Y99: N.A. | Z99: N.A. | AA99: N.A. | AB99: N.A. | AC99: N.A. | AD99: 70500000 | AE99: 0.08 | AF99: 64860000 | AG99: 0.08 | AH99: 64860000 | AI99: 0.08 | AJ99: 64860000 | AK99: 0.08 | AL99: 64860000 | AM99: 0.08 | AN99: 64860000 | AO99: 0.08 | AP99: 64860000 | AQ99: 9290007.295 | AR99: 0 | AS99: 0 | AT99: 0 | AU99: 1 | AV99: 0 | AW99: 7326893.222 | AX99: 497187.4275 | AY99: 385363.2656 | AZ99: 0 | BA99: 0 | BB99: 7982524.787 | BC99: -1 | BD99: 522993.0033 | BE99: 261496.5016 | BF99: 0 | BG99: 0 | BH99: 0 | BI99: 0 | BJ99: 0 | BK99: 0 | BL99: 1820841.43 | BM99: -1 | BN99: 536755.9771 | BO99: 715674.6361 | BP99: 344074.3443 | BQ99: 1169852.771 | BR99: 151392.7115 | BS99: -1 | BT99: 1169852.771 | BU99: 3275587.757 | BV99: 96340.8164 | BW99: 1988749.71 | BX99: 3307291.336 | BY99: 0 | BZ99: 0 | CA99: -1 | CB99: 8085747.09 | CC99: 178918.659 | CD99: -1 | CE99: -1 | CF99: -1 | CG99: 660622.741 | CH99: 0 | CI99: -1 | CJ99: -1 | CK99: -1 | CL99: -1 | CM99: -1 | CN99: -1 | CO99: -1 | CP99: -1 | CQ99: -1 | CR99: -1 | CS99: -1 | CT99: -1 | CU99: -1 | CV99: -1 | CW99: -1 | CX99: -1 | CY99: -1 | CZ99: -1 | DA99: -1 | DB99: -1 | DC99: -1 | DD99: -1 | DE99: -1 | DF99: -1 | DG99: -1 | DH99: 1 | DJ99: Cilindraje | DK99: Transmisión | DL99: Seg4 | DM99: CCEVeh135 | DN99: CCEVeh135 | DO99: TRUE
A100: VehículosConvencionalesAutomóvilesHatchbackNAGasolinaIntervalodeprecio2Entre100y150NANANANAVolkswagen Volkswagen Golf ConfortlineUT Motorysa-Casatoro2020 | B100: VehículosConvencionalesAutomóvilesHatchbackNAGasolinaIntervalodeprecio2Entre100y150NANANANA | C100: Volkswagen Volkswagen Golf Confortline | D100: UT Motorysa-Casatoro2020 | E100: Vehículos Convencionales - Automóviles | F100: Vehículos Convencionales | G100: Automóviles | H100: Hatchback - N.A. - Gasolina | I100: Hatchback | J100: N.A. | K100: N.A. | L100: Intervalo de precio 2 | M100: Gasolina | N100: Volkswagen Golf Confortline | O100: Volkswagen | P100: 9201276 | T100: Entre 100 y 150 | U100: N.A. | V100: N.A. | W100: Automático | X100: Gasolina | Y100: N.A. | Z100: N.A. | AA100: N.A. | AB100: N.A. | AC100: N.A. | AD100: 78500000 | AE100: 0.08 | AF100: 72220000 | AG100: 0.08 | AH100: 72220000 | AI100: 0.08 | AJ100: 72220000 | AK100: 0.08 | AL100: 72220000 | AM100: 0.08 | AN100: 72220000 | AO100: 0.08 | AP100: 72220000 | AQ100: 9290007.295 | AR100: 0 | AS100: 0 | AT100: 0 | AU100: 1 | AV100: 0 | AW100: 7326893.222 | AX100: 497187.4275 | AY100: 385363.2656 | AZ100: 0 | BA100: 0 | BB100: 7982524.787 | BC100: -1 | BD100: 522993.0033 | BE100: 261496.5016 | BF100: 0 | BG100: 0 | BH100: 0 | BI100: 0 | BJ100: 0 | BK100: 0 | BL100: 1820841.43 | BM100: -1 | BN100: 536755.9771 | BO100: 715674.6361 | BP100: 344074.3443 | BQ100: 1169852.771 | BR100: 151392.7115 | BS100: -1 | BT100: 1169852.771 | BU100: 3275587.757 | BV100: 96340.8164 | BW100: 1988749.71 | BX100: 3307291.336 | BY100: 0 | BZ100: 0 | CA100: -1 | CB100: 8085747.09 | CC100: 178918.659 | CD100: -1 | CE100: -1 | CF100: -1 | CG100: 660622.741 | CH100: 0 | CI100: -1 | CJ100: -1 | CK100: -1 | CL100: -1 | CM100: -1 | CN100: -1 | CO100: -1 | CP100: -1 | CQ100: -1 | CR100: -1 | CS100: -1 | CT100: -1 | CU100: -1 | CV100: -1 | CW100: -1 | CX100: -1 | CY100: -1 | CZ100: -1 | DA100: -1 | DB100: -1 | DC100: -1 | DD100: -1 | DE100: -1 | DF100: -1 | DG100: -1 | DH100: 1 | DJ100: Cilindraje | DK100: Transmisión | DL100: Seg4 | DM100: CCEVeh136 | DN100: CCEVeh136 | DO100: TRUE
A101: VehículosConvencionalesAutomóvilesSedánNAGasolinaIntervalodeprecio3Entre100y150NANANANAVolkswagen Volkswagen JettaUT Motorysa-Casatoro2020 | B101: VehículosConvencionalesAutomóvilesSedánNAGasolinaIntervalodeprecio3Entre100y150NANANANA | C101: Volkswagen Volkswagen Jetta | D101: UT Motorysa-Casatoro2020 | E101: Vehículos Convencionales - Automóviles | F101: Vehículos Convencionales | G101: Automóviles | H101: Sedán - N.A. - Gasolina | I101: Sedán | J101: N.A. | K101: N.A. | L101: Intervalo de precio 3 | M101: Gasolina | N101: Volkswagen Jetta | O101: Volkswagen | P101: 9201247 | T101: Entre 100 y 150 | U101: N.A. | V101: N.A. | W101: Automático | X101: Gasolina | Y101: N.A. | Z101: N.A. | AA101: N.A. | AB101: N.A. | AC101: N.A. | AD101: 98400000 | AE101: 0.08 | AF101: 90528000 | AG101: 0.08 | AH101: 90528000 | AI101: 0.08 | AJ101: 90528000 | AK101: 0.08 | AL101: 90528000 | AM101: 0.08 | AN101: 90528000 | AO101: 0.08 | AP101: 90528000 | AQ101: 9943748.549 | AR101: 0 | AS101: 0 | AT101: 0 | AU101: 1 | AV101: 0 | AW101: 7326893.222 | AX101: 497187.4275 | AY101: 385363.2656 | AZ101: 0 | BA101: 0 | BB101: 7982524.787 | BC101: -1 | BD101: -1 | BE101: 261496.5016 | BF101: 0 | BG101: 0 | BH101: 0 | BI101: 0 | BJ101: 0 | BK101: 0 | BL101: 1820841.43 | BM101: -1 | BN101: 536755.9771 | BO101: 715674.6361 | BP101: -1 | BQ101: 1169852.771 | BR101: 151392.7115 | BS101: -1 | BT101: 1169852.771 | BU101: 3275587.757 | BV101: 96340.8164 | BW101: 1988749.71 | BX101: 3307291.336 | BY101: 0 | BZ101: 0 | CA101: -1 | CB101: 8085747.09 | CC101: 178918.659 | CD101: -1 | CE101: -1 | CF101: -1 | CG101: 660622.741 | CH101: 0 | CI101: -1 | CJ101: -1 | CK101: -1 | CL101: 0 | CM101: -1 | CN101: 0 | CO101: 0 | CP101: -1 | CQ101: -1 | CR101: -1 | CS101: -1 | CT101: -1 | CU101: -1 | CV101: -1 | CW101: -1 | CX101: -1 | CY101: -1 | CZ101: -1 | DA101: -1 | DB101: -1 | DC101: -1 | DD101: -1 | DE101: -1 | DF101: -1 | DG101: -1 | DH101: 1 | DJ101: Cilindraje | DK101: Transmisión | DL101: Seg4 | DM101: CCEVeh137 | DN101: CCEVeh137 | DO101: TRUE
A102: VehículosConvencionalesAutomóvilesSedánNAGasolinaIntervalodeprecio1Entre201y250NANANANAVolkswagen Volkswagen Jetta 2,0UT Motorysa-Casatoro2020 | B102: VehículosConvencionalesAutomóvilesSedánNAGasolinaIntervalodeprecio1Entre201y250NANANANA | C102: Volkswagen Volkswagen Jetta 2,0 | D102: UT Motorysa-Casatoro2020 | E102: Vehículos Convencionales - Automóviles | F102: Vehículos Convencionales | G102: Automóviles | H102: Sedán - N.A. - Gasolina | I102: Sedán | J102: N.A. | K102: N.A. | L102: Intervalo de precio 1 | M102: Gasolina | N102: Volkswagen Jetta 2,0 | O102: Volkswagen | P102: 9201267 | T102: Entre 201 y 250 | U102: N.A. | V102: N.A. | W102: Automático | X102: Gasolina | Y102: N.A. | Z102: N.A. | AA102: N.A. | AB102: N.A. | AC102: N.A. | AE102: 0.08 | AF102: 0 | AG102: 0.08 | AH102: 0 | AI102: 0.08 | AJ102: 0 | AK102: 0.08 | AL102: 0 | AM102: 0.08 | AN102: 0 | AO102: 0.08 | AP102: 0 | AR102: 0 | AS102: 0 | AT102: 0 | AU102: 1 | AV102: 0 | AW102: 0 | AX102: 0 | AY102: 0 | AZ102: 0 | BA102: 0 | BB102: 0 | BC102: 0 | BD102: 0 | BE102: 0 | BF102: 0 | BG102: 0 | BH102: 0 | BI102: 0 | BJ102: 0 | BK102: 0 | BL102: 0 | BM102: 0 | BN102: 0 | BO102: 0 | BP102: 0 | BQ102: 0 | BR102: 0 | BS102: 0 | BT102: 0 | BU102: 0 | BV102: 0 | BW102: 0 | BX102: 0 | BY102: 0 | BZ102: 0 | CA102: 0 | CB102: 0 | CC102: 0 | CD102: 0 | CE102: 0 | CF102: 0 | CG102: 0 | CH102: 0 | CI102: 0 | CJ102: 0 | CK102: 0 | CL102: 0 | CM102: -1 | CN102: 0 | CO102: 0 | CP102: -1 | CQ102: -1 | CR102: -1 | CS102: -1 | CT102: -1 | CU102: -1 | CV102: -1 | CW102: -1 | CX102: -1 | CY102: -1 | CZ102: -1 | DA102: -1 | DB102: -1 | DC102: -1 | DD102: -1 | DE102: -1 | DF102: -1 | DG102: -1 | DH102: 0 | DJ102: Cilindraje | DK102: Transmisión | DL102: Seg4 | DM102: CCEVeh138 | DN102: CCEVeh138 | DO102: TRUE
A103: VehículosConvencionalesAutomóvilesHatchbackNAGasolinaIntervalodeprecio3Entre100y150NANANANAVolkswagen Volkswagen PoloUT Motorysa-Casatoro2020 | B103: VehículosConvencionalesAutomóvilesHatchbackNAGasolinaIntervalodeprecio3Entre100y150NANANANA | C103: Volkswagen Volkswagen Polo | D103: UT Motorysa-Casatoro2020 | E103: Vehículos Convencionales - Automóviles | F103: Vehículos Convencionales | G103: Automóviles | H103: Hatchback - N.A. - Gasolina | I103: Hatchback | J103: N.A. | K103: N.A. | L103: Intervalo de precio 3 | M103: Gasolina | N103: Volkswagen Polo | O103: Volkswagen | P103: 9201260 | T103: Entre 100 y 150 | U103: N.A. | V103: N.A. | W103: Mecánico | X103: Gasolina | Y103: N.A. | Z103: N.A. | AA103: N.A. | AB103: N.A. | AC103: N.A. | AD103: 92000000 | AE103: 0.08 | AF103: 84640000 | AG103: 0.08 | AH103: 84640000 | AI103: 0.08 | AJ103: 84640000 | AK103: 0.08 | AL103: 84640000 | AM103: 0.08 | AN103: 84640000 | AO103: 0.08 | AP103: 84640000 | AQ103: 9943748.549 | AR103: 0 | AS103: 0 | AT103: 0 | AU103: 1 | AV103: 0 | AW103: 7326893.222 | AX103: 497187.4275 | AY103: -1 | AZ103: 0 | BA103: 0 | BB103: 7982524.787 | BC103: -1 | BD103: -1 | BE103: 261496.5016 | BF103: 0 | BG103: 0 | BH103: 0 | BI103: 0 | BJ103: 0 | BK103: 0 | BL103: -1 | BM103: -1 | BN103: 536755.9771 | BO103: 715674.6361 | BP103: -1 | BQ103: -1 | BR103: 151392.7115 | BS103: -1 | BT103: 1169852.771 | BU103: 3275587.757 | BV103: 96340.8164 | BW103: 1988749.71 | BX103: 3307291.336 | BY103: 0 | BZ103: 0 | CA103: -1 | CB103: 8085747.09 | CC103: 178918.659 | CD103: -1 | CE103: -1 | CF103: -1 | CG103: 660622.741 | CH103: 0 | CI103: -1 | CJ103: -1 | CK103: -1 | CL103: -1 | CM103: -1 | CN103: -1 | CO103: -1 | CP103: 0 | CQ103: -1 | CR103: -1 | CS103: -1 | CT103: -1 | CU103: -1 | CV103: -1 | CW103: -1 | CX103: -1 | CY103: -1 | CZ103: -1 | DA103: -1 | DB103: -1 | DC103: -1 | DD103: -1 | DE103: -1 | DF103: -1 | DG103: -1 | DH103: 1 | DJ103: Cilindraje | DK103: Transmisión | DL103: Seg4 | DM103: CCEVeh139 | DN103: CCEVeh139 | DO103: TRUE
A104: VehículosConvencionalesAutomóvilesSedánNAGasolinaIntervalodeprecio3Entre100y150NANANANAVolkswagen Volkswagen VirtusUT Motorysa-Casatoro2020 | B104: VehículosConvencionalesAutomóvilesSedánNAGasolinaIntervalodeprecio3Entre100y150NANANANA | C104: Volkswagen Volkswagen Virtus | D104: UT Motorysa-Casatoro2020 | E104: Vehículos Convencionales - Automóviles | F104: Vehículos Convencionales | G104: Automóviles | H104: Sedán - N.A. - Gasolina | I104: Sedán | J104: N.A. | K104: N.A. | L104: Intervalo de precio 3 | M104: Gasolina | N104: Volkswagen Virtus | O104: Volkswagen | P104: 9201255 | T104: Entre 100 y 150 | U104: N.A. | V104: N.A. | W104: Mecánico | X104: Gasolina | Y104: N.A. | Z104: N.A. | AA104: N.A. | AB104: N.A. | AC104: N.A. | AD104: 93000000 | AE104: 0.08 | AF104: 85560000 | AG104: 0.08 | AH104: 85560000 | AI104: 0.08 | AJ104: 85560000 | AK104: 0.08 | AL104: 85560000 | AM104: 0.08 | AN104: 85560000 | AO104: 0.08 | AP104: 85560000 | AQ104: 9496451.902 | AR104: 0 | AS104: 0 | AT104: 0 | AU104: 1 | AV104: 0 | AW104: 7326893.222 | AX104: 497187.4275 | AY104: -1 | AZ104: 0 | BA104: 0 | BB104: 7982524.787 | BC104: -1 | BD104: -1 | BE104: 261496.5016 | BF104: 0 | BG104: 0 | BH104: 0 | BI104: 0 | BJ104: 0 | BK104: 0 | BL104: -1 | BM104: -1 | BN104: 536755.9771 | BO104: 715674.6361 | BP104: -1 | BQ104: -1 | BR104: 151392.7115 | BS104: -1 | BT104: 1169852.771 | BU104: 3275587.757 | BV104: 96340.8164 | BW104: 1988749.71 | BX104: 3307291.336 | BY104: 0 | BZ104: 0 | CA104: -1 | CB104: 8085747.09 | CC104: 178918.659 | CD104: -1 | CE104: -1 | CF104: -1 | CG104: 660622.741 | CH104: 0 | CI104: -1 | CJ104: -1 | CK104: -1 | CL104: 0 | CM104: -1 | CN104: -1 | CO104: -1 | CP104: 0 | CQ104: -1 | CR104: -1 | CS104: -1 | CT104: -1 | CU104: -1 | CV104: -1 | CW104: -1 | CX104: -1 | CY104: -1 | CZ104: -1 | DA104: -1 | DB104: -1 | DC104: -1 | DD104: -1 | DE104: -1 | DF104: -1 | DG104: -1 | DH104: 1 | DJ104: Cilindraje | DK104: Transmisión | DL104: Seg4 | DM104: CCEVeh140 | DN104: CCEVeh140 | DO104: TRUE
A105: VehículosConvencionalesAutomóvilesSedánNAGasolinaIntervalodeprecio2Entre100y150NANANANAMazda Mazda 2UT Motorysa-Casatoro2020 | B105: VehículosConvencionalesAutomóvilesSedánNAGasolinaIntervalodeprecio2Entre100y150NANANANA | C105: Mazda Mazda 2 | D105: UT Motorysa-Casatoro2020 | E105: Vehículos Convencionales - Automóviles | F105: Vehículos Convencionales | G105: Automóviles | H105: Sedán - N.A. - Gasolina | I105: Sedán | J105: N.A. | K105: N.A. | L105: Intervalo de precio 2 | M105: Gasolina | N105: Mazda 2 | O105: Mazda | P105: 5601168 | T105: Entre 100 y 150 | U105: N.A. | V105: N.A. | W105: Mecánico | X105: Gasolina | Y105: N.A. | Z105: N.A. | AA105: N.A. | AB105: N.A. | AC105: N.A. | AD105: 55200000 | AE105: 0 | AF105: 55200000 | AG105: 0 | AH105: 55200000 | AI105: 0 | AJ105: 55200000 | AK105: 0 | AL105: 55200000 | AM105: 0 | AN105: 55200000 | AO105: 0 | AP105: 55200000 | AQ105: 8436702.922 | AR105: 0 | AS105: -1 | AT105: -1 | AU105: 0 | AV105: -1 | AW105: 7326893.222 | AX105: 497187.4275 | AY105: -1 | AZ105: 0 | BA105: 0 | BB105: 7982524.787 | BC105: -1 | BD105: 660622.741 | BE105: 261496.5016 | BF105: -1 | BG105: 0 | BH105: 0 | BI105: 0 | BJ105: 0 | BK105: 0 | BL105: 1661879.083 | BM105: -1 | BN105: 536755.9771 | BO105: 715674.6361 | BP105: 619333.8197 | BQ105: 1513927.115 | BR105: 151392.7115 | BS105: -1 | BT105: 1101037.902 | BU105: 3275587.757 | BV105: 96340.8164 | BW105: 1988749.71 | BX105: 660622.741 | BY105: 0 | BZ105: 0 | CA105: -1 | CB105: 8085747.09 | CC105: 178918.659 | CD105: -1 | CE105: -1 | CF105: -1 | CG105: 628444.9083 | CH105: 0 | CI105: -1 | CJ105: -1 | CK105: -1 | CL105: 0 | CM105: 0 | CN105: 0 | CO105: -1 | CP105: 0 | CQ105: -1 | CR105: -1 | CS105: -1 | CT105: -1 | CU105: -1 | CV105: -1 | CW105: -1 | CX105: -1 | CY105: -1 | CZ105: -1 | DA105: -1 | DB105: -1 | DC105: -1 | DD105: -1 | DE105: -1 | DF105: -1 | DG105: -1 | DH105: 1 | DJ105: Cilindraje | DK105: Transmisión | DL105: Seg4 | DM105: CCEVeh141 | DN105: CCEVeh141 | DO105: TRUE
A106: VehículosConvencionalesAutomóvilesSedánNAGasolinaIntervalodeprecio2Entre100y150NANANANAMazda MAZDA 2 [2] [FL] TOURING SEDAN TP 1500CC 6ABUT Motorysa-Casatoro2020 | B106: VehículosConvencionalesAutomóvilesSedánNAGasolinaIntervalodeprecio2Entre100y150NANANANA | C106: Mazda MAZDA 2 [2] [FL] TOURING SEDAN TP 1500CC 6AB | D106: UT Motorysa-Casatoro2020 | E106: Vehículos Convencionales - Automóviles | F106: Vehículos Convencionales | G106: Automóviles | H106: Sedán - N.A. - Gasolina | I106: Sedán | J106: N.A. | K106: N.A. | L106: Intervalo de precio 2 | M106: Gasolina | N106: MAZDA 2 [2] [FL] TOURING SEDAN TP 1500CC 6AB | O106: Mazda | P106: 5601197 | T106: Entre 100 y 150 | U106: N.A. | V106: N.A. | W106: Mecánico | X106: Gasolina | Y106: N.A. | Z106: N.A. | AA106: N.A. | AB106: N.A. | AC106: N.A. | AD106: 83600000 | AE106: 0 | AF106: 83600000 | AG106: 0 | AH106: 83600000 | AI106: 0 | AJ106: 83600000 | AK106: 0 | AL106: 83600000 | AM106: 0 | AN106: 83600000 | AO106: 0 | AP106: 83600000 | AQ106: 8436702.922 | AR106: 0 | AS106: -1 | AT106: -1 | AU106: 0 | AV106: -1 | AW106: 7326893.222 | AX106: 497187.4275 | AY106: -1 | AZ106: 0 | BA106: 0 | BB106: 7982524.787 | BC106: -1 | BD106: 660622.741 | BE106: 261496.5016 | BF106: -1 | BG106: 0 | BH106: 0 | BI106: 0 | BJ106: 0 | BK106: 0 | BL106: 1661879.083 | BM106: -1 | BN106: 536755.9771 | BO106: 715674.6361 | BP106: 619333.8197 | BQ106: 1513927.115 | BR106: 151392.7115 | BS106: -1 | BT106: 1101037.902 | BU106: 3275587.757 | BV106: 96340.8164 | BW106: 1988749.71 | BX106: 660622.741 | BY106: 0 | BZ106: 0 | CA106: -1 | CB106: 8085747.09 | CC106: 178918.659 | CD106: -1 | CE106: -1 | CF106: -1 | CG106: 628444.9083 | CH106: 0 | CI106: -1 | CJ106: -1 | CK106: -1 | CL106: 0 | CM106: 0 | CN106: 0 | CO106: -1 | CP106: 0 | CQ106: -1 | CR106: -1 | CS106: -1 | CT106: -1 | CU106: -1 | CV106: -1 | CW106: -1 | CX106: -1 | CY106: -1 | CZ106: -1 | DA106: -1 | DB106: -1 | DC106: -1 | DD106: -1 | DE106: -1 | DF106: -1 | DG106: -1 | DH106: 1 | DJ106: Cilindraje | DK106: Transmisión | DL106: Seg4 | DM106: CCEVeh142 | DN106: CCEVeh142 | DO106: TRUE
A107: VehículosConvencionalesAutomóvilesSedánNAGasolinaIntervalodeprecio3Entre151y200NANANANAMazda Mazda 3UT Motorysa-Casatoro2020 | B107: VehículosConvencionalesAutomóvilesSedánNAGasolinaIntervalodeprecio3Entre151y200NANANANA | C107: Mazda Mazda 3 | D107: UT Motorysa-Casatoro2020 | E107: Vehículos Convencionales - Automóviles | F107: Vehículos Convencionales | G107: Automóviles | H107: Sedán - N.A. - Gasolina | I107: Sedán | J107: N.A. | K107: N.A. | L107: Intervalo de precio 3 | M107: Gasolina | N107: Mazda 3 | O107: Mazda | P107: 5601180 | T107: Entre 151 y 200 | U107: N.A. | V107: N.A. | W107: Mecánico | X107: Gasolina | Y107: N.A. | Z107: N.A. | AA107: N.A. | AB107: N.A. | AC107: N.A. | AD107: 98300000 | AE107: 0 | AF107: 98300000 | AG107: 0 | AH107: 98300000 | AI107: 0 | AJ107: 98300000 | AK107: 0 | AL107: 98300000 | AM107: 0 | AN107: 98300000 | AO107: 0 | AP107: 98300000 | AQ107: 8436702.922 | AR107: 0 | AS107: -1 | AT107: -1 | AU107: 0 | AV107: -1 | AW107: 7326893.222 | AX107: 497187.4275 | AY107: -1 | AZ107: 0 | BA107: 0 | BB107: 7982524.787 | BC107: -1 | BD107: 660622.741 | BE107: 261496.5016 | BF107: -1 | BG107: 0 | BH107: 0 | BI107: 0 | BJ107: 0 | BK107: 0 | BL107: 1661879.083 | BM107: -1 | BN107: 536755.9771 | BO107: 715674.6361 | BP107: 619333.8197 | BQ107: 1513927.115 | BR107: 151392.7115 | BS107: -1 | BT107: 1101037.902 | BU107: 3275587.757 | BV107: 96340.8164 | BW107: 1988749.71 | BX107: 660622.741 | BY107: 0 | BZ107: 0 | CA107: -1 | CB107: 8085747.09 | CC107: 178918.659 | CD107: -1 | CE107: -1 | CF107: -1 | CG107: 628444.9083 | CH107: 0 | CI107: -1 | CJ107: -1 | CK107: -1 | CL107: 0 | CM107: 0 | CN107: -1 | CO107: -1 | CP107: 0 | CQ107: -1 | CR107: -1 | CS107: -1 | CT107: -1 | CU107: -1 | CV107: -1 | CW107: -1 | CX107: -1 | CY107: -1 | CZ107: -1 | DA107: -1 | DB107: -1 | DC107: -1 | DD107: -1 | DE107: -1 | DF107: -1 | DG107: -1 | DH107: 1 | DJ107: Cilindraje | DK107: Transmisión | DL107: Seg4 | DM107: CCEVeh143 | DN107: CCEVeh143 | DO107: TRUE
A108: VehículosConvencionalesAutomóvilesSedánNAGasolinaIntervalodeprecio3Entre151y200NANANANAMazda Mazda 3 PrimeUT Motorysa-Casatoro2020 | B108: VehículosConvencionalesAutomóvilesSedánNAGasolinaIntervalodeprecio3Entre151y200NANANANA | C108: Mazda Mazda 3 Prime | D108: UT Motorysa-Casatoro2020 | E108: Vehículos Convencionales - Automóviles | F108: Vehículos Convencionales | G108: Automóviles | H108: Sedán - N.A. - Gasolina | I108: Sedán | J108: N.A. | K108: N.A. | L108: Intervalo de precio 3 | M108: Gasolina | N108: Mazda 3 Prime | O108: Mazda | P108: 5601181 | T108: Entre 151 y 200 | U108: N.A. | V108: N.A. | W108: Automático | X108: Gasolina | Y108: N.A. | Z108: N.A. | AA108: N.A. | AB108: N.A. | AC108: N.A. | AD108: 102000000 | AE108: 0 | AF108: 102000000 | AG108: 0 | AH108: 102000000 | AI108: 0 | AJ108: 102000000 | AK108: 0 | AL108: 102000000 | AM108: 0 | AN108: 102000000 | AO108: 0 | AP108: 102000000 | AQ108: 10157074.64 | AR108: 0 | AS108: -1 | AT108: -1 | AU108: 0 | AV108: -1 | AW108: 7326893.222 | AX108: 497187.4275 | AY108: -1 | AZ108: 0 | BA108: 0 | BB108: 7982524.787 | BC108: -1 | BD108: 660622.741 | BE108: 261496.5016 | BF108: -1 | BG108: 0 | BH108: 0 | BI108: 0 | BJ108: 0 | BK108: 0 | BL108: 1661879.083 | BM108: -1 | BN108: 536755.9771 | BO108: 715674.6361 | BP108: 619333.8197 | BQ108: 1513927.115 | BR108: 151392.7115 | BS108: -1 | BT108: 1101037.902 | BU108: 3275587.757 | BV108: 96340.8164 | BW108: 1988749.71 | BX108: 660622.741 | BY108: 0 | BZ108: 0 | CA108: -1 | CB108: 8085747.09 | CC108: 178918.659 | CD108: -1 | CE108: -1 | CF108: -1 | CG108: 628444.9083 | CH108: 0 | CI108: -1 | CJ108: -1 | CK108: -1 | CL108: 0 | CM108: 0 | CN108: -1 | CO108: -1 | CP108: 0 | CQ108: -1 | CR108: -1 | CS108: -1 | CT108: -1 | CU108: -1 | CV108: -1 | CW108: -1 | CX108: -1 | CY108: -1 | CZ108: -1 | DA108: -1 | DB108: -1 | DC108: -1 | DD108: -1 | DE108: -1 | DF108: -1 | DG108: -1 | DH108: 1 | DJ108: Cilindraje | DK108: Transmisión | DL108: Seg4 | DM108: CCEVeh144 | DN108: CCEVeh144 | DO108: TRUE
A109: VehículosConvencionalesAutomóvilesHatchbackNAGasolinaIntervalodeprecio2Entre100y150NANANANAMazda Mazda 2 primeUT Motorysa-Casatoro2020 | B109: VehículosConvencionalesAutomóvilesHatchbackNAGasolinaIntervalodeprecio2Entre100y150NANANANA | C109: Mazda Mazda 2 prime | D109: UT Motorysa-Casatoro2020 | E109: Vehículos Convencionales - Automóviles | F109: Vehículos Convencionales | G109: Automóviles | H109: Hatchback - N.A. - Gasolina | I109: Hatchback | J109: N.A. | K109: N.A. | L109: Intervalo de precio 2 | M109: Gasolina | N109: Mazda 2 prime | O109: Mazda | P109: 5601164 | T109: Entre 100 y 150 | U109: N.A. | V109: N.A. | W109: Mecánico | X109: Gasolina | Y109: N.A. | Z109: N.A. | AA109: N.A. | AB109: N.A. | AC109: N.A. | AD109: 77200000 | AE109: 0 | AF109: 77200000 | AG109: 0 | AH109: 77200000 | AI109: 0 | AJ109: 77200000 | AK109: 0 | AL109: 77200000 | AM109: 0 | AN109: 77200000 | AO109: 0 | AP109: 77200000 | AQ109: 10157074.64 | AR109: 0 | AS109: -1 | AT109: -1 | AU109: 0 | AV109: -1 | AW109: 7326893.222 | AX109: 497187.4275 | AY109: -1 | AZ109: 0 | BA109: 0 | BB109: 7982524.787 | BC109: -1 | BD109: 660622.741 | BE109: 261496.5016 | BF109: -1 | BG109: 0 | BH109: 0 | BI109: 0 | BJ109: 0 | BK109: 0 | BL109: 1661879.083 | BM109: -1 | BN109: 536755.9771 | BO109: 715674.6361 | BP109: 619333.8197 | BQ109: 1513927.115 | BR109: 151392.7115 | BS109: -1 | BT109: 1101037.902 | BU109: 3275587.757 | BV109: 96340.8164 | BW109: 1988749.71 | BX109: 660622.741 | BY109: 0 | BZ109: 0 | CA109: -1 | CB109: 8085747.09 | CC109: 178918.659 | CD109: -1 | CE109: -1 | CF109: -1 | CG109: 628444.9083 | CH109: 0 | CI109: -1 | CJ109: -1 | CK109: -1 | CL109: -1 | CM109: -1 | CN109: -1 | CO109: -1 | CP109: 0 | CQ109: -1 | CR109: -1 | CS109: -1 | CT109: -1 | CU109: -1 | CV109: -1 | CW109: -1 | CX109: -1 | CY109: -1 | CZ109: -1 | DA109: -1 | DB109: -1 | DC109: -1 | DD109: -1 | DE109: -1 | DF109: -1 | DG109: -1 | DH109: 1 | DJ109: Cilindraje | DK109: Transmisión | DL109: Seg4 | DM109: CCEVeh145 | DN109: CCEVeh145 | DO109: TRUE
A110: VehículosConvencionalesAutomóvilesHatchbackNAGasolinaIntervalodeprecio3Entre100y150NANANANAToyota YARIS SPORT HB AT-TP 1500CC 2AB ABS TC CTTUYOMOTOR S.A.S. | B110: VehículosConvencionalesAutomóvilesHatchbackNAGasolinaIntervalodeprecio3Entre100y150NANANANA | C110: Toyota YARIS SPORT HB AT-TP 1500CC 2AB ABS TC CT | D110: TUYOMOTOR S.A.S. | E110: Vehículos Convencionales - Automóviles | F110: Vehículos Convencionales | G110: Automóviles | H110: Hatchback - N.A. - Gasolina | I110: Hatchback | J110: N.A. | K110: N.A. | L110: Intervalo de precio 3 | M110: Gasolina | N110: YARIS SPORT HB AT-TP 1500CC 2AB ABS TC CT | O110: Toyota | P110: 9001142 | T110: Entre 100 y 150 | U110: N.A. | V110: N.A. | W110: Automático | X110: Gasolina | Y110: N.A. | Z110: N.A. | AA110: N.A. | AB110: N.A. | AC110: N.A. | AE110: 0 | AF110: 0 | AG110: 0 | AH110: 0 | AI110: 0 | AJ110: 0 | AK110: 0 | AL110: 0 | AM110: 0 | AN110: 0 | AO110: 0 | AP110: 0 | AR110: 0 | AS110: -1 | AT110: -1 | AU110: 0.03 | AV110: 0 | AW110: 0 | AX110: 0 | AY110: 0 | AZ110: 0 | BA110: 0 | BB110: 0 | BC110: 0 | BD110: 0 | BE110: 0 | BF110: 0 | BG110: 0 | BH110: 0 | BI110: 0 | BJ110: 0 | BK110: 0 | BL110: 0 | BM110: 0 | BN110: 0 | BO110: 0 | BP110: 0 | BQ110: 0 | BR110: 0 | BS110: 0 | BT110: 0 | BU110: 0 | BV110: 0 | BW110: 0 | BX110: 0 | BY110: 0 | BZ110: 0 | CA110: 0 | CB110: 0 | CC110: 0 | CD110: 0 | CE110: 0 | CF110: 0 | CG110: 0 | CH110: 0 | CI110: 0 | CJ110: 0 | CK110: 0 | CL110: 0 | CM110: 0 | CN110: 0 | CO110: 0 | CP110: -1 | CQ110: -1 | CR110: -1 | CS110: -1 | CT110: -1 | CU110: -1 | CV110: -1 | CW110: -1 | CX110: -1 | CY110: -1 | CZ110: -1 | DA110: -1 | DB110: -1 | DC110: -1 | DD110: -1 | DE110: -1 | DF110: -1 | DG110: -1 | DH110: 0 | DJ110: Cilindraje | DK110: Transmisión | DL110: Seg4 | DM110: CCEVeh148 | DN110: CCEVeh148 | DO110: TRUE
A111: VehículosConvencionalesAutomóvilesHatchbackNAGasolinaIntervalodeprecio2Menora100NANANANAHyundai GRAND i10_GRAND METRO TAXI LIMITED_MT 1200CC 5P 2AB ABS AA TAXIALFA AM S.A.S. | B111: VehículosConvencionalesAutomóvilesHatchbackNAGasolinaIntervalodeprecio2Menora100NANANANA | C111: Hyundai GRAND i10_GRAND METRO TAXI LIMITED_MT 1200CC 5P 2AB ABS AA TAXI | D111: ALFA AM S.A.S. | E111: Vehículos Convencionales - Automóviles | F111: Vehículos Convencionales | G111: Automóviles | H111: Hatchback - N.A. - Gasolina | I111: Hatchback | J111: N.A. | K111: N.A. | L111: Intervalo de precio 2 | M111: Gasolina | N111: GRAND i10_GRAND METRO TAXI LIMITED_MT 1200CC 5P 2AB ABS AA TAXI | O111: Hyundai | P111: 3201365 | T111: Menor a 100 | U111: N.A. | V111: N.A. | W111: Mecánico | X111: Gasolina | Y111: N.A. | Z111: N.A. | AA111: N.A. | AB111: N.A. | AC111: N.A. | AD111: 61000000 | AE111: 0.01 | AF111: 60390000 | AG111: 0.01 | AH111: 60390000 | AI111: 0.01 | AJ111: 60390000 | AK111: 0.01 | AL111: 60390000 | AM111: 0.01 | AN111: 60390000 | AO111: 0.02 | AP111: 59780000 | AQ111: 8111567.172 | AR111: 0 | AS111: 0 | AT111: 0 | AU111: 0.5 | AV111: 0 | AW111: 7326893.222 | AX111: 638249.2052 | AY111: 522203.8952 | AZ111: 0 | BA111: 0 | BB111: 6811859.699 | BC111: 0 | BD111: 754294.5153 | BE111: 40615.85851 | BF111: 324926.8681 | BG111: 0 | BH111: 0 | BI111: 0 | BJ111: 0 | BK111: 0 | BL111: 4061585.851 | BM111: 2552996.821 | BN111: 1102430.445 | BO111: 2785087.441 | BP111: 522203.8952 | BQ111: 440972.1782 | BR111: 255299.6821 | BS111: 754294.5153 | BT111: 870339.8253 | BU111: 1798702.306 | BV111: 174067.9651 | BW111: 1102430.445 | BX111: 197277.0271 | BY111: 0 | BZ111: 0 | CA111: -1 | CB111: 5799944.596 | CC111: 150858.9031 | CD111: 2552996.821 | CE111: 5222038.952 | CF111: 0 | CG111: 406158.5851 | CH111: 0 | CI111: -1 | CJ111: -1 | CK111: -1 | CL111: -1 | CM111: -1 | CN111: -1 | CO111: -1 | CP111: -1 | CQ111: -1 | CR111: -1 | CS111: -1 | CT111: -1 | CU111: -1 | CV111: -1 | CW111: -1 | CX111: -1 | CY111: -1 | CZ111: -1 | DA111: -1 | DB111: -1 | DC111: -1 | DD111: -1 | DE111: -1 | DF111: -1 | DG111: -1 | DH111: 1 | DJ111: Cilindraje | DK111: Transmisión | DL111: Seg4 | DM111: CCEVeh149 | DN111: CCEVeh149 | DO111: TRUE
A112: VehículosConvencionalesAutomóvilesSedánNAGasolinaIntervalodeprecio1Menora100NANANANAHyundai GRAND i10_GRAND METRO TAXI ADVANCE_MT 1200CC 4P 2AB ABS AA TAXIALFA AM S.A.S. | B112: VehículosConvencionalesAutomóvilesSedánNAGasolinaIntervalodeprecio1Menora100NANANANA | C112: Hyundai GRAND i10_GRAND METRO TAXI ADVANCE_MT 1200CC 4P 2AB ABS AA TAXI | D112: ALFA AM S.A.S. | E112: Vehículos Convencionales - Automóviles | F112: Vehículos Convencionales | G112: Automóviles | H112: Sedán - N.A. - Gasolina | I112: Sedán | J112: N.A. | K112: N.A. | L112: Intervalo de precio 1 | M112: Gasolina | N112: GRAND i10_GRAND METRO TAXI ADVANCE_MT 1200CC 4P 2AB ABS AA TAXI | O112: Hyundai | P112: 3201358 | T112: Menor a 100 | U112: N.A. | V112: N.A. | W112: Mecánico | X112: Gasolina | Y112: N.A. | Z112: N.A. | AA112: N.A. | AB112: N.A. | AC112: N.A. | AD112: 67000000 | AE112: 0.01 | AF112: 66330000 | AG112: 0.01 | AH112: 66330000 | AI112: 0.01 | AJ112: 66330000 | AK112: 0.01 | AL112: 66330000 | AM112: 0.01 | AN112: 66330000 | AO112: 0.02 | AP112: 65660000 | AQ112: 8111567.172 | AR112: 0 | AS112: 0 | AT112: 0 | AU112: 0.5 | AV112: 0 | AW112: 7326893.222 | AX112: 638249.2052 | AY112: 522203.8952 | AZ112: 0 | BA112: 0 | BB112: 6811859.699 | BC112: 0 | BD112: 754294.5153 | BE112: 40615.85851 | BF112: 324926.8681 | BG112: 0 | BH112: 0 | BI112: 0 | BJ112: 0 | BK112: 0 | BL112: 4061585.851 | BM112: 2552996.821 | BN112: 1102430.445 | BO112: 2785087.441 | BP112: 522203.8952 | BQ112: 440972.1782 | BR112: 255299.6821 | BS112: 754294.5153 | BT112: 870339.8253 | BU112: 1798702.306 | BV112: 174067.9651 | BW112: 1102430.445 | BX112: 197277.0271 | BY112: 0 | BZ112: 0 | CA112: -1 | CB112: 5799944.596 | CC112: 150858.9031 | CD112: 2552996.821 | CE112: 5222038.952 | CF112: 0 | CG112: 406158.5851 | CH112: 0 | CI112: -1 | CJ112: -1 | CK112: -1 | CL112: -1 | CM112: -1 | CN112: -1 | CO112: -1 | CP112: -1 | CQ112: -1 | CR112: -1 | CS112: -1 | CT112: -1 | CU112: -1 | CV112: -1 | CW112: -1 | CX112: -1 | CY112: -1 | CZ112: -1 | DA112: -1 | DB112: -1 | DC112: -1 | DD112: -1 | DE112: -1 | DF112: -1 | DG112: -1 | DH112: 1 | DJ112: Cilindraje | DK112: Transmisión | DL112: Seg4 | DM112: CCEVeh150 | DN112: CCEVeh150 | DO112: TRUE
A113: VehículosConvencionalesAutomóvilesHatchbackNAGasolinaIntervalodeprecio3Entre100y150NANANANAToyota YARIS 1,5 CVT SPORT - YADISTRIBUIDORA TOYOTA S.A.S. | B113: VehículosConvencionalesAutomóvilesHatchbackNAGasolinaIntervalodeprecio3Entre100y150NANANANA | C113: Toyota YARIS 1,5 CVT SPORT - YA | D113: DISTRIBUIDORA TOYOTA S.A.S. | E113: Vehículos Convencionales - Automóviles | F113: Vehículos Convencionales | G113: Automóviles | H113: Hatchback - N.A. - Gasolina | I113: Hatchback | J113: N.A. | K113: N.A. | L113: Intervalo de precio 3 | M113: Gasolina | N113: YARIS 1,5 CVT SPORT - YA | O113: Toyota | P113: 9001142 | T113: Entre 100 y 150 | U113: N.A. | V113: N.A. | W113: Automático | X113: Gasolina | Y113: N.A. | Z113: N.A. | AA113: N.A. | AB113: N.A. | AC113: N.A. | AD113: 96500000 | AE113: 0.01 | AF113: 95535000 | AG113: 0.01 | AH113: 95535000 | AI113: 0.01 | AJ113: 95535000 | AK113: 0.01 | AL113: 95535000 | AM113: 0.01 | AN113: 95535000 | AO113: 0.01 | AP113: 95535000 | AQ113: 3510331.957 | AR113: 0 | AS113: 0 | AT113: 0 | AU113: 0 | AV113: 0 | AW113: 7326893.222 | AX113: 73630.45532 | AY113: -1 | AZ113: 0 | BA113: 0 | BB113: 6173913.678 | BC113: 0 | BD113: 0 | BE113: 41417.13112 | BF113: 668947.1239 | BG113: 0 | BH113: 0 | BI113: 0 | BJ113: 0 | BK113: 0 | BL113: -1 | BM113: -1 | BN113: -1 | BO113: 1664784.595 | BP113: 0 | BQ113: 0 | BR113: -1 | BS113: -1 | BT113: 540840.4832 | BU113: -1 | BV113: 61435.41116 | BW113: 1289048.587 | BX113: -1 | BY113: 0 | BZ113: 0 | CA113: -1 | CB113: 13310287.85 | CC113: 172111.1893 | CD113: -1 | CE113: -1 | CF113: 0 | CG113: 198865.8829 | CH113: 0 | CI113: -1 | CJ113: -1 | CK113: -1 | CL113: 0 | CM113: 0 | CN113: 0 | CO113: 0 | CP113: 0 | CQ113: -1 | CR113: -1 | CS113: -1 | CT113: -1 | CU113: -1 | CV113: -1 | CW113: -1 | CX113: -1 | CY113: -1 | CZ113: -1 | DA113: -1 | DB113: -1 | DC113: -1 | DD113: -1 | DE113: -1 | DF113: -1 | DG113: -1 | DH113: 1 | DJ113: Cilindraje | DK113: Transmisión | DL113: Seg4 | DM113: CCEVeh151 | DN113: CCEVeh151 | DO113: TRUE
A114: VehículosConvencionalesAutomóvilesSedánNAGasolinaIntervalodeprecio3Entre151y200NANANANAToyota COROLLA 2,0 CVT XEI - CX1DISTRIBUIDORA TOYOTA S.A.S. | B114: VehículosConvencionalesAutomóvilesSedánNAGasolinaIntervalodeprecio3Entre151y200NANANANA | C114: Toyota COROLLA 2,0 CVT XEI - CX1 | D114: DISTRIBUIDORA TOYOTA S.A.S. | E114: Vehículos Convencionales - Automóviles | F114: Vehículos Convencionales | G114: Automóviles | H114: Sedán - N.A. - Gasolina | I114: Sedán | J114: N.A. | K114: N.A. | L114: Intervalo de precio 3 | M114: Gasolina | N114: COROLLA 2,0 CVT XEI - CX1 | O114: Toyota | P114: 9001143 | T114: Entre 151 y 200 | U114: N.A. | V114: N.A. | W114: Automático | X114: Gasolina | Y114: N.A. | Z114: N.A. | AA114: N.A. | AB114: N.A. | AC114: N.A. | AD114: 123300000 | AE114: 0.01 | AF114: 122067000 | AG114: 0.01 | AH114: 122067000 | AI114: 0.01 | AJ114: 122067000 | AK114: 0.01 | AL114: 122067000 | AM114: 0.01 | AN114: 122067000 | AO114: 0.01 | AP114: 122067000 | AQ114: 3510331.957 | AR114: 0 | AS114: 0 | AT114: 0 | AU114: 0 | AV114: 0 | AW114: 7326893.222 | AX114: 73630.45532 | AY114: -1 | AZ114: 0 | BA114: 0 | BB114: 6173913.678 | BC114: 0 | BD114: 0 | BE114: 41417.13112 | BF114: 738051.4718 | BG114: 0 | BH114: 0 | BI114: 0 | BJ114: 0 | BK114: 0 | BL114: -1 | BM114: -1 | BN114: -1 | BO114: 1664784.595 | BP114: 0 | BQ114: 0 | BR114: -1 | BS114: -1 | BT114: 599348.4702 | BU114: -1 | BV114: 61435.41116 | BW114: 1289048.587 | BX114: -1 | BY114: 0 | BZ114: 0 | CA114: -1 | CB114: 13310287.85 | CC114: 172111.1893 | CD114: -1 | CE114: -1 | CF114: 0 | CG114: 702234.7352 | CH114: 0 | CI114: -1 | CJ114: -1 | CK114: -1 | CL114: 0 | CM114: 0 | CN114: 0 | CO114: 0 | CP114: -1 | CQ114: -1 | CR114: -1 | CS114: -1 | CT114: -1 | CU114: -1 | CV114: -1 | CW114: -1 | CX114: -1 | CY114: -1 | CZ114: -1 | DA114: -1 | DB114: -1 | DC114: -1 | DD114: -1 | DE114: -1 | DF114: -1 | DG114: -1 | DH114: 1 | DJ114: Cilindraje | DK114: Transmisión | DL114: Seg4 | DM114: CCEVeh152 | DN114: CCEVeh152 | DO114: TRUE
A115: VehículosConvencionalesAutomóvilesSedánNAGasolinaIntervalodeprecio3Entre151y200NANANANAToyota COROLLA 2,0 CVT SEG - CS1DISTRIBUIDORA TOYOTA S.A.S. | B115: VehículosConvencionalesAutomóvilesSedánNAGasolinaIntervalodeprecio3Entre151y200NANANANA | C115: Toyota COROLLA 2,0 CVT SEG - CS1 | D115: DISTRIBUIDORA TOYOTA S.A.S. | E115: Vehículos Convencionales - Automóviles | F115: Vehículos Convencionales | G115: Automóviles | H115: Sedán - N.A. - Gasolina | I115: Sedán | J115: N.A. | K115: N.A. | L115: Intervalo de precio 3 | M115: Gasolina | N115: COROLLA 2,0 CVT SEG - CS1 | O115: Toyota | P115: 9001144 | T115: Entre 151 y 200 | U115: N.A. | V115: N.A. | W115: Automático | X115: Gasolina | Y115: N.A. | Z115: N.A. | AA115: N.A. | AB115: N.A. | AC115: N.A. | AD115: 121500000 | AE115: 0.01 | AF115: 120285000 | AG115: 0.01 | AH115: 120285000 | AI115: 0.01 | AJ115: 120285000 | AK115: 0.01 | AL115: 120285000 | AM115: 0.01 | AN115: 120285000 | AO115: 0.01 | AP115: 120285000 | AQ115: 3510331.957 | AR115: 0 | AS115: 0 | AT115: 0 | AU115: 0 | AV115: 0 | AW115: 7326893.222 | AX115: 73630.45532 | AY115: -1 | AZ115: 0 | BA115: 0 | BB115: 6173913.678 | BC115: 0 | BD115: 0 | BE115: 41417.13112 | BF115: 0 | BG115: 0 | BH115: 0 | BI115: 0 | BJ115: 0 | BK115: 0 | BL115: 0 | BM115: -1 | BN115: -1 | BO115: 1664784.595 | BP115: 0 | BQ115: 0 | BR115: -1 | BS115: -1 | BT115: 844413.6964 | BU115: -1 | BV115: 61435.41116 | BW115: 1289048.587 | BX115: -1 | BY115: 0 | BZ115: 0 | CA115: -1 | CB115: 13310287.85 | CC115: 172111.1893 | CD115: -1 | CE115: -1 | CF115: 0 | CG115: 702234.7352 | CH115: 0 | CI115: -1 | CJ115: -1 | CK115: -1 | CL115: 0 | CM115: 0 | CN115: 0 | CO115: 0 | CP115: -1 | CQ115: -1 | CR115: -1 | CS115: -1 | CT115: -1 | CU115: -1 | CV115: -1 | CW115: -1 | CX115: -1 | CY115: -1 | CZ115: -1 | DA115: -1 | DB115: -1 | DC115: -1 | DD115: -1 | DE115: -1 | DF115: -1 | DG115: -1 | DH115: 1 | DJ115: Cilindraje | DK115: Transmisión | DL115: Seg4 | DM115: CCEVeh153 | DN115: CCEVeh153 | DO115: TRUE
A116: VehículosConvencionalesCamperos/Camionetas4x24x2GasolinaIntervalodeprecio1Entre120y14954x2NANAChevrolet CHEVROLET TRACKER [3] TURBO LT D MT 1200CC 4X2AUTOMAYOR S.A. | B116: VehículosConvencionalesCamperos/Camionetas4x24x2GasolinaIntervalodeprecio1Entre120y14954x2NANA | C116: Chevrolet CHEVROLET TRACKER [3] TURBO LT D MT 1200CC 4X2 | D116: AUTOMAYOR S.A. | E116: Vehículos Convencionales - Camperos/Camionetas | F116: Vehículos Convencionales | G116: Camperos/Camionetas | H116: 4x2 - 4x2 - Gasolina | I116: 4x2 | J116: 4x2 | K116: N.A. | L116: Intervalo de precio 1 | M116: Gasolina | N116: CHEVROLET TRACKER [3] TURBO LT D MT 1200CC 4X2 | O116: Chevrolet | P116: 1606256 | T116: Entre 120 y 149 | U116: 5 | V116: 4x2 | W116: Mecánico | X116: Gasolina | Y116: N.A. | Z116: N.A. | AA116: N.A. | AB116: N.A. | AC116: N.A. | AD116: 101300000 | AE116: 0.06 | AF116: 95222000 | AG116: 0.06 | AH116: 95222000 | AI116: 0.06 | AJ116: 95222000 | AK116: 0.06 | AL116: 95222000 | AM116: 0.07 | AN116: 94209000 | AO116: 0.08 | AP116: 93196000 | AQ116: 8376618.076 | AR116: 0 | AS116: 0 | AT116: 0 | AU116: 1 | AV116: 0 | AW116: 7326893.222 | AX116: 451336.6225 | AY116: 1.453604448 | AZ116: 0 | BA116: 0 | BB116: 9736880.8 | BC116: 1.453604448 | BD116: 1128341.556 | BE116: 108329.0645 | BF116: 1.453604448 | BG116: 0 | BH116: 0 | BI116: 0 | BJ116: 0 | BK116: 0 | BL116: 3878943.471 | BM116: 4874159.687 | BN116: 2438193.531 | BO116: 3447949.752 | BP116: 1.453604448 | BQ116: 1292981.157 | BR116: 146255.1326 | BS116: 1661739.383 | BT116: 1147574.22 | BU116: 4128919.828 | BV116: 109691.3494 | BW116: 1810173.62 | BX116: -1 | BY116: 0 | BZ116: 0 | CA116: 1723974.876 | CB116: 6654543.021 | CC116: 109691.3494 | CD116: -1 | CE116: -1 | CF116: 1.723974876 | CG116: 853157.2386 | CH116: 0 | CI116: -1 | CJ116: -1 | CK116: -1 | CL116: 0 | CM116: 0 | CN116: 0 | CO116: -1 | CP116: 0 | CQ116: -1 | CR116: -1 | CS116: -1 | CT116: -1 | CU116: -1 | CV116: -1 | CW116: -1 | CX116: -1 | CY116: -1 | CZ116: -1 | DA116: -1 | DB116: -1 | DC116: -1 | DD116: -1 | DE116: -1 | DF116: -1 | DG116: -1 | DH116: 1 | DJ116: Cilindraje | DK116: Transmisión | DL116: Seg5 | DM116: CCEVeh154 | DN116: CCEVeh154 | DO116: TRUE
A117: VehículosConvencionalesCamperos/Camionetas4x24x2GasolinaIntervalodeprecio2Entre120y14954x2NANAChevrolet TRACKER [2] LTZ TP 1200CC TAUTOMAYOR S.A. | B117: VehículosConvencionalesCamperos/Camionetas4x24x2GasolinaIntervalodeprecio2Entre120y14954x2NANA | C117: Chevrolet TRACKER [2] LTZ TP 1200CC T | D117: AUTOMAYOR S.A. | E117: Vehículos Convencionales - Camperos/Camionetas | F117: Vehículos Convencionales | G117: Camperos/Camionetas | H117: 4x2 - 4x2 - Gasolina | I117: 4x2 | J117: 4x2 | K117: N.A. | L117: Intervalo de precio 2 | M117: Gasolina | N117: TRACKER [2] LTZ TP 1200CC T | O117: Chevrolet | P117: 1606248 | T117: Entre 120 y 149 | U117: 5 | V117: 4x2 | W117: Automático | X117: Gasolina | Y117: N.A. | Z117: N.A. | AA117: N.A. | AB117: N.A. | AC117: N.A. | AD117: 116200000 | AE117: 0.06 | AF117: 109228000 | AG117: 0.06 | AH117: 109228000 | AI117: 0.06 | AJ117: 109228000 | AK117: 0.06 | AL117: 109228000 | AM117: 0.07 | AN117: 108066000 | AO117: 0.08 | AP117: 106904000 | AQ117: 8376618.076 | AR117: 0 | AS117: 0 | AT117: 0 | AU117: 1 | AV117: 0 | AW117: 7326893.222 | AX117: 451336.6225 | AY117: 1.453604448 | AZ117: 0 | BA117: 0 | BB117: 9736880.8 | BC117: 1.453604448 | BD117: 1128341.556 | BE117: 108329.0645 | BF117: 1.453604448 | BG117: 0 | BH117: 0 | BI117: 0 | BJ117: 0 | BK117: 0 | BL117: 3878943.471 | BM117: 4874159.687 | BN117: 2438193.531 | BO117: 3447949.752 | BP117: 1.453604448 | BQ117: 0.0323495748 | BR117: 146255.1326 | BS117: 1661739.383 | BT117: 1147574.22 | BU117: 4128919.828 | BV117: 109691.3494 | BW117: 1810173.62 | BX117: -1 | BY117: 0 | BZ117: 0 | CA117: 1723974.876 | CB117: 6654543.021 | CC117: 109691.3494 | CD117: -1 | CE117: -1 | CF117: 1.723974876 | CG117: 853157.2386 | CH117: 0 | CI117: -1 | CJ117: -1 | CK117: -1 | CL117: 0 | CM117: 0 | CN117: 0 | CO117: -1 | CP117: 0 | CQ117: -1 | CR117: -1 | CS117: -1 | CT117: -1 | CU117: -1 | CV117: -1 | CW117: -1 | CX117: -1 | CY117: -1 | CZ117: -1 | DA117: -1 | DB117: -1 | DC117: -1 | DD117: -1 | DE117: -1 | DF117: -1 | DG117: -1 | DH117: 1 | DJ117: Cilindraje | DK117: Transmisión | DL117: Seg5 | DM117: CCEVeh155 | DN117: CCEVeh155 | DO117: TRUE
A118: VehículosConvencionalesCamperos/Camionetas4x24x2GasolinaIntervalodeprecio2Entre120y14954x2NANAChevrolet TRACKER [2] PREMIER TP 1200CC T CTAUTOMAYOR S.A. | B118: VehículosConvencionalesCamperos/Camionetas4x24x2GasolinaIntervalodeprecio2Entre120y14954x2NANA | C118: Chevrolet TRACKER [2] PREMIER TP 1200CC T CT | D118: AUTOMAYOR S.A. | E118: Vehículos Convencionales - Camperos/Camionetas | F118: Vehículos Convencionales | G118: Camperos/Camionetas | H118: 4x2 - 4x2 - Gasolina | I118: 4x2 | J118: 4x2 | K118: N.A. | L118: Intervalo de precio 2 | M118: Gasolina | N118: TRACKER [2] PREMIER TP 1200CC T CT | O118: Chevrolet | P118: 1606249 | T118: Entre 120 y 149 | U118: 5 | V118: 4x2 | W118: Automático | X118: Gasolina | Y118: N.A. | Z118: N.A. | AA118: N.A. | AB118: N.A. | AC118: N.A. | AD118: 123200000 | AE118: 0.06 | AF118: 115808000 | AG118: 0.06 | AH118: 115808000 | AI118: 0.06 | AJ118: 115808000 | AK118: 0.06 | AL118: 115808000 | AM118: 0.07 | AN118: 114576000 | AO118: 0.08 | AP118: 113344000 | AQ118: 8376618.076 | AR118: 0 | AS118: 0 | AT118: 0 | AU118: 1 | AV118: 0 | AW118: 7326893.222 | AX118: 451336.6225 | AY118: 1.453604448 | AZ118: 0 | BA118: 0 | BB118: 9736880.8 | BC118: 1.453604448 | BD118: 1.453604448 | BE118: 108329.0645 | BF118: 1.453604448 | BG118: 0 | BH118: 0 | BI118: 0 | BJ118: 0 | BK118: 0 | BL118: 3878943.471 | BM118: 4874159.687 | BN118: 2438193.531 | BO118: 3447949.752 | BP118: 1.453604448 | BQ118: 0.0323495748 | BR118: 146255.1326 | BS118: 1661739.383 | BT118: 1147574.22 | BU118: 4128919.828 | BV118: 109691.3494 | BW118: 1810173.62 | BX118: -1 | BY118: 0 | BZ118: 0 | CA118: 1723974.876 | CB118: 6654543.021 | CC118: 109691.3494 | CD118: -1 | CE118: -1 | CF118: 1.723974876 | CG118: 853157.2386 | CH118: 0 | CI118: -1 | CJ118: -1 | CK118: -1 | CL118: 0 | CM118: 0 | CN118: 0 | CO118: -1 | CP118: 0 | CQ118: -1 | CR118: -1 | CS118: -1 | CT118: -1 | CU118: -1 | CV118: -1 | CW118: -1 | CX118: -1 | CY118: -1 | CZ118: -1 | DA118: -1 | DB118: -1 | DC118: -1 | DD118: -1 | DE118: -1 | DF118: -1 | DG118: -1 | DH118: 1 | DJ118: Cilindraje | DK118: Transmisión | DL118: Seg5 | DM118: CCEVeh156 | DN118: CCEVeh156 | DO118: TRUE
A119: VehículosConvencionalesCamperos/Camionetas4x44x4GasolinaIntervalodeprecio2Entre151y20054x4NANAChevrolet EQUINOX [3] PREMIER TP 1500CC T 4X4AUTOMAYOR S.A. | B119: VehículosConvencionalesCamperos/Camionetas4x44x4GasolinaIntervalodeprecio2Entre151y20054x4NANA | C119: Chevrolet EQUINOX [3] PREMIER TP 1500CC T 4X4 | D119: AUTOMAYOR S.A. | E119: Vehículos Convencionales - Camperos/Camionetas | F119: Vehículos Convencionales | G119: Camperos/Camionetas | H119: 4x4 - 4x4 - Gasolina | I119: 4x4 | J119: 4x4 | K119: N.A. | L119: Intervalo de precio 2 | M119: Gasolina | N119: EQUINOX [3] PREMIER TP 1500CC T 4X4 | O119: Chevrolet | P119: 1608059 | T119: Entre 151 y 200 | U119: 5 | V119: 4x4 | W119: Automático | X119: Gasolina | Y119: N.A. | Z119: N.A. | AA119: N.A. | AB119: N.A. | AC119: N.A. | AD119: 132000000 | AE119: 0.04 | AF119: 126720000 | AG119: 0.04 | AH119: 126720000 | AI119: 0.04 | AJ119: 126720000 | AK119: 0.04 | AL119: 126720000 | AM119: 0.05 | AN119: 125400000 | AO119: 0.06 | AP119: 124080000 | AQ119: 9301420.263 | AR119: 0 | AS119: 0 | AT119: 0 | AU119: 1 | AV119: 0 | AW119: -1 | AX119: 451336.6225 | AY119: 1.453604448 | AZ119: 0 | BA119: 0 | BB119: 9736880.8 | BC119: 1.453604448 | BD119: 1.453604448 | BE119: 108329.0645 | BF119: 1.453604448 | BG119: 0 | BH119: 0 | BI119: 0 | BJ119: 0 | BK119: 0 | BL119: 1.453604448 | BM119: 4874159.687 | BN119: 2438193.531 | BO119: 3447949.752 | BP119: 1.453604448 | BQ119: 0.0323495748 | BR119: 146255.1326 | BS119: 1661739.383 | BT119: 1.723974876 | BU119: 4128919.828 | BV119: 109691.3494 | BW119: 1810173.62 | BX119: -1 | BY119: 0 | BZ119: 0 | CA119: 1723974.876 | CB119: 6654543.021 | CC119: 109691.3494 | CD119: -1 | CE119: -1 | CF119: 1.723974876 | CG119: 853157.2386 | CH119: 0 | CI119: -1 | CJ119: -1 | CK119: -1 | CL119: 0 | CM119: 0 | CN119: 0 | CO119: 0 | CP119: 0 | CQ119: -1 | CR119: -1 | CS119: -1 | CT119: -1 | CU119: -1 | CV119: -1 | CW119: -1 | CX119: -1 | CY119: -1 | CZ119: -1 | DA119: -1 | DB119: -1 | DC119: -1 | DD119: -1 | DE119: -1 | DF119: -1 | DG119: -1 | DH119: 1 | DJ119: Cilindraje | DK119: Transmisión | DL119: Seg5 | DM119: CCEVeh157 | DN119: CCEVeh157 | DO119: TRUE
A120: VehículosConvencionalesCamperos/Camionetas4x24x2GasolinaIntervalodeprecio2Entre120y14954x2NANAChevrolet CAPTIVA [2] LT TURBO TP 1500CC T 4X2AUTOMAYOR S.A. | B120: VehículosConvencionalesCamperos/Camionetas4x24x2GasolinaIntervalodeprecio2Entre120y14954x2NANA | C120: Chevrolet CAPTIVA [2] LT TURBO TP 1500CC T 4X2 | D120: AUTOMAYOR S.A. | E120: Vehículos Convencionales - Camperos/Camionetas | F120: Vehículos Convencionales | G120: Camperos/Camionetas | H120: 4x2 - 4x2 - Gasolina | I120: 4x2 | J120: 4x2 | K120: N.A. | L120: Intervalo de precio 2 | M120: Gasolina | N120: CAPTIVA [2] LT TURBO TP 1500CC T 4X2 | O120: Chevrolet | P120: 1606243 | T120: Entre 120 y 149 | U120: 5 | V120: 4x2 | W120: Automático | X120: Gasolina | Y120: N.A. | Z120: N.A. | AA120: N.A. | AB120: N.A. | AC120: N.A. | AD120: 132000000 | AE120: 0.07 | AF120: 122760000 | AG120: 0.07 | AH120: 122760000 | AI120: 0.07 | AJ120: 122760000 | AK120: 0.07 | AL120: 122760000 | AM120: 0.08 | AN120: 121440000 | AO120: 0.09 | AP120: 120120000 | AQ120: 8023754.898 | AR120: 0 | AS120: 0 | AT120: 0 | AU120: 1 | AV120: 0 | AW120: -1 | AX120: 451336.6225 | AY120: 1.453604448 | AZ120: 0 | BA120: 0 | BB120: 9736880.8 | BC120: 1.453604448 | BD120: 1.453604448 | BE120: 108329.0645 | BF120: 1.453604448 | BG120: 0 | BH120: 0 | BI120: 0 | BJ120: 0 | BK120: 0 | BL120: 1.453604448 | BM120: 4874159.687 | BN120: 2438193.531 | BO120: 3447949.752 | BP120: 1.453604448 | BQ120: 0.0323495748 | BR120: 146255.1326 | BS120: 1661739.383 | BT120: 1.723974876 | BU120: 4128919.828 | BV120: 109691.3494 | BW120: 1810173.62 | BX120: -1 | BY120: 0 | BZ120: 0 | CA120: 1723974.876 | CB120: 6654543.021 | CC120: 109691.3494 | CD120: -1 | CE120: -1 | CF120: 1.723974876 | CG120: 853157.2386 | CH120: 0 | CI120: -1 | CJ120: -1 | CK120: -1 | CL120: 0 | CM120: -1 | CN120: 0 | CO120: 0 | CP120: 0 | CQ120: -1 | CR120: -1 | CS120: -1 | CT120: -1 | CU120: -1 | CV120: -1 | CW120: -1 | CX120: -1 | CY120: -1 | CZ120: -1 | DA120: -1 | DB120: -1 | DC120: -1 | DD120: -1 | DE120: -1 | DF120: -1 | DG120: -1 | DH120: 1 | DJ120: Cilindraje | DK120: Transmisión | DL120: Seg5 | DM120: CCEVeh158 | DN120: CCEVeh158 | DO120: TRUE
A121: VehículosConvencionalesCamperos/Camionetas4x24x2GasolinaIntervalodeprecio3Entre120y14954x2NANAChevrolet CAPTIVA [2] PREMIER TURBO TP 1500CC T 4X2AUTOMAYOR S.A. | B121: VehículosConvencionalesCamperos/Camionetas4x24x2GasolinaIntervalodeprecio3Entre120y14954x2NANA | C121: Chevrolet CAPTIVA [2] PREMIER TURBO TP 1500CC T 4X2 | D121: AUTOMAYOR S.A. | E121: Vehículos Convencionales - Camperos/Camionetas | F121: Vehículos Convencionales | G121: Camperos/Camionetas | H121: 4x2 - 4x2 - Gasolina | I121: 4x2 | J121: 4x2 | K121: N.A. | L121: Intervalo de precio 3 | M121: Gasolina | N121: CAPTIVA [2] PREMIER TURBO TP 1500CC T 4X2 | O121: Chevrolet | P121: 1606245 | T121: Entre 120 y 149 | U121: 5 | V121: 4x2 | W121: Automático | X121: Gasolina | Y121: N.A. | Z121: N.A. | AA121: N.A. | AB121: N.A. | AC121: N.A. | AD121: 143100000 | AE121: 0.07 | AF121: 133083000 | AG121: 0.07 | AH121: 133083000 | AI121: 0.07 | AJ121: 133083000 | AK121: 0.07 | AL121: 133083000 | AM121: 0.08 | AN121: 131652000 | AO121: 0.09 | AP121: 130221000 | AQ121: 8023754.898 | AR121: 0 | AS121: 0 | AT121: 0 | AU121: 1 | AV121: 0 | AW121: -1 | AX121: 451336.6225 | AY121: 1.453604448 | AZ121: 0 | BA121: 0 | BB121: 9736880.8 | BC121: 1.453604448 | BD121: 1.453604448 | BE121: 108329.0645 | BF121: 1.453604448 | BG121: 0 | BH121: 0 | BI121: 0 | BJ121: 0 | BK121: 0 | BL121: 1.453604448 | BM121: 4874159.687 | BN121: 2438193.531 | BO121: 3447949.752 | BP121: 1.453604448 | BQ121: 0.0323495748 | BR121: 146255.1326 | BS121: 1661739.383 | BT121: 1.723974876 | BU121: 4128919.828 | BV121: 109691.3494 | BW121: 1810173.62 | BX121: -1 | BY121: 0 | BZ121: 0 | CA121: 1723974.876 | CB121: 6654543.021 | CC121: 109691.3494 | CD121: -1 | CE121: -1 | CF121: 1.723974876 | CG121: 853157.2386 | CH121: 0 | CI121: -1 | CJ121: -1 | CK121: -1 | CL121: 0 | CM121: -1 | CN121: 0 | CO121: 0 | CP121: 0 | CQ121: -1 | CR121: -1 | CS121: -1 | CT121: -1 | CU121: -1 | CV121: -1 | CW121: -1 | CX121: -1 | CY121: -1 | CZ121: -1 | DA121: -1 | DB121: -1 | DC121: -1 | DD121: -1 | DE121: -1 | DF121: -1 | DG121: -1 | DH121: 1 | DJ121: Cilindraje | DK121: Transmisión | DL121: Seg5 | DM121: CCEVeh159 | DN121: CCEVeh159 | DO121: TRUE
A122: VehículosConvencionalesCamperos/Camionetas4x44x4GasolinaIntervalodeprecio1Entre301y35054x4NANAChevrolet BLAZER RS TP 3600CC 4X4AUTOMAYOR S.A. | B122: VehículosConvencionalesCamperos/Camionetas4x44x4GasolinaIntervalodeprecio1Entre301y35054x4NANA | C122: Chevrolet BLAZER RS TP 3600CC 4X4 | D122: AUTOMAYOR S.A. | E122: Vehículos Convencionales - Camperos/Camionetas | F122: Vehículos Convencionales | G122: Camperos/Camionetas | H122: 4x4 - 4x4 - Gasolina | I122: 4x4 | J122: 4x4 | K122: N.A. | L122: Intervalo de precio 1 | M122: Gasolina | N122: BLAZER RS TP 3600CC 4X4 | O122: Chevrolet | P122: 1606242 | T122: Entre 301 y 350 | U122: 5 | V122: 4x4 | W122: Automático | X122: Gasolina | Y122: N.A. | Z122: N.A. | AA122: N.A. | AB122: N.A. | AC122: N.A. | AD122: 210100000 | AE122: 0.05 | AF122: 199595000 | AG122: 0.05 | AH122: 199595000 | AI122: 0.05 | AJ122: 199595000 | AK122: 0.05 | AL122: 199595000 | AM122: 0.06 | AN122: 197494000 | AO122: 0.07 | AP122: 195393000 | AQ122: 9414925.044 | AR122: 0 | AS122: 0 | AT122: 0 | AU122: 1 | AV122: 0 | AW122: -1 | AX122: 451336.6225 | AY122: 1.453604448 | AZ122: 0 | BA122: 0 | BB122: 9736880.8 | BC122: 1.453604448 | BD122: 1.453604448 | BE122: 108329.0645 | BF122: 1.453604448 | BG122: 0 | BH122: 0 | BI122: 0 | BJ122: 0 | BK122: 0 | BL122: 1.453604448 | BM122: 4874159.687 | BN122: 2438193.531 | BO122: 3447949.752 | BP122: 1.453604448 | BQ122: 0.0323495748 | BR122: 146255.1326 | BS122: 1661739.383 | BT122: 1.723974876 | BU122: 4128919.828 | BV122: 109691.3494 | BW122: 1810173.62 | BX122: -1 | BY122: 0 | BZ122: 0 | CA122: 1723974.876 | CB122: 6654543.021 | CC122: 109691.3494 | CD122: -1 | CE122: -1 | CF122: 1.723974876 | CG122: 853157.2386 | CH122: 0 | CI122: -1 | CJ122: -1 | CK122: -1 | CL122: 0 | CM122: 0 | CN122: 0 | CO122: 0 | CP122: 0 | CQ122: -1 | CR122: -1 | CS122: -1 | CT122: -1 | CU122: -1 | CV122: -1 | CW122: -1 | CX122: -1 | CY122: -1 | CZ122: -1 | DA122: -1 | DB122: -1 | DC122: -1 | DD122: -1 | DE122: -1 | DF122: -1 | DG122: -1 | DH122: 1 | DJ122: Cilindraje | DK122: Transmisión | DL122: Seg5 | DM122: CCEVeh160 | DN122: CCEVeh160 | DO122: TRUE
A123: VehículosConvencionalesCamperos/Camionetas4x44x4GasolinaIntervalodeprecio1Entre301y35054x4NANAChevrolet TRAVERSE [2] [FL] LT TP 3600CC 4X4AUTOMAYOR S.A. | B123: VehículosConvencionalesCamperos/Camionetas4x44x4GasolinaIntervalodeprecio1Entre301y35054x4NANA | C123: Chevrolet TRAVERSE [2] [FL] LT TP 3600CC 4X4 | D123: AUTOMAYOR S.A. | E123: Vehículos Convencionales - Camperos/Camionetas | F123: Vehículos Convencionales | G123: Camperos/Camionetas | H123: 4x4 - 4x4 - Gasolina | I123: 4x4 | J123: 4x4 | K123: N.A. | L123: Intervalo de precio 1 | M123: Gasolina | N123: TRAVERSE [2] [FL] LT TP 3600CC 4X4 | O123: Chevrolet | P123: 1606250 | T123: Entre 301 y 350 | U123: 5 | V123: 4x4 | W123: Automático | X123: Gasolina | Y123: N.A. | Z123: N.A. | AA123: N.A. | AB123: N.A. | AC123: N.A. | AD123: 225400000 | AE123: 0.07 | AF123: 209622000 | AG123: 0.07 | AH123: 209622000 | AI123: 0.07 | AJ123: 209622000 | AK123: 0.07 | AL123: 209622000 | AM123: 0.08 | AN123: 207368000 | AO123: 0.09 | AP123: 205114000 | AQ123: 10502572.17 | AR123: 0 | AS123: 0 | AT123: 0 | AU123: 1 | AV123: 0 | AW123: -1 | AX123: 451336.6225 | AY123: 1.453604448 | AZ123: 0 | BA123: 0 | BB123: 9736880.8 | BC123: 1.453604448 | BD123: 1.453604448 | BE123: 108329.0645 | BF123: 1.453604448 | BG123: 0 | BH123: 0 | BI123: 0 | BJ123: 0 | BK123: 0 | BL123: 1.453604448 | BM123: 4874159.687 | BN123: 2438193.531 | BO123: 3447949.752 | BP123: 1.453604448 | BQ123: 0.0323495748 | BR123: 146255.1326 | BS123: 1661739.383 | BT123: 1.723974876 | BU123: 4128919.828 | BV123: 109691.3494 | BW123: 1954987.509 | BX123: -1 | BY123: 0 | BZ123: 0 | CA123: 1723974.876 | CB123: 6654543.021 | CC123: 109691.3494 | CD123: -1 | CE123: -1 | CF123: 1.723974876 | CG123: 853157.2386 | CH123: 0 | CI123: -1 | CJ123: -1 | CK123: -1 | CL123: 0 | CM123: 0 | CN123: 0 | CO123: 0 | CP123: 0 | CQ123: 0 | CR123: -1 | CS123: -1 | CT123: -1 | CU123: -1 | CV123: -1 | CW123: -1 | CX123: -1 | CY123: -1 | CZ123: -1 | DA123: -1 | DB123: -1 | DC123: -1 | DD123: -1 | DE123: -1 | DF123: -1 | DG123: -1 | DH123: 1 | DJ123: Cilindraje | DK123: Transmisión | DL123: Seg5 | DM123: CCEVeh161 | DN123: CCEVeh161 | DO123: TRUE
A124: VehículosConvencionalesCamperos/Camionetas4x44x4DiéselIntervalodeprecio1Entre151y20054x4NANAChevrolet TRAILBLAZER LTZ TP 2800CC 4X4 TDAUTOMAYOR S.A. | B124: VehículosConvencionalesCamperos/Camionetas4x44x4DiéselIntervalodeprecio1Entre151y20054x4NANA | C124: Chevrolet TRAILBLAZER LTZ TP 2800CC 4X4 TD | D124: AUTOMAYOR S.A. | E124: Vehículos Convencionales - Camperos/Camionetas | F124: Vehículos Convencionales | G124: Camperos/Camionetas | H124: 4x4 - 4x4 - Diésel | I124: 4x4 | J124: 4x4 | K124: N.A. | L124: Intervalo de precio 1 | M124: Diésel | N124: TRAILBLAZER LTZ TP 2800CC 4X4 TD | O124: Chevrolet | P124: 1608058 | T124: Entre 151 y 200 | U124: 5 | V124: 4x4 | W124: Automático | X124: Diésel | Y124: N.A. | Z124: N.A. | AA124: N.A. | AB124: N.A. | AC124: N.A. | AE124: 0.07 | AF124: 0 | AG124: 0.07 | AH124: 0 | AI124: 0.07 | AJ124: 0 | AK124: 0.07 | AL124: 0 | AM124: 0.08 | AN124: 0 | AO124: 0.09 | AP124: 0 | AR124: 0 | AS124: 0 | AT124: 0 | AU124: 1 | AV124: 0 | AW124: 0 | AX124: 0 | AY124: 0 | AZ124: 0 | BA124: 0 | BB124: 0 | BC124: 0 | BD124: 0 | BE124: 0 | BF124: 0 | BG124: 0 | BH124: 0 | BI124: 0 | BJ124: 0 | BK124: 0 | BL124: 0 | BM124: 0 | BN124: 0 | BO124: 0 | BP124: 0 | BQ124: 0 | BR124: 0 | BS124: 0 | BT124: 0 | BU124: 0 | BV124: 0 | BW124: 0 | BX124: 0 | BY124: 0 | BZ124: 0 | CA124: 0 | CB124: 0 | CC124: 0 | CD124: 0 | CE124: 0 | CF124: 0 | CG124: 0 | CH124: 0 | CI124: 0 | CJ124: 0 | CK124: 0 | CL124: 0 | CM124: 0 | CN124: 0 | CO124: 0 | CP124: 0 | CQ124: -1 | CR124: -1 | CS124: -1 | CT124: -1 | CU124: -1 | CV124: -1 | CW124: -1 | CX124: -1 | CY124: -1 | CZ124: -1 | DA124: -1 | DB124: -1 | DC124: -1 | DD124: -1 | DE124: -1 | DF124: -1 | DG124: -1 | DH124: 0 | DJ124: Cilindraje | DK124: Transmisión | DL124: Seg5 | DM124: CCEVeh162 | DN124: CCEVeh162 | DO124: TRUE
A125: VehículosConvencionalesCamperos/Camionetas4x44x4GasolinaIntervalodeprecio2Mayoroigualque35154x4NANAChevrolet TAHOE [4] LT TP 5300CCAUTOMAYOR S.A. | B125: VehículosConvencionalesCamperos/Camionetas4x44x4GasolinaIntervalodeprecio2Mayoroigualque35154x4NANA | C125: Chevrolet TAHOE [4] LT TP 5300CC | D125: AUTOMAYOR S.A. | E125: Vehículos Convencionales - Camperos/Camionetas | F125: Vehículos Convencionales | G125: Camperos/Camionetas | H125: 4x4 - 4x4 - Gasolina | I125: 4x4 | J125: 4x4 | K125: N.A. | L125: Intervalo de precio 2 | M125: Gasolina | N125: TAHOE [4] LT TP 5300CC | O125: Chevrolet | P125: 1608062 | T125: Mayor o igual que 351 | U125: 5 | V125: 4x4 | W125: Automático | X125: Gasolina | Y125: N.A. | Z125: N.A. | AA125: N.A. | AB125: N.A. | AC125: N.A. | AD125: 380100000 | AE125: 0.05 | AF125: 361095000 | AG125: 0.05 | AH125: 361095000 | AI125: 0.05 | AJ125: 361095000 | AK125: 0.05 | AL125: 361095000 | AM125: 0.06 | AN125: 357294000 | AO125: 0.07 | AP125: 353493000 | AQ125: 10873237.12 | AR125: 0 | AS125: 0 | AT125: 0 | AU125: 1 | AV125: 0 | AW125: -1 | AX125: 451336.6225 | AY125: 1.453604448 | AZ125: 0 | BA125: 0 | BB125: 9736880.8 | BC125: 1.453604448 | BD125: 1.453604448 | BE125: 108329.0645 | BF125: 1.453604448 | BG125: 0 | BH125: 0 | BI125: 0 | BJ125: 0 | BK125: 0 | BL125: 1.453604448 | BM125: 4874159.687 | BN125: 2438193.531 | BO125: 3447949.752 | BP125: 1.453604448 | BQ125: 0.0323495748 | BR125: 146255.1326 | BS125: 1661739.383 | BT125: 1.723974876 | BU125: 4128919.828 | BV125: 109691.3494 | BW125: 1954987.509 | BX125: -1 | BY125: 0 | BZ125: 0 | CA125: 1723974.876 | CB125: 6654543.021 | CC125: 109691.3494 | CD125: 6002777.079 | CE125: 10023776.08 | CF125: 1.723974876 | CG125: 853157.2386 | CH125: 0 | CI125: -1 | CJ125: -1 | CK125: -1 | CL125: 0 | CM125: 0 | CN125: 0 | CO125: 0 | CP125: 0 | CQ125: 0 | CR125: -1 | CS125: -1 | CT125: -1 | CU125: -1 | CV125: -1 | CW125: -1 | CX125: -1 | CY125: -1 | CZ125: -1 | DA125: -1 | DB125: -1 | DC125: -1 | DD125: -1 | DE125: -1 | DF125: -1 | DG125: -1 | DH125: 1 | DJ125: Cilindraje | DK125: Transmisión | DL125: Seg5 | DM125: CCEVeh163 | DN125: CCEVeh163 | DO125: TRUE
A126: VehículosConvencionalesCamperos/Camionetas4x24x2GasolinaIntervalodeprecio2Menora12054x2NANAToyota RC RUSH 1.5L HIGH AT ALBORAUTOS S.A.S. | B126: VehículosConvencionalesCamperos/Camionetas4x24x2GasolinaIntervalodeprecio2Menora12054x2NANA | C126: Toyota RC RUSH 1.5L HIGH AT | D126: ALBORAUTOS S.A.S. | E126: Vehículos Convencionales - Camperos/Camionetas | F126: Vehículos Convencionales | G126: Camperos/Camionetas | H126: 4x2 - 4x2 - Gasolina | I126: 4x2 | J126: 4x2 | K126: N.A. | L126: Intervalo de precio 2 | M126: Gasolina | N126: RC RUSH 1.5L HIGH AT | O126: Toyota | P126: 9006165 | T126: Menor a 120 | U126: 5 | V126: 4x2 | W126: Automático | X126: Gasolina | Y126: N.A. | Z126: N.A. | AA126: N.A. | AB126: N.A. | AC126: N.A. | AD126: 112300000 | AE126: 0 | AF126: 112300000 | AG126: 0 | AH126: 112300000 | AI126: 0 | AJ126: 112300000 | AK126: 0 | AL126: 112300000 | AM126: 0 | AN126: 112300000 | AO126: 0 | AP126: 112300000 | AQ126: 6726771.149 | AR126: 0 | AS126: -1 | AT126: -1 | AU126: 0 | AV126: -1 | AW126: 7326893.222 | AX126: 244609.86 | AY126: 342453.8039 | AZ126: 0 | BA126: 0 | BB126: -1 | BC126: -1 | BD126: 0 | BE126: 110074.437 | BF126: 0 | BG126: 0 | BH126: 0 | BI126: 0 | BJ126: 0 | BK126: 0 | BL126: -1 | BM126: 819443.0309 | BN126: 1161896.835 | BO126: 85613.45099 | BP126: 0 | BQ126: 0 | BR126: 440297.7479 | BS126: 672677.1149 | BT126: 1100744.37 | BU126: -1 | BV126: 73382.95799 | BW126: -1 | BX126: 146765.916 | BY126: 0 | BZ126: 0 | CA126: -1 | CB126: -1 | CC126: 67267.71149 | CD126: 3424538.039 | CE126: 4329594.521 | CF126: 0 | CG126: 317992.818 | CH126: 0 | CI126: -1 | CJ126: -1 | CK126: -1 | CL126: 0 | CM126: 0 | CN126: 0 | CO126: 0 | CP126: 0 | CQ126: -1 | CR126: -1 | CS126: -1 | CT126: -1 | CU126: -1 | CV126: -1 | CW126: -1 | CX126: -1 | CY126: -1 | CZ126: -1 | DA126: -1 | DB126: -1 | DC126: -1 | DD126: -1 | DE126: -1 | DF126: -1 | DG126: -1 | DH126: 1 | DJ126: Cilindraje | DK126: Transmisión | DL126: Seg5 | DM126: CCEVeh164 | DN126: CCEVeh164 | DO126: TRUE
A127: VehículosConvencionalesCamperos/Camionetas4x24x2GasolinaIntervalodeprecio3Mayorque15054x2NANAToyota SW4 STREET ALBORAUTOS S.A.S. | B127: VehículosConvencionalesCamperos/Camionetas4x24x2GasolinaIntervalodeprecio3Mayorque15054x2NANA | C127: Toyota SW4 STREET | D127: ALBORAUTOS S.A.S. | E127: Vehículos Convencionales - Camperos/Camionetas | F127: Vehículos Convencionales | G127: Camperos/Camionetas | H127: 4x2 - 4x2 - Gasolina | I127: 4x2 | J127: 4x2 | K127: N.A. | L127: Intervalo de precio 3 | M127: Gasolina | N127: SW4 STREET | O127: Toyota | P127: 9006174 | T127: Mayor que 150 | U127: 5 | V127: 4x2 | W127: Automático | X127: Gasolina | Y127: N.A. | Z127: N.A. | AA127: N.A. | AB127: N.A. | AC127: N.A. | AD127: 204500000 | AE127: 0 | AF127: 204500000 | AG127: 0.03 | AH127: 198365000 | AI127: 0.04 | AJ127: 196320000 | AK127: 0.04 | AL127: 196320000 | AM127: 0.05 | AN127: 194275000 | AO127: 0.05 | AP127: 194275000 | AQ127: 7338295.799 | AR127: 0 | AS127: -1 | AT127: -1 | AU127: 0 | AV127: 0 | AW127: 7326893.222 | AX127: 244609.86 | AY127: 0 | AZ127: 0 | BA127: 0 | BB127: -1 | BC127: -1 | BD127: 403606.2689 | BE127: -1 | BF127: -1 | BG127: 0 | BH127: 0 | BI127: 0 | BJ127: 0 | BK127: 0 | BL127: -1 | BM127: 819443.0309 | BN127: 1161896.835 | BO127: 85613.45099 | BP127: 0 | BQ127: 550372.1849 | BR127: 440297.7479 | BS127: 672677.1149 | BT127: 1100744.37 | BU127: 342453.8039 | BV127: 73382.95799 | BW127: 1834573.95 | BX127: 146765.916 | BY127: 0 | BZ127: 0 | CA127: -1 | CB127: -1 | CC127: 67267.71149 | CD127: 3424538.039 | CE127: 4329594.521 | CF127: 0 | CG127: 317992.818 | CH127: 0 | CI127: -1 | CJ127: -1 | CK127: -1 | CL127: 0 | CM127: 0 | CN127: 0 | CO127: 0 | CP127: 0 | CQ127: -1 | CR127: -1 | CS127: -1 | CT127: -1 | CU127: -1 | CV127: -1 | CW127: -1 | CX127: -1 | CY127: -1 | CZ127: -1 | DA127: -1 | DB127: -1 | DC127: -1 | DD127: -1 | DE127: -1 | DF127: -1 | DG127: -1 | DH127: 1 | DJ127: Cilindraje | DK127: Transmisión | DL127: Seg5 | DM127: CCEVeh165 | DN127: CCEVeh165 | DO127: TRUE
A128: VehículosConvencionalesCamperos/Camionetas4x24x2DiéselIntervalodeprecio1Entre120y14954x2NANAToyota SW4 STREET DIESEL ALBORAUTOS S.A.S. | B128: VehículosConvencionalesCamperos/Camionetas4x24x2DiéselIntervalodeprecio1Entre120y14954x2NANA | C128: Toyota SW4 STREET DIESEL | D128: ALBORAUTOS S.A.S. | E128: Vehículos Convencionales - Camperos/Camionetas | F128: Vehículos Convencionales | G128: Camperos/Camionetas | H128: 4x2 - 4x2 - Diésel | I128: 4x2 | J128: 4x2 | K128: N.A. | L128: Intervalo de precio 1 | M128: Diésel | N128: SW4 STREET DIESEL | O128: Toyota | P128: 9006173 | T128: Entre 120 y 149 | U128: 5 | V128: 4x2 | W128: Automático | X128: Diésel | Y128: N.A. | Z128: N.A. | AA128: N.A. | AB128: N.A. | AC128: N.A. | AD128: 230500000 | AE128: 0 | AF128: 230500000 | AG128: 0.03 | AH128: 223585000 | AI128: 0.04 | AJ128: 221280000 | AK128: 0.04 | AL128: 221280000 | AM128: 0.05 | AN128: 218975000 | AO128: 0.05 | AP128: 218975000 | AQ128: 7949820.449 | AR128: 0 | AS128: -1 | AT128: -1 | AU128: 0 | AV128: 0 | AW128: 7326893.222 | AX128: 244609.86 | AY128: 0 | AZ128: 0 | BA128: 0 | BB128: -1 | BC128: -1 | BD128: 403606.2689 | BE128: -1 | BF128: -1 | BG128: 0 | BH128: 0 | BI128: 0 | BJ128: 0 | BK128: 0 | BL128: -1 | BM128: 819443.0309 | BN128: 1161896.835 | BO128: 85613.45099 | BP128: 0 | BQ128: 0 | BR128: 440297.7479 | BS128: 672677.1149 | BT128: 1100744.37 | BU128: -1 | BV128: 73382.95799 | BW128: 1834573.95 | BX128: 146765.916 | BY128: 0 | BZ128: 0 | CA128: -1 | CB128: -1 | CC128: 67267.71149 | CD128: 3424538.039 | CE128: 4329594.521 | CF128: 0 | CG128: 317992.818 | CH128: 0 | CI128: -1 | CJ128: -1 | CK128: -1 | CL128: 0 | CM128: 0 | CN128: 0 | CO128: -1 | CP128: 0 | CQ128: 0 | CR128: -1 | CS128: -1 | CT128: -1 | CU128: -1 | CV128: -1 | CW128: -1 | CX128: -1 | CY128: -1 | CZ128: -1 | DA128: -1 | DB128: -1 | DC128: -1 | DD128: -1 | DE128: -1 | DF128: -1 | DG128: -1 | DH128: 1 | DJ128: Cilindraje | DK128: Transmisión | DL128: Seg5 | DM128: CCEVeh166 | DN128: CCEVeh166 | DO128: TRUE
A129: VehículosConvencionalesCamperos/Camionetas4x24x2GasolinaIntervalodeprecio3Mayorque15054x2NANAToyota SW4 STREET MIDALBORAUTOS S.A.S. | B129: VehículosConvencionalesCamperos/Camionetas4x24x2GasolinaIntervalodeprecio3Mayorque15054x2NANA | C129: Toyota SW4 STREET MID | D129: ALBORAUTOS S.A.S. | E129: Vehículos Convencionales - Camperos/Camionetas | F129: Vehículos Convencionales | G129: Camperos/Camionetas | H129: 4x2 - 4x2 - Gasolina | I129: 4x2 | J129: 4x2 | K129: N.A. | L129: Intervalo de precio 3 | M129: Gasolina | N129: SW4 STREET MID | O129: Toyota | P129: 9006175 | T129: Mayor que 150 | U129: 5 | V129: 4x2 | W129: Automático | X129: Gasolina | Y129: N.A. | Z129: N.A. | AA129: N.A. | AB129: N.A. | AC129: N.A. | AD129: 238500000 | AE129: 0 | AF129: 238500000 | AG129: 0.03 | AH129: 231345000 | AI129: 0.04 | AJ129: 228960000 | AK129: 0.04 | AL129: 228960000 | AM129: 0.05 | AN129: 226575000 | AO129: 0.05 | AP129: 226575000 | AQ129: 7338295.799 | AR129: 0 | AS129: -1 | AT129: -1 | AU129: 0 | AV129: -1 | AW129: 7326893.222 | AX129: 244609.86 | AY129: 0 | AZ129: 0 | BA129: 0 | BB129: -1 | BC129: -1 | BD129: 403606.2689 | BE129: -1 | BF129: -1 | BG129: 0 | BH129: 0 | BI129: 0 | BJ129: 0 | BK129: 0 | BL129: -1 | BM129: 819443.0309 | BN129: 1161896.835 | BO129: 85613.45099 | BP129: 0 | BQ129: 0 | BR129: 440297.7479 | BS129: 672677.1149 | BT129: 1100744.37 | BU129: -1 | BV129: 73382.95799 | BW129: 1834573.95 | BX129: 146765.916 | BY129: 0 | BZ129: 0 | CA129: -1 | CB129: -1 | CC129: 67267.71149 | CD129: 3424538.039 | CE129: 4329594.521 | CF129: 0 | CG129: 317992.818 | CH129: 0 | CI129: -1 | CJ129: -1 | CK129: -1 | CL129: 0 | CM129: 0 | CN129: 0 | CO129: -1 | CP129: 0 | CQ129: 0 | CR129: -1 | CS129: -1 | CT129: -1 | CU129: -1 | CV129: -1 | CW129: -1 | CX129: -1 | CY129: -1 | CZ129: -1 | DA129: -1 | DB129: -1 | DC129: -1 | DD129: -1 | DE129: -1 | DF129: -1 | DG129: -1 | DH129: 1 | DJ129: Cilindraje | DK129: Transmisión | DL129: Seg5 | DM129: CCEVeh167 | DN129: CCEVeh167 | DO129: TRUE
A130: =B130&C130&D130 -> VehículosConvencionalesCamperos/Camionetas4x44x4DiéselIntervalodeprecio1Entre201y25054x4NANAToyota SW4 XROAD DIESEL AT ALBORAUTOS S.A.S. | B130: =SUBSTITUTE(SUBSTITUTE(SUBSTITUTE(E130&H130&L130&T130&U130&V130&Y130&AB130,".","")," ",""),"-","") -> VehículosConvencionalesCamperos/Camionetas4x44x4DiéselIntervalodeprecio1Entre201y25054x4NANA | C130: =O130&" "&N130 -> Toyota SW4 XROAD DIESEL AT | D130: ALBORAUTOS S.A.S. | E130: =F130&" - "&G130 -> Vehículos Convencionales - Camperos/Camionetas | F130: Vehículos Convencionales | G130: Camperos/Camionetas | H130: =I130&" - "&J130&" - "&M130 -> 4x4 - 4x4 - Diésel | I130: 4x4 | J130: 4x4 | K130: N.A. | L130: Intervalo de precio 1 | M130: Diésel | N130: SW4 XROAD DIESEL AT | O130: Toyota | P130: 9008237 | T130: Entre 201 y 250 | U130: 5 | V130: 4x4 | W130: Automático | X130: Diésel | Y130: N.A. | Z130: N.A. | AA130: N.A. | AB130: N.A. | AC130: N.A. | AD130: 278000000 | AE130: 0 | AF130: =$AD130*(1-AE130) -> 278000000 | AG130: 0.03 | AH130: =$AD130*(1-AG130) -> 269660000 | AI130: 0.04 | AJ130: =$AD130*(1-AI130) -> 266880000 | AK130: 0.04 | AL130: =$AD130*(1-AK130) -> 266880000 | AM130: 0.05 | AN130: =$AD130*(1-AM130) -> 264100000 | AO130: 0.05 | AP130: =$AD130*(1-AO130) -> 264100000 | AQ130: 7949820.449 | AR130: 0 | AS130: -1 | AT130: -1 | AU130: 0 | AV130: 0 | AW130: 7326893.222 | AX130: 244609.86 | AY130: 0 | AZ130: 0 | BA130: 0 | BB130: 10029005.48 | BC130: -1 | BD130: 403606.2689 | BE130: 110074.437 | BF130: -1 | BG130: 0 | BH130: 0 | BI130: 0 | BJ130: 0 | BK130: 0 | BL130: -1 | BM130: 819443.0309 | BN130: 1161896.835 | BO130: 85613.45099 | BP130: 0 | BQ130: 0 | BR130: 440297.7479 | BS130: 672677.1149 | BT130: 1100744.37 | BU130: 1039591.905 | BV130: 73382.95799 | BW130: 1834573.95 | BX130: 146765.916 | BY130: 0 | BZ130: 0 | CA130: -1 | CB130: -1 | CC130: 67267.71149 | CD130: 3424538.039 | CE130: 4329594.521 | CF130: 0 | CG130: 317992.818 | CH130: 0 | CI130: -1 | CJ130: -1 | CK130: -1 | CL130: 0 | CM130: 0 | CN130: 0 | CO130: -1 | CP130: 0 | CQ130: 0 | CR130: -1 | CS130: -1 | CT130: -1 | CU130: -1 | CV130: -1 | CW130: -1 | CX130: -1 | CY130: -1 | CZ130: -1 | DA130: -1 | DB130: -1 | DC130: -1 | DD130: -1 | DE130: -1 | DF130: -1 | DG130: -1 | DH130: 1 | DJ130: Cilindraje | DK130: Transmisión | DL130: Seg5 | DM130: CCEVeh168 | DN130: CCEVeh168 | DO130: TRUE
A131: VehículosConvencionalesCamperos/Camionetas4x44x4DiéselIntervalodeprecio2Entre201y25054x4NANAToyota SW4 SRV DIESEL ALBORAUTOS S.A.S. | B131: VehículosConvencionalesCamperos/Camionetas4x44x4DiéselIntervalodeprecio2Entre201y25054x4NANA | C131: Toyota SW4 SRV DIESEL | D131: ALBORAUTOS S.A.S. | E131: Vehículos Convencionales - Camperos/Camionetas | F131: Vehículos Convencionales | G131: Camperos/Camionetas | H131: 4x4 - 4x4 - Diésel | I131: 4x4 | J131: 4x4 | K131: N.A. | L131: Intervalo de precio 2 | M131: Diésel | N131: SW4 SRV DIESEL | O131: Toyota | P131: 9008238 | T131: Entre 201 y 250 | U131: 5 | V131: 4x4 | W131: Automático | X131: Diésel | Y131: N.A. | Z131: N.A. | AA131: N.A. | AB131: N.A. | AC131: N.A. | AD131: 313500000 | AE131: 0 | AF131: 313500000 | AG131: 0.03 | AH131: 304095000 | AI131: 0.04 | AJ131: 300960000 | AK131: 0.04 | AL131: 300960000 | AM131: 0.05 | AN131: 297825000 | AO131: 0.05 | AP131: 297825000 | AQ131: 7949820.449 | AR131: 0 | AS131: -1 | AT131: -1 | AU131: 0 | AV131: 0 | AW131: 7326893.222 | AX131: 244609.86 | AY131: 0 | AZ131: 0 | BA131: 0 | BB131: 10029005.48 | BC131: -1 | BD131: 0 | BE131: 110074.437 | BF131: -1 | BG131: 0 | BH131: 0 | BI131: 0 | BJ131: 0 | BK131: 0 | BL131: -1 | BM131: 819443.0309 | BN131: 1161896.835 | BO131: 85613.45099 | BP131: 0 | BQ131: 0 | BR131: -1 | BS131: 672677.1149 | BT131: 1100744.37 | BU131: 1039591.905 | BV131: 73382.95799 | BW131: 1834573.95 | BX131: 146765.916 | BY131: 0 | BZ131: 0 | CA131: -1 | CB131: -1 | CC131: 67267.71149 | CD131: 3424538.039 | CE131: 4329594.521 | CF131: 0 | CG131: 317992.818 | CH131: 0 | CI131: -1 | CJ131: -1 | CK131: -1 | CL131: 0 | CM131: 0 | CN131: 0 | CO131: -1 | CP131: 0 | CQ131: 0 | CR131: -1 | CS131: -1 | CT131: -1 | CU131: -1 | CV131: -1 | CW131: -1 | CX131: -1 | CY131: -1 | CZ131: -1 | DA131: -1 | DB131: -1 | DC131: -1 | DD131: -1 | DE131: -1 | DF131: -1 | DG131: -1 | DH131: 1 | DJ131: Cilindraje | DK131: Transmisión | DL131: Seg5 | DM131: CCEVeh169 | DN131: CCEVeh169 | DO131: =+DN131=DM131 -> TRUE
A132: VehículosConvencionalesCamperos/Camionetas4x44x4GasolinaIntervalodeprecio3Entre251y30054x4NANAToyota PRADO 5P GASOLINA 6AT TXLALBORAUTOS S.A.S. | B132: VehículosConvencionalesCamperos/Camionetas4x44x4GasolinaIntervalodeprecio3Entre251y30054x4NANA | C132: Toyota PRADO 5P GASOLINA 6AT TXL | D132: ALBORAUTOS S.A.S. | E132: Vehículos Convencionales - Camperos/Camionetas | F132: Vehículos Convencionales | G132: Camperos/Camionetas | H132: 4x4 - 4x4 - Gasolina | I132: 4x4 | J132: 4x4 | K132: N.A. | L132: Intervalo de precio 3 | M132: Gasolina | N132: PRADO 5P GASOLINA 6AT TXL | O132: Toyota | P132: 9008221 | T132: Entre 251 y 300 | U132: 5 | V132: 4x4 | W132: Automático | X132: Gasolina | Y132: N.A. | Z132: N.A. | AA132: N.A. | AB132: N.A. | AC132: N.A. | AD132: 319000000 | AE132: 0 | AF132: 319000000 | AG132: 0.02 | AH132: 312620000 | AI132: 0.02 | AJ132: 312620000 | AK132: 0.03 | AL132: 309430000 | AM132: 0.04 | AN132: 306240000 | AO132: 0.04 | AP132: 306240000 | AQ132: 7582905.659 | AR132: 0 | AS132: -1 | AT132: -1 | AU132: 0 | AV132: 0 | AW132: 7326893.222 | AX132: 244609.86 | AY132: 0 | AZ132: 0 | BA132: 0 | BB132: -1 | BC132: 0 | BD132: 403606.2689 | BE132: 110074.437 | BF132: 330223.311 | BG132: 0 | BH132: 0 | BI132: 0 | BJ132: 0 | BK132: 0 | BL132: 0 | BM132: -1 | BN132: 1161896.835 | BO132: 85613.45099 | BP132: 0 | BQ132: 0 | BR132: -1 | BS132: -1 | BT132: -1 | BU132: 342453.8039 | BV132: 73382.95799 | BW132: 1834573.95 | BX132: 146765.916 | BY132: 0 | BZ132: 0 | CA132: -1 | CB132: -1 | CC132: 67267.71149 | CD132: 3424538.039 | CE132: 4329594.521 | CF132: 0 | CG132: 317992.818 | CH132: 0 | CI132: -1 | CJ132: -1 | CK132: -1 | CL132: 0 | CM132: 0 | CN132: 0 | CO132: 0 | CP132: -1 | CQ132: 0 | CR132: -1 | CS132: -1 | CT132: -1 | CU132: -1 | CV132: -1 | CW132: -1 | CX132: -1 | CY132: -1 | CZ132: -1 | DA132: -1 | DB132: -1 | DC132: -1 | DD132: -1 | DE132: -1 | DF132: -1 | DG132: -1 | DH132: 1 | DJ132: Cilindraje | DK132: Transmisión | DL132: Seg5 | DM132: CCEVeh170 | DN132: CCEVeh170 | DO132: TRUE
